Workbook

Sheet (1)고정자산
B2: 기초자료 | E2: 특징 1. 감가상각비 내용년수 지나면 1원만 처리되도록 설정 | Q2: 고정자산 요약(자동산출)
B3: 농장명 | C3: 맛있는 딸기만팜 | E3: 특징 2. 감가상각비 품목별 비중 고려 가능 | Q3: 구분 | R3: 기존 취득가액 | S3: 신규 취득가액 | T3: 취득가액 | U3: 감가상각액 | V3: 감가상각누계액 | W3: 자산가치
B4: 대표자 | C4: 홍길동 | Q4: =B12 -> 토지 | R4: =SUMIF(C15:C20,"<>"&C5,F15:F20) -> 4000000 | S4: =SUMIF(C15:C20,C5,F15:F20) -> 0 | T4: =F21 -> 4000000 | W4: =F21 -> 4000000
B5: 회계연도 | C5: 2024 | D5: =C5-1 -> 2023 | Q5: =B25 -> 건물 | R5: =SUMIF(C28:C33,"<>"&C5,D28:D33) -> 3000000 | S5: =SUMIF(C28:C33,C5,D28:D33) -> 0 | T5: =D34 -> 3000000 | U5: =F34 -> 150000 | V5: =G34 -> 450000 | W5: =H34 -> 2550000
B6: 주요품목 1 | C6: 딸기 | Q6: =B38 -> 영농시설물 | R6: =SUMIF(C41:C50,"<>"&C5,D41:D50) -> 2000000 | S6: =SUMIF(C41:C50,C5,D41:D50) -> 0 | T6: =D51 -> 2000000 | U6: =F51 -> 200000 | V6: =G51 -> 400000 | W6: =H51 -> 1600000
B7: 주요품목 2 | C7: 수박 | Q7: =B54 -> 대농기구 | R7: =SUMIF(C57:C66,"<>"&C5,D57:D66) -> 3000000 | S7: =SUMIF(C57:C66,C5,D57:D66) -> 0 | T7: =D67 -> 3000000 | U7: =F67 -> 600000 | V7: =G67 -> 1200000 | W7: =H67 -> 1800000
B8: 주요품목 3 | C8: 참외 | Q8: =B70 -> 차량운반구 | R8: =SUMIF(C73:C82,"<>"&C5,D73:D82) -> 5000000 | S8: =SUMIF(C73:C82,C5,D73:D82) -> 0 | T8: =D83 -> 5000000 | U8: =F83 -> 625000 | V8: =G83 -> 1875000 | W8: =H83 -> 3125000
B9: 기타품목 | C9: 토마토 | Q9: =B87 -> 비품 | R9: =SUMIF(C90:C99,"<>"&C5,D90:D99) -> 1000000 | S9: =SUMIF(C90:C99,C5,D90:D99) -> 0 | T9: =D100 -> 1000000 | U9: =F100 -> 200000 | V9: =G100 -> 200000 | W9: =H100 -> 800000
Q10: =B104 -> 성숙한 생물자산(식물) | R10: =SUMIF(C107:C116,"<>"&C5,F107:F116) -> 0 | S10: =SUMIF(C107:C116,C5,F107:F116) -> 0 | T10: =F117 -> 0 | U10: =H117 -> 0 | V10: =I117 -> 0 | W10: =J117 -> 0
Q11: =B120 -> 성숙한 생물자산(가축) | R11: =SUMIF(C123:C132,"<>"&C5,F123:F132) -> 0 | S11: =SUMIF(C123:C132,C5,F123:F132) -> 0 | T11: =F133 -> 0 | U11: =H133 -> 0 | V11: =I133 -> 0 | W11: =J133 -> 0
B12: 토지 | Q12: 합계 | R12: =SUM(R4:R11) -> 18000000 | S12: =SUM(S4:S11) -> 0 | T12: =SUM(T4:T11) -> 18000000 | U12: =SUM(U4:U11) -> 1775000 | V12: 4125000 | W12: 13875000
B13: 토지구분 | C13: 취득년도 | D13: 면적(평) | E13: 평당 단가 | F13: 금액 | G13: 품목별 비중 (%)
G14: =IF(C6="","",C6) -> 딸기 | H14: =IF(C7="","",C7) -> 수박 | I14: =IF(C8="","",C8) -> 참외 | J14: =IF(C9="","",C9) -> 토마토 | K14: 합계
B15: 논 | C15: 2022 | D15: 400 | E15: 10000 | F15: =IF(E15="","",D15*E15) -> 4000000 | G15: 0.25 | H15: 0.25 | I15: 0.25 | J15: 0.25 | K15: =IF(G15="","",SUM(G15:J15)) -> 1
F16: =IF(E16="","",D16*E16) ->  | K16: =IF(G16="","",SUM(G16:J16)) ->  | Q16: ="고정자산 "& C6&" 요약(자동산출)" -> 고정자산 딸기 요약(자동산출)
Q17: 구분 | R17: 취득가액 | S17: 감가상각액 | T17: 감가상각누계액 | U17: 자산가치
Q18: =Q4 -> 토지 | R18: =SUMPRODUCT(F15:F20,G15:G20) -> 1000000 | U18: =SUMPRODUCT(F15:F20,G15:G20) -> 1000000
Q19: =Q5 -> 건물 | R19: =SUMPRODUCT(D28:D33,I28:I33) -> 750000 | S19: =SUMPRODUCT(F28:F33,I28:I33) -> 37500 | T19: =SUMPRODUCT(G28:G33,I28:I33) -> 112500 | U19: =SUMPRODUCT(H28:H33,I28:I33) -> 637500
Q20: =Q6 -> 영농시설물 | R20: =SUMPRODUCT(D41:D50,I41:I50) -> 500000 | S20: =SUMPRODUCT(F41:F50,I41:I50) -> 50000 | T20: =SUMPRODUCT(G41:G50,I41:I50) -> 100000 | U20: =SUMPRODUCT(H41:H50,I41:I50) -> 400000
B21: 합계 | F21: =SUM(F15:F20) -> 4000000 | Q21: =Q7 -> 대농기구 | R21: =SUMPRODUCT(D57:D66,I57:I66) -> 750000 | S21: =SUMPRODUCT(F57:F66,I57:I66) -> 150000 | T21: =SUMPRODUCT(G57:G66,I57:I66) -> 300000 | U21: =SUMPRODUCT(H57:H66,I57:I66) -> 450000
B22: ※ 토지구분 : 논, 밭, 과수원 등 입력 | J22: ※ 품목별 비중 합계는 반드시 100%여야함 | Q22: =Q8 -> 차량운반구 | R22: =SUMPRODUCT(D73:D82,I73:I82) -> 1250000 | S22: =SUMPRODUCT(F73:F82,I73:I82) -> 156250 | T22: =SUMPRODUCT(G73:G82,I73:I82) -> 468750 | U22: =SUMPRODUCT(H73:H82,I73:I82) -> 781250
Q23: 비품 | R23: =SUMPRODUCT(D90:D99,I90:I99) -> 250000 | S23: =SUMPRODUCT(F90:F99,I90:I99) -> 50000 | T23: =SUMPRODUCT(G90:G99,I90:I99) -> 50000 | U23: =SUMPRODUCT(H90:H99,I90:I99) -> 200000
Q24: 성숙한 생물자산(식물) | R24: =SUMPRODUCT(F107:F116,K107:K116) -> 0 | S24: =SUMPRODUCT(H107:H116,K107:K116) -> 0 | T24: =SUMPRODUCT(I107:I116,K107:K116) -> 0 | U24: =SUMPRODUCT(J107:J116,K107:K116) -> 0
B25: 건물 | Q25: 성숙한 생물자산(가축) | R25: =SUMPRODUCT(F123:F132,K123:K132) -> 0 | S25: =SUMPRODUCT(H123:H132,K123:K132) -> 0 | T25: =SUMPRODUCT(I123:I132,K123:K132) -> 0 | U25: =SUMPRODUCT(J123:J132,K123:K132) -> 0
B26: 건물구분 | C26: 취득년도 | D26: 취득가액 | E26: 내용연수 | F26: 감가상각액 | G26: 감가상각누계액 | H26: 자산가치 | I26: 품목별 비중 (%) | Q26: 합계 | R26: =SUM(R18:R25) -> 4500000 | S26: =SUM(S18:S25) -> 443750 | T26: =SUM(T18:T25) -> 1031250 | U26: =SUM(U18:U25) -> 3468750
I27: =IF(C6="","",C6) -> 딸기 | J27: =IF(C7="","",C7) -> 수박 | K27: =IF(C8="","",C8) -> 참외 | L27: =IF(C9="","",C9) -> 토마토 | M27: 합계
B28: 창고 | C28: 2021 | D28: 3000000 | E28: 20 | F28: =IF(D28="","",IF($C$5-C28+1>E28,1,D28/E28)) -> 150000 | G28: =IF(D28="","",IF($C$5-C28+1>E28,D28,F28*($C$5-C28))) -> 450000 | H28: =IF(D28="","",D28-G28) -> 2550000 | I28: 0.25 | J28: 0.25 | K28: 0.25 | L28: 0.25 | M28: =IF(I28="","",SUM(I28:L28)) -> 1
F29: =IF(D29="","",IF($C$5-C29+1>E29,1,D29/E29)) ->  | G29: =IF(D29="","",IF($C$5-C29+1>E29,D29,F29*($C$5-C29))) ->  | H29: =IF(D29="","",D29-G29) ->  | M29: =IF(I29="","",SUM(I29:L29)) -> 
H30: =IF(D30="","",D30-G30) ->  | Q30: ="고정자산 "& C7&" 요약(자동산출)" -> 고정자산 수박 요약(자동산출)
Q31: 구분 | R31: 취득가액 | S31: 감가상각액 | T31: 감가상각누계액 | U31: 자산가치
Q32: =Q18 -> 토지 | R32: =SUMPRODUCT(F15:F20,H15:H20) -> 1000000 | U32: =SUMPRODUCT(F15:F20,H15:H20) -> 1000000
Q33: =Q19 -> 건물 | R33: =SUMPRODUCT(D28:D33,J28:J33) -> 750000 | S33: =SUMPRODUCT(F28:F33,J28:J33) -> 37500 | T33: =SUMPRODUCT(G28:G33,J28:J33) -> 112500 | U33: =SUMPRODUCT(H28:H33,J28:J33) -> 637500
B34: 합계 | D34: =SUM(D28:D33) -> 3000000 | F34: =SUM(F28:F33) -> 150000 | G34: =SUM(G28:G33) -> 450000 | H34: =SUM(H28:H33) -> 2550000 | Q34: =Q20 -> 영농시설물 | R34: =SUMPRODUCT(D41:D50,J41:J50) -> 500000 | S34: =SUMPRODUCT(F41:F50,J41:J50) -> 50000 | T34: =SUMPRODUCT(G41:G50,J41:J50) -> 100000 | U34: =SUMPRODUCT(H41:H50,J41:J50) -> 400000
B35: ※ 건물구분 : 창고 등 입력 | M35: ※ 품목별 비중 합계는 반드시 100%여야함 | Q35: =Q21 -> 대농기구 | R35: =SUMPRODUCT(D57:D66,J57:J66) -> 750000 | S35: =SUMPRODUCT(F57:F66,J57:J66) -> 150000 | T35: =SUMPRODUCT(G57:G66,J57:J66) -> 300000 | U35: =SUMPRODUCT(H57:H66,J57:J66) -> 450000
Q36: =Q22 -> 차량운반구 | R36: =SUMPRODUCT(D73:D82,J73:J82) -> 1250000 | S36: =SUMPRODUCT(F73:F82,J73:J82) -> 156250 | T36: =SUMPRODUCT(G73:G82,J73:J82) -> 468750 | U36: =SUMPRODUCT(H73:H82,J73:J82) -> 781250
Q37: 비품 | R37: =SUMPRODUCT(D90:D99,J90:J99) -> 250000 | S37: =SUMPRODUCT(F90:F99,J90:J99) -> 50000 | T37: =SUMPRODUCT(G90:G99,J90:J99) -> 50000 | U37: =SUMPRODUCT(H90:H99,J90:J99) -> 200000
B38: 영농시설물 | Q38: 성숙한 생물자산(식물) | R38: =SUMPRODUCT(F107:F116,L107:L116) -> 0 | S38: =SUMPRODUCT(H107:H116,L107:L116) -> 0 | T38: =SUMPRODUCT(I107:I116,L107:L116) -> 0 | U38: =SUMPRODUCT(J107:J116,L107:L116) -> 0
B39: 영농시설물구분 | C39: 취득년도 | D39: 취득가액 | E39: 내용연수 | F39: 감가상각액 | G39: 감가상각누계액 | H39: 자산가치 | I39: 품목별 비중 (%) | Q39: 성숙한 생물자산(가축) | R39: =SUMPRODUCT(F123:F132,L123:L132) -> 0 | S39: =SUMPRODUCT(H123:H132,L123:L132) -> 0 | T39: =SUMPRODUCT(I123:I132,L123:L132) -> 0 | U39: =SUMPRODUCT(J123:J132,L123:L132) -> 0
I40: =IF(C6="","",C6) -> 딸기 | J40: =IF(C7="","",C7) -> 수박 | K40: =IF(C8="","",C8) -> 참외 | L40: =IF(C9="","",C9) -> 토마토 | M40: 합계 | Q40: 합계 | R40: =SUM(R32:R39) -> 4500000 | S40: =SUM(S32:S39) -> 443750 | T40: =SUM(T32:T39) -> 1031250 | U40: =SUM(U32:U39) -> 3468750
B41: 비닐하우스 | C41: 2022 | D41: 2000000 | E41: 10 | F41: =IF(D41="","",IF($C$5-C41+1>E41,1,D41/E41)) -> 200000 | G41: =IF(D41="","",IF($C$5-C41+1>E41,D41,F41*($C$5-C41))) -> 400000 | H41: =IF(D41="","",D41-G41) -> 1600000 | I41: 0.25 | J41: 0.25 | K41: 0.25 | L41: 0.25 | M41: =IF(I41="","",SUM(I41:L41)) -> 1
F42: =IF(D42="","",IF($C$5-C42+1>E42,1,D42/E42)) ->  | G42: =IF(D42="","",IF($C$5-C42+1>E42,D42,F42*($C$5-C42))) ->  | H42: =IF(D42="","",D42-G42) ->  | M42: =IF(I42="","",SUM(I42:L42)) -> 
H43: =IF(D43="","",D43-G43) -> 
Q44: ="고정자산 "& C8&" 요약(자동산출)" -> 고정자산 참외 요약(자동산출)
Q45: 구분 | R45: 취득가액 | S45: 감가상각액 | T45: 감가상각누계액 | U45: 자산가치
Q46: =Q32 -> 토지 | R46: =SUMPRODUCT(F15:F20,I15:I20) -> 1000000 | U46: =SUMPRODUCT(F15:F20,I15:I20) -> 1000000
Q47: =Q33 -> 건물 | R47: =SUMPRODUCT(D28:D33,K28:K33) -> 750000 | S47: =SUMPRODUCT(F28:F33,K28:K33) -> 37500 | T47: =SUMPRODUCT(G28:G33,K28:K33) -> 112500 | U47: =SUMPRODUCT(H28:H33,K28:K33) -> 637500
Q48: 영농시설물 | R48: =SUMPRODUCT(D41:D50,K41:K50) -> 500000 | S48: =SUMPRODUCT(F41:F50,K41:K50) -> 50000 | T48: =SUMPRODUCT(G41:G50,K41:K50) -> 100000 | U48: =SUMPRODUCT(H41:H50,K41:K50) -> 400000
Q49: 대농기구 | R49: =SUMPRODUCT(D57:D66,K57:K66) -> 750000 | S49: =SUMPRODUCT(F57:F66,K57:K66) -> 150000 | T49: =SUMPRODUCT(G57:G66,K57:K66) -> 300000 | U49: =SUMPRODUCT(H57:H66,K57:K66) -> 450000
Q50: 차량운반구 | R50: =SUMPRODUCT(D73:D82,K73:K82) -> 1250000 | S50: =SUMPRODUCT(F73:F82,K73:K82) -> 156250 | T50: =SUMPRODUCT(G73:G82,K73:K82) -> 468750 | U50: =SUMPRODUCT(H73:H82,K73:K82) -> 781250
B51: 합계 | D51: =SUM(D41:D50) -> 2000000 | F51: =SUM(F41:F50) -> 200000 | G51: 400000 | H51: =SUM(H41:H50) -> 1600000 | Q51: 비품 | R51: =SUMPRODUCT(D90:D99,K90:K99) -> 250000 | S51: =SUMPRODUCT(F90:F99,K90:K99) -> 50000 | T51: =SUMPRODUCT(G90:G99,K90:K99) -> 50000 | U51: =SUMPRODUCT(H90:H99,K90:K99) -> 200000
B52: ※ 영농시설물구분 : 비닐하우스 등 입력 | M52: ※ 품목별 비중 합계는 반드시 100%여야함 | Q52: 성숙한 생물자산(식물) | R52: =SUMPRODUCT(F107:F116,M107:M116) -> 0 | S52: =SUMPRODUCT(H107:H116,M107:M116) -> 0 | T52: =SUMPRODUCT(I107:I116,M107:M116) -> 0 | U52: =SUMPRODUCT(J107:J116,M107:M116) -> 0
Q53: 성숙한 생물자산(가축) | R53: =SUMPRODUCT(F123:F132,M123:M132) -> 0 | S53: =SUMPRODUCT(H123:H132,M123:M132) -> 0 | T53: =SUMPRODUCT(I123:I132,M123:M132) -> 0 | U53: =SUMPRODUCT(J123:J132,M123:M132) -> 0
B54: 대농기구 | Q54: 합계 | R54: =SUM(R46:R53) -> 4500000 | S54: =SUM(S46:S53) -> 443750 | T54: =SUM(T46:T53) -> 1031250 | U54: =SUM(U46:U53) -> 3468750
B55: 대농기구구분 | C55: 취득년도 | D55: 취득가액 | E55: 내용연수 | F55: 감가상각액 | G55: 감가상각누계액 | H55: 자산가치 | I55: 품목별 비중 (%)
I56: =IF(C6="","",C6) -> 딸기 | J56: =IF(C7="","",C7) -> 수박 | K56: =IF(C8="","",C8) -> 참외 | L56: =IF(C9="","",C9) -> 토마토 | M56: 합계
B57: 트랙터 | C57: 2022 | D57: 3000000 | E57: 5 | F57: =IF(D57="","",IF($C$5-C57+1>E57,1,D57/E57)) -> 600000 | G57: =IF(D57="","",IF($C$5-C57+1>E57,D57,F57*($C$5-C57))) -> 1200000 | H57: =IF(D57="","",D57-G57) -> 1800000 | I57: 0.25 | J57: 0.25 | K57: 0.25 | L57: 0.25 | M57: =IF(I57="","",SUM(I57:L57)) -> 1
F58: =IF(D58="","",IF($C$5-C58+1>E58,1,D58/E58)) ->  | G58: =IF(D58="","",IF($C$5-C58+1>E58,D58,F58*($C$5-C58))) ->  | H58: =IF(D58="","",D58-G58) ->  | M58: =IF(I58="","",SUM(I58:L58)) ->  | Q58: ="고정자산 "& C9&" 요약(자동산출)" -> 고정자산 토마토 요약(자동산출)
H59: =IF(D59="","",D59-G59) ->  | Q59: 구분 | R59: 취득가액 | S59: 감가상각액 | T59: 감가상각누계액 | U59: 자산가치
Q60: =Q46 -> 토지 | R60: =SUMPRODUCT(F15:F20,J15:J20) -> 1000000 | U60: =SUMPRODUCT(F15:F20,J15:J20) -> 1000000
Q61: =Q47 -> 건물 | R61: =SUMPRODUCT(D28:D33,L28:L33) -> 750000 | S61: =SUMPRODUCT(F28:F33,L28:L33) -> 37500 | T61: =SUMPRODUCT(G28:G33,L28:L33) -> 112500 | U61: =SUMPRODUCT(H28:H33,L28:L33) -> 637500
Q62: 영농시설물 | R62: =SUMPRODUCT(D41:D50,L41:L50) -> 500000 | S62: =SUMPRODUCT(F41:F50,L41:L50) -> 50000 | T62: =SUMPRODUCT(G41:G50,L41:L50) -> 100000 | U62: =SUMPRODUCT(H41:H50,L41:L50) -> 400000
Q63: 대농기구 | R63: =SUMPRODUCT(D57:D66,L57:L66) -> 750000 | S63: =SUMPRODUCT(F57:F66,L57:L66) -> 150000 | T63: =SUMPRODUCT(G57:G66,L57:L66) -> 300000 | U63: =SUMPRODUCT(H57:H66,L57:L66) -> 450000
Q64: 차량운반구 | R64: =SUMPRODUCT(D73:D82,L73:L82) -> 1250000 | S64: =SUMPRODUCT(F73:F82,L73:L82) -> 156250 | T64: =SUMPRODUCT(G73:G82,L73:L82) -> 468750 | U64: =SUMPRODUCT(H73:H82,L73:L82) -> 781250
Q65: 비품 | R65: =SUMPRODUCT(D90:D99,L90:L99) -> 250000 | S65: =SUMPRODUCT(F90:F99,L90:L99) -> 50000 | T65: =SUMPRODUCT(G90:G99,L90:L99) -> 50000 | U65: =SUMPRODUCT(H90:H99,L90:L99) -> 200000
Q66: 성숙한 생물자산(식물) | R66: =SUMPRODUCT(F107:F116,N107:N116) -> 0 | S66: =SUMPRODUCT(H107:H116,N107:N116) -> 0 | T66: =SUMPRODUCT(I107:I116,N107:N116) -> 0 | U66: =SUMPRODUCT(J107:J116,N107:N116) -> 0
B67: 합계 | D67: =SUM(D57:D66) -> 3000000 | F67: =SUM(F57:F66) -> 600000 | G67: 1200000 | H67: =SUM(H57:H66) -> 1800000 | Q67: 성숙한 생물자산(가축) | R67: =SUMPRODUCT(F123:F132,N123:N132) -> 0 | S67: =SUMPRODUCT(H123:H132,N123:N132) -> 0 | T67: =SUMPRODUCT(I123:I132,N123:N132) -> 0 | U67: =SUMPRODUCT(J123:J132,N123:N132) -> 0
B68: ※ 대농기구구분 : 트랙터 등 입력 | M68: ※ 품목별 비중 합계는 반드시 100%여야함 | Q68: 합계 | R68: =SUM(R60:R67) -> 4500000 | S68: =SUM(S60:S67) -> 443750 | T68: =SUM(T60:T67) -> 1031250 | U68: =SUM(U60:U67) -> 3468750
B70: 차량운반구
B71: 차량운반구구분 | C71: 취득년도 | D71: 취득가액 | E71: 내용연수 | F71: 감가상각액 | G71: 감가상각누계액 | H71: 자산가치 | I71: 품목별 비중 (%)
I72: =IF(C6="","",C6) -> 딸기 | J72: =IF(C7="","",C7) -> 수박 | K72: =IF(C8="","",C8) -> 참외 | L72: =IF(C9="","",C9) -> 토마토 | M72: 합계
B73: 트럭 | C73: 2021 | D73: 5000000 | E73: 8 | F73: =IF(D73="","",IF($C$5-C73+1>E73,1,D73/E73)) -> 625000 | G73: =IF(D73="","",IF($C$5-C73+1>E73,D73,F73*($C$5-C73))) -> 1875000 | H73: =IF(D73="","",D73-G73) -> 3125000 | I73: 0.25 | J73: 0.25 | K73: 0.25 | L73: 0.25 | M73: =IF(I73="","",SUM(I73:L73)) -> 1
F74: =IF(D74="","",IF($C$5-C74+1>E74,1,D74/E74)) ->  | G74: =IF(D74="","",IF($C$5-C74+1>E74,D74,F74*($C$5-C74))) ->  | H74: =IF(D74="","",D74-G74) ->  | M74: =IF(I74="","",SUM(I74:L74)) -> 
H75: =IF(D75="","",D75-G75) -> 
B83: 합계 | D83: =SUM(D73:D82) -> 5000000 | F83: =SUM(F73:F82) -> 625000 | G83: 1875000 | H83: =SUM(H73:H82) -> 3125000
B84: ※ 차량운반구구분 : 트럭 등 입력 | M84: ※ 품목별 비중 합계는 반드시 100%여야함
B87: 비품
B88: 비품구분 | C88: 취득년도 | D88: 취득가액 | E88: 내용연수 | F88: 감가상각액 | G88: 감가상각누계액 | H88: 자산가치 | I88: 품목별 비중 (%)
I89: =IF(C6="","",C6) -> 딸기 | J89: =IF(C7="","",C7) -> 수박 | K89: =IF(C8="","",C8) -> 참외 | L89: =IF(C9="","",C9) -> 토마토 | M89: 합계
B90: 컴퓨터 | C90: 2023 | D90: 1000000 | E90: 5 | F90: =IF(D90="","",IF($C$5-C90+1>E90,1,D90/E90)) -> 200000 | G90: =IF(D90="","",IF($C$5-C90+1>E90,D90,F90*($C$5-C90))) -> 200000 | H90: =IF(D90="","",D90-G90) -> 800000 | I90: 0.25 | J90: 0.25 | K90: 0.25 | L90: 0.25 | M90: =IF(I90="","",SUM(I90:L90)) -> 1
F91: =IF(D91="","",IF($C$5-C91+1>E91,1,D91/E91)) ->  | G91: =IF(D91="","",IF($C$5-C91+1>E91,D91,F91*($C$5-C91))) ->  | H91: =IF(D91="","",D91-G91) ->  | M91: =IF(I91="","",SUM(I91:L91)) -> 
H92: =IF(D92="","",D92-G92) -> 
B100: 합계 | D100: =SUM(D90:D99) -> 1000000 | F100: =SUM(F90:F99) -> 200000 | G100: 200000 | H100: =SUM(H90:H99) -> 800000
B101: ※ 비품구분 : 컴퓨터 등 입력 | M101: ※ 품목별 비중 합계는 반드시 100%여야함
B104: 성숙한 생물자산(식물)
B105: 과수구분 | C105: 성목년도 | D105: 규모(주) | E105: 투입단가 | F105: 투입원가 | G105: 내용연수 | H105: 감가상각액 | I105: 감가상각누계액 | J105: 자산가치 | K105: 품목별 비중 (%)
K106: =IF(C6="","",C6) -> 딸기 | L106: =IF(C7="","",C7) -> 수박 | M106: =IF(C8="","",C8) -> 참외 | N106: =IF(C9="","",C9) -> 토마토 | O106: 합계
F107: =IF(D107="","",D107*E107) ->  | H107: =IF(F107="","",IF($C$5-C107+1>G107,1,F107/G107)) ->  | I107: =IF(F107="","",IF($C$5-C107+1>G107,F107,H107*($C$5-C107))) ->  | J107: =IF(F107="","",F107-I107) ->  | O107: =IF(K107="","",SUM(K107:N107)) -> 
F108: =IF(D108="","",D108*E108) ->  | H108: =IF(F108="","",IF($C$5-C108+1>G108,1,F108/G108)) ->  | I108: =IF(F108="","",IF($C$5-C108+1>G108,F108,H108*($C$5-C108))) ->  | J108: =IF(F108="","",F108-I108) ->  | O108: =IF(K108="","",SUM(K108:N108)) -> 
J109: =IF(F109="","",F109-I109) -> 
B117: 합계 | F117: =SUM(F107:F116) -> 0 | H117: =SUM(H107:H116) -> 0 | I117: 0 | J117: =SUM(J107:J116) -> 0
B118: ※ 과수구분 : 포도, 사과 등 입력 | O118: ※ 품목별 비중 합계는 반드시 100%여야함
B120: 성숙한 생물자산(가축)
B121: 축산구분 | C121: 성축년도 | D121: 규모(마리) | E121: 투입단가 | F121: 투입원가 | G121: 내용연수 | H121: 감가상각액 | I121: 감가상각누계액 | J121: 자산가치 | K121: 품목별 비중 (%)
K122: =IF(C6="","",C6) -> 딸기 | L122: =IF(C7="","",C7) -> 수박 | M122: =IF(C8="","",C8) -> 참외 | N122: =IF(C9="","",C9) -> 토마토 | O122: 합계
F123: =IF(D123="","",D123*E123) ->  | H123: =IF(F123="","",IF($C$5-C123+1>G123,1,F123/G123)) ->  | I123: =IF(F123="","",IF($C$5-C123+1>G123,F123,H123*($C$5-C123))) ->  | J123: =IF(F123="","",F123-I123) -> 
F124: =IF(D124="","",D124*E124) ->  | H124: =IF(F124="","",IF($C$5-C124+1>G124,1,F124/G124)) ->  | I124: =IF(F124="","",IF($C$5-C124+1>G124,F124,H124*($C$5-C124))) ->  | J124: =IF(F124="","",F124-I124) ->  | O124: =IF(K124="","",SUM(K124:N124)) -> 
J125: =IF(F125="","",F125-I125) -> 
B133: 합계 | F133: =SUM(F123:F132) -> 0 | H133: =SUM(H123:H132) -> 0 | I133: 0 | J133: =SUM(J123:J132) -> 0
O134: ※ 품목별 비중 합계는 반드시 100%여야함

Sheet (2)기초자산,부채
B2: 계정관리 | H2: 자산 | Q2: 부채
B4: 자산 | E4: 부채 | H4: 재고자산 | Q4: 유동부채
H5: 재고자산구분 | I5: 금액 | J5: 작목별 세부금액 | Q5: 유동부채구분 | R5: 금액
B6: 구분 | C6: 항목 | E6: 구분 | F6: 항목 | J6: =IF('(1)고정자산'!C6="","",'(1)고정자산'!C6) -> 딸기 | K6: =IF('(1)고정자산'!C7="","",'(1)고정자산'!C7) -> 수박 | L6: =IF('(1)고정자산'!C8="","",'(1)고정자산'!C8) -> 참외 | M6: =IF('(1)고정자산'!C9="","",'(1)고정자산'!C9) -> 토마토 | N6: 합계 | Q6: =IF(F7="","",F7) -> 단기차입금 | R6: 10000000
B7: 재고 자산 | C7: 종묘,종자,종균 | E7: 유동 부채 | F7: 단기차입금 | H7: =IF(C7="","",C7) -> 종묘,종자,종균 | I7: 30000 | J7: 30000 | N7: =IF(SUM(J7:M7)=0,"",SUM(J7:M7)) -> 30000 | Q7: =IF(F8="","",F8) -> 외상매입금
C8: 비료 | F8: 외상매입금 | H8: =IF(C8="","",C8) -> 비료 | I8: 100000 | J8: 100000 | N8: =IF(SUM(J8:M8)=0,"",SUM(J8:M8)) -> 100000 | Q8: 미지급금
C9: 농약 | F9: 미지급금 | H9: 농약 | I9: 80000 | J9: 80000 | N9: 80000 | Q9: 미지급비용
C10: 사료 | F10: 미지급비용 | H10: 사료 | Q10: 예수금
C11: 약품 | F11: 예수금 | H11: 약품 | Q11: 선수금
C12: 기타재료 | F12: 선수금 | H12: 기타재료 | Q12: 선수수익
F13: 선수수익
C16: 생장물 | H16: 생장물 | I16: 500000 | J16: 500000 | N16: 500000
C17: 성장중인 생물자산(식물) | H17: 성장중인 생물자산(식물)
C18: 성장중인 생물자산(가축) | H18: 성장중인 생물자산(가축) | Q18: 합계 | R18: =SUM(R6:R17) -> 10000000
E19: 비유동 부채 | F19: 장기차입금
C20: 주산물 | F20: 장기외상매입금 | H20: =IF(C20="","",C20) -> 주산물 | I20: 500000 | J20: 500000 | N20: 500000
C21: 부산물 | F21: 사채 | H21: 부산물
C22: 가공품 | H22: 가공품 | Q22: 비유동부채
Q23: 비유동부채구분 | R23: 금액
Q24: =IF(F19="","",F19) -> 장기차입금 | R24: 2000000
Q25: =IF(F20="","",F20) -> 장기외상매입금
B26: 당좌 자산 | C26: 현금 | H26: 합계 | I26: =IF(SUM(I7:I25)=0,"",SUM(I7:I25)) -> 1210000 | J26: 1210000 | N26: 1210000 | Q26: 사채
C27: 단기예금 | M27: ※ 품목별 합계는 금액과 일치해야함
C28: 단기대여금 | E28: 특징 1. 계정추가 가능
C29: 외상매출금
C30: 미수금 | H30: 당좌자산
C31: 미수수익 | H31: 당좌자산구분 | I31: 금액
C32: 선급금 | H32: =IF(C26="","",C26) -> 현금 | I32: 10000000 | Q32: 합계 | R32: =SUM(R24:R31) -> 2000000
C33: 선급비용 | H33: 단기예금 | I33: 5000000
H34: 단기대여금
H35: 외상매출금
H36: 미수금 | Q36: 자본
H37: 미수수익
H38: 선급금 | Q38: 인출금 (자가노동비 인출)
B39: 투자 자산 | C39: 주식 | H39: 선급비용 | Q39: 인출금 | R39: 금액
C40: 채권 | Q40: 인출금(현금인출)
C41: 특허권 | Q41: 인출금(단기예금인출)
H45: 합계 | I45: =SUM(I32:I44) -> 15000000
H49: 투자자산 등
H50: 투자자산 등 구분 | I50: 금액
H51: =IF(C39="","",C39) -> 주식
H52: 채권
H53: 특허권
H59: 합계 | I59: =SUM(I51:I58) -> 0

Sheet (3)기초대차대조표
B2: 기초대차대조표 | G2: 기초대차대조표 요약 | L2: 기초대차대조표 차변 대변 요약
B4: ="회사명 : " & '(1)고정자산'!C3 -> 회사명 : 맛있는 딸기만팜 | G4: ="회사명 : " & '(1)고정자산'!C3 -> 회사명 : 맛있는 딸기만팜 | L4: ="회사명 : " & '(1)고정자산'!C3 -> 회사명 : 맛있는 딸기만팜
B5: 계정과목 | C5: 금액 | G5: 계정과목 | H5: 금액 | L5: 계정과목 | M5: 금액 | N5: 계정과목 | O5: 금액
B6: 자 산 | G6: 자 산 | L6: 자 산 | M6: =I12 -> 30085000 | N6: 부 채 | O6: =I16 -> 12000000
B7: 유동자산 | D7: =SUM(C8,C22,C42) -> 16210000 | G7: 유동자산 | I7: =D7 -> 16210000 | N7: 자 본 | O7: =I19 -> 18085000
B8: 당좌자산 | C8: =SUM(C9:C21) -> 15000000 | G8: 당좌자산 | H8: =C8 -> 15000000
B9: =" "&'(2)기초자산,부채'!C26 -> 현금 | C9: =IF('(2)기초자산,부채'!I32="","",'(2)기초자산,부채'!I32-'(2)기초자산,부채'!R40) -> 10000000 | G9: 재고자산 | H9: =C22 -> 1210000
B10: =" "&'(2)기초자산,부채'!C27 -> 단기예금 | C10: =IF('(2)기초자산,부채'!I33="","",'(2)기초자산,부채'!I33-'(2)기초자산,부채'!R41) -> 5000000 | G10: 투자자산 | H10: =C42 -> 0
B11: =" "&'(2)기초자산,부채'!C28 -> 단기대여금 | C11: =IF('(2)기초자산,부채'!I34="","",'(2)기초자산,부채'!I34) ->  | G11: 비유동자산 | I11: =D51 -> 13875000
B12: =" "&'(2)기초자산,부채'!C29 -> 외상매출금 | C12: =IF('(2)기초자산,부채'!I35="","",'(2)기초자산,부채'!I35) ->  | G12: 자 산 총 계 | I12: =D67 -> 30085000
B13: =" "&'(2)기초자산,부채'!C30 -> 미수금 | C13: =IF('(2)기초자산,부채'!I36="","",'(2)기초자산,부채'!I36) ->  | G13: 부 채
B14: =" "&'(2)기초자산,부채'!C31 -> 미수수익 | C14: =IF('(2)기초자산,부채'!I37="","",'(2)기초자산,부채'!I37) ->  | G14: 유동부채 | H14: =C69 -> 10000000
B15: =" "&'(2)기초자산,부채'!C32 -> 선급금 | C15: =IF('(2)기초자산,부채'!I38="","",'(2)기초자산,부채'!I38) ->  | G15: 비유동부채 | H15: =C82 -> 2000000
B16: =" "&'(2)기초자산,부채'!C33 -> 선급비용 | C16: =IF('(2)기초자산,부채'!I39="","",'(2)기초자산,부채'!I39) ->  | G16: 부 채 총 계 | I16: =D91 -> 12000000
B17: =" "&'(2)기초자산,부채'!C34 ->  | C17: =IF('(2)기초자산,부채'!I40="","",'(2)기초자산,부채'!I40) ->  | G17: 자 본
B18: =" "&'(2)기초자산,부채'!C35 ->  | C18: =IF('(2)기초자산,부채'!I41="","",'(2)기초자산,부채'!I41) ->  | G18: 자본금 | H18: =C93 -> 18085000
B19: =" "&'(2)기초자산,부채'!C36 ->  | C19: =IF('(2)기초자산,부채'!I42="","",'(2)기초자산,부채'!I42) ->  | G19: 자 본 총 계 | I19: =D95 -> 18085000
B20: =" "&'(2)기초자산,부채'!C37 ->  | C20: =IF('(2)기초자산,부채'!I43="","",'(2)기초자산,부채'!I43) ->  | G20: 부채와 자본 총계 | I20: =D96 -> 30085000
B21: =" "&'(2)기초자산,부채'!C38 ->  | C21: =IF('(2)기초자산,부채'!I44="","",'(2)기초자산,부채'!I44) -> 
B22: 재고자산 | C22: =SUM(C23:C41) -> 1210000
B23: =" "&'(2)기초자산,부채'!C7 -> 종묘,종자,종균 | C23: =IF('(2)기초자산,부채'!I7="","",'(2)기초자산,부채'!I7) -> 30000
B24: =" "&'(2)기초자산,부채'!C8 -> 비료 | C24: =IF('(2)기초자산,부채'!I8="","",'(2)기초자산,부채'!I8) -> 100000
B25: =" "&'(2)기초자산,부채'!C9 -> 농약 | C25: =IF('(2)기초자산,부채'!I9="","",'(2)기초자산,부채'!I9) -> 80000
B26: =" "&'(2)기초자산,부채'!C10 -> 사료 | C26: =IF('(2)기초자산,부채'!I10="","",'(2)기초자산,부채'!I10) -> 
B27: =" "&'(2)기초자산,부채'!C11 -> 약품 | C27: =IF('(2)기초자산,부채'!I11="","",'(2)기초자산,부채'!I11) -> 
B28: =" "&'(2)기초자산,부채'!C12 -> 기타재료 | C28: =IF('(2)기초자산,부채'!I12="","",'(2)기초자산,부채'!I12) -> 
B29: =" "&'(2)기초자산,부채'!C13 ->  | C29: =IF('(2)기초자산,부채'!I13="","",'(2)기초자산,부채'!I13) -> 
B30: =" "&'(2)기초자산,부채'!C14 ->  | C30: =IF('(2)기초자산,부채'!I14="","",'(2)기초자산,부채'!I14) -> 
B31: =" "&'(2)기초자산,부채'!C15 ->  | C31: =IF('(2)기초자산,부채'!I15="","",'(2)기초자산,부채'!I15) -> 
B32: =" "&'(2)기초자산,부채'!C16 -> 생장물 | C32: =IF('(2)기초자산,부채'!I16="","",'(2)기초자산,부채'!I16) -> 500000
B33: =" "&'(2)기초자산,부채'!C17 -> 성장중인 생물자산(식물) | C33: =IF('(2)기초자산,부채'!I17="","",'(2)기초자산,부채'!I17) -> 
B34: =" "&'(2)기초자산,부채'!C18 -> 성장중인 생물자산(가축) | C34: =IF('(2)기초자산,부채'!I18="","",'(2)기초자산,부채'!I18) -> 
B35: =" "&'(2)기초자산,부채'!C19 ->  | C35: =IF('(2)기초자산,부채'!I19="","",'(2)기초자산,부채'!I19) -> 
B36: =" "&'(2)기초자산,부채'!C20 -> 주산물 | C36: =IF('(2)기초자산,부채'!I20="","",'(2)기초자산,부채'!I20) -> 500000
B37: =" "&'(2)기초자산,부채'!C21 -> 부산물 | C37: =IF('(2)기초자산,부채'!I21="","",'(2)기초자산,부채'!I21) -> 
B38: =" "&'(2)기초자산,부채'!C22 -> 가공품 | C38: =IF('(2)기초자산,부채'!I22="","",'(2)기초자산,부채'!I22) -> 
B39: =" "&'(2)기초자산,부채'!C23 ->  | C39: =IF('(2)기초자산,부채'!I23="","",'(2)기초자산,부채'!I23) -> 
B40: =" "&'(2)기초자산,부채'!C24 ->  | C40: =IF('(2)기초자산,부채'!I24="","",'(2)기초자산,부채'!I24) -> 
B41: =" "&'(2)기초자산,부채'!C25 ->  | C41: =IF('(2)기초자산,부채'!I25="","",'(2)기초자산,부채'!I25) -> 
B42: 투자자산 | C42: =SUM(C43:C50) -> 0
B43: =" "&'(2)기초자산,부채'!C39 -> 주식 | C43: =IF('(2)기초자산,부채'!I51="","",'(2)기초자산,부채'!I51) -> 
B44: =" "&'(2)기초자산,부채'!C40 -> 채권 | C44: =IF('(2)기초자산,부채'!I52="","",'(2)기초자산,부채'!I52) -> 
B45: =" "&'(2)기초자산,부채'!C41 -> 특허권 | C45: =IF('(2)기초자산,부채'!I53="","",'(2)기초자산,부채'!I53) -> 
B46: =" "&'(2)기초자산,부채'!C42 ->  | C46: =IF('(2)기초자산,부채'!I54="","",'(2)기초자산,부채'!I54) -> 
B47: =" "&'(2)기초자산,부채'!C43 ->  | C47: =IF('(2)기초자산,부채'!I55="","",'(2)기초자산,부채'!I55) -> 
B48: =" "&'(2)기초자산,부채'!C44 ->  | C48: =IF('(2)기초자산,부채'!I56="","",'(2)기초자산,부채'!I56) -> 
B49: =" "&'(2)기초자산,부채'!C45 ->  | C49: =IF('(2)기초자산,부채'!I57="","",'(2)기초자산,부채'!I57) -> 
B50: =" "&'(2)기초자산,부채'!C46 ->  | C50: =IF('(2)기초자산,부채'!I58="","",'(2)기초자산,부채'!I58) -> 
B51: 비유동자산 | D51: =SUM(C52:C66)-SUM(D52:D66) -> 13875000
B52: =" "&'(1)고정자산'!Q4 -> 토지 | C52: ='(1)고정자산'!R4 -> 4000000
B53: =" "&'(1)고정자산'!Q5 -> 건물 | C53: ='(1)고정자산'!R5 -> 3000000
B54: =" "&"(-)"&'(1)고정자산'!Q5&"감가상각누계액" -> (-)건물감가상각누계액 | D54: ='(1)고정자산'!V5 -> 450000
B55: =" "&'(1)고정자산'!Q6 -> 영농시설물 | C55: ='(1)고정자산'!R6 -> 2000000
B56: =" "&"(-)"&'(1)고정자산'!Q6&"감가상각누계액" -> (-)영농시설물감가상각누계액 | D56: ='(1)고정자산'!V6 -> 400000
B57: =" "&'(1)고정자산'!Q7 -> 대농기구 | C57: ='(1)고정자산'!R7 -> 3000000
B58: =" "&"(-)"&'(1)고정자산'!Q7&"감가상각누계액" -> (-)대농기구감가상각누계액 | D58: ='(1)고정자산'!V7 -> 1200000
B59: =" "&'(1)고정자산'!Q8 -> 차량운반구 | C59: ='(1)고정자산'!R8 -> 5000000
B60: =" "&"(-)"&'(1)고정자산'!Q8&"감가상각누계액" -> (-)차량운반구감가상각누계액 | D60: ='(1)고정자산'!V8 -> 1875000
B61: =" "&'(1)고정자산'!Q9 -> 비품 | C61: ='(1)고정자산'!R9 -> 1000000
B62: =" "&"(-)"&'(1)고정자산'!Q9&"감가상각누계액" -> (-)비품감가상각누계액 | D62: ='(1)고정자산'!V9 -> 200000
B63: =" "&'(1)고정자산'!Q10 -> 성숙한 생물자산(식물) | C63: ='(1)고정자산'!R10 -> 0
B64: =" "&"(-)"&'(1)고정자산'!Q10&"감가상각누계액" -> (-)성숙한 생물자산(식물)감가상각누계액 | D64: ='(1)고정자산'!V10 -> 0
B65: =" "&'(1)고정자산'!Q11 -> 성숙한 생물자산(가축) | C65: ='(1)고정자산'!R11 -> 0
B66: =" "&"(-)"&'(1)고정자산'!Q11&"감가상각누계액" -> (-)성숙한 생물자산(가축)감가상각누계액 | D66: ='(1)고정자산'!V11 -> 0
B67: 자 산 총 계 | D67: =SUM(D7,D51) -> 30085000
B68: 부 채
B69: 유동부채 | C69: =SUM(C70:C81) -> 10000000
B70: =" "&'(2)기초자산,부채'!F7 -> 단기차입금 | C70: =IF('(2)기초자산,부채'!R6="","",'(2)기초자산,부채'!R6) -> 10000000
B71: =" "&'(2)기초자산,부채'!F8 -> 외상매입금 | C71: =IF('(2)기초자산,부채'!R7="","",'(2)기초자산,부채'!R7) -> 
B72: =" "&'(2)기초자산,부채'!F9 -> 미지급금 | C72: =IF('(2)기초자산,부채'!R8="","",'(2)기초자산,부채'!R8) -> 
B73: =" "&'(2)기초자산,부채'!F10 -> 미지급비용 | C73: =IF('(2)기초자산,부채'!R9="","",'(2)기초자산,부채'!R9) -> 
B74: =" "&'(2)기초자산,부채'!F11 -> 예수금 | C74: =IF('(2)기초자산,부채'!R10="","",'(2)기초자산,부채'!R10) -> 
B75: =" "&'(2)기초자산,부채'!F12 -> 선수금 | C75: =IF('(2)기초자산,부채'!R11="","",'(2)기초자산,부채'!R11) -> 
B76: =" "&'(2)기초자산,부채'!F13 -> 선수수익 | C76: =IF('(2)기초자산,부채'!R12="","",'(2)기초자산,부채'!R12) -> 
B77: =" "&'(2)기초자산,부채'!F14 ->  | C77: =IF('(2)기초자산,부채'!R13="","",'(2)기초자산,부채'!R13) -> 
B78: =" "&'(2)기초자산,부채'!F15 ->  | C78: =IF('(2)기초자산,부채'!R14="","",'(2)기초자산,부채'!R14) -> 
B79: =" "&'(2)기초자산,부채'!F16 ->  | C79: =IF('(2)기초자산,부채'!R15="","",'(2)기초자산,부채'!R15) -> 
B80: =" "&'(2)기초자산,부채'!F17 ->  | C80: =IF('(2)기초자산,부채'!R16="","",'(2)기초자산,부채'!R16) -> 
B81: =" "&'(2)기초자산,부채'!F18 ->  | C81: =IF('(2)기초자산,부채'!R17="","",'(2)기초자산,부채'!R17) -> 
B82: 비유동부채 | C82: =SUM(C83:C90) -> 2000000
B83: =" "&'(2)기초자산,부채'!F19 -> 장기차입금 | C83: =IF('(2)기초자산,부채'!R24="","",'(2)기초자산,부채'!R24) -> 2000000
B84: =" "&'(2)기초자산,부채'!F20 -> 장기외상매입금 | C84: =IF('(2)기초자산,부채'!R25="","",'(2)기초자산,부채'!R25) -> 
B85: =" "&'(2)기초자산,부채'!F21 -> 사채 | C85: =IF('(2)기초자산,부채'!R26="","",'(2)기초자산,부채'!R26) -> 
B86: =" "&'(2)기초자산,부채'!F22 ->  | C86: =IF('(2)기초자산,부채'!R27="","",'(2)기초자산,부채'!R27) -> 
B87: =" "&'(2)기초자산,부채'!F23 ->  | C87: =IF('(2)기초자산,부채'!R28="","",'(2)기초자산,부채'!R28) -> 
B88: =" "&'(2)기초자산,부채'!F24 ->  | C88: =IF('(2)기초자산,부채'!R29="","",'(2)기초자산,부채'!R29) -> 
B89: =" "&'(2)기초자산,부채'!F25 ->  | C89: =IF('(2)기초자산,부채'!R30="","",'(2)기초자산,부채'!R30) -> 
B90: =" "&'(2)기초자산,부채'!F26 ->  | C90: =IF('(2)기초자산,부채'!R31="","",'(2)기초자산,부채'!R31) -> 
B91: 부 채 총 계 | D91: =SUM(C69,C82) -> 12000000
B92: 자 본
B93: 자본금 | C93: =C94 -> 18085000
B94: =" "&"출자금" -> 출자금 | C94: =D67-D91 -> 18085000
B95: 자 본 총 계 | D95: =C93 -> 18085000
B96: 부채와 자본 총계 | D96: =D91+D95 -> 30085000

Sheet (4)수익
G1: ※ 정확한 수익 산출 위해 품목, 항목은 반드시 클릭하여 설정
B2: 계정관리 | G2: 판매수익(매출액)
G3: 월 | H3: 일 | I3: 품목 | J3: 항목 | K3: 내용 | L3: 금액 | M3: 비고
B4: 구분 | C4: 항목 | G4: 10 | H4: 11 | I4: 딸기 | J4: 주산물 판매수익 | K4: 딸기 판매 | L4: 3000000
B5: 영업수익 | C5: 주산물 판매수익 | G5: 12 | H5: 2 | I5: 수박 | J5: 주산물 판매수익 | K5: 수박 판매 | L5: 5000000
C6: 부산물 판매수익 | G6: 12 | H6: 15 | I6: 참외 | J6: 주산물 판매수익 | K6: 참외 판매 | L6: 2500000
C7: 가공품 판매수익 | G7: 12 | H7: 15 | I7: 토마토 | J7: 주산물 판매수익 | K7: 토마토 판매 | L7: 2500000
D8: ※ 영업수익 항목 추가 가능
B11: 영업외 수익 | C11: 정부보조금
C12: 이자 수익
C13: 임대료 수익
C14: 유형자산 처분 이익
C15: 수수료 수익
C16: 잡이익
D17: ※ 영업외수익 항목 추가 가능

Sheet (5)생산비용
G1: ※ 정확한 비용 산출 위해 품목, 항목은 반드시 클릭하여 설정
B2: 계정관리 | G2: 생산비용
G3: 월 | H3: 일 | I3: 품목 | J3: 항목 | K3: 내용 | L3: 금액 | M3: 비고
B4: 구분 | C4: 항목 | G4: 7 | H4: 1 | I4: 딸기 | J4: 비료비 | K4: 비료비 | L4: 1100000 | M4: 농협에서 체크카드로 구매
B5: 재료비 | C5: 종묘,종자,종균비 | G5: 8 | H5: 4 | I5: 수박 | J5: 종묘,종자,종균비 | K5: 종묘비 | L5: 4500000 | M5: 농협에서 외상으로 구매
C6: 비료비 | G6: 8 | H6: 9 | I6: 토마토 | J6: 농약비 | K6: 농약비 | L6: 500000 | M6: 농협에서 현금으로 구매
C7: 농약비 | G7: 8 | H7: 7 | I7: 참외 | J7: 인건비(일용직) | K7: 고용비 | L7: 1000000 | M7: 고용비 계좌이체
C8: 가축구입비 | G8: 10 | H8: 17 | I8: 딸기 | J8: 광열동력비 | K8: 난방비 | L8: 100000 | M8: 농장 난방비 신용카드 결제
C9: 사료비
C10: 약품,방역,치료비
C11: 기타재료비
D12: ※ 재료비 항목 추가 가능
B15: 노무비 | C15: 급여(상시고용)
C16: 인건비(일용직)
D17: ※ 노무비 항목 추가 가능
B21: 경비 | C21: 임차료
C22: 농작업위탁비
C23: 위탁비용
C24: 광열동력비
C25: 소농구비
C26: 보험료(농업보험)
C27: 종부료
C28: 분뇨처리비
C29: 기타경비 | D29: ※ 경비 항목 추가 가능

Sheet (6)판매비와관리비 등
G1: ※ 정확한 비용 산출 위해 품목, 항목은 반드시 클릭하여 설정
B2: 계정관리 | G2: 판매비와 관리비용 등
G3: 월 | H3: 일 | I3: 품목 | J3: 항목 | K3: 내용 | L3: 금액 | M3: 비고
B4: 구분 | C4: 항목 | G4: 11 | H4: 20 | I4: 수박 | J4: 접대비 | K4: 접대비 | L4: 200000 | M4: 거래처 직원 식사대접 체크카드 결제
B5: 판매비, 관리비 | C5: 급여(판매, 관리) | G5: 11 | H5: 27 | I5: 참외 | J5: 복리후생비 | K5: 복리후생 | L5: 200000 | M5: 농장 직원 회식비 체크카드 결제
C6: 임차료(판매, 관리) | G6: 12 | H6: 1 | I6: 토마토 | J6: 차량유지비 | K6: 주유비 | L6: 100000 | M6: 트럭주유 체크카드 결제
C7: 판매추진비(운반,상하차) | G7: 9 | H7: 10 | I7: 딸기 | J7: 이자비용 | K7: 이자 | L7: 300000 | M7: 장기차입금 이자 자동이체
C8: 판매수수료
C9: 복리후생비
C10: 접대비
C11: 차량유지비
C12: 교통비
C13: 광고선전비
C14: 통신비
C15: 도서인쇄비
C16: 소모품비
C17: 보험료(판매, 관리)
C18: 잡비
D19: ※ 판매비와 관리비 항목 추가 가능
B24: 영업외비용 | C24: 이자비용
C25: 세금과공과
C26: 유형자산처분손실
D27: ※ 영업외비용 항목 추가 가능
B29: 법인세 | C29: 법인세
D30: ※ 법인세 항목 추가 가능

Sheet (7)수익,비용요약
B2: 수익 | E2: 비용 | K2: ='(1)고정자산'!C6&" 수익" -> 딸기 수익 | N2: ='(1)고정자산'!C6&" 비용" -> 딸기 비용 | T2: ='(1)고정자산'!C7&" 수익" -> 수박 수익 | W2: ='(1)고정자산'!C7&" 비용" -> 수박 비용 | AC2: ='(1)고정자산'!C8&" 수익" -> 참외 수익 | AF2: ='(1)고정자산'!C8&" 비용" -> 참외 비용 | AL2: ='(1)고정자산'!C9&" 수익" -> 토마토 수익 | AO2: ='(1)고정자산'!C9&" 비용" -> 토마토 비용
B4: 영업수익 | E4: 생산비용 | H4: 판매비와 관리비 | K4: 영업수익 | N4: 생산비용 | Q4: 판매비와 관리비 | T4: 영업수익 | W4: 생산비용 | Z4: 판매비와 관리비 | AC4: 영업수익 | AF4: 생산비용 | AI4: 판매비와 관리비 | AL4: 영업수익 | AO4: 생산비용 | AR4: 판매비와 관리비
B5: =IF('(4)수익'!$C5="","",'(4)수익'!$C5) -> 주산물 판매수익 | C5: =IF(SUMIFS('(4)수익'!$L$4:$L$1048576,'(4)수익'!$J$4:$J$1048576,B5)=0,"",SUMIFS('(4)수익'!$L$4:$L$1048576,'(4)수익'!$J$4:$J$1048576,B5)) -> 13000000 | E5: =IF('(5)생산비용'!$C5="","",'(5)생산비용'!$C5) -> 종묘,종자,종균비 | F5: =IF(SUMIFS('(5)생산비용'!$L$4:$L$1048576,'(5)생산비용'!$J$4:$J$1048576,E5)=0,"",SUMIFS('(5)생산비용'!$L$4:$L$1048576,'(5)생산비용'!$J$4:$J$1048576,E5)) -> 4500000 | H5: =IF('(6)판매비와관리비 등'!$C5="","",'(6)판매비와관리비 등'!$C5) -> 급여(판매, 관리) | I5: =IF(SUMIFS('(6)판매비와관리비 등'!$L$4:$L$1048576,'(6)판매비와관리비 등'!$J$4:$J$1048576,H5)=0,"",SUMIFS('(6)판매비와관리비 등'!$L$4:$L$1048576,'(6)판매비와관리비 등'!$J$4:$J$1048576,H5)) ->  | K5: =IF('(4)수익'!$C5="","",'(4)수익'!$C5) -> 주산물 판매수익 | L5: =IF(SUMIFS('(4)수익'!$L$4:$L$1048576,'(4)수익'!$I$4:$I$1048576,'(1)고정자산'!$C$6,'(4)수익'!$J$4:$J$1048576,K5)=0,"",SUMIFS('(4)수익'!$L$4:$L$1048576,'(4)수익'!$I$4:$I$1048576,'(1)고정자산'!$C$6,'(4)수익'!$J$4:$J$1048576,K5)) -> 3000000 | N5: =IF('(5)생산비용'!$C5="","",'(5)생산비용'!$C5) -> 종묘,종자,종균비 | O5: =IF(SUMIFS('(5)생산비용'!$L$4:$L$1048576,'(5)생산비용'!$I$4:$I$1048576,'(1)고정자산'!$C$6,'(5)생산비용'!$J$4:$J$1048576,N5)=0,"",SUMIFS('(5)생산비용'!$L$4:$L$1048576,'(5)생산비용'!$I$4:$I$1048576,'(1)고정자산'!$C$6,'(5)생산비용'!$J$4:$J$1048576,N5)) ->  | Q5: =IF('(6)판매비와관리비 등'!$C5="","",'(6)판매비와관리비 등'!$C5) -> 급여(판매, 관리) | R5: =IF(SUMIFS('(6)판매비와관리비 등'!$L$4:$L$1048576,'(6)판매비와관리비 등'!$I$4:$I$1048576,'(1)고정자산'!$C$6,'(6)판매비와관리비 등'!$J$4:$J$1048576,Q5)=0,"",SUMIFS('(6)판매비와관리비 등'!$L$4:$L$1048576,'(6)판매비와관리비 등'!$I$4:$I$1048576,'(1)고정자산'!$C$6,'(6)판매비와관리비 등'!$J$4:$J$1048576,Q5)) ->  | T5: =IF('(4)수익'!$C5="","",'(4)수익'!$C5) -> 주산물 판매수익 | U5: =IF(SUMIFS('(4)수익'!$L$4:$L$1048576,'(4)수익'!$I$4:$I$1048576,'(1)고정자산'!$C$7,'(4)수익'!$J$4:$J$1048576,T5)=0,"",SUMIFS('(4)수익'!$L$4:$L$1048576,'(4)수익'!$I$4:$I$1048576,'(1)고정자산'!$C$7,'(4)수익'!$J$4:$J$1048576,T5)) -> 5000000 | W5: =IF('(5)생산비용'!$C5="","",'(5)생산비용'!$C5) -> 종묘,종자,종균비 | X5: =IF(SUMIFS('(5)생산비용'!$L$4:$L$1048576,'(5)생산비용'!$I$4:$I$1048576,'(1)고정자산'!$C$7,'(5)생산비용'!$J$4:$J$1048576,W5)=0,"",SUMIFS('(5)생산비용'!$L$4:$L$1048576,'(5)생산비용'!$I$4:$I$1048576,'(1)고정자산'!$C$7,'(5)생산비용'!$J$4:$J$1048576,W5)) -> 4500000 | Z5: =IF('(6)판매비와관리비 등'!$C5="","",'(6)판매비와관리비 등'!$C5) -> 급여(판매, 관리) | AA5: =IF(SUMIFS('(6)판매비와관리비 등'!$L$4:$L$1048576,'(6)판매비와관리비 등'!$I$4:$I$1048576,'(1)고정자산'!$C$7,'(6)판매비와관리비 등'!$J$4:$J$1048576,Z5)=0,"",SUMIFS('(6)판매비와관리비 등'!$L$4:$L$1048576,'(6)판매비와관리비 등'!$I$4:$I$1048576,'(1)고정자산'!$C$7,'(6)판매비와관리비 등'!$J$4:$J$1048576,Z5)) ->  | AC5: =IF('(4)수익'!$C5="","",'(4)수익'!$C5) -> 주산물 판매수익 | AD5: =IF(SUMIFS('(4)수익'!$L$4:$L$1048576,'(4)수익'!$I$4:$I$1048576,'(1)고정자산'!$C$8,'(4)수익'!$J$4:$J$1048576,AC5)=0,"",SUMIFS('(4)수익'!$L$4:$L$1048576,'(4)수익'!$I$4:$I$1048576,'(1)고정자산'!$C$8,'(4)수익'!$J$4:$J$1048576,AC5)) -> 2500000 | AF5: =IF('(5)생산비용'!$C5="","",'(5)생산비용'!$C5) -> 종묘,종자,종균비 | AG5: =IF(SUMIFS('(5)생산비용'!$L$4:$L$1048576,'(5)생산비용'!$I$4:$I$1048576,'(1)고정자산'!$C$8,'(5)생산비용'!$J$4:$J$1048576,AF5)=0,"",SUMIFS('(5)생산비용'!$L$4:$L$1048576,'(5)생산비용'!$I$4:$I$1048576,'(1)고정자산'!$C$8,'(5)생산비용'!$J$4:$J$1048576,AF5)) ->  | AI5: =IF('(6)판매비와관리비 등'!$C5="","",'(6)판매비와관리비 등'!$C5) -> 급여(판매, 관리) | AJ5: =IF(SUMIFS('(6)판매비와관리비 등'!$L$4:$L$1048576,'(6)판매비와관리비 등'!$I$4:$I$1048576,'(1)고정자산'!$C$8,'(6)판매비와관리비 등'!$J$4:$J$1048576,AI5)=0,"",SUMIFS('(6)판매비와관리비 등'!$L$4:$L$1048576,'(6)판매비와관리비 등'!$I$4:$I$1048576,'(1)고정자산'!$C$8,'(6)판매비와관리비 등'!$J$4:$J$1048576,AI5)) ->  | AL5: =IF('(4)수익'!$C5="","",'(4)수익'!$C5) -> 주산물 판매수익 | AM5: =IF(SUMIFS('(4)수익'!$L$4:$L$1048576,'(4)수익'!$I$4:$I$1048576,'(1)고정자산'!$C$9,'(4)수익'!$J$4:$J$1048576,AL5)=0,"",SUMIFS('(4)수익'!$L$4:$L$1048576,'(4)수익'!$I$4:$I$1048576,'(1)고정자산'!$C$9,'(4)수익'!$J$4:$J$1048576,AL5)) -> 2500000 | AO5: =IF('(5)생산비용'!$C5="","",'(5)생산비용'!$C5) -> 종묘,종자,종균비 | AP5: =IF(SUMIFS('(5)생산비용'!$L$4:$L$1048576,'(5)생산비용'!$I$4:$I$1048576,'(1)고정자산'!$C$9,'(5)생산비용'!$J$4:$J$1048576,AO5)=0,"",SUMIFS('(5)생산비용'!$L$4:$L$1048576,'(5)생산비용'!$I$4:$I$1048576,'(1)고정자산'!$C$9,'(5)생산비용'!$J$4:$J$1048576,AO5)) ->  | AR5: =IF('(6)판매비와관리비 등'!$C5="","",'(6)판매비와관리비 등'!$C5) -> 급여(판매, 관리) | AS5: =IF(SUMIFS('(6)판매비와관리비 등'!$L$4:$L$1048576,'(6)판매비와관리비 등'!$I$4:$I$1048576,'(1)고정자산'!$C$9,'(6)판매비와관리비 등'!$J$4:$J$1048576,AR5)=0,"",SUMIFS('(6)판매비와관리비 등'!$L$4:$L$1048576,'(6)판매비와관리비 등'!$I$4:$I$1048576,'(1)고정자산'!$C$9,'(6)판매비와관리비 등'!$J$4:$J$1048576,AR5)) -> 
B6: =IF('(4)수익'!$C6="","",'(4)수익'!$C6) -> 부산물 판매수익 | C6: =IF(SUMIFS('(4)수익'!$L$4:$L$1048576,'(4)수익'!$J$4:$J$1048576,B6)=0,"",SUMIFS('(4)수익'!$L$4:$L$1048576,'(4)수익'!$J$4:$J$1048576,B6)) ->  | E6: =IF('(5)생산비용'!$C6="","",'(5)생산비용'!$C6) -> 비료비 | F6: =IF(SUMIFS('(5)생산비용'!$L$4:$L$1048576,'(5)생산비용'!$J$4:$J$1048576,E6)=0,"",SUMIFS('(5)생산비용'!$L$4:$L$1048576,'(5)생산비용'!$J$4:$J$1048576,E6)) -> 1100000 | H6: =IF('(6)판매비와관리비 등'!$C6="","",'(6)판매비와관리비 등'!$C6) -> 임차료(판매, 관리) | I6: =IF(SUMIFS('(6)판매비와관리비 등'!$L$4:$L$1048576,'(6)판매비와관리비 등'!$J$4:$J$1048576,H6)=0,"",SUMIFS('(6)판매비와관리비 등'!$L$4:$L$1048576,'(6)판매비와관리비 등'!$J$4:$J$1048576,H6)) ->  | K6: =IF('(4)수익'!$C6="","",'(4)수익'!$C6) -> 부산물 판매수익 | L6: =IF(SUMIFS('(4)수익'!$L$4:$L$1048576,'(4)수익'!$I$4:$I$1048576,'(1)고정자산'!$C$6,'(4)수익'!$J$4:$J$1048576,K6)=0,"",SUMIFS('(4)수익'!$L$4:$L$1048576,'(4)수익'!$I$4:$I$1048576,'(1)고정자산'!$C$6,'(4)수익'!$J$4:$J$1048576,K6)) ->  | N6: =IF('(5)생산비용'!$C6="","",'(5)생산비용'!$C6) -> 비료비 | O6: =IF(SUMIFS('(5)생산비용'!$L$4:$L$1048576,'(5)생산비용'!$I$4:$I$1048576,'(1)고정자산'!$C$6,'(5)생산비용'!$J$4:$J$1048576,N6)=0,"",SUMIFS('(5)생산비용'!$L$4:$L$1048576,'(5)생산비용'!$I$4:$I$1048576,'(1)고정자산'!$C$6,'(5)생산비용'!$J$4:$J$1048576,N6)) -> 1100000 | Q6: =IF('(6)판매비와관리비 등'!$C6="","",'(6)판매비와관리비 등'!$C6) -> 임차료(판매, 관리) | R6: =IF(SUMIFS('(6)판매비와관리비 등'!$L$4:$L$1048576,'(6)판매비와관리비 등'!$I$4:$I$1048576,'(1)고정자산'!$C$6,'(6)판매비와관리비 등'!$J$4:$J$1048576,Q6)=0,"",SUMIFS('(6)판매비와관리비 등'!$L$4:$L$1048576,'(6)판매비와관리비 등'!$I$4:$I$1048576,'(1)고정자산'!$C$6,'(6)판매비와관리비 등'!$J$4:$J$1048576,Q6)) ->  | T6: =IF('(4)수익'!$C6="","",'(4)수익'!$C6) -> 부산물 판매수익 | U6: =IF(SUMIFS('(4)수익'!$L$4:$L$1048576,'(4)수익'!$I$4:$I$1048576,'(1)고정자산'!$C$7,'(4)수익'!$J$4:$J$1048576,T6)=0,"",SUMIFS('(4)수익'!$L$4:$L$1048576,'(4)수익'!$I$4:$I$1048576,'(1)고정자산'!$C$7,'(4)수익'!$J$4:$J$1048576,T6)) ->  | W6: =IF('(5)생산비용'!$C6="","",'(5)생산비용'!$C6) -> 비료비 | X6: =IF(SUMIFS('(5)생산비용'!$L$4:$L$1048576,'(5)생산비용'!$I$4:$I$1048576,'(1)고정자산'!$C$7,'(5)생산비용'!$J$4:$J$1048576,W6)=0,"",SUMIFS('(5)생산비용'!$L$4:$L$1048576,'(5)생산비용'!$I$4:$I$1048576,'(1)고정자산'!$C$7,'(5)생산비용'!$J$4:$J$1048576,W6)) ->  | Z6: =IF('(6)판매비와관리비 등'!$C6="","",'(6)판매비와관리비 등'!$C6) -> 임차료(판매, 관리) | AA6: =IF(SUMIFS('(6)판매비와관리비 등'!$L$4:$L$1048576,'(6)판매비와관리비 등'!$I$4:$I$1048576,'(1)고정자산'!$C$7,'(6)판매비와관리비 등'!$J$4:$J$1048576,Z6)=0,"",SUMIFS('(6)판매비와관리비 등'!$L$4:$L$1048576,'(6)판매비와관리비 등'!$I$4:$I$1048576,'(1)고정자산'!$C$7,'(6)판매비와관리비 등'!$J$4:$J$1048576,Z6)) ->  | AC6: =IF('(4)수익'!$C6="","",'(4)수익'!$C6) -> 부산물 판매수익 | AD6: =IF(SUMIFS('(4)수익'!$L$4:$L$1048576,'(4)수익'!$I$4:$I$1048576,'(1)고정자산'!$C$8,'(4)수익'!$J$4:$J$1048576,AC6)=0,"",SUMIFS('(4)수익'!$L$4:$L$1048576,'(4)수익'!$I$4:$I$1048576,'(1)고정자산'!$C$8,'(4)수익'!$J$4:$J$1048576,AC6)) ->  | AF6: =IF('(5)생산비용'!$C6="","",'(5)생산비용'!$C6) -> 비료비 | AG6: =IF(SUMIFS('(5)생산비용'!$L$4:$L$1048576,'(5)생산비용'!$I$4:$I$1048576,'(1)고정자산'!$C$8,'(5)생산비용'!$J$4:$J$1048576,AF6)=0,"",SUMIFS('(5)생산비용'!$L$4:$L$1048576,'(5)생산비용'!$I$4:$I$1048576,'(1)고정자산'!$C$8,'(5)생산비용'!$J$4:$J$1048576,AF6)) ->  | AI6: =IF('(6)판매비와관리비 등'!$C6="","",'(6)판매비와관리비 등'!$C6) -> 임차료(판매, 관리) | AJ6: =IF(SUMIFS('(6)판매비와관리비 등'!$L$4:$L$1048576,'(6)판매비와관리비 등'!$I$4:$I$1048576,'(1)고정자산'!$C$8,'(6)판매비와관리비 등'!$J$4:$J$1048576,AI6)=0,"",SUMIFS('(6)판매비와관리비 등'!$L$4:$L$1048576,'(6)판매비와관리비 등'!$I$4:$I$1048576,'(1)고정자산'!$C$8,'(6)판매비와관리비 등'!$J$4:$J$1048576,AI6)) ->  | AL6: =IF('(4)수익'!$C6="","",'(4)수익'!$C6) -> 부산물 판매수익 | AM6: =IF(SUMIFS('(4)수익'!$L$4:$L$1048576,'(4)수익'!$I$4:$I$1048576,'(1)고정자산'!$C$9,'(4)수익'!$J$4:$J$1048576,AL6)=0,"",SUMIFS('(4)수익'!$L$4:$L$1048576,'(4)수익'!$I$4:$I$1048576,'(1)고정자산'!$C$9,'(4)수익'!$J$4:$J$1048576,AL6)) ->  | AO6: =IF('(5)생산비용'!$C6="","",'(5)생산비용'!$C6) -> 비료비 | AP6: =IF(SUMIFS('(5)생산비용'!$L$4:$L$1048576,'(5)생산비용'!$I$4:$I$1048576,'(1)고정자산'!$C$9,'(5)생산비용'!$J$4:$J$1048576,AO6)=0,"",SUMIFS('(5)생산비용'!$L$4:$L$1048576,'(5)생산비용'!$I$4:$I$1048576,'(1)고정자산'!$C$9,'(5)생산비용'!$J$4:$J$1048576,AO6)) ->  | AR6: =IF('(6)판매비와관리비 등'!$C6="","",'(6)판매비와관리비 등'!$C6) -> 임차료(판매, 관리) | AS6: =IF(SUMIFS('(6)판매비와관리비 등'!$L$4:$L$1048576,'(6)판매비와관리비 등'!$I$4:$I$1048576,'(1)고정자산'!$C$9,'(6)판매비와관리비 등'!$J$4:$J$1048576,AR6)=0,"",SUMIFS('(6)판매비와관리비 등'!$L$4:$L$1048576,'(6)판매비와관리비 등'!$I$4:$I$1048576,'(1)고정자산'!$C$9,'(6)판매비와관리비 등'!$J$4:$J$1048576,AR6)) -> 
B7: =IF('(4)수익'!$C7="","",'(4)수익'!$C7) -> 가공품 판매수익 | C7: =IF(SUMIFS('(4)수익'!$L$4:$L$1048576,'(4)수익'!$J$4:$J$1048576,B7)=0,"",SUMIFS('(4)수익'!$L$4:$L$1048576,'(4)수익'!$J$4:$J$1048576,B7)) ->  | E7: =IF('(5)생산비용'!$C7="","",'(5)생산비용'!$C7) -> 농약비 | F7: =IF(SUMIFS('(5)생산비용'!$L$4:$L$1048576,'(5)생산비용'!$J$4:$J$1048576,E7)=0,"",SUMIFS('(5)생산비용'!$L$4:$L$1048576,'(5)생산비용'!$J$4:$J$1048576,E7)) -> 500000 | H7: =IF('(6)판매비와관리비 등'!$C7="","",'(6)판매비와관리비 등'!$C7) -> 판매추진비(운반,상하차) | I7: =IF(SUMIFS('(6)판매비와관리비 등'!$L$4:$L$1048576,'(6)판매비와관리비 등'!$J$4:$J$1048576,H7)=0,"",SUMIFS('(6)판매비와관리비 등'!$L$4:$L$1048576,'(6)판매비와관리비 등'!$J$4:$J$1048576,H7)) ->  | K7: =IF('(4)수익'!$C7="","",'(4)수익'!$C7) -> 가공품 판매수익 | L7: =IF(SUMIFS('(4)수익'!$L$4:$L$1048576,'(4)수익'!$I$4:$I$1048576,'(1)고정자산'!$C$6,'(4)수익'!$J$4:$J$1048576,K7)=0,"",SUMIFS('(4)수익'!$L$4:$L$1048576,'(4)수익'!$I$4:$I$1048576,'(1)고정자산'!$C$6,'(4)수익'!$J$4:$J$1048576,K7)) ->  | N7: =IF('(5)생산비용'!$C7="","",'(5)생산비용'!$C7) -> 농약비 | O7: =IF(SUMIFS('(5)생산비용'!$L$4:$L$1048576,'(5)생산비용'!$I$4:$I$1048576,'(1)고정자산'!$C$6,'(5)생산비용'!$J$4:$J$1048576,N7)=0,"",SUMIFS('(5)생산비용'!$L$4:$L$1048576,'(5)생산비용'!$I$4:$I$1048576,'(1)고정자산'!$C$6,'(5)생산비용'!$J$4:$J$1048576,N7)) ->  | Q7: =IF('(6)판매비와관리비 등'!$C7="","",'(6)판매비와관리비 등'!$C7) -> 판매추진비(운반,상하차) | R7: =IF(SUMIFS('(6)판매비와관리비 등'!$L$4:$L$1048576,'(6)판매비와관리비 등'!$I$4:$I$1048576,'(1)고정자산'!$C$6,'(6)판매비와관리비 등'!$J$4:$J$1048576,Q7)=0,"",SUMIFS('(6)판매비와관리비 등'!$L$4:$L$1048576,'(6)판매비와관리비 등'!$I$4:$I$1048576,'(1)고정자산'!$C$6,'(6)판매비와관리비 등'!$J$4:$J$1048576,Q7)) ->  | T7: =IF('(4)수익'!$C7="","",'(4)수익'!$C7) -> 가공품 판매수익 | U7: =IF(SUMIFS('(4)수익'!$L$4:$L$1048576,'(4)수익'!$I$4:$I$1048576,'(1)고정자산'!$C$7,'(4)수익'!$J$4:$J$1048576,T7)=0,"",SUMIFS('(4)수익'!$L$4:$L$1048576,'(4)수익'!$I$4:$I$1048576,'(1)고정자산'!$C$7,'(4)수익'!$J$4:$J$1048576,T7)) ->  | W7: =IF('(5)생산비용'!$C7="","",'(5)생산비용'!$C7) -> 농약비 | X7: =IF(SUMIFS('(5)생산비용'!$L$4:$L$1048576,'(5)생산비용'!$I$4:$I$1048576,'(1)고정자산'!$C$7,'(5)생산비용'!$J$4:$J$1048576,W7)=0,"",SUMIFS('(5)생산비용'!$L$4:$L$1048576,'(5)생산비용'!$I$4:$I$1048576,'(1)고정자산'!$C$7,'(5)생산비용'!$J$4:$J$1048576,W7)) ->  | Z7: =IF('(6)판매비와관리비 등'!$C7="","",'(6)판매비와관리비 등'!$C7) -> 판매추진비(운반,상하차) | AA7: =IF(SUMIFS('(6)판매비와관리비 등'!$L$4:$L$1048576,'(6)판매비와관리비 등'!$I$4:$I$1048576,'(1)고정자산'!$C$7,'(6)판매비와관리비 등'!$J$4:$J$1048576,Z7)=0,"",SUMIFS('(6)판매비와관리비 등'!$L$4:$L$1048576,'(6)판매비와관리비 등'!$I$4:$I$1048576,'(1)고정자산'!$C$7,'(6)판매비와관리비 등'!$J$4:$J$1048576,Z7)) ->  | AC7: =IF('(4)수익'!$C7="","",'(4)수익'!$C7) -> 가공품 판매수익 | AD7: =IF(SUMIFS('(4)수익'!$L$4:$L$1048576,'(4)수익'!$I$4:$I$1048576,'(1)고정자산'!$C$8,'(4)수익'!$J$4:$J$1048576,AC7)=0,"",SUMIFS('(4)수익'!$L$4:$L$1048576,'(4)수익'!$I$4:$I$1048576,'(1)고정자산'!$C$8,'(4)수익'!$J$4:$J$1048576,AC7)) ->  | AF7: =IF('(5)생산비용'!$C7="","",'(5)생산비용'!$C7) -> 농약비 | AG7: =IF(SUMIFS('(5)생산비용'!$L$4:$L$1048576,'(5)생산비용'!$I$4:$I$1048576,'(1)고정자산'!$C$8,'(5)생산비용'!$J$4:$J$1048576,AF7)=0,"",SUMIFS('(5)생산비용'!$L$4:$L$1048576,'(5)생산비용'!$I$4:$I$1048576,'(1)고정자산'!$C$8,'(5)생산비용'!$J$4:$J$1048576,AF7)) ->  | AI7: =IF('(6)판매비와관리비 등'!$C7="","",'(6)판매비와관리비 등'!$C7) -> 판매추진비(운반,상하차) | AJ7: =IF(SUMIFS('(6)판매비와관리비 등'!$L$4:$L$1048576,'(6)판매비와관리비 등'!$I$4:$I$1048576,'(1)고정자산'!$C$8,'(6)판매비와관리비 등'!$J$4:$J$1048576,AI7)=0,"",SUMIFS('(6)판매비와관리비 등'!$L$4:$L$1048576,'(6)판매비와관리비 등'!$I$4:$I$1048576,'(1)고정자산'!$C$8,'(6)판매비와관리비 등'!$J$4:$J$1048576,AI7)) ->  | AL7: =IF('(4)수익'!$C7="","",'(4)수익'!$C7) -> 가공품 판매수익 | AM7: =IF(SUMIFS('(4)수익'!$L$4:$L$1048576,'(4)수익'!$I$4:$I$1048576,'(1)고정자산'!$C$9,'(4)수익'!$J$4:$J$1048576,AL7)=0,"",SUMIFS('(4)수익'!$L$4:$L$1048576,'(4)수익'!$I$4:$I$1048576,'(1)고정자산'!$C$9,'(4)수익'!$J$4:$J$1048576,AL7)) ->  | AO7: =IF('(5)생산비용'!$C7="","",'(5)생산비용'!$C7) -> 농약비 | AP7: =IF(SUMIFS('(5)생산비용'!$L$4:$L$1048576,'(5)생산비용'!$I$4:$I$1048576,'(1)고정자산'!$C$9,'(5)생산비용'!$J$4:$J$1048576,AO7)=0,"",SUMIFS('(5)생산비용'!$L$4:$L$1048576,'(5)생산비용'!$I$4:$I$1048576,'(1)고정자산'!$C$9,'(5)생산비용'!$J$4:$J$1048576,AO7)) -> 500000 | AR7: =IF('(6)판매비와관리비 등'!$C7="","",'(6)판매비와관리비 등'!$C7) -> 판매추진비(운반,상하차) | AS7: =IF(SUMIFS('(6)판매비와관리비 등'!$L$4:$L$1048576,'(6)판매비와관리비 등'!$I$4:$I$1048576,'(1)고정자산'!$C$9,'(6)판매비와관리비 등'!$J$4:$J$1048576,AR7)=0,"",SUMIFS('(6)판매비와관리비 등'!$L$4:$L$1048576,'(6)판매비와관리비 등'!$I$4:$I$1048576,'(1)고정자산'!$C$9,'(6)판매비와관리비 등'!$J$4:$J$1048576,AR7)) -> 
B8: =IF('(4)수익'!$C8="","",'(4)수익'!$C8) ->  | C8: =IF(SUMIFS('(4)수익'!$L$4:$L$1048576,'(4)수익'!$J$4:$J$1048576,B8)=0,"",SUMIFS('(4)수익'!$L$4:$L$1048576,'(4)수익'!$J$4:$J$1048576,B8)) ->  | E8: =IF('(5)생산비용'!$C8="","",'(5)생산비용'!$C8) -> 가축구입비 | F8: =IF(SUMIFS('(5)생산비용'!$L$4:$L$1048576,'(5)생산비용'!$J$4:$J$1048576,E8)=0,"",SUMIFS('(5)생산비용'!$L$4:$L$1048576,'(5)생산비용'!$J$4:$J$1048576,E8)) ->  | H8: =IF('(6)판매비와관리비 등'!$C8="","",'(6)판매비와관리비 등'!$C8) -> 판매수수료 | I8: =IF(SUMIFS('(6)판매비와관리비 등'!$L$4:$L$1048576,'(6)판매비와관리비 등'!$J$4:$J$1048576,H8)=0,"",SUMIFS('(6)판매비와관리비 등'!$L$4:$L$1048576,'(6)판매비와관리비 등'!$J$4:$J$1048576,H8)) ->  | K8: =IF('(4)수익'!$C8="","",'(4)수익'!$C8) ->  | L8: =IF(SUMIFS('(4)수익'!$L$4:$L$1048576,'(4)수익'!$I$4:$I$1048576,'(1)고정자산'!$C$6,'(4)수익'!$J$4:$J$1048576,K8)=0,"",SUMIFS('(4)수익'!$L$4:$L$1048576,'(4)수익'!$I$4:$I$1048576,'(1)고정자산'!$C$6,'(4)수익'!$J$4:$J$1048576,K8)) ->  | N8: =IF('(5)생산비용'!$C8="","",'(5)생산비용'!$C8) -> 가축구입비 | O8: =IF(SUMIFS('(5)생산비용'!$L$4:$L$1048576,'(5)생산비용'!$I$4:$I$1048576,'(1)고정자산'!$C$6,'(5)생산비용'!$J$4:$J$1048576,N8)=0,"",SUMIFS('(5)생산비용'!$L$4:$L$1048576,'(5)생산비용'!$I$4:$I$1048576,'(1)고정자산'!$C$6,'(5)생산비용'!$J$4:$J$1048576,N8)) ->  | Q8: =IF('(6)판매비와관리비 등'!$C8="","",'(6)판매비와관리비 등'!$C8) -> 판매수수료 | R8: =IF(SUMIFS('(6)판매비와관리비 등'!$L$4:$L$1048576,'(6)판매비와관리비 등'!$I$4:$I$1048576,'(1)고정자산'!$C$6,'(6)판매비와관리비 등'!$J$4:$J$1048576,Q8)=0,"",SUMIFS('(6)판매비와관리비 등'!$L$4:$L$1048576,'(6)판매비와관리비 등'!$I$4:$I$1048576,'(1)고정자산'!$C$6,'(6)판매비와관리비 등'!$J$4:$J$1048576,Q8)) ->  | T8: =IF('(4)수익'!$C8="","",'(4)수익'!$C8) ->  | U8: =IF(SUMIFS('(4)수익'!$L$4:$L$1048576,'(4)수익'!$I$4:$I$1048576,'(1)고정자산'!$C$7,'(4)수익'!$J$4:$J$1048576,T8)=0,"",SUMIFS('(4)수익'!$L$4:$L$1048576,'(4)수익'!$I$4:$I$1048576,'(1)고정자산'!$C$7,'(4)수익'!$J$4:$J$1048576,T8)) ->  | W8: =IF('(5)생산비용'!$C8="","",'(5)생산비용'!$C8) -> 가축구입비 | X8: =IF(SUMIFS('(5)생산비용'!$L$4:$L$1048576,'(5)생산비용'!$I$4:$I$1048576,'(1)고정자산'!$C$7,'(5)생산비용'!$J$4:$J$1048576,W8)=0,"",SUMIFS('(5)생산비용'!$L$4:$L$1048576,'(5)생산비용'!$I$4:$I$1048576,'(1)고정자산'!$C$7,'(5)생산비용'!$J$4:$J$1048576,W8)) ->  | Z8: =IF('(6)판매비와관리비 등'!$C8="","",'(6)판매비와관리비 등'!$C8) -> 판매수수료 | AA8: =IF(SUMIFS('(6)판매비와관리비 등'!$L$4:$L$1048576,'(6)판매비와관리비 등'!$I$4:$I$1048576,'(1)고정자산'!$C$7,'(6)판매비와관리비 등'!$J$4:$J$1048576,Z8)=0,"",SUMIFS('(6)판매비와관리비 등'!$L$4:$L$1048576,'(6)판매비와관리비 등'!$I$4:$I$1048576,'(1)고정자산'!$C$7,'(6)판매비와관리비 등'!$J$4:$J$1048576,Z8)) ->  | AC8: =IF('(4)수익'!$C8="","",'(4)수익'!$C8) ->  | AD8: =IF(SUMIFS('(4)수익'!$L$4:$L$1048576,'(4)수익'!$I$4:$I$1048576,'(1)고정자산'!$C$8,'(4)수익'!$J$4:$J$1048576,AC8)=0,"",SUMIFS('(4)수익'!$L$4:$L$1048576,'(4)수익'!$I$4:$I$1048576,'(1)고정자산'!$C$8,'(4)수익'!$J$4:$J$1048576,AC8)) ->  | AF8: =IF('(5)생산비용'!$C8="","",'(5)생산비용'!$C8) -> 가축구입비 | AG8: =IF(SUMIFS('(5)생산비용'!$L$4:$L$1048576,'(5)생산비용'!$I$4:$I$1048576,'(1)고정자산'!$C$8,'(5)생산비용'!$J$4:$J$1048576,AF8)=0,"",SUMIFS('(5)생산비용'!$L$4:$L$1048576,'(5)생산비용'!$I$4:$I$1048576,'(1)고정자산'!$C$8,'(5)생산비용'!$J$4:$J$1048576,AF8)) ->  | AI8: =IF('(6)판매비와관리비 등'!$C8="","",'(6)판매비와관리비 등'!$C8) -> 판매수수료 | AJ8: =IF(SUMIFS('(6)판매비와관리비 등'!$L$4:$L$1048576,'(6)판매비와관리비 등'!$I$4:$I$1048576,'(1)고정자산'!$C$8,'(6)판매비와관리비 등'!$J$4:$J$1048576,AI8)=0,"",SUMIFS('(6)판매비와관리비 등'!$L$4:$L$1048576,'(6)판매비와관리비 등'!$I$4:$I$1048576,'(1)고정자산'!$C$8,'(6)판매비와관리비 등'!$J$4:$J$1048576,AI8)) ->  | AL8: =IF('(4)수익'!$C8="","",'(4)수익'!$C8) ->  | AM8: =IF(SUMIFS('(4)수익'!$L$4:$L$1048576,'(4)수익'!$I$4:$I$1048576,'(1)고정자산'!$C$9,'(4)수익'!$J$4:$J$1048576,AL8)=0,"",SUMIFS('(4)수익'!$L$4:$L$1048576,'(4)수익'!$I$4:$I$1048576,'(1)고정자산'!$C$9,'(4)수익'!$J$4:$J$1048576,AL8)) ->  | AO8: =IF('(5)생산비용'!$C8="","",'(5)생산비용'!$C8) -> 가축구입비 | AP8: =IF(SUMIFS('(5)생산비용'!$L$4:$L$1048576,'(5)생산비용'!$I$4:$I$1048576,'(1)고정자산'!$C$9,'(5)생산비용'!$J$4:$J$1048576,AO8)=0,"",SUMIFS('(5)생산비용'!$L$4:$L$1048576,'(5)생산비용'!$I$4:$I$1048576,'(1)고정자산'!$C$9,'(5)생산비용'!$J$4:$J$1048576,AO8)) ->  | AR8: =IF('(6)판매비와관리비 등'!$C8="","",'(6)판매비와관리비 등'!$C8) -> 판매수수료 | AS8: =IF(SUMIFS('(6)판매비와관리비 등'!$L$4:$L$1048576,'(6)판매비와관리비 등'!$I$4:$I$1048576,'(1)고정자산'!$C$9,'(6)판매비와관리비 등'!$J$4:$J$1048576,AR8)=0,"",SUMIFS('(6)판매비와관리비 등'!$L$4:$L$1048576,'(6)판매비와관리비 등'!$I$4:$I$1048576,'(1)고정자산'!$C$9,'(6)판매비와관리비 등'!$J$4:$J$1048576,AR8)) -> 
B9: =IF('(4)수익'!$C9="","",'(4)수익'!$C9) ->  | C9: =IF(SUMIFS('(4)수익'!$L$4:$L$1048576,'(4)수익'!$J$4:$J$1048576,B9)=0,"",SUMIFS('(4)수익'!$L$4:$L$1048576,'(4)수익'!$J$4:$J$1048576,B9)) ->  | E9: =IF('(5)생산비용'!$C9="","",'(5)생산비용'!$C9) -> 사료비 | F9: =IF(SUMIFS('(5)생산비용'!$L$4:$L$1048576,'(5)생산비용'!$J$4:$J$1048576,E9)=0,"",SUMIFS('(5)생산비용'!$L$4:$L$1048576,'(5)생산비용'!$J$4:$J$1048576,E9)) ->  | H9: =IF('(6)판매비와관리비 등'!$C9="","",'(6)판매비와관리비 등'!$C9) -> 복리후생비 | I9: =IF(SUMIFS('(6)판매비와관리비 등'!$L$4:$L$1048576,'(6)판매비와관리비 등'!$J$4:$J$1048576,H9)=0,"",SUMIFS('(6)판매비와관리비 등'!$L$4:$L$1048576,'(6)판매비와관리비 등'!$J$4:$J$1048576,H9)) -> 200000 | K9: =IF('(4)수익'!$C9="","",'(4)수익'!$C9) ->  | L9: =IF(SUMIFS('(4)수익'!$L$4:$L$1048576,'(4)수익'!$I$4:$I$1048576,'(1)고정자산'!$C$6,'(4)수익'!$J$4:$J$1048576,K9)=0,"",SUMIFS('(4)수익'!$L$4:$L$1048576,'(4)수익'!$I$4:$I$1048576,'(1)고정자산'!$C$6,'(4)수익'!$J$4:$J$1048576,K9)) ->  | N9: =IF('(5)생산비용'!$C9="","",'(5)생산비용'!$C9) -> 사료비 | O9: =IF(SUMIFS('(5)생산비용'!$L$4:$L$1048576,'(5)생산비용'!$I$4:$I$1048576,'(1)고정자산'!$C$6,'(5)생산비용'!$J$4:$J$1048576,N9)=0,"",SUMIFS('(5)생산비용'!$L$4:$L$1048576,'(5)생산비용'!$I$4:$I$1048576,'(1)고정자산'!$C$6,'(5)생산비용'!$J$4:$J$1048576,N9)) ->  | Q9: =IF('(6)판매비와관리비 등'!$C9="","",'(6)판매비와관리비 등'!$C9) -> 복리후생비 | R9: =IF(SUMIFS('(6)판매비와관리비 등'!$L$4:$L$1048576,'(6)판매비와관리비 등'!$I$4:$I$1048576,'(1)고정자산'!$C$6,'(6)판매비와관리비 등'!$J$4:$J$1048576,Q9)=0,"",SUMIFS('(6)판매비와관리비 등'!$L$4:$L$1048576,'(6)판매비와관리비 등'!$I$4:$I$1048576,'(1)고정자산'!$C$6,'(6)판매비와관리비 등'!$J$4:$J$1048576,Q9)) ->  | T9: =IF('(4)수익'!$C9="","",'(4)수익'!$C9) ->  | U9: =IF(SUMIFS('(4)수익'!$L$4:$L$1048576,'(4)수익'!$I$4:$I$1048576,'(1)고정자산'!$C$7,'(4)수익'!$J$4:$J$1048576,T9)=0,"",SUMIFS('(4)수익'!$L$4:$L$1048576,'(4)수익'!$I$4:$I$1048576,'(1)고정자산'!$C$7,'(4)수익'!$J$4:$J$1048576,T9)) ->  | W9: =IF('(5)생산비용'!$C9="","",'(5)생산비용'!$C9) -> 사료비 | X9: =IF(SUMIFS('(5)생산비용'!$L$4:$L$1048576,'(5)생산비용'!$I$4:$I$1048576,'(1)고정자산'!$C$7,'(5)생산비용'!$J$4:$J$1048576,W9)=0,"",SUMIFS('(5)생산비용'!$L$4:$L$1048576,'(5)생산비용'!$I$4:$I$1048576,'(1)고정자산'!$C$7,'(5)생산비용'!$J$4:$J$1048576,W9)) ->  | Z9: =IF('(6)판매비와관리비 등'!$C9="","",'(6)판매비와관리비 등'!$C9) -> 복리후생비 | AA9: =IF(SUMIFS('(6)판매비와관리비 등'!$L$4:$L$1048576,'(6)판매비와관리비 등'!$I$4:$I$1048576,'(1)고정자산'!$C$7,'(6)판매비와관리비 등'!$J$4:$J$1048576,Z9)=0,"",SUMIFS('(6)판매비와관리비 등'!$L$4:$L$1048576,'(6)판매비와관리비 등'!$I$4:$I$1048576,'(1)고정자산'!$C$7,'(6)판매비와관리비 등'!$J$4:$J$1048576,Z9)) ->  | AC9: =IF('(4)수익'!$C9="","",'(4)수익'!$C9) ->  | AD9: =IF(SUMIFS('(4)수익'!$L$4:$L$1048576,'(4)수익'!$I$4:$I$1048576,'(1)고정자산'!$C$8,'(4)수익'!$J$4:$J$1048576,AC9)=0,"",SUMIFS('(4)수익'!$L$4:$L$1048576,'(4)수익'!$I$4:$I$1048576,'(1)고정자산'!$C$8,'(4)수익'!$J$4:$J$1048576,AC9)) ->  | AF9: =IF('(5)생산비용'!$C9="","",'(5)생산비용'!$C9) -> 사료비 | AG9: =IF(SUMIFS('(5)생산비용'!$L$4:$L$1048576,'(5)생산비용'!$I$4:$I$1048576,'(1)고정자산'!$C$8,'(5)생산비용'!$J$4:$J$1048576,AF9)=0,"",SUMIFS('(5)생산비용'!$L$4:$L$1048576,'(5)생산비용'!$I$4:$I$1048576,'(1)고정자산'!$C$8,'(5)생산비용'!$J$4:$J$1048576,AF9)) ->  | AI9: =IF('(6)판매비와관리비 등'!$C9="","",'(6)판매비와관리비 등'!$C9) -> 복리후생비 | AJ9: =IF(SUMIFS('(6)판매비와관리비 등'!$L$4:$L$1048576,'(6)판매비와관리비 등'!$I$4:$I$1048576,'(1)고정자산'!$C$8,'(6)판매비와관리비 등'!$J$4:$J$1048576,AI9)=0,"",SUMIFS('(6)판매비와관리비 등'!$L$4:$L$1048576,'(6)판매비와관리비 등'!$I$4:$I$1048576,'(1)고정자산'!$C$8,'(6)판매비와관리비 등'!$J$4:$J$1048576,AI9)) -> 200000 | AL9: =IF('(4)수익'!$C9="","",'(4)수익'!$C9) ->  | AM9: =IF(SUMIFS('(4)수익'!$L$4:$L$1048576,'(4)수익'!$I$4:$I$1048576,'(1)고정자산'!$C$9,'(4)수익'!$J$4:$J$1048576,AL9)=0,"",SUMIFS('(4)수익'!$L$4:$L$1048576,'(4)수익'!$I$4:$I$1048576,'(1)고정자산'!$C$9,'(4)수익'!$J$4:$J$1048576,AL9)) ->  | AO9: =IF('(5)생산비용'!$C9="","",'(5)생산비용'!$C9) -> 사료비 | AP9: =IF(SUMIFS('(5)생산비용'!$L$4:$L$1048576,'(5)생산비용'!$I$4:$I$1048576,'(1)고정자산'!$C$9,'(5)생산비용'!$J$4:$J$1048576,AO9)=0,"",SUMIFS('(5)생산비용'!$L$4:$L$1048576,'(5)생산비용'!$I$4:$I$1048576,'(1)고정자산'!$C$9,'(5)생산비용'!$J$4:$J$1048576,AO9)) ->  | AR9: =IF('(6)판매비와관리비 등'!$C9="","",'(6)판매비와관리비 등'!$C9) -> 복리후생비 | AS9: =IF(SUMIFS('(6)판매비와관리비 등'!$L$4:$L$1048576,'(6)판매비와관리비 등'!$I$4:$I$1048576,'(1)고정자산'!$C$9,'(6)판매비와관리비 등'!$J$4:$J$1048576,AR9)=0,"",SUMIFS('(6)판매비와관리비 등'!$L$4:$L$1048576,'(6)판매비와관리비 등'!$I$4:$I$1048576,'(1)고정자산'!$C$9,'(6)판매비와관리비 등'!$J$4:$J$1048576,AR9)) -> 
B10: =IF('(4)수익'!$C10="","",'(4)수익'!$C10) ->  | C10: =IF(SUMIFS('(4)수익'!$L$4:$L$1048576,'(4)수익'!$J$4:$J$1048576,B10)=0,"",SUMIFS('(4)수익'!$L$4:$L$1048576,'(4)수익'!$J$4:$J$1048576,B10)) ->  | E10: =IF('(5)생산비용'!$C10="","",'(5)생산비용'!$C10) -> 약품,방역,치료비 | F10: =IF(SUMIFS('(5)생산비용'!$L$4:$L$1048576,'(5)생산비용'!$J$4:$J$1048576,E10)=0,"",SUMIFS('(5)생산비용'!$L$4:$L$1048576,'(5)생산비용'!$J$4:$J$1048576,E10)) ->  | H10: =IF('(6)판매비와관리비 등'!$C10="","",'(6)판매비와관리비 등'!$C10) -> 접대비 | I10: =IF(SUMIFS('(6)판매비와관리비 등'!$L$4:$L$1048576,'(6)판매비와관리비 등'!$J$4:$J$1048576,H10)=0,"",SUMIFS('(6)판매비와관리비 등'!$L$4:$L$1048576,'(6)판매비와관리비 등'!$J$4:$J$1048576,H10)) -> 200000 | K10: =IF('(4)수익'!$C10="","",'(4)수익'!$C10) ->  | L10: =IF(SUMIFS('(4)수익'!$L$4:$L$1048576,'(4)수익'!$I$4:$I$1048576,'(1)고정자산'!$C$6,'(4)수익'!$J$4:$J$1048576,K10)=0,"",SUMIFS('(4)수익'!$L$4:$L$1048576,'(4)수익'!$I$4:$I$1048576,'(1)고정자산'!$C$6,'(4)수익'!$J$4:$J$1048576,K10)) ->  | N10: =IF('(5)생산비용'!$C10="","",'(5)생산비용'!$C10) -> 약품,방역,치료비 | O10: =IF(SUMIFS('(5)생산비용'!$L$4:$L$1048576,'(5)생산비용'!$I$4:$I$1048576,'(1)고정자산'!$C$6,'(5)생산비용'!$J$4:$J$1048576,N10)=0,"",SUMIFS('(5)생산비용'!$L$4:$L$1048576,'(5)생산비용'!$I$4:$I$1048576,'(1)고정자산'!$C$6,'(5)생산비용'!$J$4:$J$1048576,N10)) ->  | Q10: =IF('(6)판매비와관리비 등'!$C10="","",'(6)판매비와관리비 등'!$C10) -> 접대비 | R10: =IF(SUMIFS('(6)판매비와관리비 등'!$L$4:$L$1048576,'(6)판매비와관리비 등'!$I$4:$I$1048576,'(1)고정자산'!$C$6,'(6)판매비와관리비 등'!$J$4:$J$1048576,Q10)=0,"",SUMIFS('(6)판매비와관리비 등'!$L$4:$L$1048576,'(6)판매비와관리비 등'!$I$4:$I$1048576,'(1)고정자산'!$C$6,'(6)판매비와관리비 등'!$J$4:$J$1048576,Q10)) ->  | T10: =IF('(4)수익'!$C10="","",'(4)수익'!$C10) ->  | U10: =IF(SUMIFS('(4)수익'!$L$4:$L$1048576,'(4)수익'!$I$4:$I$1048576,'(1)고정자산'!$C$7,'(4)수익'!$J$4:$J$1048576,T10)=0,"",SUMIFS('(4)수익'!$L$4:$L$1048576,'(4)수익'!$I$4:$I$1048576,'(1)고정자산'!$C$7,'(4)수익'!$J$4:$J$1048576,T10)) ->  | W10: =IF('(5)생산비용'!$C10="","",'(5)생산비용'!$C10) -> 약품,방역,치료비 | X10: =IF(SUMIFS('(5)생산비용'!$L$4:$L$1048576,'(5)생산비용'!$I$4:$I$1048576,'(1)고정자산'!$C$7,'(5)생산비용'!$J$4:$J$1048576,W10)=0,"",SUMIFS('(5)생산비용'!$L$4:$L$1048576,'(5)생산비용'!$I$4:$I$1048576,'(1)고정자산'!$C$7,'(5)생산비용'!$J$4:$J$1048576,W10)) ->  | Z10: =IF('(6)판매비와관리비 등'!$C10="","",'(6)판매비와관리비 등'!$C10) -> 접대비 | AA10: =IF(SUMIFS('(6)판매비와관리비 등'!$L$4:$L$1048576,'(6)판매비와관리비 등'!$I$4:$I$1048576,'(1)고정자산'!$C$7,'(6)판매비와관리비 등'!$J$4:$J$1048576,Z10)=0,"",SUMIFS('(6)판매비와관리비 등'!$L$4:$L$1048576,'(6)판매비와관리비 등'!$I$4:$I$1048576,'(1)고정자산'!$C$7,'(6)판매비와관리비 등'!$J$4:$J$1048576,Z10)) -> 200000 | AC10: =IF('(4)수익'!$C10="","",'(4)수익'!$C10) ->  | AD10: =IF(SUMIFS('(4)수익'!$L$4:$L$1048576,'(4)수익'!$I$4:$I$1048576,'(1)고정자산'!$C$8,'(4)수익'!$J$4:$J$1048576,AC10)=0,"",SUMIFS('(4)수익'!$L$4:$L$1048576,'(4)수익'!$I$4:$I$1048576,'(1)고정자산'!$C$8,'(4)수익'!$J$4:$J$1048576,AC10)) ->  | AF10: =IF('(5)생산비용'!$C10="","",'(5)생산비용'!$C10) -> 약품,방역,치료비 | AG10: =IF(SUMIFS('(5)생산비용'!$L$4:$L$1048576,'(5)생산비용'!$I$4:$I$1048576,'(1)고정자산'!$C$8,'(5)생산비용'!$J$4:$J$1048576,AF10)=0,"",SUMIFS('(5)생산비용'!$L$4:$L$1048576,'(5)생산비용'!$I$4:$I$1048576,'(1)고정자산'!$C$8,'(5)생산비용'!$J$4:$J$1048576,AF10)) ->  | AI10: =IF('(6)판매비와관리비 등'!$C10="","",'(6)판매비와관리비 등'!$C10) -> 접대비 | AJ10: =IF(SUMIFS('(6)판매비와관리비 등'!$L$4:$L$1048576,'(6)판매비와관리비 등'!$I$4:$I$1048576,'(1)고정자산'!$C$8,'(6)판매비와관리비 등'!$J$4:$J$1048576,AI10)=0,"",SUMIFS('(6)판매비와관리비 등'!$L$4:$L$1048576,'(6)판매비와관리비 등'!$I$4:$I$1048576,'(1)고정자산'!$C$8,'(6)판매비와관리비 등'!$J$4:$J$1048576,AI10)) ->  | AL10: =IF('(4)수익'!$C10="","",'(4)수익'!$C10) ->  | AM10: =IF(SUMIFS('(4)수익'!$L$4:$L$1048576,'(4)수익'!$I$4:$I$1048576,'(1)고정자산'!$C$9,'(4)수익'!$J$4:$J$1048576,AL10)=0,"",SUMIFS('(4)수익'!$L$4:$L$1048576,'(4)수익'!$I$4:$I$1048576,'(1)고정자산'!$C$9,'(4)수익'!$J$4:$J$1048576,AL10)) ->  | AO10: =IF('(5)생산비용'!$C10="","",'(5)생산비용'!$C10) -> 약품,방역,치료비 | AP10: =IF(SUMIFS('(5)생산비용'!$L$4:$L$1048576,'(5)생산비용'!$I$4:$I$1048576,'(1)고정자산'!$C$9,'(5)생산비용'!$J$4:$J$1048576,AO10)=0,"",SUMIFS('(5)생산비용'!$L$4:$L$1048576,'(5)생산비용'!$I$4:$I$1048576,'(1)고정자산'!$C$9,'(5)생산비용'!$J$4:$J$1048576,AO10)) ->  | AR10: =IF('(6)판매비와관리비 등'!$C10="","",'(6)판매비와관리비 등'!$C10) -> 접대비 | AS10: =IF(SUMIFS('(6)판매비와관리비 등'!$L$4:$L$1048576,'(6)판매비와관리비 등'!$I$4:$I$1048576,'(1)고정자산'!$C$9,'(6)판매비와관리비 등'!$J$4:$J$1048576,AR10)=0,"",SUMIFS('(6)판매비와관리비 등'!$L$4:$L$1048576,'(6)판매비와관리비 등'!$I$4:$I$1048576,'(1)고정자산'!$C$9,'(6)판매비와관리비 등'!$J$4:$J$1048576,AR10)) -> 
B11: 합계 | C11: =SUM(C5:C10) -> 13000000 | E11: =IF('(5)생산비용'!$C11="","",'(5)생산비용'!$C11) -> 기타재료비 | F11: =IF(SUMIFS('(5)생산비용'!$L$4:$L$1048576,'(5)생산비용'!$J$4:$J$1048576,E11)=0,"",SUMIFS('(5)생산비용'!$L$4:$L$1048576,'(5)생산비용'!$J$4:$J$1048576,E11)) ->  | H11: =IF('(6)판매비와관리비 등'!$C11="","",'(6)판매비와관리비 등'!$C11) -> 차량유지비 | I11: =IF(SUMIFS('(6)판매비와관리비 등'!$L$4:$L$1048576,'(6)판매비와관리비 등'!$J$4:$J$1048576,H11)=0,"",SUMIFS('(6)판매비와관리비 등'!$L$4:$L$1048576,'(6)판매비와관리비 등'!$J$4:$J$1048576,H11)) -> 100000 | K11: 합계 | L11: =SUM(L5:L10) -> 3000000 | N11: =IF('(5)생산비용'!$C11="","",'(5)생산비용'!$C11) -> 기타재료비 | O11: =IF(SUMIFS('(5)생산비용'!$L$4:$L$1048576,'(5)생산비용'!$I$4:$I$1048576,'(1)고정자산'!$C$6,'(5)생산비용'!$J$4:$J$1048576,N11)=0,"",SUMIFS('(5)생산비용'!$L$4:$L$1048576,'(5)생산비용'!$I$4:$I$1048576,'(1)고정자산'!$C$6,'(5)생산비용'!$J$4:$J$1048576,N11)) ->  | Q11: =IF('(6)판매비와관리비 등'!$C11="","",'(6)판매비와관리비 등'!$C11) -> 차량유지비 | R11: =IF(SUMIFS('(6)판매비와관리비 등'!$L$4:$L$1048576,'(6)판매비와관리비 등'!$I$4:$I$1048576,'(1)고정자산'!$C$6,'(6)판매비와관리비 등'!$J$4:$J$1048576,Q11)=0,"",SUMIFS('(6)판매비와관리비 등'!$L$4:$L$1048576,'(6)판매비와관리비 등'!$I$4:$I$1048576,'(1)고정자산'!$C$6,'(6)판매비와관리비 등'!$J$4:$J$1048576,Q11)) ->  | T11: 합계 | U11: =SUM(U5:U10) -> 5000000 | W11: =IF('(5)생산비용'!$C11="","",'(5)생산비용'!$C11) -> 기타재료비 | X11: =IF(SUMIFS('(5)생산비용'!$L$4:$L$1048576,'(5)생산비용'!$I$4:$I$1048576,'(1)고정자산'!$C$7,'(5)생산비용'!$J$4:$J$1048576,W11)=0,"",SUMIFS('(5)생산비용'!$L$4:$L$1048576,'(5)생산비용'!$I$4:$I$1048576,'(1)고정자산'!$C$7,'(5)생산비용'!$J$4:$J$1048576,W11)) ->  | Z11: =IF('(6)판매비와관리비 등'!$C11="","",'(6)판매비와관리비 등'!$C11) -> 차량유지비 | AA11: =IF(SUMIFS('(6)판매비와관리비 등'!$L$4:$L$1048576,'(6)판매비와관리비 등'!$I$4:$I$1048576,'(1)고정자산'!$C$7,'(6)판매비와관리비 등'!$J$4:$J$1048576,Z11)=0,"",SUMIFS('(6)판매비와관리비 등'!$L$4:$L$1048576,'(6)판매비와관리비 등'!$I$4:$I$1048576,'(1)고정자산'!$C$7,'(6)판매비와관리비 등'!$J$4:$J$1048576,Z11)) ->  | AC11: 합계 | AD11: =SUM(AD5:AD10) -> 2500000 | AF11: =IF('(5)생산비용'!$C11="","",'(5)생산비용'!$C11) -> 기타재료비 | AG11: =IF(SUMIFS('(5)생산비용'!$L$4:$L$1048576,'(5)생산비용'!$I$4:$I$1048576,'(1)고정자산'!$C$8,'(5)생산비용'!$J$4:$J$1048576,AF11)=0,"",SUMIFS('(5)생산비용'!$L$4:$L$1048576,'(5)생산비용'!$I$4:$I$1048576,'(1)고정자산'!$C$8,'(5)생산비용'!$J$4:$J$1048576,AF11)) ->  | AI11: =IF('(6)판매비와관리비 등'!$C11="","",'(6)판매비와관리비 등'!$C11) -> 차량유지비 | AJ11: =IF(SUMIFS('(6)판매비와관리비 등'!$L$4:$L$1048576,'(6)판매비와관리비 등'!$I$4:$I$1048576,'(1)고정자산'!$C$8,'(6)판매비와관리비 등'!$J$4:$J$1048576,AI11)=0,"",SUMIFS('(6)판매비와관리비 등'!$L$4:$L$1048576,'(6)판매비와관리비 등'!$I$4:$I$1048576,'(1)고정자산'!$C$8,'(6)판매비와관리비 등'!$J$4:$J$1048576,AI11)) ->  | AL11: 합계 | AM11: =SUM(AM5:AM10) -> 2500000 | AO11: =IF('(5)생산비용'!$C11="","",'(5)생산비용'!$C11) -> 기타재료비 | AP11: =IF(SUMIFS('(5)생산비용'!$L$4:$L$1048576,'(5)생산비용'!$I$4:$I$1048576,'(1)고정자산'!$C$9,'(5)생산비용'!$J$4:$J$1048576,AO11)=0,"",SUMIFS('(5)생산비용'!$L$4:$L$1048576,'(5)생산비용'!$I$4:$I$1048576,'(1)고정자산'!$C$9,'(5)생산비용'!$J$4:$J$1048576,AO11)) ->  | AR11: =IF('(6)판매비와관리비 등'!$C11="","",'(6)판매비와관리비 등'!$C11) -> 차량유지비 | AS11: =IF(SUMIFS('(6)판매비와관리비 등'!$L$4:$L$1048576,'(6)판매비와관리비 등'!$I$4:$I$1048576,'(1)고정자산'!$C$9,'(6)판매비와관리비 등'!$J$4:$J$1048576,AR11)=0,"",SUMIFS('(6)판매비와관리비 등'!$L$4:$L$1048576,'(6)판매비와관리비 등'!$I$4:$I$1048576,'(1)고정자산'!$C$9,'(6)판매비와관리비 등'!$J$4:$J$1048576,AR11)) -> 100000
E12: =IF('(5)생산비용'!$C12="","",'(5)생산비용'!$C12) ->  | F12: =IF(SUMIFS('(5)생산비용'!$L$4:$L$1048576,'(5)생산비용'!$J$4:$J$1048576,E12)=0,"",SUMIFS('(5)생산비용'!$L$4:$L$1048576,'(5)생산비용'!$J$4:$J$1048576,E12)) ->  | H12: =IF('(6)판매비와관리비 등'!$C12="","",'(6)판매비와관리비 등'!$C12) -> 교통비 | I12: =IF(SUMIFS('(6)판매비와관리비 등'!$L$4:$L$1048576,'(6)판매비와관리비 등'!$J$4:$J$1048576,H12)=0,"",SUMIFS('(6)판매비와관리비 등'!$L$4:$L$1048576,'(6)판매비와관리비 등'!$J$4:$J$1048576,H12)) ->  | N12: =IF('(5)생산비용'!$C12="","",'(5)생산비용'!$C12) ->  | O12: =IF(SUMIFS('(5)생산비용'!$L$4:$L$1048576,'(5)생산비용'!$I$4:$I$1048576,'(1)고정자산'!$C$6,'(5)생산비용'!$J$4:$J$1048576,N12)=0,"",SUMIFS('(5)생산비용'!$L$4:$L$1048576,'(5)생산비용'!$I$4:$I$1048576,'(1)고정자산'!$C$6,'(5)생산비용'!$J$4:$J$1048576,N12)) ->  | Q12: =IF('(6)판매비와관리비 등'!$C12="","",'(6)판매비와관리비 등'!$C12) -> 교통비 | R12: =IF(SUMIFS('(6)판매비와관리비 등'!$L$4:$L$1048576,'(6)판매비와관리비 등'!$I$4:$I$1048576,'(1)고정자산'!$C$6,'(6)판매비와관리비 등'!$J$4:$J$1048576,Q12)=0,"",SUMIFS('(6)판매비와관리비 등'!$L$4:$L$1048576,'(6)판매비와관리비 등'!$I$4:$I$1048576,'(1)고정자산'!$C$6,'(6)판매비와관리비 등'!$J$4:$J$1048576,Q12)) ->  | W12: =IF('(5)생산비용'!$C12="","",'(5)생산비용'!$C12) ->  | X12: =IF(SUMIFS('(5)생산비용'!$L$4:$L$1048576,'(5)생산비용'!$I$4:$I$1048576,'(1)고정자산'!$C$7,'(5)생산비용'!$J$4:$J$1048576,W12)=0,"",SUMIFS('(5)생산비용'!$L$4:$L$1048576,'(5)생산비용'!$I$4:$I$1048576,'(1)고정자산'!$C$7,'(5)생산비용'!$J$4:$J$1048576,W12)) ->  | Z12: =IF('(6)판매비와관리비 등'!$C12="","",'(6)판매비와관리비 등'!$C12) -> 교통비 | AA12: =IF(SUMIFS('(6)판매비와관리비 등'!$L$4:$L$1048576,'(6)판매비와관리비 등'!$I$4:$I$1048576,'(1)고정자산'!$C$7,'(6)판매비와관리비 등'!$J$4:$J$1048576,Z12)=0,"",SUMIFS('(6)판매비와관리비 등'!$L$4:$L$1048576,'(6)판매비와관리비 등'!$I$4:$I$1048576,'(1)고정자산'!$C$7,'(6)판매비와관리비 등'!$J$4:$J$1048576,Z12)) ->  | AF12: =IF('(5)생산비용'!$C12="","",'(5)생산비용'!$C12) ->  | AG12: =IF(SUMIFS('(5)생산비용'!$L$4:$L$1048576,'(5)생산비용'!$I$4:$I$1048576,'(1)고정자산'!$C$8,'(5)생산비용'!$J$4:$J$1048576,AF12)=0,"",SUMIFS('(5)생산비용'!$L$4:$L$1048576,'(5)생산비용'!$I$4:$I$1048576,'(1)고정자산'!$C$8,'(5)생산비용'!$J$4:$J$1048576,AF12)) ->  | AI12: =IF('(6)판매비와관리비 등'!$C12="","",'(6)판매비와관리비 등'!$C12) -> 교통비 | AJ12: =IF(SUMIFS('(6)판매비와관리비 등'!$L$4:$L$1048576,'(6)판매비와관리비 등'!$I$4:$I$1048576,'(1)고정자산'!$C$8,'(6)판매비와관리비 등'!$J$4:$J$1048576,AI12)=0,"",SUMIFS('(6)판매비와관리비 등'!$L$4:$L$1048576,'(6)판매비와관리비 등'!$I$4:$I$1048576,'(1)고정자산'!$C$8,'(6)판매비와관리비 등'!$J$4:$J$1048576,AI12)) ->  | AO12: =IF('(5)생산비용'!$C12="","",'(5)생산비용'!$C12) ->  | AP12: =IF(SUMIFS('(5)생산비용'!$L$4:$L$1048576,'(5)생산비용'!$I$4:$I$1048576,'(1)고정자산'!$C$9,'(5)생산비용'!$J$4:$J$1048576,AO12)=0,"",SUMIFS('(5)생산비용'!$L$4:$L$1048576,'(5)생산비용'!$I$4:$I$1048576,'(1)고정자산'!$C$9,'(5)생산비용'!$J$4:$J$1048576,AO12)) ->  | AR12: =IF('(6)판매비와관리비 등'!$C12="","",'(6)판매비와관리비 등'!$C12) -> 교통비 | AS12: =IF(SUMIFS('(6)판매비와관리비 등'!$L$4:$L$1048576,'(6)판매비와관리비 등'!$I$4:$I$1048576,'(1)고정자산'!$C$9,'(6)판매비와관리비 등'!$J$4:$J$1048576,AR12)=0,"",SUMIFS('(6)판매비와관리비 등'!$L$4:$L$1048576,'(6)판매비와관리비 등'!$I$4:$I$1048576,'(1)고정자산'!$C$9,'(6)판매비와관리비 등'!$J$4:$J$1048576,AR12)) -> 
B13: 영업외 수익 | E13: =IF('(5)생산비용'!$C13="","",'(5)생산비용'!$C13) ->  | F13: =IF(SUMIFS('(5)생산비용'!$L$4:$L$1048576,'(5)생산비용'!$J$4:$J$1048576,E13)=0,"",SUMIFS('(5)생산비용'!$L$4:$L$1048576,'(5)생산비용'!$J$4:$J$1048576,E13)) ->  | H13: =IF('(6)판매비와관리비 등'!$C13="","",'(6)판매비와관리비 등'!$C13) -> 광고선전비 | I13: =IF(SUMIFS('(6)판매비와관리비 등'!$L$4:$L$1048576,'(6)판매비와관리비 등'!$J$4:$J$1048576,H13)=0,"",SUMIFS('(6)판매비와관리비 등'!$L$4:$L$1048576,'(6)판매비와관리비 등'!$J$4:$J$1048576,H13)) ->  | K13: 영업외 수익 | N13: =IF('(5)생산비용'!$C13="","",'(5)생산비용'!$C13) ->  | O13: =IF(SUMIFS('(5)생산비용'!$L$4:$L$1048576,'(5)생산비용'!$I$4:$I$1048576,'(1)고정자산'!$C$6,'(5)생산비용'!$J$4:$J$1048576,N13)=0,"",SUMIFS('(5)생산비용'!$L$4:$L$1048576,'(5)생산비용'!$I$4:$I$1048576,'(1)고정자산'!$C$6,'(5)생산비용'!$J$4:$J$1048576,N13)) ->  | Q13: =IF('(6)판매비와관리비 등'!$C13="","",'(6)판매비와관리비 등'!$C13) -> 광고선전비 | R13: =IF(SUMIFS('(6)판매비와관리비 등'!$L$4:$L$1048576,'(6)판매비와관리비 등'!$I$4:$I$1048576,'(1)고정자산'!$C$6,'(6)판매비와관리비 등'!$J$4:$J$1048576,Q13)=0,"",SUMIFS('(6)판매비와관리비 등'!$L$4:$L$1048576,'(6)판매비와관리비 등'!$I$4:$I$1048576,'(1)고정자산'!$C$6,'(6)판매비와관리비 등'!$J$4:$J$1048576,Q13)) ->  | T13: 영업외 수익 | W13: =IF('(5)생산비용'!$C13="","",'(5)생산비용'!$C13) ->  | X13: =IF(SUMIFS('(5)생산비용'!$L$4:$L$1048576,'(5)생산비용'!$I$4:$I$1048576,'(1)고정자산'!$C$7,'(5)생산비용'!$J$4:$J$1048576,W13)=0,"",SUMIFS('(5)생산비용'!$L$4:$L$1048576,'(5)생산비용'!$I$4:$I$1048576,'(1)고정자산'!$C$7,'(5)생산비용'!$J$4:$J$1048576,W13)) ->  | Z13: =IF('(6)판매비와관리비 등'!$C13="","",'(6)판매비와관리비 등'!$C13) -> 광고선전비 | AA13: =IF(SUMIFS('(6)판매비와관리비 등'!$L$4:$L$1048576,'(6)판매비와관리비 등'!$I$4:$I$1048576,'(1)고정자산'!$C$7,'(6)판매비와관리비 등'!$J$4:$J$1048576,Z13)=0,"",SUMIFS('(6)판매비와관리비 등'!$L$4:$L$1048576,'(6)판매비와관리비 등'!$I$4:$I$1048576,'(1)고정자산'!$C$7,'(6)판매비와관리비 등'!$J$4:$J$1048576,Z13)) ->  | AC13: 영업외 수익 | AF13: =IF('(5)생산비용'!$C13="","",'(5)생산비용'!$C13) ->  | AG13: =IF(SUMIFS('(5)생산비용'!$L$4:$L$1048576,'(5)생산비용'!$I$4:$I$1048576,'(1)고정자산'!$C$8,'(5)생산비용'!$J$4:$J$1048576,AF13)=0,"",SUMIFS('(5)생산비용'!$L$4:$L$1048576,'(5)생산비용'!$I$4:$I$1048576,'(1)고정자산'!$C$8,'(5)생산비용'!$J$4:$J$1048576,AF13)) ->  | AI13: =IF('(6)판매비와관리비 등'!$C13="","",'(6)판매비와관리비 등'!$C13) -> 광고선전비 | AJ13: =IF(SUMIFS('(6)판매비와관리비 등'!$L$4:$L$1048576,'(6)판매비와관리비 등'!$I$4:$I$1048576,'(1)고정자산'!$C$8,'(6)판매비와관리비 등'!$J$4:$J$1048576,AI13)=0,"",SUMIFS('(6)판매비와관리비 등'!$L$4:$L$1048576,'(6)판매비와관리비 등'!$I$4:$I$1048576,'(1)고정자산'!$C$8,'(6)판매비와관리비 등'!$J$4:$J$1048576,AI13)) ->  | AL13: 영업외 수익 | AO13: =IF('(5)생산비용'!$C13="","",'(5)생산비용'!$C13) ->  | AP13: =IF(SUMIFS('(5)생산비용'!$L$4:$L$1048576,'(5)생산비용'!$I$4:$I$1048576,'(1)고정자산'!$C$9,'(5)생산비용'!$J$4:$J$1048576,AO13)=0,"",SUMIFS('(5)생산비용'!$L$4:$L$1048576,'(5)생산비용'!$I$4:$I$1048576,'(1)고정자산'!$C$9,'(5)생산비용'!$J$4:$J$1048576,AO13)) ->  | AR13: =IF('(6)판매비와관리비 등'!$C13="","",'(6)판매비와관리비 등'!$C13) -> 광고선전비 | AS13: =IF(SUMIFS('(6)판매비와관리비 등'!$L$4:$L$1048576,'(6)판매비와관리비 등'!$I$4:$I$1048576,'(1)고정자산'!$C$9,'(6)판매비와관리비 등'!$J$4:$J$1048576,AR13)=0,"",SUMIFS('(6)판매비와관리비 등'!$L$4:$L$1048576,'(6)판매비와관리비 등'!$I$4:$I$1048576,'(1)고정자산'!$C$9,'(6)판매비와관리비 등'!$J$4:$J$1048576,AR13)) -> 
B14: =IF('(4)수익'!$C11="","",'(4)수익'!$C11) -> 정부보조금 | C14: =IF(SUMIFS('(4)수익'!$L$4:$L$1048576,'(4)수익'!$J$4:$J$1048576,B14)=0,"",SUMIFS('(4)수익'!$L$4:$L$1048576,'(4)수익'!$J$4:$J$1048576,B14)) ->  | E14: =IF('(5)생산비용'!$C14="","",'(5)생산비용'!$C14) ->  | F14: =IF(SUMIFS('(5)생산비용'!$L$4:$L$1048576,'(5)생산비용'!$J$4:$J$1048576,E14)=0,"",SUMIFS('(5)생산비용'!$L$4:$L$1048576,'(5)생산비용'!$J$4:$J$1048576,E14)) ->  | H14: =IF('(6)판매비와관리비 등'!$C14="","",'(6)판매비와관리비 등'!$C14) -> 통신비 | I14: =IF(SUMIFS('(6)판매비와관리비 등'!$L$4:$L$1048576,'(6)판매비와관리비 등'!$J$4:$J$1048576,H14)=0,"",SUMIFS('(6)판매비와관리비 등'!$L$4:$L$1048576,'(6)판매비와관리비 등'!$J$4:$J$1048576,H14)) ->  | K14: =IF('(4)수익'!$C11="","",'(4)수익'!$C11) -> 정부보조금 | L14: =IF(SUMIFS('(4)수익'!$L$4:$L$1048576,'(4)수익'!$I$4:$I$1048576,'(1)고정자산'!$C$6,'(4)수익'!$J$4:$J$1048576,K14)=0,"",SUMIFS('(4)수익'!$L$4:$L$1048576,'(4)수익'!$I$4:$I$1048576,'(1)고정자산'!$C$6,'(4)수익'!$J$4:$J$1048576,K14)) ->  | N14: =IF('(5)생산비용'!$C14="","",'(5)생산비용'!$C14) ->  | O14: =IF(SUMIFS('(5)생산비용'!$L$4:$L$1048576,'(5)생산비용'!$I$4:$I$1048576,'(1)고정자산'!$C$6,'(5)생산비용'!$J$4:$J$1048576,N14)=0,"",SUMIFS('(5)생산비용'!$L$4:$L$1048576,'(5)생산비용'!$I$4:$I$1048576,'(1)고정자산'!$C$6,'(5)생산비용'!$J$4:$J$1048576,N14)) ->  | Q14: =IF('(6)판매비와관리비 등'!$C14="","",'(6)판매비와관리비 등'!$C14) -> 통신비 | R14: =IF(SUMIFS('(6)판매비와관리비 등'!$L$4:$L$1048576,'(6)판매비와관리비 등'!$I$4:$I$1048576,'(1)고정자산'!$C$6,'(6)판매비와관리비 등'!$J$4:$J$1048576,Q14)=0,"",SUMIFS('(6)판매비와관리비 등'!$L$4:$L$1048576,'(6)판매비와관리비 등'!$I$4:$I$1048576,'(1)고정자산'!$C$6,'(6)판매비와관리비 등'!$J$4:$J$1048576,Q14)) ->  | T14: =IF('(4)수익'!$C11="","",'(4)수익'!$C11) -> 정부보조금 | U14: =IF(SUMIFS('(4)수익'!$L$4:$L$1048576,'(4)수익'!$I$4:$I$1048576,'(1)고정자산'!$C$7,'(4)수익'!$J$4:$J$1048576,T14)=0,"",SUMIFS('(4)수익'!$L$4:$L$1048576,'(4)수익'!$I$4:$I$1048576,'(1)고정자산'!$C$7,'(4)수익'!$J$4:$J$1048576,T14)) ->  | W14: =IF('(5)생산비용'!$C14="","",'(5)생산비용'!$C14) ->  | X14: =IF(SUMIFS('(5)생산비용'!$L$4:$L$1048576,'(5)생산비용'!$I$4:$I$1048576,'(1)고정자산'!$C$7,'(5)생산비용'!$J$4:$J$1048576,W14)=0,"",SUMIFS('(5)생산비용'!$L$4:$L$1048576,'(5)생산비용'!$I$4:$I$1048576,'(1)고정자산'!$C$7,'(5)생산비용'!$J$4:$J$1048576,W14)) ->  | Z14: =IF('(6)판매비와관리비 등'!$C14="","",'(6)판매비와관리비 등'!$C14) -> 통신비 | AA14: =IF(SUMIFS('(6)판매비와관리비 등'!$L$4:$L$1048576,'(6)판매비와관리비 등'!$I$4:$I$1048576,'(1)고정자산'!$C$7,'(6)판매비와관리비 등'!$J$4:$J$1048576,Z14)=0,"",SUMIFS('(6)판매비와관리비 등'!$L$4:$L$1048576,'(6)판매비와관리비 등'!$I$4:$I$1048576,'(1)고정자산'!$C$7,'(6)판매비와관리비 등'!$J$4:$J$1048576,Z14)) ->  | AC14: =IF('(4)수익'!$C11="","",'(4)수익'!$C11) -> 정부보조금 | AD14: =IF(SUMIFS('(4)수익'!$L$4:$L$1048576,'(4)수익'!$I$4:$I$1048576,'(1)고정자산'!$C$8,'(4)수익'!$J$4:$J$1048576,AC14)=0,"",SUMIFS('(4)수익'!$L$4:$L$1048576,'(4)수익'!$I$4:$I$1048576,'(1)고정자산'!$C$8,'(4)수익'!$J$4:$J$1048576,AC14)) ->  | AF14: =IF('(5)생산비용'!$C14="","",'(5)생산비용'!$C14) ->  | AG14: =IF(SUMIFS('(5)생산비용'!$L$4:$L$1048576,'(5)생산비용'!$I$4:$I$1048576,'(1)고정자산'!$C$8,'(5)생산비용'!$J$4:$J$1048576,AF14)=0,"",SUMIFS('(5)생산비용'!$L$4:$L$1048576,'(5)생산비용'!$I$4:$I$1048576,'(1)고정자산'!$C$8,'(5)생산비용'!$J$4:$J$1048576,AF14)) ->  | AI14: =IF('(6)판매비와관리비 등'!$C14="","",'(6)판매비와관리비 등'!$C14) -> 통신비 | AJ14: =IF(SUMIFS('(6)판매비와관리비 등'!$L$4:$L$1048576,'(6)판매비와관리비 등'!$I$4:$I$1048576,'(1)고정자산'!$C$8,'(6)판매비와관리비 등'!$J$4:$J$1048576,AI14)=0,"",SUMIFS('(6)판매비와관리비 등'!$L$4:$L$1048576,'(6)판매비와관리비 등'!$I$4:$I$1048576,'(1)고정자산'!$C$8,'(6)판매비와관리비 등'!$J$4:$J$1048576,AI14)) ->  | AL14: =IF('(4)수익'!$C11="","",'(4)수익'!$C11) -> 정부보조금 | AM14: =IF(SUMIFS('(4)수익'!$L$4:$L$1048576,'(4)수익'!$I$4:$I$1048576,'(1)고정자산'!$C$9,'(4)수익'!$J$4:$J$1048576,AL14)=0,"",SUMIFS('(4)수익'!$L$4:$L$1048576,'(4)수익'!$I$4:$I$1048576,'(1)고정자산'!$C$9,'(4)수익'!$J$4:$J$1048576,AL14)) ->  | AO14: =IF('(5)생산비용'!$C14="","",'(5)생산비용'!$C14) ->  | AP14: =IF(SUMIFS('(5)생산비용'!$L$4:$L$1048576,'(5)생산비용'!$I$4:$I$1048576,'(1)고정자산'!$C$9,'(5)생산비용'!$J$4:$J$1048576,AO14)=0,"",SUMIFS('(5)생산비용'!$L$4:$L$1048576,'(5)생산비용'!$I$4:$I$1048576,'(1)고정자산'!$C$9,'(5)생산비용'!$J$4:$J$1048576,AO14)) ->  | AR14: =IF('(6)판매비와관리비 등'!$C14="","",'(6)판매비와관리비 등'!$C14) -> 통신비 | AS14: =IF(SUMIFS('(6)판매비와관리비 등'!$L$4:$L$1048576,'(6)판매비와관리비 등'!$I$4:$I$1048576,'(1)고정자산'!$C$9,'(6)판매비와관리비 등'!$J$4:$J$1048576,AR14)=0,"",SUMIFS('(6)판매비와관리비 등'!$L$4:$L$1048576,'(6)판매비와관리비 등'!$I$4:$I$1048576,'(1)고정자산'!$C$9,'(6)판매비와관리비 등'!$J$4:$J$1048576,AR14)) -> 
B15: =IF('(4)수익'!$C12="","",'(4)수익'!$C12) -> 이자 수익 | C15: =IF(SUMIFS('(4)수익'!$L$4:$L$1048576,'(4)수익'!$J$4:$J$1048576,B15)=0,"",SUMIFS('(4)수익'!$L$4:$L$1048576,'(4)수익'!$J$4:$J$1048576,B15)) ->  | E15: =IF('(5)생산비용'!$C15="","",'(5)생산비용'!$C15) -> 급여(상시고용) | F15: =IF(SUMIFS('(5)생산비용'!$L$4:$L$1048576,'(5)생산비용'!$J$4:$J$1048576,E15)=0,"",SUMIFS('(5)생산비용'!$L$4:$L$1048576,'(5)생산비용'!$J$4:$J$1048576,E15)) ->  | H15: =IF('(6)판매비와관리비 등'!$C15="","",'(6)판매비와관리비 등'!$C15) -> 도서인쇄비 | I15: =IF(SUMIFS('(6)판매비와관리비 등'!$L$4:$L$1048576,'(6)판매비와관리비 등'!$J$4:$J$1048576,H15)=0,"",SUMIFS('(6)판매비와관리비 등'!$L$4:$L$1048576,'(6)판매비와관리비 등'!$J$4:$J$1048576,H15)) ->  | K15: =IF('(4)수익'!$C12="","",'(4)수익'!$C12) -> 이자 수익 | L15: =IF(SUMIFS('(4)수익'!$L$4:$L$1048576,'(4)수익'!$I$4:$I$1048576,'(1)고정자산'!$C$6,'(4)수익'!$J$4:$J$1048576,K15)=0,"",SUMIFS('(4)수익'!$L$4:$L$1048576,'(4)수익'!$I$4:$I$1048576,'(1)고정자산'!$C$6,'(4)수익'!$J$4:$J$1048576,K15)) ->  | N15: =IF('(5)생산비용'!$C15="","",'(5)생산비용'!$C15) -> 급여(상시고용) | O15: =IF(SUMIFS('(5)생산비용'!$L$4:$L$1048576,'(5)생산비용'!$I$4:$I$1048576,'(1)고정자산'!$C$6,'(5)생산비용'!$J$4:$J$1048576,N15)=0,"",SUMIFS('(5)생산비용'!$L$4:$L$1048576,'(5)생산비용'!$I$4:$I$1048576,'(1)고정자산'!$C$6,'(5)생산비용'!$J$4:$J$1048576,N15)) ->  | Q15: =IF('(6)판매비와관리비 등'!$C15="","",'(6)판매비와관리비 등'!$C15) -> 도서인쇄비 | R15: =IF(SUMIFS('(6)판매비와관리비 등'!$L$4:$L$1048576,'(6)판매비와관리비 등'!$I$4:$I$1048576,'(1)고정자산'!$C$6,'(6)판매비와관리비 등'!$J$4:$J$1048576,Q15)=0,"",SUMIFS('(6)판매비와관리비 등'!$L$4:$L$1048576,'(6)판매비와관리비 등'!$I$4:$I$1048576,'(1)고정자산'!$C$6,'(6)판매비와관리비 등'!$J$4:$J$1048576,Q15)) ->  | T15: =IF('(4)수익'!$C12="","",'(4)수익'!$C12) -> 이자 수익 | U15: =IF(SUMIFS('(4)수익'!$L$4:$L$1048576,'(4)수익'!$I$4:$I$1048576,'(1)고정자산'!$C$7,'(4)수익'!$J$4:$J$1048576,T15)=0,"",SUMIFS('(4)수익'!$L$4:$L$1048576,'(4)수익'!$I$4:$I$1048576,'(1)고정자산'!$C$7,'(4)수익'!$J$4:$J$1048576,T15)) ->  | W15: =IF('(5)생산비용'!$C15="","",'(5)생산비용'!$C15) -> 급여(상시고용) | X15: =IF(SUMIFS('(5)생산비용'!$L$4:$L$1048576,'(5)생산비용'!$I$4:$I$1048576,'(1)고정자산'!$C$7,'(5)생산비용'!$J$4:$J$1048576,W15)=0,"",SUMIFS('(5)생산비용'!$L$4:$L$1048576,'(5)생산비용'!$I$4:$I$1048576,'(1)고정자산'!$C$7,'(5)생산비용'!$J$4:$J$1048576,W15)) ->  | Z15: =IF('(6)판매비와관리비 등'!$C15="","",'(6)판매비와관리비 등'!$C15) -> 도서인쇄비 | AA15: =IF(SUMIFS('(6)판매비와관리비 등'!$L$4:$L$1048576,'(6)판매비와관리비 등'!$I$4:$I$1048576,'(1)고정자산'!$C$7,'(6)판매비와관리비 등'!$J$4:$J$1048576,Z15)=0,"",SUMIFS('(6)판매비와관리비 등'!$L$4:$L$1048576,'(6)판매비와관리비 등'!$I$4:$I$1048576,'(1)고정자산'!$C$7,'(6)판매비와관리비 등'!$J$4:$J$1048576,Z15)) ->  | AC15: =IF('(4)수익'!$C12="","",'(4)수익'!$C12) -> 이자 수익 | AD15: =IF(SUMIFS('(4)수익'!$L$4:$L$1048576,'(4)수익'!$I$4:$I$1048576,'(1)고정자산'!$C$8,'(4)수익'!$J$4:$J$1048576,AC15)=0,"",SUMIFS('(4)수익'!$L$4:$L$1048576,'(4)수익'!$I$4:$I$1048576,'(1)고정자산'!$C$8,'(4)수익'!$J$4:$J$1048576,AC15)) ->  | AF15: =IF('(5)생산비용'!$C15="","",'(5)생산비용'!$C15) -> 급여(상시고용) | AG15: =IF(SUMIFS('(5)생산비용'!$L$4:$L$1048576,'(5)생산비용'!$I$4:$I$1048576,'(1)고정자산'!$C$8,'(5)생산비용'!$J$4:$J$1048576,AF15)=0,"",SUMIFS('(5)생산비용'!$L$4:$L$1048576,'(5)생산비용'!$I$4:$I$1048576,'(1)고정자산'!$C$8,'(5)생산비용'!$J$4:$J$1048576,AF15)) ->  | AI15: =IF('(6)판매비와관리비 등'!$C15="","",'(6)판매비와관리비 등'!$C15) -> 도서인쇄비 | AJ15: =IF(SUMIFS('(6)판매비와관리비 등'!$L$4:$L$1048576,'(6)판매비와관리비 등'!$I$4:$I$1048576,'(1)고정자산'!$C$8,'(6)판매비와관리비 등'!$J$4:$J$1048576,AI15)=0,"",SUMIFS('(6)판매비와관리비 등'!$L$4:$L$1048576,'(6)판매비와관리비 등'!$I$4:$I$1048576,'(1)고정자산'!$C$8,'(6)판매비와관리비 등'!$J$4:$J$1048576,AI15)) ->  | AL15: =IF('(4)수익'!$C12="","",'(4)수익'!$C12) -> 이자 수익 | AM15: =IF(SUMIFS('(4)수익'!$L$4:$L$1048576,'(4)수익'!$I$4:$I$1048576,'(1)고정자산'!$C$9,'(4)수익'!$J$4:$J$1048576,AL15)=0,"",SUMIFS('(4)수익'!$L$4:$L$1048576,'(4)수익'!$I$4:$I$1048576,'(1)고정자산'!$C$9,'(4)수익'!$J$4:$J$1048576,AL15)) ->  | AO15: =IF('(5)생산비용'!$C15="","",'(5)생산비용'!$C15) -> 급여(상시고용) | AP15: =IF(SUMIFS('(5)생산비용'!$L$4:$L$1048576,'(5)생산비용'!$I$4:$I$1048576,'(1)고정자산'!$C$9,'(5)생산비용'!$J$4:$J$1048576,AO15)=0,"",SUMIFS('(5)생산비용'!$L$4:$L$1048576,'(5)생산비용'!$I$4:$I$1048576,'(1)고정자산'!$C$9,'(5)생산비용'!$J$4:$J$1048576,AO15)) ->  | AR15: =IF('(6)판매비와관리비 등'!$C15="","",'(6)판매비와관리비 등'!$C15) -> 도서인쇄비 | AS15: =IF(SUMIFS('(6)판매비와관리비 등'!$L$4:$L$1048576,'(6)판매비와관리비 등'!$I$4:$I$1048576,'(1)고정자산'!$C$9,'(6)판매비와관리비 등'!$J$4:$J$1048576,AR15)=0,"",SUMIFS('(6)판매비와관리비 등'!$L$4:$L$1048576,'(6)판매비와관리비 등'!$I$4:$I$1048576,'(1)고정자산'!$C$9,'(6)판매비와관리비 등'!$J$4:$J$1048576,AR15)) -> 
B16: =IF('(4)수익'!$C13="","",'(4)수익'!$C13) -> 임대료 수익 | C16: =IF(SUMIFS('(4)수익'!$L$4:$L$1048576,'(4)수익'!$J$4:$J$1048576,B16)=0,"",SUMIFS('(4)수익'!$L$4:$L$1048576,'(4)수익'!$J$4:$J$1048576,B16)) ->  | E16: =IF('(5)생산비용'!$C16="","",'(5)생산비용'!$C16) -> 인건비(일용직) | F16: =IF(SUMIFS('(5)생산비용'!$L$4:$L$1048576,'(5)생산비용'!$J$4:$J$1048576,E16)=0,"",SUMIFS('(5)생산비용'!$L$4:$L$1048576,'(5)생산비용'!$J$4:$J$1048576,E16)) -> 1000000 | H16: =IF('(6)판매비와관리비 등'!$C16="","",'(6)판매비와관리비 등'!$C16) -> 소모품비 | I16: =IF(SUMIFS('(6)판매비와관리비 등'!$L$4:$L$1048576,'(6)판매비와관리비 등'!$J$4:$J$1048576,H16)=0,"",SUMIFS('(6)판매비와관리비 등'!$L$4:$L$1048576,'(6)판매비와관리비 등'!$J$4:$J$1048576,H16)) ->  | K16: =IF('(4)수익'!$C13="","",'(4)수익'!$C13) -> 임대료 수익 | L16: =IF(SUMIFS('(4)수익'!$L$4:$L$1048576,'(4)수익'!$I$4:$I$1048576,'(1)고정자산'!$C$6,'(4)수익'!$J$4:$J$1048576,K16)=0,"",SUMIFS('(4)수익'!$L$4:$L$1048576,'(4)수익'!$I$4:$I$1048576,'(1)고정자산'!$C$6,'(4)수익'!$J$4:$J$1048576,K16)) ->  | N16: =IF('(5)생산비용'!$C16="","",'(5)생산비용'!$C16) -> 인건비(일용직) | O16: =IF(SUMIFS('(5)생산비용'!$L$4:$L$1048576,'(5)생산비용'!$I$4:$I$1048576,'(1)고정자산'!$C$6,'(5)생산비용'!$J$4:$J$1048576,N16)=0,"",SUMIFS('(5)생산비용'!$L$4:$L$1048576,'(5)생산비용'!$I$4:$I$1048576,'(1)고정자산'!$C$6,'(5)생산비용'!$J$4:$J$1048576,N16)) ->  | Q16: =IF('(6)판매비와관리비 등'!$C16="","",'(6)판매비와관리비 등'!$C16) -> 소모품비 | R16: =IF(SUMIFS('(6)판매비와관리비 등'!$L$4:$L$1048576,'(6)판매비와관리비 등'!$I$4:$I$1048576,'(1)고정자산'!$C$6,'(6)판매비와관리비 등'!$J$4:$J$1048576,Q16)=0,"",SUMIFS('(6)판매비와관리비 등'!$L$4:$L$1048576,'(6)판매비와관리비 등'!$I$4:$I$1048576,'(1)고정자산'!$C$6,'(6)판매비와관리비 등'!$J$4:$J$1048576,Q16)) ->  | T16: =IF('(4)수익'!$C13="","",'(4)수익'!$C13) -> 임대료 수익 | U16: =IF(SUMIFS('(4)수익'!$L$4:$L$1048576,'(4)수익'!$I$4:$I$1048576,'(1)고정자산'!$C$7,'(4)수익'!$J$4:$J$1048576,T16)=0,"",SUMIFS('(4)수익'!$L$4:$L$1048576,'(4)수익'!$I$4:$I$1048576,'(1)고정자산'!$C$7,'(4)수익'!$J$4:$J$1048576,T16)) ->  | W16: =IF('(5)생산비용'!$C16="","",'(5)생산비용'!$C16) -> 인건비(일용직) | X16: =IF(SUMIFS('(5)생산비용'!$L$4:$L$1048576,'(5)생산비용'!$I$4:$I$1048576,'(1)고정자산'!$C$7,'(5)생산비용'!$J$4:$J$1048576,W16)=0,"",SUMIFS('(5)생산비용'!$L$4:$L$1048576,'(5)생산비용'!$I$4:$I$1048576,'(1)고정자산'!$C$7,'(5)생산비용'!$J$4:$J$1048576,W16)) ->  | Z16: =IF('(6)판매비와관리비 등'!$C16="","",'(6)판매비와관리비 등'!$C16) -> 소모품비 | AA16: =IF(SUMIFS('(6)판매비와관리비 등'!$L$4:$L$1048576,'(6)판매비와관리비 등'!$I$4:$I$1048576,'(1)고정자산'!$C$7,'(6)판매비와관리비 등'!$J$4:$J$1048576,Z16)=0,"",SUMIFS('(6)판매비와관리비 등'!$L$4:$L$1048576,'(6)판매비와관리비 등'!$I$4:$I$1048576,'(1)고정자산'!$C$7,'(6)판매비와관리비 등'!$J$4:$J$1048576,Z16)) ->  | AC16: =IF('(4)수익'!$C13="","",'(4)수익'!$C13) -> 임대료 수익 | AD16: =IF(SUMIFS('(4)수익'!$L$4:$L$1048576,'(4)수익'!$I$4:$I$1048576,'(1)고정자산'!$C$8,'(4)수익'!$J$4:$J$1048576,AC16)=0,"",SUMIFS('(4)수익'!$L$4:$L$1048576,'(4)수익'!$I$4:$I$1048576,'(1)고정자산'!$C$8,'(4)수익'!$J$4:$J$1048576,AC16)) ->  | AF16: =IF('(5)생산비용'!$C16="","",'(5)생산비용'!$C16) -> 인건비(일용직) | AG16: =IF(SUMIFS('(5)생산비용'!$L$4:$L$1048576,'(5)생산비용'!$I$4:$I$1048576,'(1)고정자산'!$C$8,'(5)생산비용'!$J$4:$J$1048576,AF16)=0,"",SUMIFS('(5)생산비용'!$L$4:$L$1048576,'(5)생산비용'!$I$4:$I$1048576,'(1)고정자산'!$C$8,'(5)생산비용'!$J$4:$J$1048576,AF16)) -> 1000000 | AI16: =IF('(6)판매비와관리비 등'!$C16="","",'(6)판매비와관리비 등'!$C16) -> 소모품비 | AJ16: =IF(SUMIFS('(6)판매비와관리비 등'!$L$4:$L$1048576,'(6)판매비와관리비 등'!$I$4:$I$1048576,'(1)고정자산'!$C$8,'(6)판매비와관리비 등'!$J$4:$J$1048576,AI16)=0,"",SUMIFS('(6)판매비와관리비 등'!$L$4:$L$1048576,'(6)판매비와관리비 등'!$I$4:$I$1048576,'(1)고정자산'!$C$8,'(6)판매비와관리비 등'!$J$4:$J$1048576,AI16)) ->  | AL16: =IF('(4)수익'!$C13="","",'(4)수익'!$C13) -> 임대료 수익 | AM16: =IF(SUMIFS('(4)수익'!$L$4:$L$1048576,'(4)수익'!$I$4:$I$1048576,'(1)고정자산'!$C$9,'(4)수익'!$J$4:$J$1048576,AL16)=0,"",SUMIFS('(4)수익'!$L$4:$L$1048576,'(4)수익'!$I$4:$I$1048576,'(1)고정자산'!$C$9,'(4)수익'!$J$4:$J$1048576,AL16)) ->  | AO16: =IF('(5)생산비용'!$C16="","",'(5)생산비용'!$C16) -> 인건비(일용직) | AP16: =IF(SUMIFS('(5)생산비용'!$L$4:$L$1048576,'(5)생산비용'!$I$4:$I$1048576,'(1)고정자산'!$C$9,'(5)생산비용'!$J$4:$J$1048576,AO16)=0,"",SUMIFS('(5)생산비용'!$L$4:$L$1048576,'(5)생산비용'!$I$4:$I$1048576,'(1)고정자산'!$C$9,'(5)생산비용'!$J$4:$J$1048576,AO16)) ->  | AR16: =IF('(6)판매비와관리비 등'!$C16="","",'(6)판매비와관리비 등'!$C16) -> 소모품비 | AS16: =IF(SUMIFS('(6)판매비와관리비 등'!$L$4:$L$1048576,'(6)판매비와관리비 등'!$I$4:$I$1048576,'(1)고정자산'!$C$9,'(6)판매비와관리비 등'!$J$4:$J$1048576,AR16)=0,"",SUMIFS('(6)판매비와관리비 등'!$L$4:$L$1048576,'(6)판매비와관리비 등'!$I$4:$I$1048576,'(1)고정자산'!$C$9,'(6)판매비와관리비 등'!$J$4:$J$1048576,AR16)) -> 
B17: =IF('(4)수익'!$C14="","",'(4)수익'!$C14) -> 유형자산 처분 이익 | C17: =IF(SUMIFS('(4)수익'!$L$4:$L$1048576,'(4)수익'!$J$4:$J$1048576,B17)=0,"",SUMIFS('(4)수익'!$L$4:$L$1048576,'(4)수익'!$J$4:$J$1048576,B17)) ->  | E17: =IF('(5)생산비용'!$C17="","",'(5)생산비용'!$C17) ->  | F17: =IF(SUMIFS('(5)생산비용'!$L$4:$L$1048576,'(5)생산비용'!$J$4:$J$1048576,E17)=0,"",SUMIFS('(5)생산비용'!$L$4:$L$1048576,'(5)생산비용'!$J$4:$J$1048576,E17)) ->  | H17: =IF('(6)판매비와관리비 등'!$C17="","",'(6)판매비와관리비 등'!$C17) -> 보험료(판매, 관리) | I17: =IF(SUMIFS('(6)판매비와관리비 등'!$L$4:$L$1048576,'(6)판매비와관리비 등'!$J$4:$J$1048576,H17)=0,"",SUMIFS('(6)판매비와관리비 등'!$L$4:$L$1048576,'(6)판매비와관리비 등'!$J$4:$J$1048576,H17)) ->  | K17: =IF('(4)수익'!$C14="","",'(4)수익'!$C14) -> 유형자산 처분 이익 | L17: =IF(SUMIFS('(4)수익'!$L$4:$L$1048576,'(4)수익'!$I$4:$I$1048576,'(1)고정자산'!$C$6,'(4)수익'!$J$4:$J$1048576,K17)=0,"",SUMIFS('(4)수익'!$L$4:$L$1048576,'(4)수익'!$I$4:$I$1048576,'(1)고정자산'!$C$6,'(4)수익'!$J$4:$J$1048576,K17)) ->  | N17: =IF('(5)생산비용'!$C17="","",'(5)생산비용'!$C17) ->  | O17: =IF(SUMIFS('(5)생산비용'!$L$4:$L$1048576,'(5)생산비용'!$I$4:$I$1048576,'(1)고정자산'!$C$6,'(5)생산비용'!$J$4:$J$1048576,N17)=0,"",SUMIFS('(5)생산비용'!$L$4:$L$1048576,'(5)생산비용'!$I$4:$I$1048576,'(1)고정자산'!$C$6,'(5)생산비용'!$J$4:$J$1048576,N17)) ->  | Q17: =IF('(6)판매비와관리비 등'!$C17="","",'(6)판매비와관리비 등'!$C17) -> 보험료(판매, 관리) | R17: =IF(SUMIFS('(6)판매비와관리비 등'!$L$4:$L$1048576,'(6)판매비와관리비 등'!$I$4:$I$1048576,'(1)고정자산'!$C$6,'(6)판매비와관리비 등'!$J$4:$J$1048576,Q17)=0,"",SUMIFS('(6)판매비와관리비 등'!$L$4:$L$1048576,'(6)판매비와관리비 등'!$I$4:$I$1048576,'(1)고정자산'!$C$6,'(6)판매비와관리비 등'!$J$4:$J$1048576,Q17)) ->  | T17: =IF('(4)수익'!$C14="","",'(4)수익'!$C14) -> 유형자산 처분 이익 | U17: =IF(SUMIFS('(4)수익'!$L$4:$L$1048576,'(4)수익'!$I$4:$I$1048576,'(1)고정자산'!$C$7,'(4)수익'!$J$4:$J$1048576,T17)=0,"",SUMIFS('(4)수익'!$L$4:$L$1048576,'(4)수익'!$I$4:$I$1048576,'(1)고정자산'!$C$7,'(4)수익'!$J$4:$J$1048576,T17)) ->  | W17: =IF('(5)생산비용'!$C17="","",'(5)생산비용'!$C17) ->  | X17: =IF(SUMIFS('(5)생산비용'!$L$4:$L$1048576,'(5)생산비용'!$I$4:$I$1048576,'(1)고정자산'!$C$7,'(5)생산비용'!$J$4:$J$1048576,W17)=0,"",SUMIFS('(5)생산비용'!$L$4:$L$1048576,'(5)생산비용'!$I$4:$I$1048576,'(1)고정자산'!$C$7,'(5)생산비용'!$J$4:$J$1048576,W17)) ->  | Z17: =IF('(6)판매비와관리비 등'!$C17="","",'(6)판매비와관리비 등'!$C17) -> 보험료(판매, 관리) | AA17: =IF(SUMIFS('(6)판매비와관리비 등'!$L$4:$L$1048576,'(6)판매비와관리비 등'!$I$4:$I$1048576,'(1)고정자산'!$C$7,'(6)판매비와관리비 등'!$J$4:$J$1048576,Z17)=0,"",SUMIFS('(6)판매비와관리비 등'!$L$4:$L$1048576,'(6)판매비와관리비 등'!$I$4:$I$1048576,'(1)고정자산'!$C$7,'(6)판매비와관리비 등'!$J$4:$J$1048576,Z17)) ->  | AC17: =IF('(4)수익'!$C14="","",'(4)수익'!$C14) -> 유형자산 처분 이익 | AD17: =IF(SUMIFS('(4)수익'!$L$4:$L$1048576,'(4)수익'!$I$4:$I$1048576,'(1)고정자산'!$C$8,'(4)수익'!$J$4:$J$1048576,AC17)=0,"",SUMIFS('(4)수익'!$L$4:$L$1048576,'(4)수익'!$I$4:$I$1048576,'(1)고정자산'!$C$8,'(4)수익'!$J$4:$J$1048576,AC17)) ->  | AF17: =IF('(5)생산비용'!$C17="","",'(5)생산비용'!$C17) ->  | AG17: =IF(SUMIFS('(5)생산비용'!$L$4:$L$1048576,'(5)생산비용'!$I$4:$I$1048576,'(1)고정자산'!$C$8,'(5)생산비용'!$J$4:$J$1048576,AF17)=0,"",SUMIFS('(5)생산비용'!$L$4:$L$1048576,'(5)생산비용'!$I$4:$I$1048576,'(1)고정자산'!$C$8,'(5)생산비용'!$J$4:$J$1048576,AF17)) ->  | AI17: =IF('(6)판매비와관리비 등'!$C17="","",'(6)판매비와관리비 등'!$C17) -> 보험료(판매, 관리) | AJ17: =IF(SUMIFS('(6)판매비와관리비 등'!$L$4:$L$1048576,'(6)판매비와관리비 등'!$I$4:$I$1048576,'(1)고정자산'!$C$8,'(6)판매비와관리비 등'!$J$4:$J$1048576,AI17)=0,"",SUMIFS('(6)판매비와관리비 등'!$L$4:$L$1048576,'(6)판매비와관리비 등'!$I$4:$I$1048576,'(1)고정자산'!$C$8,'(6)판매비와관리비 등'!$J$4:$J$1048576,AI17)) ->  | AL17: =IF('(4)수익'!$C14="","",'(4)수익'!$C14) -> 유형자산 처분 이익 | AM17: =IF(SUMIFS('(4)수익'!$L$4:$L$1048576,'(4)수익'!$I$4:$I$1048576,'(1)고정자산'!$C$9,'(4)수익'!$J$4:$J$1048576,AL17)=0,"",SUMIFS('(4)수익'!$L$4:$L$1048576,'(4)수익'!$I$4:$I$1048576,'(1)고정자산'!$C$9,'(4)수익'!$J$4:$J$1048576,AL17)) ->  | AO17: =IF('(5)생산비용'!$C17="","",'(5)생산비용'!$C17) ->  | AP17: =IF(SUMIFS('(5)생산비용'!$L$4:$L$1048576,'(5)생산비용'!$I$4:$I$1048576,'(1)고정자산'!$C$9,'(5)생산비용'!$J$4:$J$1048576,AO17)=0,"",SUMIFS('(5)생산비용'!$L$4:$L$1048576,'(5)생산비용'!$I$4:$I$1048576,'(1)고정자산'!$C$9,'(5)생산비용'!$J$4:$J$1048576,AO17)) ->  | AR17: =IF('(6)판매비와관리비 등'!$C17="","",'(6)판매비와관리비 등'!$C17) -> 보험료(판매, 관리) | AS17: =IF(SUMIFS('(6)판매비와관리비 등'!$L$4:$L$1048576,'(6)판매비와관리비 등'!$I$4:$I$1048576,'(1)고정자산'!$C$9,'(6)판매비와관리비 등'!$J$4:$J$1048576,AR17)=0,"",SUMIFS('(6)판매비와관리비 등'!$L$4:$L$1048576,'(6)판매비와관리비 등'!$I$4:$I$1048576,'(1)고정자산'!$C$9,'(6)판매비와관리비 등'!$J$4:$J$1048576,AR17)) -> 
B18: =IF('(4)수익'!$C15="","",'(4)수익'!$C15) -> 수수료 수익 | C18: =IF(SUMIFS('(4)수익'!$L$4:$L$1048576,'(4)수익'!$J$4:$J$1048576,B18)=0,"",SUMIFS('(4)수익'!$L$4:$L$1048576,'(4)수익'!$J$4:$J$1048576,B18)) ->  | E18: =IF('(5)생산비용'!$C18="","",'(5)생산비용'!$C18) ->  | F18: =IF(SUMIFS('(5)생산비용'!$L$4:$L$1048576,'(5)생산비용'!$J$4:$J$1048576,E18)=0,"",SUMIFS('(5)생산비용'!$L$4:$L$1048576,'(5)생산비용'!$J$4:$J$1048576,E18)) ->  | H18: =IF('(6)판매비와관리비 등'!$C18="","",'(6)판매비와관리비 등'!$C18) -> 잡비 | I18: =IF(SUMIFS('(6)판매비와관리비 등'!$L$4:$L$1048576,'(6)판매비와관리비 등'!$J$4:$J$1048576,H18)=0,"",SUMIFS('(6)판매비와관리비 등'!$L$4:$L$1048576,'(6)판매비와관리비 등'!$J$4:$J$1048576,H18)) ->  | K18: =IF('(4)수익'!$C15="","",'(4)수익'!$C15) -> 수수료 수익 | L18: =IF(SUMIFS('(4)수익'!$L$4:$L$1048576,'(4)수익'!$I$4:$I$1048576,'(1)고정자산'!$C$6,'(4)수익'!$J$4:$J$1048576,K18)=0,"",SUMIFS('(4)수익'!$L$4:$L$1048576,'(4)수익'!$I$4:$I$1048576,'(1)고정자산'!$C$6,'(4)수익'!$J$4:$J$1048576,K18)) ->  | N18: =IF('(5)생산비용'!$C18="","",'(5)생산비용'!$C18) ->  | O18: =IF(SUMIFS('(5)생산비용'!$L$4:$L$1048576,'(5)생산비용'!$I$4:$I$1048576,'(1)고정자산'!$C$6,'(5)생산비용'!$J$4:$J$1048576,N18)=0,"",SUMIFS('(5)생산비용'!$L$4:$L$1048576,'(5)생산비용'!$I$4:$I$1048576,'(1)고정자산'!$C$6,'(5)생산비용'!$J$4:$J$1048576,N18)) ->  | Q18: =IF('(6)판매비와관리비 등'!$C18="","",'(6)판매비와관리비 등'!$C18) -> 잡비 | R18: =IF(SUMIFS('(6)판매비와관리비 등'!$L$4:$L$1048576,'(6)판매비와관리비 등'!$I$4:$I$1048576,'(1)고정자산'!$C$6,'(6)판매비와관리비 등'!$J$4:$J$1048576,Q18)=0,"",SUMIFS('(6)판매비와관리비 등'!$L$4:$L$1048576,'(6)판매비와관리비 등'!$I$4:$I$1048576,'(1)고정자산'!$C$6,'(6)판매비와관리비 등'!$J$4:$J$1048576,Q18)) ->  | T18: =IF('(4)수익'!$C15="","",'(4)수익'!$C15) -> 수수료 수익 | U18: =IF(SUMIFS('(4)수익'!$L$4:$L$1048576,'(4)수익'!$I$4:$I$1048576,'(1)고정자산'!$C$7,'(4)수익'!$J$4:$J$1048576,T18)=0,"",SUMIFS('(4)수익'!$L$4:$L$1048576,'(4)수익'!$I$4:$I$1048576,'(1)고정자산'!$C$7,'(4)수익'!$J$4:$J$1048576,T18)) ->  | W18: =IF('(5)생산비용'!$C18="","",'(5)생산비용'!$C18) ->  | X18: =IF(SUMIFS('(5)생산비용'!$L$4:$L$1048576,'(5)생산비용'!$I$4:$I$1048576,'(1)고정자산'!$C$7,'(5)생산비용'!$J$4:$J$1048576,W18)=0,"",SUMIFS('(5)생산비용'!$L$4:$L$1048576,'(5)생산비용'!$I$4:$I$1048576,'(1)고정자산'!$C$7,'(5)생산비용'!$J$4:$J$1048576,W18)) ->  | Z18: =IF('(6)판매비와관리비 등'!$C18="","",'(6)판매비와관리비 등'!$C18) -> 잡비 | AA18: =IF(SUMIFS('(6)판매비와관리비 등'!$L$4:$L$1048576,'(6)판매비와관리비 등'!$I$4:$I$1048576,'(1)고정자산'!$C$7,'(6)판매비와관리비 등'!$J$4:$J$1048576,Z18)=0,"",SUMIFS('(6)판매비와관리비 등'!$L$4:$L$1048576,'(6)판매비와관리비 등'!$I$4:$I$1048576,'(1)고정자산'!$C$7,'(6)판매비와관리비 등'!$J$4:$J$1048576,Z18)) ->  | AC18: =IF('(4)수익'!$C15="","",'(4)수익'!$C15) -> 수수료 수익 | AD18: =IF(SUMIFS('(4)수익'!$L$4:$L$1048576,'(4)수익'!$I$4:$I$1048576,'(1)고정자산'!$C$8,'(4)수익'!$J$4:$J$1048576,AC18)=0,"",SUMIFS('(4)수익'!$L$4:$L$1048576,'(4)수익'!$I$4:$I$1048576,'(1)고정자산'!$C$8,'(4)수익'!$J$4:$J$1048576,AC18)) ->  | AF18: =IF('(5)생산비용'!$C18="","",'(5)생산비용'!$C18) ->  | AG18: =IF(SUMIFS('(5)생산비용'!$L$4:$L$1048576,'(5)생산비용'!$I$4:$I$1048576,'(1)고정자산'!$C$8,'(5)생산비용'!$J$4:$J$1048576,AF18)=0,"",SUMIFS('(5)생산비용'!$L$4:$L$1048576,'(5)생산비용'!$I$4:$I$1048576,'(1)고정자산'!$C$8,'(5)생산비용'!$J$4:$J$1048576,AF18)) ->  | AI18: =IF('(6)판매비와관리비 등'!$C18="","",'(6)판매비와관리비 등'!$C18) -> 잡비 | AJ18: =IF(SUMIFS('(6)판매비와관리비 등'!$L$4:$L$1048576,'(6)판매비와관리비 등'!$I$4:$I$1048576,'(1)고정자산'!$C$8,'(6)판매비와관리비 등'!$J$4:$J$1048576,AI18)=0,"",SUMIFS('(6)판매비와관리비 등'!$L$4:$L$1048576,'(6)판매비와관리비 등'!$I$4:$I$1048576,'(1)고정자산'!$C$8,'(6)판매비와관리비 등'!$J$4:$J$1048576,AI18)) ->  | AL18: =IF('(4)수익'!$C15="","",'(4)수익'!$C15) -> 수수료 수익 | AM18: =IF(SUMIFS('(4)수익'!$L$4:$L$1048576,'(4)수익'!$I$4:$I$1048576,'(1)고정자산'!$C$9,'(4)수익'!$J$4:$J$1048576,AL18)=0,"",SUMIFS('(4)수익'!$L$4:$L$1048576,'(4)수익'!$I$4:$I$1048576,'(1)고정자산'!$C$9,'(4)수익'!$J$4:$J$1048576,AL18)) ->  | AO18: =IF('(5)생산비용'!$C18="","",'(5)생산비용'!$C18) ->  | AP18: =IF(SUMIFS('(5)생산비용'!$L$4:$L$1048576,'(5)생산비용'!$I$4:$I$1048576,'(1)고정자산'!$C$9,'(5)생산비용'!$J$4:$J$1048576,AO18)=0,"",SUMIFS('(5)생산비용'!$L$4:$L$1048576,'(5)생산비용'!$I$4:$I$1048576,'(1)고정자산'!$C$9,'(5)생산비용'!$J$4:$J$1048576,AO18)) ->  | AR18: =IF('(6)판매비와관리비 등'!$C18="","",'(6)판매비와관리비 등'!$C18) -> 잡비 | AS18: =IF(SUMIFS('(6)판매비와관리비 등'!$L$4:$L$1048576,'(6)판매비와관리비 등'!$I$4:$I$1048576,'(1)고정자산'!$C$9,'(6)판매비와관리비 등'!$J$4:$J$1048576,AR18)=0,"",SUMIFS('(6)판매비와관리비 등'!$L$4:$L$1048576,'(6)판매비와관리비 등'!$I$4:$I$1048576,'(1)고정자산'!$C$9,'(6)판매비와관리비 등'!$J$4:$J$1048576,AR18)) -> 
B19: =IF('(4)수익'!$C16="","",'(4)수익'!$C16) -> 잡이익 | C19: =IF(SUMIFS('(4)수익'!$L$4:$L$1048576,'(4)수익'!$J$4:$J$1048576,B19)=0,"",SUMIFS('(4)수익'!$L$4:$L$1048576,'(4)수익'!$J$4:$J$1048576,B19)) ->  | E19: =IF('(5)생산비용'!$C19="","",'(5)생산비용'!$C19) ->  | F19: =IF(SUMIFS('(5)생산비용'!$L$4:$L$1048576,'(5)생산비용'!$J$4:$J$1048576,E19)=0,"",SUMIFS('(5)생산비용'!$L$4:$L$1048576,'(5)생산비용'!$J$4:$J$1048576,E19)) ->  | H19: =IF('(6)판매비와관리비 등'!$C19="","",'(6)판매비와관리비 등'!$C19) ->  | I19: =IF(SUMIFS('(6)판매비와관리비 등'!$L$4:$L$1048576,'(6)판매비와관리비 등'!$J$4:$J$1048576,H19)=0,"",SUMIFS('(6)판매비와관리비 등'!$L$4:$L$1048576,'(6)판매비와관리비 등'!$J$4:$J$1048576,H19)) ->  | K19: =IF('(4)수익'!$C16="","",'(4)수익'!$C16) -> 잡이익 | L19: =IF(SUMIFS('(4)수익'!$L$4:$L$1048576,'(4)수익'!$I$4:$I$1048576,'(1)고정자산'!$C$6,'(4)수익'!$J$4:$J$1048576,K19)=0,"",SUMIFS('(4)수익'!$L$4:$L$1048576,'(4)수익'!$I$4:$I$1048576,'(1)고정자산'!$C$6,'(4)수익'!$J$4:$J$1048576,K19)) ->  | N19: =IF('(5)생산비용'!$C19="","",'(5)생산비용'!$C19) ->  | O19: =IF(SUMIFS('(5)생산비용'!$L$4:$L$1048576,'(5)생산비용'!$I$4:$I$1048576,'(1)고정자산'!$C$6,'(5)생산비용'!$J$4:$J$1048576,N19)=0,"",SUMIFS('(5)생산비용'!$L$4:$L$1048576,'(5)생산비용'!$I$4:$I$1048576,'(1)고정자산'!$C$6,'(5)생산비용'!$J$4:$J$1048576,N19)) ->  | Q19: =IF('(6)판매비와관리비 등'!$C19="","",'(6)판매비와관리비 등'!$C19) ->  | R19: =IF(SUMIFS('(6)판매비와관리비 등'!$L$4:$L$1048576,'(6)판매비와관리비 등'!$I$4:$I$1048576,'(1)고정자산'!$C$6,'(6)판매비와관리비 등'!$J$4:$J$1048576,Q19)=0,"",SUMIFS('(6)판매비와관리비 등'!$L$4:$L$1048576,'(6)판매비와관리비 등'!$I$4:$I$1048576,'(1)고정자산'!$C$6,'(6)판매비와관리비 등'!$J$4:$J$1048576,Q19)) ->  | T19: =IF('(4)수익'!$C16="","",'(4)수익'!$C16) -> 잡이익 | U19: =IF(SUMIFS('(4)수익'!$L$4:$L$1048576,'(4)수익'!$I$4:$I$1048576,'(1)고정자산'!$C$7,'(4)수익'!$J$4:$J$1048576,T19)=0,"",SUMIFS('(4)수익'!$L$4:$L$1048576,'(4)수익'!$I$4:$I$1048576,'(1)고정자산'!$C$7,'(4)수익'!$J$4:$J$1048576,T19)) ->  | W19: =IF('(5)생산비용'!$C19="","",'(5)생산비용'!$C19) ->  | X19: =IF(SUMIFS('(5)생산비용'!$L$4:$L$1048576,'(5)생산비용'!$I$4:$I$1048576,'(1)고정자산'!$C$7,'(5)생산비용'!$J$4:$J$1048576,W19)=0,"",SUMIFS('(5)생산비용'!$L$4:$L$1048576,'(5)생산비용'!$I$4:$I$1048576,'(1)고정자산'!$C$7,'(5)생산비용'!$J$4:$J$1048576,W19)) ->  | Z19: =IF('(6)판매비와관리비 등'!$C19="","",'(6)판매비와관리비 등'!$C19) ->  | AA19: =IF(SUMIFS('(6)판매비와관리비 등'!$L$4:$L$1048576,'(6)판매비와관리비 등'!$I$4:$I$1048576,'(1)고정자산'!$C$7,'(6)판매비와관리비 등'!$J$4:$J$1048576,Z19)=0,"",SUMIFS('(6)판매비와관리비 등'!$L$4:$L$1048576,'(6)판매비와관리비 등'!$I$4:$I$1048576,'(1)고정자산'!$C$7,'(6)판매비와관리비 등'!$J$4:$J$1048576,Z19)) ->  | AC19: =IF('(4)수익'!$C16="","",'(4)수익'!$C16) -> 잡이익 | AD19: =IF(SUMIFS('(4)수익'!$L$4:$L$1048576,'(4)수익'!$I$4:$I$1048576,'(1)고정자산'!$C$8,'(4)수익'!$J$4:$J$1048576,AC19)=0,"",SUMIFS('(4)수익'!$L$4:$L$1048576,'(4)수익'!$I$4:$I$1048576,'(1)고정자산'!$C$8,'(4)수익'!$J$4:$J$1048576,AC19)) ->  | AF19: =IF('(5)생산비용'!$C19="","",'(5)생산비용'!$C19) ->  | AG19: =IF(SUMIFS('(5)생산비용'!$L$4:$L$1048576,'(5)생산비용'!$I$4:$I$1048576,'(1)고정자산'!$C$8,'(5)생산비용'!$J$4:$J$1048576,AF19)=0,"",SUMIFS('(5)생산비용'!$L$4:$L$1048576,'(5)생산비용'!$I$4:$I$1048576,'(1)고정자산'!$C$8,'(5)생산비용'!$J$4:$J$1048576,AF19)) ->  | AI19: =IF('(6)판매비와관리비 등'!$C19="","",'(6)판매비와관리비 등'!$C19) ->  | AJ19: =IF(SUMIFS('(6)판매비와관리비 등'!$L$4:$L$1048576,'(6)판매비와관리비 등'!$I$4:$I$1048576,'(1)고정자산'!$C$8,'(6)판매비와관리비 등'!$J$4:$J$1048576,AI19)=0,"",SUMIFS('(6)판매비와관리비 등'!$L$4:$L$1048576,'(6)판매비와관리비 등'!$I$4:$I$1048576,'(1)고정자산'!$C$8,'(6)판매비와관리비 등'!$J$4:$J$1048576,AI19)) ->  | AL19: =IF('(4)수익'!$C16="","",'(4)수익'!$C16) -> 잡이익 | AM19: =IF(SUMIFS('(4)수익'!$L$4:$L$1048576,'(4)수익'!$I$4:$I$1048576,'(1)고정자산'!$C$9,'(4)수익'!$J$4:$J$1048576,AL19)=0,"",SUMIFS('(4)수익'!$L$4:$L$1048576,'(4)수익'!$I$4:$I$1048576,'(1)고정자산'!$C$9,'(4)수익'!$J$4:$J$1048576,AL19)) ->  | AO19: =IF('(5)생산비용'!$C19="","",'(5)생산비용'!$C19) ->  | AP19: =IF(SUMIFS('(5)생산비용'!$L$4:$L$1048576,'(5)생산비용'!$I$4:$I$1048576,'(1)고정자산'!$C$9,'(5)생산비용'!$J$4:$J$1048576,AO19)=0,"",SUMIFS('(5)생산비용'!$L$4:$L$1048576,'(5)생산비용'!$I$4:$I$1048576,'(1)고정자산'!$C$9,'(5)생산비용'!$J$4:$J$1048576,AO19)) ->  | AR19: =IF('(6)판매비와관리비 등'!$C19="","",'(6)판매비와관리비 등'!$C19) ->  | AS19: =IF(SUMIFS('(6)판매비와관리비 등'!$L$4:$L$1048576,'(6)판매비와관리비 등'!$I$4:$I$1048576,'(1)고정자산'!$C$9,'(6)판매비와관리비 등'!$J$4:$J$1048576,AR19)=0,"",SUMIFS('(6)판매비와관리비 등'!$L$4:$L$1048576,'(6)판매비와관리비 등'!$I$4:$I$1048576,'(1)고정자산'!$C$9,'(6)판매비와관리비 등'!$J$4:$J$1048576,AR19)) -> 
B20: =IF('(4)수익'!$C17="","",'(4)수익'!$C17) ->  | C20: =IF(SUMIFS('(4)수익'!$L$4:$L$1048576,'(4)수익'!$J$4:$J$1048576,B20)=0,"",SUMIFS('(4)수익'!$L$4:$L$1048576,'(4)수익'!$J$4:$J$1048576,B20)) ->  | E20: =IF('(5)생산비용'!$C20="","",'(5)생산비용'!$C20) ->  | F20: =IF(SUMIFS('(5)생산비용'!$L$4:$L$1048576,'(5)생산비용'!$J$4:$J$1048576,E20)=0,"",SUMIFS('(5)생산비용'!$L$4:$L$1048576,'(5)생산비용'!$J$4:$J$1048576,E20)) ->  | H20: =IF('(6)판매비와관리비 등'!$C20="","",'(6)판매비와관리비 등'!$C20) ->  | I20: =IF(SUMIFS('(6)판매비와관리비 등'!$L$4:$L$1048576,'(6)판매비와관리비 등'!$J$4:$J$1048576,H20)=0,"",SUMIFS('(6)판매비와관리비 등'!$L$4:$L$1048576,'(6)판매비와관리비 등'!$J$4:$J$1048576,H20)) ->  | K20: =IF('(4)수익'!$C17="","",'(4)수익'!$C17) ->  | L20: =IF(SUMIFS('(4)수익'!$L$4:$L$1048576,'(4)수익'!$I$4:$I$1048576,'(1)고정자산'!$C$6,'(4)수익'!$J$4:$J$1048576,K20)=0,"",SUMIFS('(4)수익'!$L$4:$L$1048576,'(4)수익'!$I$4:$I$1048576,'(1)고정자산'!$C$6,'(4)수익'!$J$4:$J$1048576,K20)) ->  | N20: =IF('(5)생산비용'!$C20="","",'(5)생산비용'!$C20) ->  | O20: =IF(SUMIFS('(5)생산비용'!$L$4:$L$1048576,'(5)생산비용'!$I$4:$I$1048576,'(1)고정자산'!$C$6,'(5)생산비용'!$J$4:$J$1048576,N20)=0,"",SUMIFS('(5)생산비용'!$L$4:$L$1048576,'(5)생산비용'!$I$4:$I$1048576,'(1)고정자산'!$C$6,'(5)생산비용'!$J$4:$J$1048576,N20)) ->  | Q20: =IF('(6)판매비와관리비 등'!$C20="","",'(6)판매비와관리비 등'!$C20) ->  | R20: =IF(SUMIFS('(6)판매비와관리비 등'!$L$4:$L$1048576,'(6)판매비와관리비 등'!$I$4:$I$1048576,'(1)고정자산'!$C$6,'(6)판매비와관리비 등'!$J$4:$J$1048576,Q20)=0,"",SUMIFS('(6)판매비와관리비 등'!$L$4:$L$1048576,'(6)판매비와관리비 등'!$I$4:$I$1048576,'(1)고정자산'!$C$6,'(6)판매비와관리비 등'!$J$4:$J$1048576,Q20)) ->  | T20: =IF('(4)수익'!$C17="","",'(4)수익'!$C17) ->  | U20: =IF(SUMIFS('(4)수익'!$L$4:$L$1048576,'(4)수익'!$I$4:$I$1048576,'(1)고정자산'!$C$7,'(4)수익'!$J$4:$J$1048576,T20)=0,"",SUMIFS('(4)수익'!$L$4:$L$1048576,'(4)수익'!$I$4:$I$1048576,'(1)고정자산'!$C$7,'(4)수익'!$J$4:$J$1048576,T20)) ->  | W20: =IF('(5)생산비용'!$C20="","",'(5)생산비용'!$C20) ->  | X20: =IF(SUMIFS('(5)생산비용'!$L$4:$L$1048576,'(5)생산비용'!$I$4:$I$1048576,'(1)고정자산'!$C$7,'(5)생산비용'!$J$4:$J$1048576,W20)=0,"",SUMIFS('(5)생산비용'!$L$4:$L$1048576,'(5)생산비용'!$I$4:$I$1048576,'(1)고정자산'!$C$7,'(5)생산비용'!$J$4:$J$1048576,W20)) ->  | Z20: =IF('(6)판매비와관리비 등'!$C20="","",'(6)판매비와관리비 등'!$C20) ->  | AA20: =IF(SUMIFS('(6)판매비와관리비 등'!$L$4:$L$1048576,'(6)판매비와관리비 등'!$I$4:$I$1048576,'(1)고정자산'!$C$7,'(6)판매비와관리비 등'!$J$4:$J$1048576,Z20)=0,"",SUMIFS('(6)판매비와관리비 등'!$L$4:$L$1048576,'(6)판매비와관리비 등'!$I$4:$I$1048576,'(1)고정자산'!$C$7,'(6)판매비와관리비 등'!$J$4:$J$1048576,Z20)) ->  | AC20: =IF('(4)수익'!$C17="","",'(4)수익'!$C17) ->  | AD20: =IF(SUMIFS('(4)수익'!$L$4:$L$1048576,'(4)수익'!$I$4:$I$1048576,'(1)고정자산'!$C$8,'(4)수익'!$J$4:$J$1048576,AC20)=0,"",SUMIFS('(4)수익'!$L$4:$L$1048576,'(4)수익'!$I$4:$I$1048576,'(1)고정자산'!$C$8,'(4)수익'!$J$4:$J$1048576,AC20)) ->  | AF20: =IF('(5)생산비용'!$C20="","",'(5)생산비용'!$C20) ->  | AG20: =IF(SUMIFS('(5)생산비용'!$L$4:$L$1048576,'(5)생산비용'!$I$4:$I$1048576,'(1)고정자산'!$C$8,'(5)생산비용'!$J$4:$J$1048576,AF20)=0,"",SUMIFS('(5)생산비용'!$L$4:$L$1048576,'(5)생산비용'!$I$4:$I$1048576,'(1)고정자산'!$C$8,'(5)생산비용'!$J$4:$J$1048576,AF20)) ->  | AI20: =IF('(6)판매비와관리비 등'!$C20="","",'(6)판매비와관리비 등'!$C20) ->  | AJ20: =IF(SUMIFS('(6)판매비와관리비 등'!$L$4:$L$1048576,'(6)판매비와관리비 등'!$I$4:$I$1048576,'(1)고정자산'!$C$8,'(6)판매비와관리비 등'!$J$4:$J$1048576,AI20)=0,"",SUMIFS('(6)판매비와관리비 등'!$L$4:$L$1048576,'(6)판매비와관리비 등'!$I$4:$I$1048576,'(1)고정자산'!$C$8,'(6)판매비와관리비 등'!$J$4:$J$1048576,AI20)) ->  | AL20: =IF('(4)수익'!$C17="","",'(4)수익'!$C17) ->  | AM20: =IF(SUMIFS('(4)수익'!$L$4:$L$1048576,'(4)수익'!$I$4:$I$1048576,'(1)고정자산'!$C$9,'(4)수익'!$J$4:$J$1048576,AL20)=0,"",SUMIFS('(4)수익'!$L$4:$L$1048576,'(4)수익'!$I$4:$I$1048576,'(1)고정자산'!$C$9,'(4)수익'!$J$4:$J$1048576,AL20)) ->  | AO20: =IF('(5)생산비용'!$C20="","",'(5)생산비용'!$C20) ->  | AP20: =IF(SUMIFS('(5)생산비용'!$L$4:$L$1048576,'(5)생산비용'!$I$4:$I$1048576,'(1)고정자산'!$C$9,'(5)생산비용'!$J$4:$J$1048576,AO20)=0,"",SUMIFS('(5)생산비용'!$L$4:$L$1048576,'(5)생산비용'!$I$4:$I$1048576,'(1)고정자산'!$C$9,'(5)생산비용'!$J$4:$J$1048576,AO20)) ->  | AR20: =IF('(6)판매비와관리비 등'!$C20="","",'(6)판매비와관리비 등'!$C20) ->  | AS20: =IF(SUMIFS('(6)판매비와관리비 등'!$L$4:$L$1048576,'(6)판매비와관리비 등'!$I$4:$I$1048576,'(1)고정자산'!$C$9,'(6)판매비와관리비 등'!$J$4:$J$1048576,AR20)=0,"",SUMIFS('(6)판매비와관리비 등'!$L$4:$L$1048576,'(6)판매비와관리비 등'!$I$4:$I$1048576,'(1)고정자산'!$C$9,'(6)판매비와관리비 등'!$J$4:$J$1048576,AR20)) -> 
B21: =IF('(4)수익'!$C18="","",'(4)수익'!$C18) ->  | C21: =IF(SUMIFS('(4)수익'!$L$4:$L$1048576,'(4)수익'!$J$4:$J$1048576,B21)=0,"",SUMIFS('(4)수익'!$L$4:$L$1048576,'(4)수익'!$J$4:$J$1048576,B21)) ->  | E21: =IF('(5)생산비용'!$C21="","",'(5)생산비용'!$C21) -> 임차료 | F21: =IF(SUMIFS('(5)생산비용'!$L$4:$L$1048576,'(5)생산비용'!$J$4:$J$1048576,E21)=0,"",SUMIFS('(5)생산비용'!$L$4:$L$1048576,'(5)생산비용'!$J$4:$J$1048576,E21)) ->  | H21: =IF('(6)판매비와관리비 등'!$C21="","",'(6)판매비와관리비 등'!$C21) ->  | I21: =IF(SUMIFS('(6)판매비와관리비 등'!$L$4:$L$1048576,'(6)판매비와관리비 등'!$J$4:$J$1048576,H21)=0,"",SUMIFS('(6)판매비와관리비 등'!$L$4:$L$1048576,'(6)판매비와관리비 등'!$J$4:$J$1048576,H21)) ->  | K21: =IF('(4)수익'!$C18="","",'(4)수익'!$C18) ->  | L21: =IF(SUMIFS('(4)수익'!$L$4:$L$1048576,'(4)수익'!$I$4:$I$1048576,'(1)고정자산'!$C$6,'(4)수익'!$J$4:$J$1048576,K21)=0,"",SUMIFS('(4)수익'!$L$4:$L$1048576,'(4)수익'!$I$4:$I$1048576,'(1)고정자산'!$C$6,'(4)수익'!$J$4:$J$1048576,K21)) ->  | N21: =IF('(5)생산비용'!$C21="","",'(5)생산비용'!$C21) -> 임차료 | O21: =IF(SUMIFS('(5)생산비용'!$L$4:$L$1048576,'(5)생산비용'!$I$4:$I$1048576,'(1)고정자산'!$C$6,'(5)생산비용'!$J$4:$J$1048576,N21)=0,"",SUMIFS('(5)생산비용'!$L$4:$L$1048576,'(5)생산비용'!$I$4:$I$1048576,'(1)고정자산'!$C$6,'(5)생산비용'!$J$4:$J$1048576,N21)) ->  | Q21: =IF('(6)판매비와관리비 등'!$C21="","",'(6)판매비와관리비 등'!$C21) ->  | R21: =IF(SUMIFS('(6)판매비와관리비 등'!$L$4:$L$1048576,'(6)판매비와관리비 등'!$I$4:$I$1048576,'(1)고정자산'!$C$6,'(6)판매비와관리비 등'!$J$4:$J$1048576,Q21)=0,"",SUMIFS('(6)판매비와관리비 등'!$L$4:$L$1048576,'(6)판매비와관리비 등'!$I$4:$I$1048576,'(1)고정자산'!$C$6,'(6)판매비와관리비 등'!$J$4:$J$1048576,Q21)) ->  | T21: =IF('(4)수익'!$C18="","",'(4)수익'!$C18) ->  | U21: =IF(SUMIFS('(4)수익'!$L$4:$L$1048576,'(4)수익'!$I$4:$I$1048576,'(1)고정자산'!$C$7,'(4)수익'!$J$4:$J$1048576,T21)=0,"",SUMIFS('(4)수익'!$L$4:$L$1048576,'(4)수익'!$I$4:$I$1048576,'(1)고정자산'!$C$7,'(4)수익'!$J$4:$J$1048576,T21)) ->  | W21: =IF('(5)생산비용'!$C21="","",'(5)생산비용'!$C21) -> 임차료 | X21: =IF(SUMIFS('(5)생산비용'!$L$4:$L$1048576,'(5)생산비용'!$I$4:$I$1048576,'(1)고정자산'!$C$7,'(5)생산비용'!$J$4:$J$1048576,W21)=0,"",SUMIFS('(5)생산비용'!$L$4:$L$1048576,'(5)생산비용'!$I$4:$I$1048576,'(1)고정자산'!$C$7,'(5)생산비용'!$J$4:$J$1048576,W21)) ->  | Z21: =IF('(6)판매비와관리비 등'!$C21="","",'(6)판매비와관리비 등'!$C21) ->  | AA21: =IF(SUMIFS('(6)판매비와관리비 등'!$L$4:$L$1048576,'(6)판매비와관리비 등'!$I$4:$I$1048576,'(1)고정자산'!$C$7,'(6)판매비와관리비 등'!$J$4:$J$1048576,Z21)=0,"",SUMIFS('(6)판매비와관리비 등'!$L$4:$L$1048576,'(6)판매비와관리비 등'!$I$4:$I$1048576,'(1)고정자산'!$C$7,'(6)판매비와관리비 등'!$J$4:$J$1048576,Z21)) ->  | AC21: =IF('(4)수익'!$C18="","",'(4)수익'!$C18) ->  | AD21: =IF(SUMIFS('(4)수익'!$L$4:$L$1048576,'(4)수익'!$I$4:$I$1048576,'(1)고정자산'!$C$8,'(4)수익'!$J$4:$J$1048576,AC21)=0,"",SUMIFS('(4)수익'!$L$4:$L$1048576,'(4)수익'!$I$4:$I$1048576,'(1)고정자산'!$C$8,'(4)수익'!$J$4:$J$1048576,AC21)) ->  | AF21: =IF('(5)생산비용'!$C21="","",'(5)생산비용'!$C21) -> 임차료 | AG21: =IF(SUMIFS('(5)생산비용'!$L$4:$L$1048576,'(5)생산비용'!$I$4:$I$1048576,'(1)고정자산'!$C$8,'(5)생산비용'!$J$4:$J$1048576,AF21)=0,"",SUMIFS('(5)생산비용'!$L$4:$L$1048576,'(5)생산비용'!$I$4:$I$1048576,'(1)고정자산'!$C$8,'(5)생산비용'!$J$4:$J$1048576,AF21)) ->  | AI21: =IF('(6)판매비와관리비 등'!$C21="","",'(6)판매비와관리비 등'!$C21) ->  | AJ21: =IF(SUMIFS('(6)판매비와관리비 등'!$L$4:$L$1048576,'(6)판매비와관리비 등'!$I$4:$I$1048576,'(1)고정자산'!$C$8,'(6)판매비와관리비 등'!$J$4:$J$1048576,AI21)=0,"",SUMIFS('(6)판매비와관리비 등'!$L$4:$L$1048576,'(6)판매비와관리비 등'!$I$4:$I$1048576,'(1)고정자산'!$C$8,'(6)판매비와관리비 등'!$J$4:$J$1048576,AI21)) ->  | AL21: =IF('(4)수익'!$C18="","",'(4)수익'!$C18) ->  | AM21: =IF(SUMIFS('(4)수익'!$L$4:$L$1048576,'(4)수익'!$I$4:$I$1048576,'(1)고정자산'!$C$9,'(4)수익'!$J$4:$J$1048576,AL21)=0,"",SUMIFS('(4)수익'!$L$4:$L$1048576,'(4)수익'!$I$4:$I$1048576,'(1)고정자산'!$C$9,'(4)수익'!$J$4:$J$1048576,AL21)) ->  | AO21: =IF('(5)생산비용'!$C21="","",'(5)생산비용'!$C21) -> 임차료 | AP21: =IF(SUMIFS('(5)생산비용'!$L$4:$L$1048576,'(5)생산비용'!$I$4:$I$1048576,'(1)고정자산'!$C$9,'(5)생산비용'!$J$4:$J$1048576,AO21)=0,"",SUMIFS('(5)생산비용'!$L$4:$L$1048576,'(5)생산비용'!$I$4:$I$1048576,'(1)고정자산'!$C$9,'(5)생산비용'!$J$4:$J$1048576,AO21)) ->  | AR21: =IF('(6)판매비와관리비 등'!$C21="","",'(6)판매비와관리비 등'!$C21) ->  | AS21: =IF(SUMIFS('(6)판매비와관리비 등'!$L$4:$L$1048576,'(6)판매비와관리비 등'!$I$4:$I$1048576,'(1)고정자산'!$C$9,'(6)판매비와관리비 등'!$J$4:$J$1048576,AR21)=0,"",SUMIFS('(6)판매비와관리비 등'!$L$4:$L$1048576,'(6)판매비와관리비 등'!$I$4:$I$1048576,'(1)고정자산'!$C$9,'(6)판매비와관리비 등'!$J$4:$J$1048576,AR21)) -> 
B22: =IF('(4)수익'!$C19="","",'(4)수익'!$C19) ->  | C22: =IF(SUMIFS('(4)수익'!$L$4:$L$1048576,'(4)수익'!$J$4:$J$1048576,B22)=0,"",SUMIFS('(4)수익'!$L$4:$L$1048576,'(4)수익'!$J$4:$J$1048576,B22)) ->  | E22: =IF('(5)생산비용'!$C22="","",'(5)생산비용'!$C22) -> 농작업위탁비 | F22: =IF(SUMIFS('(5)생산비용'!$L$4:$L$1048576,'(5)생산비용'!$J$4:$J$1048576,E22)=0,"",SUMIFS('(5)생산비용'!$L$4:$L$1048576,'(5)생산비용'!$J$4:$J$1048576,E22)) ->  | H22: =IF('(6)판매비와관리비 등'!$C22="","",'(6)판매비와관리비 등'!$C22) ->  | I22: =IF(SUMIFS('(6)판매비와관리비 등'!$L$4:$L$1048576,'(6)판매비와관리비 등'!$J$4:$J$1048576,H22)=0,"",SUMIFS('(6)판매비와관리비 등'!$L$4:$L$1048576,'(6)판매비와관리비 등'!$J$4:$J$1048576,H22)) ->  | K22: =IF('(4)수익'!$C19="","",'(4)수익'!$C19) ->  | L22: =IF(SUMIFS('(4)수익'!$L$4:$L$1048576,'(4)수익'!$I$4:$I$1048576,'(1)고정자산'!$C$6,'(4)수익'!$J$4:$J$1048576,K22)=0,"",SUMIFS('(4)수익'!$L$4:$L$1048576,'(4)수익'!$I$4:$I$1048576,'(1)고정자산'!$C$6,'(4)수익'!$J$4:$J$1048576,K22)) ->  | N22: =IF('(5)생산비용'!$C22="","",'(5)생산비용'!$C22) -> 농작업위탁비 | O22: =IF(SUMIFS('(5)생산비용'!$L$4:$L$1048576,'(5)생산비용'!$I$4:$I$1048576,'(1)고정자산'!$C$6,'(5)생산비용'!$J$4:$J$1048576,N22)=0,"",SUMIFS('(5)생산비용'!$L$4:$L$1048576,'(5)생산비용'!$I$4:$I$1048576,'(1)고정자산'!$C$6,'(5)생산비용'!$J$4:$J$1048576,N22)) ->  | Q22: =IF('(6)판매비와관리비 등'!$C22="","",'(6)판매비와관리비 등'!$C22) ->  | R22: =IF(SUMIFS('(6)판매비와관리비 등'!$L$4:$L$1048576,'(6)판매비와관리비 등'!$I$4:$I$1048576,'(1)고정자산'!$C$6,'(6)판매비와관리비 등'!$J$4:$J$1048576,Q22)=0,"",SUMIFS('(6)판매비와관리비 등'!$L$4:$L$1048576,'(6)판매비와관리비 등'!$I$4:$I$1048576,'(1)고정자산'!$C$6,'(6)판매비와관리비 등'!$J$4:$J$1048576,Q22)) ->  | T22: =IF('(4)수익'!$C19="","",'(4)수익'!$C19) ->  | U22: =IF(SUMIFS('(4)수익'!$L$4:$L$1048576,'(4)수익'!$I$4:$I$1048576,'(1)고정자산'!$C$7,'(4)수익'!$J$4:$J$1048576,T22)=0,"",SUMIFS('(4)수익'!$L$4:$L$1048576,'(4)수익'!$I$4:$I$1048576,'(1)고정자산'!$C$7,'(4)수익'!$J$4:$J$1048576,T22)) ->  | W22: =IF('(5)생산비용'!$C22="","",'(5)생산비용'!$C22) -> 농작업위탁비 | X22: =IF(SUMIFS('(5)생산비용'!$L$4:$L$1048576,'(5)생산비용'!$I$4:$I$1048576,'(1)고정자산'!$C$7,'(5)생산비용'!$J$4:$J$1048576,W22)=0,"",SUMIFS('(5)생산비용'!$L$4:$L$1048576,'(5)생산비용'!$I$4:$I$1048576,'(1)고정자산'!$C$7,'(5)생산비용'!$J$4:$J$1048576,W22)) ->  | Z22: =IF('(6)판매비와관리비 등'!$C22="","",'(6)판매비와관리비 등'!$C22) ->  | AA22: =IF(SUMIFS('(6)판매비와관리비 등'!$L$4:$L$1048576,'(6)판매비와관리비 등'!$I$4:$I$1048576,'(1)고정자산'!$C$7,'(6)판매비와관리비 등'!$J$4:$J$1048576,Z22)=0,"",SUMIFS('(6)판매비와관리비 등'!$L$4:$L$1048576,'(6)판매비와관리비 등'!$I$4:$I$1048576,'(1)고정자산'!$C$7,'(6)판매비와관리비 등'!$J$4:$J$1048576,Z22)) ->  | AC22: =IF('(4)수익'!$C19="","",'(4)수익'!$C19) ->  | AD22: =IF(SUMIFS('(4)수익'!$L$4:$L$1048576,'(4)수익'!$I$4:$I$1048576,'(1)고정자산'!$C$8,'(4)수익'!$J$4:$J$1048576,AC22)=0,"",SUMIFS('(4)수익'!$L$4:$L$1048576,'(4)수익'!$I$4:$I$1048576,'(1)고정자산'!$C$8,'(4)수익'!$J$4:$J$1048576,AC22)) ->  | AF22: =IF('(5)생산비용'!$C22="","",'(5)생산비용'!$C22) -> 농작업위탁비 | AG22: =IF(SUMIFS('(5)생산비용'!$L$4:$L$1048576,'(5)생산비용'!$I$4:$I$1048576,'(1)고정자산'!$C$8,'(5)생산비용'!$J$4:$J$1048576,AF22)=0,"",SUMIFS('(5)생산비용'!$L$4:$L$1048576,'(5)생산비용'!$I$4:$I$1048576,'(1)고정자산'!$C$8,'(5)생산비용'!$J$4:$J$1048576,AF22)) ->  | AI22: =IF('(6)판매비와관리비 등'!$C22="","",'(6)판매비와관리비 등'!$C22) ->  | AJ22: =IF(SUMIFS('(6)판매비와관리비 등'!$L$4:$L$1048576,'(6)판매비와관리비 등'!$I$4:$I$1048576,'(1)고정자산'!$C$8,'(6)판매비와관리비 등'!$J$4:$J$1048576,AI22)=0,"",SUMIFS('(6)판매비와관리비 등'!$L$4:$L$1048576,'(6)판매비와관리비 등'!$I$4:$I$1048576,'(1)고정자산'!$C$8,'(6)판매비와관리비 등'!$J$4:$J$1048576,AI22)) ->  | AL22: =IF('(4)수익'!$C19="","",'(4)수익'!$C19) ->  | AM22: =IF(SUMIFS('(4)수익'!$L$4:$L$1048576,'(4)수익'!$I$4:$I$1048576,'(1)고정자산'!$C$9,'(4)수익'!$J$4:$J$1048576,AL22)=0,"",SUMIFS('(4)수익'!$L$4:$L$1048576,'(4)수익'!$I$4:$I$1048576,'(1)고정자산'!$C$9,'(4)수익'!$J$4:$J$1048576,AL22)) ->  | AO22: =IF('(5)생산비용'!$C22="","",'(5)생산비용'!$C22) -> 농작업위탁비 | AP22: =IF(SUMIFS('(5)생산비용'!$L$4:$L$1048576,'(5)생산비용'!$I$4:$I$1048576,'(1)고정자산'!$C$9,'(5)생산비용'!$J$4:$J$1048576,AO22)=0,"",SUMIFS('(5)생산비용'!$L$4:$L$1048576,'(5)생산비용'!$I$4:$I$1048576,'(1)고정자산'!$C$9,'(5)생산비용'!$J$4:$J$1048576,AO22)) ->  | AR22: =IF('(6)판매비와관리비 등'!$C22="","",'(6)판매비와관리비 등'!$C22) ->  | AS22: =IF(SUMIFS('(6)판매비와관리비 등'!$L$4:$L$1048576,'(6)판매비와관리비 등'!$I$4:$I$1048576,'(1)고정자산'!$C$9,'(6)판매비와관리비 등'!$J$4:$J$1048576,AR22)=0,"",SUMIFS('(6)판매비와관리비 등'!$L$4:$L$1048576,'(6)판매비와관리비 등'!$I$4:$I$1048576,'(1)고정자산'!$C$9,'(6)판매비와관리비 등'!$J$4:$J$1048576,AR22)) -> 
B23: =IF('(4)수익'!$C20="","",'(4)수익'!$C20) ->  | C23: =IF(SUMIFS('(4)수익'!$L$4:$L$1048576,'(4)수익'!$J$4:$J$1048576,B23)=0,"",SUMIFS('(4)수익'!$L$4:$L$1048576,'(4)수익'!$J$4:$J$1048576,B23)) ->  | E23: =IF('(5)생산비용'!$C23="","",'(5)생산비용'!$C23) -> 위탁비용 | F23: =IF(SUMIFS('(5)생산비용'!$L$4:$L$1048576,'(5)생산비용'!$J$4:$J$1048576,E23)=0,"",SUMIFS('(5)생산비용'!$L$4:$L$1048576,'(5)생산비용'!$J$4:$J$1048576,E23)) ->  | H23: =IF('(6)판매비와관리비 등'!$C23="","",'(6)판매비와관리비 등'!$C23) ->  | I23: =IF(SUMIFS('(6)판매비와관리비 등'!$L$4:$L$1048576,'(6)판매비와관리비 등'!$J$4:$J$1048576,H23)=0,"",SUMIFS('(6)판매비와관리비 등'!$L$4:$L$1048576,'(6)판매비와관리비 등'!$J$4:$J$1048576,H23)) ->  | K23: =IF('(4)수익'!$C20="","",'(4)수익'!$C20) ->  | L23: =IF(SUMIFS('(4)수익'!$L$4:$L$1048576,'(4)수익'!$I$4:$I$1048576,'(1)고정자산'!$C$6,'(4)수익'!$J$4:$J$1048576,K23)=0,"",SUMIFS('(4)수익'!$L$4:$L$1048576,'(4)수익'!$I$4:$I$1048576,'(1)고정자산'!$C$6,'(4)수익'!$J$4:$J$1048576,K23)) ->  | N23: =IF('(5)생산비용'!$C23="","",'(5)생산비용'!$C23) -> 위탁비용 | O23: =IF(SUMIFS('(5)생산비용'!$L$4:$L$1048576,'(5)생산비용'!$I$4:$I$1048576,'(1)고정자산'!$C$6,'(5)생산비용'!$J$4:$J$1048576,N23)=0,"",SUMIFS('(5)생산비용'!$L$4:$L$1048576,'(5)생산비용'!$I$4:$I$1048576,'(1)고정자산'!$C$6,'(5)생산비용'!$J$4:$J$1048576,N23)) ->  | Q23: =IF('(6)판매비와관리비 등'!$C23="","",'(6)판매비와관리비 등'!$C23) ->  | R23: =IF(SUMIFS('(6)판매비와관리비 등'!$L$4:$L$1048576,'(6)판매비와관리비 등'!$I$4:$I$1048576,'(1)고정자산'!$C$6,'(6)판매비와관리비 등'!$J$4:$J$1048576,Q23)=0,"",SUMIFS('(6)판매비와관리비 등'!$L$4:$L$1048576,'(6)판매비와관리비 등'!$I$4:$I$1048576,'(1)고정자산'!$C$6,'(6)판매비와관리비 등'!$J$4:$J$1048576,Q23)) ->  | T23: =IF('(4)수익'!$C20="","",'(4)수익'!$C20) ->  | U23: =IF(SUMIFS('(4)수익'!$L$4:$L$1048576,'(4)수익'!$I$4:$I$1048576,'(1)고정자산'!$C$7,'(4)수익'!$J$4:$J$1048576,T23)=0,"",SUMIFS('(4)수익'!$L$4:$L$1048576,'(4)수익'!$I$4:$I$1048576,'(1)고정자산'!$C$7,'(4)수익'!$J$4:$J$1048576,T23)) ->  | W23: =IF('(5)생산비용'!$C23="","",'(5)생산비용'!$C23) -> 위탁비용 | X23: =IF(SUMIFS('(5)생산비용'!$L$4:$L$1048576,'(5)생산비용'!$I$4:$I$1048576,'(1)고정자산'!$C$7,'(5)생산비용'!$J$4:$J$1048576,W23)=0,"",SUMIFS('(5)생산비용'!$L$4:$L$1048576,'(5)생산비용'!$I$4:$I$1048576,'(1)고정자산'!$C$7,'(5)생산비용'!$J$4:$J$1048576,W23)) ->  | Z23: =IF('(6)판매비와관리비 등'!$C23="","",'(6)판매비와관리비 등'!$C23) ->  | AA23: =IF(SUMIFS('(6)판매비와관리비 등'!$L$4:$L$1048576,'(6)판매비와관리비 등'!$I$4:$I$1048576,'(1)고정자산'!$C$7,'(6)판매비와관리비 등'!$J$4:$J$1048576,Z23)=0,"",SUMIFS('(6)판매비와관리비 등'!$L$4:$L$1048576,'(6)판매비와관리비 등'!$I$4:$I$1048576,'(1)고정자산'!$C$7,'(6)판매비와관리비 등'!$J$4:$J$1048576,Z23)) ->  | AC23: =IF('(4)수익'!$C20="","",'(4)수익'!$C20) ->  | AD23: =IF(SUMIFS('(4)수익'!$L$4:$L$1048576,'(4)수익'!$I$4:$I$1048576,'(1)고정자산'!$C$8,'(4)수익'!$J$4:$J$1048576,AC23)=0,"",SUMIFS('(4)수익'!$L$4:$L$1048576,'(4)수익'!$I$4:$I$1048576,'(1)고정자산'!$C$8,'(4)수익'!$J$4:$J$1048576,AC23)) ->  | AF23: =IF('(5)생산비용'!$C23="","",'(5)생산비용'!$C23) -> 위탁비용 | AG23: =IF(SUMIFS('(5)생산비용'!$L$4:$L$1048576,'(5)생산비용'!$I$4:$I$1048576,'(1)고정자산'!$C$8,'(5)생산비용'!$J$4:$J$1048576,AF23)=0,"",SUMIFS('(5)생산비용'!$L$4:$L$1048576,'(5)생산비용'!$I$4:$I$1048576,'(1)고정자산'!$C$8,'(5)생산비용'!$J$4:$J$1048576,AF23)) ->  | AI23: =IF('(6)판매비와관리비 등'!$C23="","",'(6)판매비와관리비 등'!$C23) ->  | AJ23: =IF(SUMIFS('(6)판매비와관리비 등'!$L$4:$L$1048576,'(6)판매비와관리비 등'!$I$4:$I$1048576,'(1)고정자산'!$C$8,'(6)판매비와관리비 등'!$J$4:$J$1048576,AI23)=0,"",SUMIFS('(6)판매비와관리비 등'!$L$4:$L$1048576,'(6)판매비와관리비 등'!$I$4:$I$1048576,'(1)고정자산'!$C$8,'(6)판매비와관리비 등'!$J$4:$J$1048576,AI23)) ->  | AL23: =IF('(4)수익'!$C20="","",'(4)수익'!$C20) ->  | AM23: =IF(SUMIFS('(4)수익'!$L$4:$L$1048576,'(4)수익'!$I$4:$I$1048576,'(1)고정자산'!$C$9,'(4)수익'!$J$4:$J$1048576,AL23)=0,"",SUMIFS('(4)수익'!$L$4:$L$1048576,'(4)수익'!$I$4:$I$1048576,'(1)고정자산'!$C$9,'(4)수익'!$J$4:$J$1048576,AL23)) ->  | AO23: =IF('(5)생산비용'!$C23="","",'(5)생산비용'!$C23) -> 위탁비용 | AP23: =IF(SUMIFS('(5)생산비용'!$L$4:$L$1048576,'(5)생산비용'!$I$4:$I$1048576,'(1)고정자산'!$C$9,'(5)생산비용'!$J$4:$J$1048576,AO23)=0,"",SUMIFS('(5)생산비용'!$L$4:$L$1048576,'(5)생산비용'!$I$4:$I$1048576,'(1)고정자산'!$C$9,'(5)생산비용'!$J$4:$J$1048576,AO23)) ->  | AR23: =IF('(6)판매비와관리비 등'!$C23="","",'(6)판매비와관리비 등'!$C23) ->  | AS23: =IF(SUMIFS('(6)판매비와관리비 등'!$L$4:$L$1048576,'(6)판매비와관리비 등'!$I$4:$I$1048576,'(1)고정자산'!$C$9,'(6)판매비와관리비 등'!$J$4:$J$1048576,AR23)=0,"",SUMIFS('(6)판매비와관리비 등'!$L$4:$L$1048576,'(6)판매비와관리비 등'!$I$4:$I$1048576,'(1)고정자산'!$C$9,'(6)판매비와관리비 등'!$J$4:$J$1048576,AR23)) -> 
B24: 합계 | C24: =SUM(C14:C23) -> 0 | E24: =IF('(5)생산비용'!$C24="","",'(5)생산비용'!$C24) -> 광열동력비 | F24: =IF(SUMIFS('(5)생산비용'!$L$4:$L$1048576,'(5)생산비용'!$J$4:$J$1048576,E24)=0,"",SUMIFS('(5)생산비용'!$L$4:$L$1048576,'(5)생산비용'!$J$4:$J$1048576,E24)) -> 100000 | H24: =IF('(6)판매비와관리비 등'!$C24="","",'(6)판매비와관리비 등'!$C24) -> 이자비용 | I24: =IF(SUMIFS('(6)판매비와관리비 등'!$L$4:$L$1048576,'(6)판매비와관리비 등'!$J$4:$J$1048576,H24)=0,"",SUMIFS('(6)판매비와관리비 등'!$L$4:$L$1048576,'(6)판매비와관리비 등'!$J$4:$J$1048576,H24)) -> 300000 | K24: 합계 | L24: =SUM(L14:L23) -> 0 | N24: =IF('(5)생산비용'!$C24="","",'(5)생산비용'!$C24) -> 광열동력비 | O24: =IF(SUMIFS('(5)생산비용'!$L$4:$L$1048576,'(5)생산비용'!$I$4:$I$1048576,'(1)고정자산'!$C$6,'(5)생산비용'!$J$4:$J$1048576,N24)=0,"",SUMIFS('(5)생산비용'!$L$4:$L$1048576,'(5)생산비용'!$I$4:$I$1048576,'(1)고정자산'!$C$6,'(5)생산비용'!$J$4:$J$1048576,N24)) -> 100000 | Q24: =IF('(6)판매비와관리비 등'!$C24="","",'(6)판매비와관리비 등'!$C24) -> 이자비용 | R24: =IF(SUMIFS('(6)판매비와관리비 등'!$L$4:$L$1048576,'(6)판매비와관리비 등'!$I$4:$I$1048576,'(1)고정자산'!$C$6,'(6)판매비와관리비 등'!$J$4:$J$1048576,Q24)=0,"",SUMIFS('(6)판매비와관리비 등'!$L$4:$L$1048576,'(6)판매비와관리비 등'!$I$4:$I$1048576,'(1)고정자산'!$C$6,'(6)판매비와관리비 등'!$J$4:$J$1048576,Q24)) -> 300000 | T24: 합계 | U24: =SUM(U14:U23) -> 0 | W24: =IF('(5)생산비용'!$C24="","",'(5)생산비용'!$C24) -> 광열동력비 | X24: =IF(SUMIFS('(5)생산비용'!$L$4:$L$1048576,'(5)생산비용'!$I$4:$I$1048576,'(1)고정자산'!$C$7,'(5)생산비용'!$J$4:$J$1048576,W24)=0,"",SUMIFS('(5)생산비용'!$L$4:$L$1048576,'(5)생산비용'!$I$4:$I$1048576,'(1)고정자산'!$C$7,'(5)생산비용'!$J$4:$J$1048576,W24)) ->  | Z24: =IF('(6)판매비와관리비 등'!$C24="","",'(6)판매비와관리비 등'!$C24) -> 이자비용 | AA24: =IF(SUMIFS('(6)판매비와관리비 등'!$L$4:$L$1048576,'(6)판매비와관리비 등'!$I$4:$I$1048576,'(1)고정자산'!$C$7,'(6)판매비와관리비 등'!$J$4:$J$1048576,Z24)=0,"",SUMIFS('(6)판매비와관리비 등'!$L$4:$L$1048576,'(6)판매비와관리비 등'!$I$4:$I$1048576,'(1)고정자산'!$C$7,'(6)판매비와관리비 등'!$J$4:$J$1048576,Z24)) ->  | AC24: 합계 | AD24: =SUM(AD14:AD23) -> 0 | AF24: =IF('(5)생산비용'!$C24="","",'(5)생산비용'!$C24) -> 광열동력비 | AG24: =IF(SUMIFS('(5)생산비용'!$L$4:$L$1048576,'(5)생산비용'!$I$4:$I$1048576,'(1)고정자산'!$C$8,'(5)생산비용'!$J$4:$J$1048576,AF24)=0,"",SUMIFS('(5)생산비용'!$L$4:$L$1048576,'(5)생산비용'!$I$4:$I$1048576,'(1)고정자산'!$C$8,'(5)생산비용'!$J$4:$J$1048576,AF24)) ->  | AI24: =IF('(6)판매비와관리비 등'!$C24="","",'(6)판매비와관리비 등'!$C24) -> 이자비용 | AJ24: =IF(SUMIFS('(6)판매비와관리비 등'!$L$4:$L$1048576,'(6)판매비와관리비 등'!$I$4:$I$1048576,'(1)고정자산'!$C$8,'(6)판매비와관리비 등'!$J$4:$J$1048576,AI24)=0,"",SUMIFS('(6)판매비와관리비 등'!$L$4:$L$1048576,'(6)판매비와관리비 등'!$I$4:$I$1048576,'(1)고정자산'!$C$8,'(6)판매비와관리비 등'!$J$4:$J$1048576,AI24)) ->  | AL24: 합계 | AM24: =SUM(AM14:AM23) -> 0 | AO24: =IF('(5)생산비용'!$C24="","",'(5)생산비용'!$C24) -> 광열동력비 | AP24: =IF(SUMIFS('(5)생산비용'!$L$4:$L$1048576,'(5)생산비용'!$I$4:$I$1048576,'(1)고정자산'!$C$9,'(5)생산비용'!$J$4:$J$1048576,AO24)=0,"",SUMIFS('(5)생산비용'!$L$4:$L$1048576,'(5)생산비용'!$I$4:$I$1048576,'(1)고정자산'!$C$9,'(5)생산비용'!$J$4:$J$1048576,AO24)) ->  | AR24: =IF('(6)판매비와관리비 등'!$C24="","",'(6)판매비와관리비 등'!$C24) -> 이자비용 | AS24: =IF(SUMIFS('(6)판매비와관리비 등'!$L$4:$L$1048576,'(6)판매비와관리비 등'!$I$4:$I$1048576,'(1)고정자산'!$C$9,'(6)판매비와관리비 등'!$J$4:$J$1048576,AR24)=0,"",SUMIFS('(6)판매비와관리비 등'!$L$4:$L$1048576,'(6)판매비와관리비 등'!$I$4:$I$1048576,'(1)고정자산'!$C$9,'(6)판매비와관리비 등'!$J$4:$J$1048576,AR24)) -> 
E25: =IF('(5)생산비용'!$C25="","",'(5)생산비용'!$C25) -> 소농구비 | F25: =IF(SUMIFS('(5)생산비용'!$L$4:$L$1048576,'(5)생산비용'!$J$4:$J$1048576,E25)=0,"",SUMIFS('(5)생산비용'!$L$4:$L$1048576,'(5)생산비용'!$J$4:$J$1048576,E25)) ->  | H25: =IF('(6)판매비와관리비 등'!$C25="","",'(6)판매비와관리비 등'!$C25) -> 세금과공과 | I25: =IF(SUMIFS('(6)판매비와관리비 등'!$L$4:$L$1048576,'(6)판매비와관리비 등'!$J$4:$J$1048576,H25)=0,"",SUMIFS('(6)판매비와관리비 등'!$L$4:$L$1048576,'(6)판매비와관리비 등'!$J$4:$J$1048576,H25)) ->  | N25: =IF('(5)생산비용'!$C25="","",'(5)생산비용'!$C25) -> 소농구비 | O25: =IF(SUMIFS('(5)생산비용'!$L$4:$L$1048576,'(5)생산비용'!$I$4:$I$1048576,'(1)고정자산'!$C$6,'(5)생산비용'!$J$4:$J$1048576,N25)=0,"",SUMIFS('(5)생산비용'!$L$4:$L$1048576,'(5)생산비용'!$I$4:$I$1048576,'(1)고정자산'!$C$6,'(5)생산비용'!$J$4:$J$1048576,N25)) ->  | Q25: =IF('(6)판매비와관리비 등'!$C25="","",'(6)판매비와관리비 등'!$C25) -> 세금과공과 | R25: =IF(SUMIFS('(6)판매비와관리비 등'!$L$4:$L$1048576,'(6)판매비와관리비 등'!$I$4:$I$1048576,'(1)고정자산'!$C$6,'(6)판매비와관리비 등'!$J$4:$J$1048576,Q25)=0,"",SUMIFS('(6)판매비와관리비 등'!$L$4:$L$1048576,'(6)판매비와관리비 등'!$I$4:$I$1048576,'(1)고정자산'!$C$6,'(6)판매비와관리비 등'!$J$4:$J$1048576,Q25)) ->  | W25: =IF('(5)생산비용'!$C25="","",'(5)생산비용'!$C25) -> 소농구비 | X25: =IF(SUMIFS('(5)생산비용'!$L$4:$L$1048576,'(5)생산비용'!$I$4:$I$1048576,'(1)고정자산'!$C$7,'(5)생산비용'!$J$4:$J$1048576,W25)=0,"",SUMIFS('(5)생산비용'!$L$4:$L$1048576,'(5)생산비용'!$I$4:$I$1048576,'(1)고정자산'!$C$7,'(5)생산비용'!$J$4:$J$1048576,W25)) ->  | Z25: =IF('(6)판매비와관리비 등'!$C25="","",'(6)판매비와관리비 등'!$C25) -> 세금과공과 | AA25: =IF(SUMIFS('(6)판매비와관리비 등'!$L$4:$L$1048576,'(6)판매비와관리비 등'!$I$4:$I$1048576,'(1)고정자산'!$C$7,'(6)판매비와관리비 등'!$J$4:$J$1048576,Z25)=0,"",SUMIFS('(6)판매비와관리비 등'!$L$4:$L$1048576,'(6)판매비와관리비 등'!$I$4:$I$1048576,'(1)고정자산'!$C$7,'(6)판매비와관리비 등'!$J$4:$J$1048576,Z25)) ->  | AF25: =IF('(5)생산비용'!$C25="","",'(5)생산비용'!$C25) -> 소농구비 | AG25: =IF(SUMIFS('(5)생산비용'!$L$4:$L$1048576,'(5)생산비용'!$I$4:$I$1048576,'(1)고정자산'!$C$8,'(5)생산비용'!$J$4:$J$1048576,AF25)=0,"",SUMIFS('(5)생산비용'!$L$4:$L$1048576,'(5)생산비용'!$I$4:$I$1048576,'(1)고정자산'!$C$8,'(5)생산비용'!$J$4:$J$1048576,AF25)) ->  | AI25: =IF('(6)판매비와관리비 등'!$C25="","",'(6)판매비와관리비 등'!$C25) -> 세금과공과 | AJ25: =IF(SUMIFS('(6)판매비와관리비 등'!$L$4:$L$1048576,'(6)판매비와관리비 등'!$I$4:$I$1048576,'(1)고정자산'!$C$8,'(6)판매비와관리비 등'!$J$4:$J$1048576,AI25)=0,"",SUMIFS('(6)판매비와관리비 등'!$L$4:$L$1048576,'(6)판매비와관리비 등'!$I$4:$I$1048576,'(1)고정자산'!$C$8,'(6)판매비와관리비 등'!$J$4:$J$1048576,AI25)) ->  | AO25: =IF('(5)생산비용'!$C25="","",'(5)생산비용'!$C25) -> 소농구비 | AP25: =IF(SUMIFS('(5)생산비용'!$L$4:$L$1048576,'(5)생산비용'!$I$4:$I$1048576,'(1)고정자산'!$C$9,'(5)생산비용'!$J$4:$J$1048576,AO25)=0,"",SUMIFS('(5)생산비용'!$L$4:$L$1048576,'(5)생산비용'!$I$4:$I$1048576,'(1)고정자산'!$C$9,'(5)생산비용'!$J$4:$J$1048576,AO25)) ->  | AR25: =IF('(6)판매비와관리비 등'!$C25="","",'(6)판매비와관리비 등'!$C25) -> 세금과공과 | AS25: =IF(SUMIFS('(6)판매비와관리비 등'!$L$4:$L$1048576,'(6)판매비와관리비 등'!$I$4:$I$1048576,'(1)고정자산'!$C$9,'(6)판매비와관리비 등'!$J$4:$J$1048576,AR25)=0,"",SUMIFS('(6)판매비와관리비 등'!$L$4:$L$1048576,'(6)판매비와관리비 등'!$I$4:$I$1048576,'(1)고정자산'!$C$9,'(6)판매비와관리비 등'!$J$4:$J$1048576,AR25)) -> 
B26: 특징 1. 품목별 수익, 비용 확인 가능 | E26: =IF('(5)생산비용'!$C26="","",'(5)생산비용'!$C26) -> 보험료(농업보험) | F26: =IF(SUMIFS('(5)생산비용'!$L$4:$L$1048576,'(5)생산비용'!$J$4:$J$1048576,E26)=0,"",SUMIFS('(5)생산비용'!$L$4:$L$1048576,'(5)생산비용'!$J$4:$J$1048576,E26)) ->  | H26: =IF('(6)판매비와관리비 등'!$C26="","",'(6)판매비와관리비 등'!$C26) -> 유형자산처분손실 | I26: =IF(SUMIFS('(6)판매비와관리비 등'!$L$4:$L$1048576,'(6)판매비와관리비 등'!$J$4:$J$1048576,H26)=0,"",SUMIFS('(6)판매비와관리비 등'!$L$4:$L$1048576,'(6)판매비와관리비 등'!$J$4:$J$1048576,H26)) ->  | N26: =IF('(5)생산비용'!$C26="","",'(5)생산비용'!$C26) -> 보험료(농업보험) | O26: =IF(SUMIFS('(5)생산비용'!$L$4:$L$1048576,'(5)생산비용'!$I$4:$I$1048576,'(1)고정자산'!$C$6,'(5)생산비용'!$J$4:$J$1048576,N26)=0,"",SUMIFS('(5)생산비용'!$L$4:$L$1048576,'(5)생산비용'!$I$4:$I$1048576,'(1)고정자산'!$C$6,'(5)생산비용'!$J$4:$J$1048576,N26)) ->  | Q26: =IF('(6)판매비와관리비 등'!$C26="","",'(6)판매비와관리비 등'!$C26) -> 유형자산처분손실 | R26: =IF(SUMIFS('(6)판매비와관리비 등'!$L$4:$L$1048576,'(6)판매비와관리비 등'!$I$4:$I$1048576,'(1)고정자산'!$C$6,'(6)판매비와관리비 등'!$J$4:$J$1048576,Q26)=0,"",SUMIFS('(6)판매비와관리비 등'!$L$4:$L$1048576,'(6)판매비와관리비 등'!$I$4:$I$1048576,'(1)고정자산'!$C$6,'(6)판매비와관리비 등'!$J$4:$J$1048576,Q26)) ->  | W26: =IF('(5)생산비용'!$C26="","",'(5)생산비용'!$C26) -> 보험료(농업보험) | X26: =IF(SUMIFS('(5)생산비용'!$L$4:$L$1048576,'(5)생산비용'!$I$4:$I$1048576,'(1)고정자산'!$C$7,'(5)생산비용'!$J$4:$J$1048576,W26)=0,"",SUMIFS('(5)생산비용'!$L$4:$L$1048576,'(5)생산비용'!$I$4:$I$1048576,'(1)고정자산'!$C$7,'(5)생산비용'!$J$4:$J$1048576,W26)) ->  | Z26: =IF('(6)판매비와관리비 등'!$C26="","",'(6)판매비와관리비 등'!$C26) -> 유형자산처분손실 | AA26: =IF(SUMIFS('(6)판매비와관리비 등'!$L$4:$L$1048576,'(6)판매비와관리비 등'!$I$4:$I$1048576,'(1)고정자산'!$C$7,'(6)판매비와관리비 등'!$J$4:$J$1048576,Z26)=0,"",SUMIFS('(6)판매비와관리비 등'!$L$4:$L$1048576,'(6)판매비와관리비 등'!$I$4:$I$1048576,'(1)고정자산'!$C$7,'(6)판매비와관리비 등'!$J$4:$J$1048576,Z26)) ->  | AF26: =IF('(5)생산비용'!$C26="","",'(5)생산비용'!$C26) -> 보험료(농업보험) | AG26: =IF(SUMIFS('(5)생산비용'!$L$4:$L$1048576,'(5)생산비용'!$I$4:$I$1048576,'(1)고정자산'!$C$8,'(5)생산비용'!$J$4:$J$1048576,AF26)=0,"",SUMIFS('(5)생산비용'!$L$4:$L$1048576,'(5)생산비용'!$I$4:$I$1048576,'(1)고정자산'!$C$8,'(5)생산비용'!$J$4:$J$1048576,AF26)) ->  | AI26: =IF('(6)판매비와관리비 등'!$C26="","",'(6)판매비와관리비 등'!$C26) -> 유형자산처분손실 | AJ26: =IF(SUMIFS('(6)판매비와관리비 등'!$L$4:$L$1048576,'(6)판매비와관리비 등'!$I$4:$I$1048576,'(1)고정자산'!$C$8,'(6)판매비와관리비 등'!$J$4:$J$1048576,AI26)=0,"",SUMIFS('(6)판매비와관리비 등'!$L$4:$L$1048576,'(6)판매비와관리비 등'!$I$4:$I$1048576,'(1)고정자산'!$C$8,'(6)판매비와관리비 등'!$J$4:$J$1048576,AI26)) ->  | AO26: =IF('(5)생산비용'!$C26="","",'(5)생산비용'!$C26) -> 보험료(농업보험) | AP26: =IF(SUMIFS('(5)생산비용'!$L$4:$L$1048576,'(5)생산비용'!$I$4:$I$1048576,'(1)고정자산'!$C$9,'(5)생산비용'!$J$4:$J$1048576,AO26)=0,"",SUMIFS('(5)생산비용'!$L$4:$L$1048576,'(5)생산비용'!$I$4:$I$1048576,'(1)고정자산'!$C$9,'(5)생산비용'!$J$4:$J$1048576,AO26)) ->  | AR26: =IF('(6)판매비와관리비 등'!$C26="","",'(6)판매비와관리비 등'!$C26) -> 유형자산처분손실 | AS26: =IF(SUMIFS('(6)판매비와관리비 등'!$L$4:$L$1048576,'(6)판매비와관리비 등'!$I$4:$I$1048576,'(1)고정자산'!$C$9,'(6)판매비와관리비 등'!$J$4:$J$1048576,AR26)=0,"",SUMIFS('(6)판매비와관리비 등'!$L$4:$L$1048576,'(6)판매비와관리비 등'!$I$4:$I$1048576,'(1)고정자산'!$C$9,'(6)판매비와관리비 등'!$J$4:$J$1048576,AR26)) -> 
E27: =IF('(5)생산비용'!$C27="","",'(5)생산비용'!$C27) -> 종부료 | F27: =IF(SUMIFS('(5)생산비용'!$L$4:$L$1048576,'(5)생산비용'!$J$4:$J$1048576,E27)=0,"",SUMIFS('(5)생산비용'!$L$4:$L$1048576,'(5)생산비용'!$J$4:$J$1048576,E27)) ->  | H27: =IF('(6)판매비와관리비 등'!$C27="","",'(6)판매비와관리비 등'!$C27) ->  | I27: =IF(SUMIFS('(6)판매비와관리비 등'!$L$4:$L$1048576,'(6)판매비와관리비 등'!$J$4:$J$1048576,H27)=0,"",SUMIFS('(6)판매비와관리비 등'!$L$4:$L$1048576,'(6)판매비와관리비 등'!$J$4:$J$1048576,H27)) ->  | N27: =IF('(5)생산비용'!$C27="","",'(5)생산비용'!$C27) -> 종부료 | O27: =IF(SUMIFS('(5)생산비용'!$L$4:$L$1048576,'(5)생산비용'!$I$4:$I$1048576,'(1)고정자산'!$C$6,'(5)생산비용'!$J$4:$J$1048576,N27)=0,"",SUMIFS('(5)생산비용'!$L$4:$L$1048576,'(5)생산비용'!$I$4:$I$1048576,'(1)고정자산'!$C$6,'(5)생산비용'!$J$4:$J$1048576,N27)) ->  | Q27: =IF('(6)판매비와관리비 등'!$C27="","",'(6)판매비와관리비 등'!$C27) ->  | R27: =IF(SUMIFS('(6)판매비와관리비 등'!$L$4:$L$1048576,'(6)판매비와관리비 등'!$I$4:$I$1048576,'(1)고정자산'!$C$6,'(6)판매비와관리비 등'!$J$4:$J$1048576,Q27)=0,"",SUMIFS('(6)판매비와관리비 등'!$L$4:$L$1048576,'(6)판매비와관리비 등'!$I$4:$I$1048576,'(1)고정자산'!$C$6,'(6)판매비와관리비 등'!$J$4:$J$1048576,Q27)) ->  | W27: =IF('(5)생산비용'!$C27="","",'(5)생산비용'!$C27) -> 종부료 | X27: =IF(SUMIFS('(5)생산비용'!$L$4:$L$1048576,'(5)생산비용'!$I$4:$I$1048576,'(1)고정자산'!$C$7,'(5)생산비용'!$J$4:$J$1048576,W27)=0,"",SUMIFS('(5)생산비용'!$L$4:$L$1048576,'(5)생산비용'!$I$4:$I$1048576,'(1)고정자산'!$C$7,'(5)생산비용'!$J$4:$J$1048576,W27)) ->  | Z27: =IF('(6)판매비와관리비 등'!$C27="","",'(6)판매비와관리비 등'!$C27) ->  | AA27: =IF(SUMIFS('(6)판매비와관리비 등'!$L$4:$L$1048576,'(6)판매비와관리비 등'!$I$4:$I$1048576,'(1)고정자산'!$C$7,'(6)판매비와관리비 등'!$J$4:$J$1048576,Z27)=0,"",SUMIFS('(6)판매비와관리비 등'!$L$4:$L$1048576,'(6)판매비와관리비 등'!$I$4:$I$1048576,'(1)고정자산'!$C$7,'(6)판매비와관리비 등'!$J$4:$J$1048576,Z27)) ->  | AF27: =IF('(5)생산비용'!$C27="","",'(5)생산비용'!$C27) -> 종부료 | AG27: =IF(SUMIFS('(5)생산비용'!$L$4:$L$1048576,'(5)생산비용'!$I$4:$I$1048576,'(1)고정자산'!$C$8,'(5)생산비용'!$J$4:$J$1048576,AF27)=0,"",SUMIFS('(5)생산비용'!$L$4:$L$1048576,'(5)생산비용'!$I$4:$I$1048576,'(1)고정자산'!$C$8,'(5)생산비용'!$J$4:$J$1048576,AF27)) ->  | AI27: =IF('(6)판매비와관리비 등'!$C27="","",'(6)판매비와관리비 등'!$C27) ->  | AJ27: =IF(SUMIFS('(6)판매비와관리비 등'!$L$4:$L$1048576,'(6)판매비와관리비 등'!$I$4:$I$1048576,'(1)고정자산'!$C$8,'(6)판매비와관리비 등'!$J$4:$J$1048576,AI27)=0,"",SUMIFS('(6)판매비와관리비 등'!$L$4:$L$1048576,'(6)판매비와관리비 등'!$I$4:$I$1048576,'(1)고정자산'!$C$8,'(6)판매비와관리비 등'!$J$4:$J$1048576,AI27)) ->  | AO27: =IF('(5)생산비용'!$C27="","",'(5)생산비용'!$C27) -> 종부료 | AP27: =IF(SUMIFS('(5)생산비용'!$L$4:$L$1048576,'(5)생산비용'!$I$4:$I$1048576,'(1)고정자산'!$C$9,'(5)생산비용'!$J$4:$J$1048576,AO27)=0,"",SUMIFS('(5)생산비용'!$L$4:$L$1048576,'(5)생산비용'!$I$4:$I$1048576,'(1)고정자산'!$C$9,'(5)생산비용'!$J$4:$J$1048576,AO27)) ->  | AR27: =IF('(6)판매비와관리비 등'!$C27="","",'(6)판매비와관리비 등'!$C27) ->  | AS27: =IF(SUMIFS('(6)판매비와관리비 등'!$L$4:$L$1048576,'(6)판매비와관리비 등'!$I$4:$I$1048576,'(1)고정자산'!$C$9,'(6)판매비와관리비 등'!$J$4:$J$1048576,AR27)=0,"",SUMIFS('(6)판매비와관리비 등'!$L$4:$L$1048576,'(6)판매비와관리비 등'!$I$4:$I$1048576,'(1)고정자산'!$C$9,'(6)판매비와관리비 등'!$J$4:$J$1048576,AR27)) -> 
E28: =IF('(5)생산비용'!$C28="","",'(5)생산비용'!$C28) -> 분뇨처리비 | F28: =IF(SUMIFS('(5)생산비용'!$L$4:$L$1048576,'(5)생산비용'!$J$4:$J$1048576,E28)=0,"",SUMIFS('(5)생산비용'!$L$4:$L$1048576,'(5)생산비용'!$J$4:$J$1048576,E28)) ->  | H28: =IF('(6)판매비와관리비 등'!$C28="","",'(6)판매비와관리비 등'!$C28) ->  | I28: =IF(SUMIFS('(6)판매비와관리비 등'!$L$4:$L$1048576,'(6)판매비와관리비 등'!$J$4:$J$1048576,H28)=0,"",SUMIFS('(6)판매비와관리비 등'!$L$4:$L$1048576,'(6)판매비와관리비 등'!$J$4:$J$1048576,H28)) ->  | N28: =IF('(5)생산비용'!$C28="","",'(5)생산비용'!$C28) -> 분뇨처리비 | O28: =IF(SUMIFS('(5)생산비용'!$L$4:$L$1048576,'(5)생산비용'!$I$4:$I$1048576,'(1)고정자산'!$C$6,'(5)생산비용'!$J$4:$J$1048576,N28)=0,"",SUMIFS('(5)생산비용'!$L$4:$L$1048576,'(5)생산비용'!$I$4:$I$1048576,'(1)고정자산'!$C$6,'(5)생산비용'!$J$4:$J$1048576,N28)) ->  | Q28: =IF('(6)판매비와관리비 등'!$C28="","",'(6)판매비와관리비 등'!$C28) ->  | R28: =IF(SUMIFS('(6)판매비와관리비 등'!$L$4:$L$1048576,'(6)판매비와관리비 등'!$I$4:$I$1048576,'(1)고정자산'!$C$6,'(6)판매비와관리비 등'!$J$4:$J$1048576,Q28)=0,"",SUMIFS('(6)판매비와관리비 등'!$L$4:$L$1048576,'(6)판매비와관리비 등'!$I$4:$I$1048576,'(1)고정자산'!$C$6,'(6)판매비와관리비 등'!$J$4:$J$1048576,Q28)) ->  | W28: =IF('(5)생산비용'!$C28="","",'(5)생산비용'!$C28) -> 분뇨처리비 | X28: =IF(SUMIFS('(5)생산비용'!$L$4:$L$1048576,'(5)생산비용'!$I$4:$I$1048576,'(1)고정자산'!$C$7,'(5)생산비용'!$J$4:$J$1048576,W28)=0,"",SUMIFS('(5)생산비용'!$L$4:$L$1048576,'(5)생산비용'!$I$4:$I$1048576,'(1)고정자산'!$C$7,'(5)생산비용'!$J$4:$J$1048576,W28)) ->  | Z28: =IF('(6)판매비와관리비 등'!$C28="","",'(6)판매비와관리비 등'!$C28) ->  | AA28: =IF(SUMIFS('(6)판매비와관리비 등'!$L$4:$L$1048576,'(6)판매비와관리비 등'!$I$4:$I$1048576,'(1)고정자산'!$C$7,'(6)판매비와관리비 등'!$J$4:$J$1048576,Z28)=0,"",SUMIFS('(6)판매비와관리비 등'!$L$4:$L$1048576,'(6)판매비와관리비 등'!$I$4:$I$1048576,'(1)고정자산'!$C$7,'(6)판매비와관리비 등'!$J$4:$J$1048576,Z28)) ->  | AF28: =IF('(5)생산비용'!$C28="","",'(5)생산비용'!$C28) -> 분뇨처리비 | AG28: =IF(SUMIFS('(5)생산비용'!$L$4:$L$1048576,'(5)생산비용'!$I$4:$I$1048576,'(1)고정자산'!$C$8,'(5)생산비용'!$J$4:$J$1048576,AF28)=0,"",SUMIFS('(5)생산비용'!$L$4:$L$1048576,'(5)생산비용'!$I$4:$I$1048576,'(1)고정자산'!$C$8,'(5)생산비용'!$J$4:$J$1048576,AF28)) ->  | AI28: =IF('(6)판매비와관리비 등'!$C28="","",'(6)판매비와관리비 등'!$C28) ->  | AJ28: =IF(SUMIFS('(6)판매비와관리비 등'!$L$4:$L$1048576,'(6)판매비와관리비 등'!$I$4:$I$1048576,'(1)고정자산'!$C$8,'(6)판매비와관리비 등'!$J$4:$J$1048576,AI28)=0,"",SUMIFS('(6)판매비와관리비 등'!$L$4:$L$1048576,'(6)판매비와관리비 등'!$I$4:$I$1048576,'(1)고정자산'!$C$8,'(6)판매비와관리비 등'!$J$4:$J$1048576,AI28)) ->  | AO28: =IF('(5)생산비용'!$C28="","",'(5)생산비용'!$C28) -> 분뇨처리비 | AP28: =IF(SUMIFS('(5)생산비용'!$L$4:$L$1048576,'(5)생산비용'!$I$4:$I$1048576,'(1)고정자산'!$C$9,'(5)생산비용'!$J$4:$J$1048576,AO28)=0,"",SUMIFS('(5)생산비용'!$L$4:$L$1048576,'(5)생산비용'!$I$4:$I$1048576,'(1)고정자산'!$C$9,'(5)생산비용'!$J$4:$J$1048576,AO28)) ->  | AR28: =IF('(6)판매비와관리비 등'!$C28="","",'(6)판매비와관리비 등'!$C28) ->  | AS28: =IF(SUMIFS('(6)판매비와관리비 등'!$L$4:$L$1048576,'(6)판매비와관리비 등'!$I$4:$I$1048576,'(1)고정자산'!$C$9,'(6)판매비와관리비 등'!$J$4:$J$1048576,AR28)=0,"",SUMIFS('(6)판매비와관리비 등'!$L$4:$L$1048576,'(6)판매비와관리비 등'!$I$4:$I$1048576,'(1)고정자산'!$C$9,'(6)판매비와관리비 등'!$J$4:$J$1048576,AR28)) -> 
E29: =IF('(5)생산비용'!$C29="","",'(5)생산비용'!$C29) -> 기타경비 | F29: =IF(SUMIFS('(5)생산비용'!$L$4:$L$1048576,'(5)생산비용'!$J$4:$J$1048576,E29)=0,"",SUMIFS('(5)생산비용'!$L$4:$L$1048576,'(5)생산비용'!$J$4:$J$1048576,E29)) ->  | H29: =IF('(6)판매비와관리비 등'!$C29="","",'(6)판매비와관리비 등'!$C29) -> 법인세 | I29: =IF(SUMIFS('(6)판매비와관리비 등'!$L$4:$L$1048576,'(6)판매비와관리비 등'!$J$4:$J$1048576,H29)=0,"",SUMIFS('(6)판매비와관리비 등'!$L$4:$L$1048576,'(6)판매비와관리비 등'!$J$4:$J$1048576,H29)) ->  | N29: =IF('(5)생산비용'!$C29="","",'(5)생산비용'!$C29) -> 기타경비 | O29: =IF(SUMIFS('(5)생산비용'!$L$4:$L$1048576,'(5)생산비용'!$I$4:$I$1048576,'(1)고정자산'!$C$6,'(5)생산비용'!$J$4:$J$1048576,N29)=0,"",SUMIFS('(5)생산비용'!$L$4:$L$1048576,'(5)생산비용'!$I$4:$I$1048576,'(1)고정자산'!$C$6,'(5)생산비용'!$J$4:$J$1048576,N29)) ->  | Q29: =IF('(6)판매비와관리비 등'!$C29="","",'(6)판매비와관리비 등'!$C29) -> 법인세 | R29: =IF(SUMIFS('(6)판매비와관리비 등'!$L$4:$L$1048576,'(6)판매비와관리비 등'!$I$4:$I$1048576,'(1)고정자산'!$C$6,'(6)판매비와관리비 등'!$J$4:$J$1048576,Q29)=0,"",SUMIFS('(6)판매비와관리비 등'!$L$4:$L$1048576,'(6)판매비와관리비 등'!$I$4:$I$1048576,'(1)고정자산'!$C$6,'(6)판매비와관리비 등'!$J$4:$J$1048576,Q29)) ->  | W29: =IF('(5)생산비용'!$C29="","",'(5)생산비용'!$C29) -> 기타경비 | X29: =IF(SUMIFS('(5)생산비용'!$L$4:$L$1048576,'(5)생산비용'!$I$4:$I$1048576,'(1)고정자산'!$C$7,'(5)생산비용'!$J$4:$J$1048576,W29)=0,"",SUMIFS('(5)생산비용'!$L$4:$L$1048576,'(5)생산비용'!$I$4:$I$1048576,'(1)고정자산'!$C$7,'(5)생산비용'!$J$4:$J$1048576,W29)) ->  | Z29: =IF('(6)판매비와관리비 등'!$C29="","",'(6)판매비와관리비 등'!$C29) -> 법인세 | AA29: =IF(SUMIFS('(6)판매비와관리비 등'!$L$4:$L$1048576,'(6)판매비와관리비 등'!$I$4:$I$1048576,'(1)고정자산'!$C$7,'(6)판매비와관리비 등'!$J$4:$J$1048576,Z29)=0,"",SUMIFS('(6)판매비와관리비 등'!$L$4:$L$1048576,'(6)판매비와관리비 등'!$I$4:$I$1048576,'(1)고정자산'!$C$7,'(6)판매비와관리비 등'!$J$4:$J$1048576,Z29)) ->  | AF29: =IF('(5)생산비용'!$C29="","",'(5)생산비용'!$C29) -> 기타경비 | AG29: =IF(SUMIFS('(5)생산비용'!$L$4:$L$1048576,'(5)생산비용'!$I$4:$I$1048576,'(1)고정자산'!$C$8,'(5)생산비용'!$J$4:$J$1048576,AF29)=0,"",SUMIFS('(5)생산비용'!$L$4:$L$1048576,'(5)생산비용'!$I$4:$I$1048576,'(1)고정자산'!$C$8,'(5)생산비용'!$J$4:$J$1048576,AF29)) ->  | AI29: =IF('(6)판매비와관리비 등'!$C29="","",'(6)판매비와관리비 등'!$C29) -> 법인세 | AJ29: =IF(SUMIFS('(6)판매비와관리비 등'!$L$4:$L$1048576,'(6)판매비와관리비 등'!$I$4:$I$1048576,'(1)고정자산'!$C$8,'(6)판매비와관리비 등'!$J$4:$J$1048576,AI29)=0,"",SUMIFS('(6)판매비와관리비 등'!$L$4:$L$1048576,'(6)판매비와관리비 등'!$I$4:$I$1048576,'(1)고정자산'!$C$8,'(6)판매비와관리비 등'!$J$4:$J$1048576,AI29)) ->  | AO29: =IF('(5)생산비용'!$C29="","",'(5)생산비용'!$C29) -> 기타경비 | AP29: =IF(SUMIFS('(5)생산비용'!$L$4:$L$1048576,'(5)생산비용'!$I$4:$I$1048576,'(1)고정자산'!$C$9,'(5)생산비용'!$J$4:$J$1048576,AO29)=0,"",SUMIFS('(5)생산비용'!$L$4:$L$1048576,'(5)생산비용'!$I$4:$I$1048576,'(1)고정자산'!$C$9,'(5)생산비용'!$J$4:$J$1048576,AO29)) ->  | AR29: =IF('(6)판매비와관리비 등'!$C29="","",'(6)판매비와관리비 등'!$C29) -> 법인세 | AS29: =IF(SUMIFS('(6)판매비와관리비 등'!$L$4:$L$1048576,'(6)판매비와관리비 등'!$I$4:$I$1048576,'(1)고정자산'!$C$9,'(6)판매비와관리비 등'!$J$4:$J$1048576,AR29)=0,"",SUMIFS('(6)판매비와관리비 등'!$L$4:$L$1048576,'(6)판매비와관리비 등'!$I$4:$I$1048576,'(1)고정자산'!$C$9,'(6)판매비와관리비 등'!$J$4:$J$1048576,AR29)) -> 
E30: =IF('(5)생산비용'!$C30="","",'(5)생산비용'!$C30) ->  | F30: =IF(SUMIFS('(5)생산비용'!$L$4:$L$1048576,'(5)생산비용'!$J$4:$J$1048576,E30)=0,"",SUMIFS('(5)생산비용'!$L$4:$L$1048576,'(5)생산비용'!$J$4:$J$1048576,E30)) ->  | H30: =IF('(6)판매비와관리비 등'!$C30="","",'(6)판매비와관리비 등'!$C30) ->  | I30: =IF(SUMIFS('(6)판매비와관리비 등'!$L$4:$L$1048576,'(6)판매비와관리비 등'!$J$4:$J$1048576,H30)=0,"",SUMIFS('(6)판매비와관리비 등'!$L$4:$L$1048576,'(6)판매비와관리비 등'!$J$4:$J$1048576,H30)) ->  | N30: =IF('(5)생산비용'!$C30="","",'(5)생산비용'!$C30) ->  | O30: =IF(SUMIFS('(5)생산비용'!$L$4:$L$1048576,'(5)생산비용'!$I$4:$I$1048576,'(1)고정자산'!$C$6,'(5)생산비용'!$J$4:$J$1048576,N30)=0,"",SUMIFS('(5)생산비용'!$L$4:$L$1048576,'(5)생산비용'!$I$4:$I$1048576,'(1)고정자산'!$C$6,'(5)생산비용'!$J$4:$J$1048576,N30)) ->  | Q30: =IF('(6)판매비와관리비 등'!$C30="","",'(6)판매비와관리비 등'!$C30) ->  | R30: =IF(SUMIFS('(6)판매비와관리비 등'!$L$4:$L$1048576,'(6)판매비와관리비 등'!$I$4:$I$1048576,'(1)고정자산'!$C$6,'(6)판매비와관리비 등'!$J$4:$J$1048576,Q30)=0,"",SUMIFS('(6)판매비와관리비 등'!$L$4:$L$1048576,'(6)판매비와관리비 등'!$I$4:$I$1048576,'(1)고정자산'!$C$6,'(6)판매비와관리비 등'!$J$4:$J$1048576,Q30)) ->  | W30: =IF('(5)생산비용'!$C30="","",'(5)생산비용'!$C30) ->  | X30: =IF(SUMIFS('(5)생산비용'!$L$4:$L$1048576,'(5)생산비용'!$I$4:$I$1048576,'(1)고정자산'!$C$7,'(5)생산비용'!$J$4:$J$1048576,W30)=0,"",SUMIFS('(5)생산비용'!$L$4:$L$1048576,'(5)생산비용'!$I$4:$I$1048576,'(1)고정자산'!$C$7,'(5)생산비용'!$J$4:$J$1048576,W30)) ->  | Z30: =IF('(6)판매비와관리비 등'!$C30="","",'(6)판매비와관리비 등'!$C30) ->  | AA30: =IF(SUMIFS('(6)판매비와관리비 등'!$L$4:$L$1048576,'(6)판매비와관리비 등'!$I$4:$I$1048576,'(1)고정자산'!$C$7,'(6)판매비와관리비 등'!$J$4:$J$1048576,Z30)=0,"",SUMIFS('(6)판매비와관리비 등'!$L$4:$L$1048576,'(6)판매비와관리비 등'!$I$4:$I$1048576,'(1)고정자산'!$C$7,'(6)판매비와관리비 등'!$J$4:$J$1048576,Z30)) ->  | AF30: =IF('(5)생산비용'!$C30="","",'(5)생산비용'!$C30) ->  | AG30: =IF(SUMIFS('(5)생산비용'!$L$4:$L$1048576,'(5)생산비용'!$I$4:$I$1048576,'(1)고정자산'!$C$8,'(5)생산비용'!$J$4:$J$1048576,AF30)=0,"",SUMIFS('(5)생산비용'!$L$4:$L$1048576,'(5)생산비용'!$I$4:$I$1048576,'(1)고정자산'!$C$8,'(5)생산비용'!$J$4:$J$1048576,AF30)) ->  | AI30: =IF('(6)판매비와관리비 등'!$C30="","",'(6)판매비와관리비 등'!$C30) ->  | AJ30: =IF(SUMIFS('(6)판매비와관리비 등'!$L$4:$L$1048576,'(6)판매비와관리비 등'!$I$4:$I$1048576,'(1)고정자산'!$C$8,'(6)판매비와관리비 등'!$J$4:$J$1048576,AI30)=0,"",SUMIFS('(6)판매비와관리비 등'!$L$4:$L$1048576,'(6)판매비와관리비 등'!$I$4:$I$1048576,'(1)고정자산'!$C$8,'(6)판매비와관리비 등'!$J$4:$J$1048576,AI30)) ->  | AO30: =IF('(5)생산비용'!$C30="","",'(5)생산비용'!$C30) ->  | AP30: =IF(SUMIFS('(5)생산비용'!$L$4:$L$1048576,'(5)생산비용'!$I$4:$I$1048576,'(1)고정자산'!$C$9,'(5)생산비용'!$J$4:$J$1048576,AO30)=0,"",SUMIFS('(5)생산비용'!$L$4:$L$1048576,'(5)생산비용'!$I$4:$I$1048576,'(1)고정자산'!$C$9,'(5)생산비용'!$J$4:$J$1048576,AO30)) ->  | AR30: =IF('(6)판매비와관리비 등'!$C30="","",'(6)판매비와관리비 등'!$C30) ->  | AS30: =IF(SUMIFS('(6)판매비와관리비 등'!$L$4:$L$1048576,'(6)판매비와관리비 등'!$I$4:$I$1048576,'(1)고정자산'!$C$9,'(6)판매비와관리비 등'!$J$4:$J$1048576,AR30)=0,"",SUMIFS('(6)판매비와관리비 등'!$L$4:$L$1048576,'(6)판매비와관리비 등'!$I$4:$I$1048576,'(1)고정자산'!$C$9,'(6)판매비와관리비 등'!$J$4:$J$1048576,AR30)) -> 
E31: =IF('(5)생산비용'!$C31="","",'(5)생산비용'!$C31) ->  | F31: =IF(SUMIFS('(5)생산비용'!$L$4:$L$1048576,'(5)생산비용'!$J$4:$J$1048576,E31)=0,"",SUMIFS('(5)생산비용'!$L$4:$L$1048576,'(5)생산비용'!$J$4:$J$1048576,E31)) ->  | H31: =IF('(6)판매비와관리비 등'!$C31="","",'(6)판매비와관리비 등'!$C31) ->  | I31: =IF(SUMIFS('(6)판매비와관리비 등'!$L$4:$L$1048576,'(6)판매비와관리비 등'!$J$4:$J$1048576,H31)=0,"",SUMIFS('(6)판매비와관리비 등'!$L$4:$L$1048576,'(6)판매비와관리비 등'!$J$4:$J$1048576,H31)) ->  | N31: =IF('(5)생산비용'!$C31="","",'(5)생산비용'!$C31) ->  | O31: =IF(SUMIFS('(5)생산비용'!$L$4:$L$1048576,'(5)생산비용'!$I$4:$I$1048576,'(1)고정자산'!$C$6,'(5)생산비용'!$J$4:$J$1048576,N31)=0,"",SUMIFS('(5)생산비용'!$L$4:$L$1048576,'(5)생산비용'!$I$4:$I$1048576,'(1)고정자산'!$C$6,'(5)생산비용'!$J$4:$J$1048576,N31)) ->  | Q31: =IF('(6)판매비와관리비 등'!$C31="","",'(6)판매비와관리비 등'!$C31) ->  | R31: =IF(SUMIFS('(6)판매비와관리비 등'!$L$4:$L$1048576,'(6)판매비와관리비 등'!$I$4:$I$1048576,'(1)고정자산'!$C$6,'(6)판매비와관리비 등'!$J$4:$J$1048576,Q31)=0,"",SUMIFS('(6)판매비와관리비 등'!$L$4:$L$1048576,'(6)판매비와관리비 등'!$I$4:$I$1048576,'(1)고정자산'!$C$6,'(6)판매비와관리비 등'!$J$4:$J$1048576,Q31)) ->  | W31: =IF('(5)생산비용'!$C31="","",'(5)생산비용'!$C31) ->  | X31: =IF(SUMIFS('(5)생산비용'!$L$4:$L$1048576,'(5)생산비용'!$I$4:$I$1048576,'(1)고정자산'!$C$7,'(5)생산비용'!$J$4:$J$1048576,W31)=0,"",SUMIFS('(5)생산비용'!$L$4:$L$1048576,'(5)생산비용'!$I$4:$I$1048576,'(1)고정자산'!$C$7,'(5)생산비용'!$J$4:$J$1048576,W31)) ->  | Z31: =IF('(6)판매비와관리비 등'!$C31="","",'(6)판매비와관리비 등'!$C31) ->  | AA31: =IF(SUMIFS('(6)판매비와관리비 등'!$L$4:$L$1048576,'(6)판매비와관리비 등'!$I$4:$I$1048576,'(1)고정자산'!$C$7,'(6)판매비와관리비 등'!$J$4:$J$1048576,Z31)=0,"",SUMIFS('(6)판매비와관리비 등'!$L$4:$L$1048576,'(6)판매비와관리비 등'!$I$4:$I$1048576,'(1)고정자산'!$C$7,'(6)판매비와관리비 등'!$J$4:$J$1048576,Z31)) ->  | AF31: =IF('(5)생산비용'!$C31="","",'(5)생산비용'!$C31) ->  | AG31: =IF(SUMIFS('(5)생산비용'!$L$4:$L$1048576,'(5)생산비용'!$I$4:$I$1048576,'(1)고정자산'!$C$8,'(5)생산비용'!$J$4:$J$1048576,AF31)=0,"",SUMIFS('(5)생산비용'!$L$4:$L$1048576,'(5)생산비용'!$I$4:$I$1048576,'(1)고정자산'!$C$8,'(5)생산비용'!$J$4:$J$1048576,AF31)) ->  | AI31: =IF('(6)판매비와관리비 등'!$C31="","",'(6)판매비와관리비 등'!$C31) ->  | AJ31: =IF(SUMIFS('(6)판매비와관리비 등'!$L$4:$L$1048576,'(6)판매비와관리비 등'!$I$4:$I$1048576,'(1)고정자산'!$C$8,'(6)판매비와관리비 등'!$J$4:$J$1048576,AI31)=0,"",SUMIFS('(6)판매비와관리비 등'!$L$4:$L$1048576,'(6)판매비와관리비 등'!$I$4:$I$1048576,'(1)고정자산'!$C$8,'(6)판매비와관리비 등'!$J$4:$J$1048576,AI31)) ->  | AO31: =IF('(5)생산비용'!$C31="","",'(5)생산비용'!$C31) ->  | AP31: =IF(SUMIFS('(5)생산비용'!$L$4:$L$1048576,'(5)생산비용'!$I$4:$I$1048576,'(1)고정자산'!$C$9,'(5)생산비용'!$J$4:$J$1048576,AO31)=0,"",SUMIFS('(5)생산비용'!$L$4:$L$1048576,'(5)생산비용'!$I$4:$I$1048576,'(1)고정자산'!$C$9,'(5)생산비용'!$J$4:$J$1048576,AO31)) ->  | AR31: =IF('(6)판매비와관리비 등'!$C31="","",'(6)판매비와관리비 등'!$C31) ->  | AS31: =IF(SUMIFS('(6)판매비와관리비 등'!$L$4:$L$1048576,'(6)판매비와관리비 등'!$I$4:$I$1048576,'(1)고정자산'!$C$9,'(6)판매비와관리비 등'!$J$4:$J$1048576,AR31)=0,"",SUMIFS('(6)판매비와관리비 등'!$L$4:$L$1048576,'(6)판매비와관리비 등'!$I$4:$I$1048576,'(1)고정자산'!$C$9,'(6)판매비와관리비 등'!$J$4:$J$1048576,AR31)) -> 
E32: =IF('(5)생산비용'!$C32="","",'(5)생산비용'!$C32) ->  | F32: =IF(SUMIFS('(5)생산비용'!$L$4:$L$1048576,'(5)생산비용'!$J$4:$J$1048576,E32)=0,"",SUMIFS('(5)생산비용'!$L$4:$L$1048576,'(5)생산비용'!$J$4:$J$1048576,E32)) ->  | H32: =IF('(6)판매비와관리비 등'!$C32="","",'(6)판매비와관리비 등'!$C32) ->  | I32: =IF(SUMIFS('(6)판매비와관리비 등'!$L$4:$L$1048576,'(6)판매비와관리비 등'!$J$4:$J$1048576,H32)=0,"",SUMIFS('(6)판매비와관리비 등'!$L$4:$L$1048576,'(6)판매비와관리비 등'!$J$4:$J$1048576,H32)) ->  | N32: =IF('(5)생산비용'!$C32="","",'(5)생산비용'!$C32) ->  | O32: =IF(SUMIFS('(5)생산비용'!$L$4:$L$1048576,'(5)생산비용'!$I$4:$I$1048576,'(1)고정자산'!$C$6,'(5)생산비용'!$J$4:$J$1048576,N32)=0,"",SUMIFS('(5)생산비용'!$L$4:$L$1048576,'(5)생산비용'!$I$4:$I$1048576,'(1)고정자산'!$C$6,'(5)생산비용'!$J$4:$J$1048576,N32)) ->  | Q32: =IF('(6)판매비와관리비 등'!$C32="","",'(6)판매비와관리비 등'!$C32) ->  | R32: =IF(SUMIFS('(6)판매비와관리비 등'!$L$4:$L$1048576,'(6)판매비와관리비 등'!$I$4:$I$1048576,'(1)고정자산'!$C$6,'(6)판매비와관리비 등'!$J$4:$J$1048576,Q32)=0,"",SUMIFS('(6)판매비와관리비 등'!$L$4:$L$1048576,'(6)판매비와관리비 등'!$I$4:$I$1048576,'(1)고정자산'!$C$6,'(6)판매비와관리비 등'!$J$4:$J$1048576,Q32)) ->  | W32: =IF('(5)생산비용'!$C32="","",'(5)생산비용'!$C32) ->  | X32: =IF(SUMIFS('(5)생산비용'!$L$4:$L$1048576,'(5)생산비용'!$I$4:$I$1048576,'(1)고정자산'!$C$7,'(5)생산비용'!$J$4:$J$1048576,W32)=0,"",SUMIFS('(5)생산비용'!$L$4:$L$1048576,'(5)생산비용'!$I$4:$I$1048576,'(1)고정자산'!$C$7,'(5)생산비용'!$J$4:$J$1048576,W32)) ->  | Z32: =IF('(6)판매비와관리비 등'!$C32="","",'(6)판매비와관리비 등'!$C32) ->  | AA32: =IF(SUMIFS('(6)판매비와관리비 등'!$L$4:$L$1048576,'(6)판매비와관리비 등'!$I$4:$I$1048576,'(1)고정자산'!$C$7,'(6)판매비와관리비 등'!$J$4:$J$1048576,Z32)=0,"",SUMIFS('(6)판매비와관리비 등'!$L$4:$L$1048576,'(6)판매비와관리비 등'!$I$4:$I$1048576,'(1)고정자산'!$C$7,'(6)판매비와관리비 등'!$J$4:$J$1048576,Z32)) ->  | AF32: =IF('(5)생산비용'!$C32="","",'(5)생산비용'!$C32) ->  | AG32: =IF(SUMIFS('(5)생산비용'!$L$4:$L$1048576,'(5)생산비용'!$I$4:$I$1048576,'(1)고정자산'!$C$8,'(5)생산비용'!$J$4:$J$1048576,AF32)=0,"",SUMIFS('(5)생산비용'!$L$4:$L$1048576,'(5)생산비용'!$I$4:$I$1048576,'(1)고정자산'!$C$8,'(5)생산비용'!$J$4:$J$1048576,AF32)) ->  | AI32: =IF('(6)판매비와관리비 등'!$C32="","",'(6)판매비와관리비 등'!$C32) ->  | AJ32: =IF(SUMIFS('(6)판매비와관리비 등'!$L$4:$L$1048576,'(6)판매비와관리비 등'!$I$4:$I$1048576,'(1)고정자산'!$C$8,'(6)판매비와관리비 등'!$J$4:$J$1048576,AI32)=0,"",SUMIFS('(6)판매비와관리비 등'!$L$4:$L$1048576,'(6)판매비와관리비 등'!$I$4:$I$1048576,'(1)고정자산'!$C$8,'(6)판매비와관리비 등'!$J$4:$J$1048576,AI32)) ->  | AO32: =IF('(5)생산비용'!$C32="","",'(5)생산비용'!$C32) ->  | AP32: =IF(SUMIFS('(5)생산비용'!$L$4:$L$1048576,'(5)생산비용'!$I$4:$I$1048576,'(1)고정자산'!$C$9,'(5)생산비용'!$J$4:$J$1048576,AO32)=0,"",SUMIFS('(5)생산비용'!$L$4:$L$1048576,'(5)생산비용'!$I$4:$I$1048576,'(1)고정자산'!$C$9,'(5)생산비용'!$J$4:$J$1048576,AO32)) ->  | AR32: =IF('(6)판매비와관리비 등'!$C32="","",'(6)판매비와관리비 등'!$C32) ->  | AS32: =IF(SUMIFS('(6)판매비와관리비 등'!$L$4:$L$1048576,'(6)판매비와관리비 등'!$I$4:$I$1048576,'(1)고정자산'!$C$9,'(6)판매비와관리비 등'!$J$4:$J$1048576,AR32)=0,"",SUMIFS('(6)판매비와관리비 등'!$L$4:$L$1048576,'(6)판매비와관리비 등'!$I$4:$I$1048576,'(1)고정자산'!$C$9,'(6)판매비와관리비 등'!$J$4:$J$1048576,AR32)) -> 
E33: =IF('(5)생산비용'!$C33="","",'(5)생산비용'!$C33) ->  | F33: =IF(SUMIFS('(5)생산비용'!$L$4:$L$1048576,'(5)생산비용'!$J$4:$J$1048576,E33)=0,"",SUMIFS('(5)생산비용'!$L$4:$L$1048576,'(5)생산비용'!$J$4:$J$1048576,E33)) ->  | H33: 합계 | I33: =SUM(I5:I32) -> 800000 | N33: =IF('(5)생산비용'!$C33="","",'(5)생산비용'!$C33) ->  | O33: =IF(SUMIFS('(5)생산비용'!$L$4:$L$1048576,'(5)생산비용'!$I$4:$I$1048576,'(1)고정자산'!$C$6,'(5)생산비용'!$J$4:$J$1048576,N33)=0,"",SUMIFS('(5)생산비용'!$L$4:$L$1048576,'(5)생산비용'!$I$4:$I$1048576,'(1)고정자산'!$C$6,'(5)생산비용'!$J$4:$J$1048576,N33)) ->  | Q33: 합계 | R33: =SUM(R5:R32) -> 300000 | W33: =IF('(5)생산비용'!$C33="","",'(5)생산비용'!$C33) ->  | X33: =IF(SUMIFS('(5)생산비용'!$L$4:$L$1048576,'(5)생산비용'!$I$4:$I$1048576,'(1)고정자산'!$C$7,'(5)생산비용'!$J$4:$J$1048576,W33)=0,"",SUMIFS('(5)생산비용'!$L$4:$L$1048576,'(5)생산비용'!$I$4:$I$1048576,'(1)고정자산'!$C$7,'(5)생산비용'!$J$4:$J$1048576,W33)) ->  | Z33: 합계 | AA33: =SUM(AA5:AA32) -> 200000 | AF33: =IF('(5)생산비용'!$C33="","",'(5)생산비용'!$C33) ->  | AG33: =IF(SUMIFS('(5)생산비용'!$L$4:$L$1048576,'(5)생산비용'!$I$4:$I$1048576,'(1)고정자산'!$C$8,'(5)생산비용'!$J$4:$J$1048576,AF33)=0,"",SUMIFS('(5)생산비용'!$L$4:$L$1048576,'(5)생산비용'!$I$4:$I$1048576,'(1)고정자산'!$C$8,'(5)생산비용'!$J$4:$J$1048576,AF33)) ->  | AI33: 합계 | AJ33: =SUM(AJ5:AJ32) -> 200000 | AO33: =IF('(5)생산비용'!$C33="","",'(5)생산비용'!$C33) ->  | AP33: =IF(SUMIFS('(5)생산비용'!$L$4:$L$1048576,'(5)생산비용'!$I$4:$I$1048576,'(1)고정자산'!$C$9,'(5)생산비용'!$J$4:$J$1048576,AO33)=0,"",SUMIFS('(5)생산비용'!$L$4:$L$1048576,'(5)생산비용'!$I$4:$I$1048576,'(1)고정자산'!$C$9,'(5)생산비용'!$J$4:$J$1048576,AO33)) ->  | AR33: 합계 | AS33: =SUM(AS5:AS32) -> 100000
E34: =IF('(5)생산비용'!$C34="","",'(5)생산비용'!$C34) ->  | F34: =IF(SUMIFS('(5)생산비용'!$L$4:$L$1048576,'(5)생산비용'!$J$4:$J$1048576,E34)=0,"",SUMIFS('(5)생산비용'!$L$4:$L$1048576,'(5)생산비용'!$J$4:$J$1048576,E34)) ->  | N34: =IF('(5)생산비용'!$C34="","",'(5)생산비용'!$C34) ->  | O34: =IF(SUMIFS('(5)생산비용'!$L$4:$L$1048576,'(5)생산비용'!$I$4:$I$1048576,'(1)고정자산'!$C$6,'(5)생산비용'!$J$4:$J$1048576,N34)=0,"",SUMIFS('(5)생산비용'!$L$4:$L$1048576,'(5)생산비용'!$I$4:$I$1048576,'(1)고정자산'!$C$6,'(5)생산비용'!$J$4:$J$1048576,N34)) ->  | W34: =IF('(5)생산비용'!$C34="","",'(5)생산비용'!$C34) ->  | X34: =IF(SUMIFS('(5)생산비용'!$L$4:$L$1048576,'(5)생산비용'!$I$4:$I$1048576,'(1)고정자산'!$C$7,'(5)생산비용'!$J$4:$J$1048576,W34)=0,"",SUMIFS('(5)생산비용'!$L$4:$L$1048576,'(5)생산비용'!$I$4:$I$1048576,'(1)고정자산'!$C$7,'(5)생산비용'!$J$4:$J$1048576,W34)) ->  | AF34: =IF('(5)생산비용'!$C34="","",'(5)생산비용'!$C34) ->  | AG34: =IF(SUMIFS('(5)생산비용'!$L$4:$L$1048576,'(5)생산비용'!$I$4:$I$1048576,'(1)고정자산'!$C$8,'(5)생산비용'!$J$4:$J$1048576,AF34)=0,"",SUMIFS('(5)생산비용'!$L$4:$L$1048576,'(5)생산비용'!$I$4:$I$1048576,'(1)고정자산'!$C$8,'(5)생산비용'!$J$4:$J$1048576,AF34)) ->  | AO34: =IF('(5)생산비용'!$C34="","",'(5)생산비용'!$C34) ->  | AP34: =IF(SUMIFS('(5)생산비용'!$L$4:$L$1048576,'(5)생산비용'!$I$4:$I$1048576,'(1)고정자산'!$C$9,'(5)생산비용'!$J$4:$J$1048576,AO34)=0,"",SUMIFS('(5)생산비용'!$L$4:$L$1048576,'(5)생산비용'!$I$4:$I$1048576,'(1)고정자산'!$C$9,'(5)생산비용'!$J$4:$J$1048576,AO34)) -> 
E35: =IF('(5)생산비용'!$C35="","",'(5)생산비용'!$C35) ->  | F35: =IF(SUMIFS('(5)생산비용'!$L$4:$L$1048576,'(5)생산비용'!$J$4:$J$1048576,E35)=0,"",SUMIFS('(5)생산비용'!$L$4:$L$1048576,'(5)생산비용'!$J$4:$J$1048576,E35)) ->  | N35: =IF('(5)생산비용'!$C35="","",'(5)생산비용'!$C35) ->  | O35: =IF(SUMIFS('(5)생산비용'!$L$4:$L$1048576,'(5)생산비용'!$I$4:$I$1048576,'(1)고정자산'!$C$6,'(5)생산비용'!$J$4:$J$1048576,N35)=0,"",SUMIFS('(5)생산비용'!$L$4:$L$1048576,'(5)생산비용'!$I$4:$I$1048576,'(1)고정자산'!$C$6,'(5)생산비용'!$J$4:$J$1048576,N35)) ->  | W35: =IF('(5)생산비용'!$C35="","",'(5)생산비용'!$C35) ->  | X35: =IF(SUMIFS('(5)생산비용'!$L$4:$L$1048576,'(5)생산비용'!$I$4:$I$1048576,'(1)고정자산'!$C$7,'(5)생산비용'!$J$4:$J$1048576,W35)=0,"",SUMIFS('(5)생산비용'!$L$4:$L$1048576,'(5)생산비용'!$I$4:$I$1048576,'(1)고정자산'!$C$7,'(5)생산비용'!$J$4:$J$1048576,W35)) ->  | AF35: =IF('(5)생산비용'!$C35="","",'(5)생산비용'!$C35) ->  | AG35: =IF(SUMIFS('(5)생산비용'!$L$4:$L$1048576,'(5)생산비용'!$I$4:$I$1048576,'(1)고정자산'!$C$8,'(5)생산비용'!$J$4:$J$1048576,AF35)=0,"",SUMIFS('(5)생산비용'!$L$4:$L$1048576,'(5)생산비용'!$I$4:$I$1048576,'(1)고정자산'!$C$8,'(5)생산비용'!$J$4:$J$1048576,AF35)) ->  | AO35: =IF('(5)생산비용'!$C35="","",'(5)생산비용'!$C35) ->  | AP35: =IF(SUMIFS('(5)생산비용'!$L$4:$L$1048576,'(5)생산비용'!$I$4:$I$1048576,'(1)고정자산'!$C$9,'(5)생산비용'!$J$4:$J$1048576,AO35)=0,"",SUMIFS('(5)생산비용'!$L$4:$L$1048576,'(5)생산비용'!$I$4:$I$1048576,'(1)고정자산'!$C$9,'(5)생산비용'!$J$4:$J$1048576,AO35)) -> 
E36: =IF('(5)생산비용'!$C36="","",'(5)생산비용'!$C36) ->  | F36: =IF(SUMIFS('(5)생산비용'!$L$4:$L$1048576,'(5)생산비용'!$J$4:$J$1048576,E36)=0,"",SUMIFS('(5)생산비용'!$L$4:$L$1048576,'(5)생산비용'!$J$4:$J$1048576,E36)) ->  | N36: =IF('(5)생산비용'!$C36="","",'(5)생산비용'!$C36) ->  | O36: =IF(SUMIFS('(5)생산비용'!$L$4:$L$1048576,'(5)생산비용'!$I$4:$I$1048576,'(1)고정자산'!$C$6,'(5)생산비용'!$J$4:$J$1048576,N36)=0,"",SUMIFS('(5)생산비용'!$L$4:$L$1048576,'(5)생산비용'!$I$4:$I$1048576,'(1)고정자산'!$C$6,'(5)생산비용'!$J$4:$J$1048576,N36)) ->  | W36: =IF('(5)생산비용'!$C36="","",'(5)생산비용'!$C36) ->  | X36: =IF(SUMIFS('(5)생산비용'!$L$4:$L$1048576,'(5)생산비용'!$I$4:$I$1048576,'(1)고정자산'!$C$7,'(5)생산비용'!$J$4:$J$1048576,W36)=0,"",SUMIFS('(5)생산비용'!$L$4:$L$1048576,'(5)생산비용'!$I$4:$I$1048576,'(1)고정자산'!$C$7,'(5)생산비용'!$J$4:$J$1048576,W36)) ->  | AF36: =IF('(5)생산비용'!$C36="","",'(5)생산비용'!$C36) ->  | AG36: =IF(SUMIFS('(5)생산비용'!$L$4:$L$1048576,'(5)생산비용'!$I$4:$I$1048576,'(1)고정자산'!$C$8,'(5)생산비용'!$J$4:$J$1048576,AF36)=0,"",SUMIFS('(5)생산비용'!$L$4:$L$1048576,'(5)생산비용'!$I$4:$I$1048576,'(1)고정자산'!$C$8,'(5)생산비용'!$J$4:$J$1048576,AF36)) ->  | AO36: =IF('(5)생산비용'!$C36="","",'(5)생산비용'!$C36) ->  | AP36: =IF(SUMIFS('(5)생산비용'!$L$4:$L$1048576,'(5)생산비용'!$I$4:$I$1048576,'(1)고정자산'!$C$9,'(5)생산비용'!$J$4:$J$1048576,AO36)=0,"",SUMIFS('(5)생산비용'!$L$4:$L$1048576,'(5)생산비용'!$I$4:$I$1048576,'(1)고정자산'!$C$9,'(5)생산비용'!$J$4:$J$1048576,AO36)) -> 
E37: =IF('(5)생산비용'!$C37="","",'(5)생산비용'!$C37) ->  | F37: =IF(SUMIFS('(5)생산비용'!$L$4:$L$1048576,'(5)생산비용'!$J$4:$J$1048576,E37)=0,"",SUMIFS('(5)생산비용'!$L$4:$L$1048576,'(5)생산비용'!$J$4:$J$1048576,E37)) ->  | N37: =IF('(5)생산비용'!$C37="","",'(5)생산비용'!$C37) ->  | O37: =IF(SUMIFS('(5)생산비용'!$L$4:$L$1048576,'(5)생산비용'!$I$4:$I$1048576,'(1)고정자산'!$C$6,'(5)생산비용'!$J$4:$J$1048576,N37)=0,"",SUMIFS('(5)생산비용'!$L$4:$L$1048576,'(5)생산비용'!$I$4:$I$1048576,'(1)고정자산'!$C$6,'(5)생산비용'!$J$4:$J$1048576,N37)) ->  | W37: =IF('(5)생산비용'!$C37="","",'(5)생산비용'!$C37) ->  | X37: =IF(SUMIFS('(5)생산비용'!$L$4:$L$1048576,'(5)생산비용'!$I$4:$I$1048576,'(1)고정자산'!$C$7,'(5)생산비용'!$J$4:$J$1048576,W37)=0,"",SUMIFS('(5)생산비용'!$L$4:$L$1048576,'(5)생산비용'!$I$4:$I$1048576,'(1)고정자산'!$C$7,'(5)생산비용'!$J$4:$J$1048576,W37)) ->  | AF37: =IF('(5)생산비용'!$C37="","",'(5)생산비용'!$C37) ->  | AG37: =IF(SUMIFS('(5)생산비용'!$L$4:$L$1048576,'(5)생산비용'!$I$4:$I$1048576,'(1)고정자산'!$C$8,'(5)생산비용'!$J$4:$J$1048576,AF37)=0,"",SUMIFS('(5)생산비용'!$L$4:$L$1048576,'(5)생산비용'!$I$4:$I$1048576,'(1)고정자산'!$C$8,'(5)생산비용'!$J$4:$J$1048576,AF37)) ->  | AO37: =IF('(5)생산비용'!$C37="","",'(5)생산비용'!$C37) ->  | AP37: =IF(SUMIFS('(5)생산비용'!$L$4:$L$1048576,'(5)생산비용'!$I$4:$I$1048576,'(1)고정자산'!$C$9,'(5)생산비용'!$J$4:$J$1048576,AO37)=0,"",SUMIFS('(5)생산비용'!$L$4:$L$1048576,'(5)생산비용'!$I$4:$I$1048576,'(1)고정자산'!$C$9,'(5)생산비용'!$J$4:$J$1048576,AO37)) -> 
E38: =IF('(5)생산비용'!$C38="","",'(5)생산비용'!$C38) ->  | F38: =IF(SUMIFS('(5)생산비용'!$L$4:$L$1048576,'(5)생산비용'!$J$4:$J$1048576,E38)=0,"",SUMIFS('(5)생산비용'!$L$4:$L$1048576,'(5)생산비용'!$J$4:$J$1048576,E38)) ->  | N38: =IF('(5)생산비용'!$C38="","",'(5)생산비용'!$C38) ->  | O38: =IF(SUMIFS('(5)생산비용'!$L$4:$L$1048576,'(5)생산비용'!$I$4:$I$1048576,'(1)고정자산'!$C$6,'(5)생산비용'!$J$4:$J$1048576,N38)=0,"",SUMIFS('(5)생산비용'!$L$4:$L$1048576,'(5)생산비용'!$I$4:$I$1048576,'(1)고정자산'!$C$6,'(5)생산비용'!$J$4:$J$1048576,N38)) ->  | W38: =IF('(5)생산비용'!$C38="","",'(5)생산비용'!$C38) ->  | X38: =IF(SUMIFS('(5)생산비용'!$L$4:$L$1048576,'(5)생산비용'!$I$4:$I$1048576,'(1)고정자산'!$C$7,'(5)생산비용'!$J$4:$J$1048576,W38)=0,"",SUMIFS('(5)생산비용'!$L$4:$L$1048576,'(5)생산비용'!$I$4:$I$1048576,'(1)고정자산'!$C$7,'(5)생산비용'!$J$4:$J$1048576,W38)) ->  | AF38: =IF('(5)생산비용'!$C38="","",'(5)생산비용'!$C38) ->  | AG38: =IF(SUMIFS('(5)생산비용'!$L$4:$L$1048576,'(5)생산비용'!$I$4:$I$1048576,'(1)고정자산'!$C$8,'(5)생산비용'!$J$4:$J$1048576,AF38)=0,"",SUMIFS('(5)생산비용'!$L$4:$L$1048576,'(5)생산비용'!$I$4:$I$1048576,'(1)고정자산'!$C$8,'(5)생산비용'!$J$4:$J$1048576,AF38)) ->  | AO38: =IF('(5)생산비용'!$C38="","",'(5)생산비용'!$C38) ->  | AP38: =IF(SUMIFS('(5)생산비용'!$L$4:$L$1048576,'(5)생산비용'!$I$4:$I$1048576,'(1)고정자산'!$C$9,'(5)생산비용'!$J$4:$J$1048576,AO38)=0,"",SUMIFS('(5)생산비용'!$L$4:$L$1048576,'(5)생산비용'!$I$4:$I$1048576,'(1)고정자산'!$C$9,'(5)생산비용'!$J$4:$J$1048576,AO38)) -> 
E39: 합계 | F39: =SUM(F5:F38) -> 7200000 | N39: 합계 | O39: =SUM(O5:O38) -> 1200000 | W39: 합계 | X39: =SUM(X5:X38) -> 4500000 | AF39: 합계 | AG39: =SUM(AG5:AG38) -> 1000000 | AO39: 합계 | AP39: =SUM(AP5:AP38) -> 500000

Sheet (8)연말잔액
B1: 특징 1. 대차대조표 작성을 위해 연말에 통장 등의 잔액을 적어야 함
B2: 연말잔액 | P2: 증감액 (자동산출)
B4: 자산 | L4: 부채 | P4: 자산 | Z4: 부채
B6: 연말재고자산 | L6: 연말유동부채 | P6: 연말재고자산 | Z6: 연말유동부채
B7: 재고자산구분 | C7: 금액 | D7: 작목별 세부금액 | L7: 유동부채구분 | M7: 금액 | P7: 재고자산구분 | Q7: 금액 | R7: 작목별 세부금액 | Z7: 유동부채구분 | AA7: 금액
D8: =IF('(1)고정자산'!C6="","",'(1)고정자산'!C6) -> 딸기 | E8: =IF('(1)고정자산'!C7="","",'(1)고정자산'!C7) -> 수박 | F8: =IF('(1)고정자산'!C8="","",'(1)고정자산'!C8) -> 참외 | G8: =IF('(1)고정자산'!C9="","",'(1)고정자산'!C9) -> 토마토 | H8: 합계 | L8: =IF('(2)기초자산,부채'!F7="","",'(2)기초자산,부채'!F7) -> 단기차입금 | M8: 12000000 | R8: =IF('(1)고정자산'!C6="","",'(1)고정자산'!C6) -> 딸기 | S8: =IF('(1)고정자산'!C7="","",'(1)고정자산'!C7) -> 수박 | T8: =IF('(1)고정자산'!C8="","",'(1)고정자산'!C8) -> 참외 | U8: =IF('(1)고정자산'!C9="","",'(1)고정자산'!C9) -> 토마토 | V8: 합계 | Z8: =IF('(2)기초자산,부채'!F7="","",'(2)기초자산,부채'!F7) -> 단기차입금 | AA8: ='(8)연말잔액'!M8-'(2)기초자산,부채'!R6 -> 2000000
B9: =IF('(2)기초자산,부채'!C7="","",'(2)기초자산,부채'!C7) -> 종묘,종자,종균 | H9: =IF(SUM(D9:G9)=0,"",SUM(D9:G9)) ->  | L9: =IF('(2)기초자산,부채'!F8="","",'(2)기초자산,부채'!F8) -> 외상매입금 | M9: 4500000 | P9: =IF('(2)기초자산,부채'!C7="","",'(2)기초자산,부채'!C7) -> 종묘,종자,종균 | Q9: ='(8)연말잔액'!C9-'(2)기초자산,부채'!I7 -> -30000 | R9: ='(8)연말잔액'!D9-'(2)기초자산,부채'!J7 -> -30000 | S9: ='(8)연말잔액'!E9-'(2)기초자산,부채'!K7 -> 0 | T9: ='(8)연말잔액'!F9-'(2)기초자산,부채'!L7 -> 0 | U9: ='(8)연말잔액'!G9-'(2)기초자산,부채'!M7 -> 0 | V9: =SUM(R9:U9) -> -30000 | Z9: =IF('(2)기초자산,부채'!F8="","",'(2)기초자산,부채'!F8) -> 외상매입금 | AA9: ='(8)연말잔액'!M9-'(2)기초자산,부채'!R7 -> 4500000
B10: =IF('(2)기초자산,부채'!C8="","",'(2)기초자산,부채'!C8) -> 비료 | C10: 200000 | D10: 200000 | H10: =IF(SUM(D10:G10)=0,"",SUM(D10:G10)) -> 200000 | L10: =IF('(2)기초자산,부채'!F9="","",'(2)기초자산,부채'!F9) -> 미지급금 | M10: 100000 | P10: =IF('(2)기초자산,부채'!C8="","",'(2)기초자산,부채'!C8) -> 비료 | Q10: ='(8)연말잔액'!C10-'(2)기초자산,부채'!I8 -> 100000 | R10: ='(8)연말잔액'!D10-'(2)기초자산,부채'!J8 -> 100000 | S10: ='(8)연말잔액'!E10-'(2)기초자산,부채'!K8 -> 0 | T10: ='(8)연말잔액'!F10-'(2)기초자산,부채'!L8 -> 0 | U10: ='(8)연말잔액'!G10-'(2)기초자산,부채'!M8 -> 0 | V10: =SUM(R10:U10) -> 100000 | Z10: =IF('(2)기초자산,부채'!F9="","",'(2)기초자산,부채'!F9) -> 미지급금 | AA10: ='(8)연말잔액'!M10-'(2)기초자산,부채'!R8 -> 100000
B11: =IF('(2)기초자산,부채'!C9="","",'(2)기초자산,부채'!C9) -> 농약 | L11: =IF('(2)기초자산,부채'!F10="","",'(2)기초자산,부채'!F10) -> 미지급비용 | P11: =IF('(2)기초자산,부채'!C9="","",'(2)기초자산,부채'!C9) -> 농약 | Q11: ='(8)연말잔액'!C11-'(2)기초자산,부채'!I9 -> -80000 | R11: ='(8)연말잔액'!D11-'(2)기초자산,부채'!J9 -> -80000 | S11: ='(8)연말잔액'!E11-'(2)기초자산,부채'!K9 -> 0 | T11: ='(8)연말잔액'!F11-'(2)기초자산,부채'!L9 -> 0 | U11: ='(8)연말잔액'!G11-'(2)기초자산,부채'!M9 -> 0 | V11: -80000 | Z11: =IF('(2)기초자산,부채'!F10="","",'(2)기초자산,부채'!F10) -> 미지급비용 | AA11: ='(8)연말잔액'!M11-'(2)기초자산,부채'!R9 -> 0
B12: =IF('(2)기초자산,부채'!C10="","",'(2)기초자산,부채'!C10) -> 사료 | L12: =IF('(2)기초자산,부채'!F11="","",'(2)기초자산,부채'!F11) -> 예수금 | P12: =IF('(2)기초자산,부채'!C10="","",'(2)기초자산,부채'!C10) -> 사료 | Q12: ='(8)연말잔액'!C12-'(2)기초자산,부채'!I10 -> 0 | R12: ='(8)연말잔액'!D12-'(2)기초자산,부채'!J10 -> 0 | S12: ='(8)연말잔액'!E12-'(2)기초자산,부채'!K10 -> 0 | T12: ='(8)연말잔액'!F12-'(2)기초자산,부채'!L10 -> 0 | U12: ='(8)연말잔액'!G12-'(2)기초자산,부채'!M10 -> 0 | V12: 0 | Z12: =IF('(2)기초자산,부채'!F11="","",'(2)기초자산,부채'!F11) -> 예수금 | AA12: ='(8)연말잔액'!M12-'(2)기초자산,부채'!R10 -> 0
B13: =IF('(2)기초자산,부채'!C11="","",'(2)기초자산,부채'!C11) -> 약품 | L13: =IF('(2)기초자산,부채'!F12="","",'(2)기초자산,부채'!F12) -> 선수금 | P13: =IF('(2)기초자산,부채'!C11="","",'(2)기초자산,부채'!C11) -> 약품 | Q13: ='(8)연말잔액'!C13-'(2)기초자산,부채'!I11 -> 0 | R13: ='(8)연말잔액'!D13-'(2)기초자산,부채'!J11 -> 0 | S13: ='(8)연말잔액'!E13-'(2)기초자산,부채'!K11 -> 0 | T13: ='(8)연말잔액'!F13-'(2)기초자산,부채'!L11 -> 0 | U13: ='(8)연말잔액'!G13-'(2)기초자산,부채'!M11 -> 0 | V13: 0 | Z13: =IF('(2)기초자산,부채'!F12="","",'(2)기초자산,부채'!F12) -> 선수금 | AA13: ='(8)연말잔액'!M13-'(2)기초자산,부채'!R11 -> 0
B14: =IF('(2)기초자산,부채'!C12="","",'(2)기초자산,부채'!C12) -> 기타재료 | L14: =IF('(2)기초자산,부채'!F13="","",'(2)기초자산,부채'!F13) -> 선수수익 | P14: =IF('(2)기초자산,부채'!C12="","",'(2)기초자산,부채'!C12) -> 기타재료 | Q14: ='(8)연말잔액'!C14-'(2)기초자산,부채'!I12 -> 0 | R14: ='(8)연말잔액'!D14-'(2)기초자산,부채'!J12 -> 0 | S14: ='(8)연말잔액'!E14-'(2)기초자산,부채'!K12 -> 0 | T14: ='(8)연말잔액'!F14-'(2)기초자산,부채'!L12 -> 0 | U14: ='(8)연말잔액'!G14-'(2)기초자산,부채'!M12 -> 0 | V14: 0 | Z14: =IF('(2)기초자산,부채'!F13="","",'(2)기초자산,부채'!F13) -> 선수수익 | AA14: ='(8)연말잔액'!M14-'(2)기초자산,부채'!R12 -> 0
B15: =IF('(2)기초자산,부채'!C13="","",'(2)기초자산,부채'!C13) ->  | L15: =IF('(2)기초자산,부채'!F14="","",'(2)기초자산,부채'!F14) ->  | P15: =IF('(2)기초자산,부채'!C13="","",'(2)기초자산,부채'!C13) ->  | Q15: ='(8)연말잔액'!C15-'(2)기초자산,부채'!I13 -> 0 | R15: ='(8)연말잔액'!D15-'(2)기초자산,부채'!J13 -> 0 | S15: ='(8)연말잔액'!E15-'(2)기초자산,부채'!K13 -> 0 | T15: ='(8)연말잔액'!F15-'(2)기초자산,부채'!L13 -> 0 | U15: ='(8)연말잔액'!G15-'(2)기초자산,부채'!M13 -> 0 | V15: 0 | Z15: =IF('(2)기초자산,부채'!F14="","",'(2)기초자산,부채'!F14) ->  | AA15: ='(8)연말잔액'!M15-'(2)기초자산,부채'!R13 -> 0
B16: =IF('(2)기초자산,부채'!C14="","",'(2)기초자산,부채'!C14) ->  | L16: =IF('(2)기초자산,부채'!F15="","",'(2)기초자산,부채'!F15) ->  | P16: =IF('(2)기초자산,부채'!C14="","",'(2)기초자산,부채'!C14) ->  | Q16: ='(8)연말잔액'!C16-'(2)기초자산,부채'!I14 -> 0 | R16: ='(8)연말잔액'!D16-'(2)기초자산,부채'!J14 -> 0 | S16: ='(8)연말잔액'!E16-'(2)기초자산,부채'!K14 -> 0 | T16: ='(8)연말잔액'!F16-'(2)기초자산,부채'!L14 -> 0 | U16: ='(8)연말잔액'!G16-'(2)기초자산,부채'!M14 -> 0 | V16: 0 | Z16: =IF('(2)기초자산,부채'!F15="","",'(2)기초자산,부채'!F15) ->  | AA16: ='(8)연말잔액'!M16-'(2)기초자산,부채'!R14 -> 0
B17: =IF('(2)기초자산,부채'!C15="","",'(2)기초자산,부채'!C15) ->  | L17: =IF('(2)기초자산,부채'!F16="","",'(2)기초자산,부채'!F16) ->  | P17: =IF('(2)기초자산,부채'!C15="","",'(2)기초자산,부채'!C15) ->  | Q17: ='(8)연말잔액'!C17-'(2)기초자산,부채'!I15 -> 0 | R17: ='(8)연말잔액'!D17-'(2)기초자산,부채'!J15 -> 0 | S17: ='(8)연말잔액'!E17-'(2)기초자산,부채'!K15 -> 0 | T17: ='(8)연말잔액'!F17-'(2)기초자산,부채'!L15 -> 0 | U17: ='(8)연말잔액'!G17-'(2)기초자산,부채'!M15 -> 0 | V17: 0 | Z17: =IF('(2)기초자산,부채'!F16="","",'(2)기초자산,부채'!F16) ->  | AA17: ='(8)연말잔액'!M17-'(2)기초자산,부채'!R15 -> 0
B18: =IF('(2)기초자산,부채'!C16="","",'(2)기초자산,부채'!C16) -> 생장물 | C18: 300000 | D18: 300000 | H18: 300000 | L18: =IF('(2)기초자산,부채'!F17="","",'(2)기초자산,부채'!F17) ->  | P18: =IF('(2)기초자산,부채'!C16="","",'(2)기초자산,부채'!C16) -> 생장물 | Q18: ='(8)연말잔액'!C18-'(2)기초자산,부채'!I16 -> -200000 | R18: ='(8)연말잔액'!D18-'(2)기초자산,부채'!J16 -> -200000 | S18: ='(8)연말잔액'!E18-'(2)기초자산,부채'!K16 -> 0 | T18: ='(8)연말잔액'!F18-'(2)기초자산,부채'!L16 -> 0 | U18: ='(8)연말잔액'!G18-'(2)기초자산,부채'!M16 -> 0 | V18: -200000 | Z18: =IF('(2)기초자산,부채'!F17="","",'(2)기초자산,부채'!F17) ->  | AA18: ='(8)연말잔액'!M18-'(2)기초자산,부채'!R16 -> 0
B19: =IF('(2)기초자산,부채'!C17="","",'(2)기초자산,부채'!C17) -> 성장중인 생물자산(식물) | L19: =IF('(2)기초자산,부채'!F18="","",'(2)기초자산,부채'!F18) ->  | P19: =IF('(2)기초자산,부채'!C17="","",'(2)기초자산,부채'!C17) -> 성장중인 생물자산(식물) | Q19: ='(8)연말잔액'!C19-'(2)기초자산,부채'!I17 -> 0 | R19: ='(8)연말잔액'!D19-'(2)기초자산,부채'!J17 -> 0 | S19: ='(8)연말잔액'!E19-'(2)기초자산,부채'!K17 -> 0 | T19: ='(8)연말잔액'!F19-'(2)기초자산,부채'!L17 -> 0 | U19: ='(8)연말잔액'!G19-'(2)기초자산,부채'!M17 -> 0 | V19: 0 | Z19: =IF('(2)기초자산,부채'!F18="","",'(2)기초자산,부채'!F18) ->  | AA19: ='(8)연말잔액'!M19-'(2)기초자산,부채'!R17 -> 0
B20: =IF('(2)기초자산,부채'!C18="","",'(2)기초자산,부채'!C18) -> 성장중인 생물자산(가축) | L20: 합계 | M20: =SUM(M8:M19) -> 16600000 | P20: =IF('(2)기초자산,부채'!C18="","",'(2)기초자산,부채'!C18) -> 성장중인 생물자산(가축) | Q20: ='(8)연말잔액'!C20-'(2)기초자산,부채'!I18 -> 0 | R20: ='(8)연말잔액'!D20-'(2)기초자산,부채'!J18 -> 0 | S20: ='(8)연말잔액'!E20-'(2)기초자산,부채'!K18 -> 0 | T20: ='(8)연말잔액'!F20-'(2)기초자산,부채'!L18 -> 0 | U20: ='(8)연말잔액'!G20-'(2)기초자산,부채'!M18 -> 0 | V20: 0 | Z20: 합계 | AA20: =SUM(AA8:AA16) -> 6600000
B21: =IF('(2)기초자산,부채'!C19="","",'(2)기초자산,부채'!C19) ->  | P21: =IF('(2)기초자산,부채'!C19="","",'(2)기초자산,부채'!C19) ->  | Q21: ='(8)연말잔액'!C21-'(2)기초자산,부채'!I19 -> 0 | R21: ='(8)연말잔액'!D21-'(2)기초자산,부채'!J19 -> 0 | S21: ='(8)연말잔액'!E21-'(2)기초자산,부채'!K19 -> 0 | T21: ='(8)연말잔액'!F21-'(2)기초자산,부채'!L19 -> 0 | U21: ='(8)연말잔액'!G21-'(2)기초자산,부채'!M19 -> 0 | V21: 0
B22: =IF('(2)기초자산,부채'!C20="","",'(2)기초자산,부채'!C20) -> 주산물 | C22: 200000 | D22: 200000 | H22: 200000 | P22: =IF('(2)기초자산,부채'!C20="","",'(2)기초자산,부채'!C20) -> 주산물 | Q22: ='(8)연말잔액'!C22-'(2)기초자산,부채'!I20 -> -300000 | R22: ='(8)연말잔액'!D22-'(2)기초자산,부채'!J20 -> -300000 | S22: ='(8)연말잔액'!E22-'(2)기초자산,부채'!K20 -> 0 | T22: ='(8)연말잔액'!F22-'(2)기초자산,부채'!L20 -> 0 | U22: ='(8)연말잔액'!G22-'(2)기초자산,부채'!M20 -> 0 | V22: -300000
B23: =IF('(2)기초자산,부채'!C21="","",'(2)기초자산,부채'!C21) -> 부산물 | P23: =IF('(2)기초자산,부채'!C21="","",'(2)기초자산,부채'!C21) -> 부산물 | Q23: ='(8)연말잔액'!C23-'(2)기초자산,부채'!I21 -> 0 | R23: ='(8)연말잔액'!D23-'(2)기초자산,부채'!J21 -> 0 | S23: ='(8)연말잔액'!E23-'(2)기초자산,부채'!K21 -> 0 | T23: ='(8)연말잔액'!F23-'(2)기초자산,부채'!L21 -> 0 | U23: ='(8)연말잔액'!G23-'(2)기초자산,부채'!M21 -> 0 | V23: 0
B24: =IF('(2)기초자산,부채'!C22="","",'(2)기초자산,부채'!C22) -> 가공품 | L24: 연말비유동부채 | P24: =IF('(2)기초자산,부채'!C22="","",'(2)기초자산,부채'!C22) -> 가공품 | Q24: ='(8)연말잔액'!C24-'(2)기초자산,부채'!I22 -> 0 | R24: ='(8)연말잔액'!D24-'(2)기초자산,부채'!J22 -> 0 | S24: ='(8)연말잔액'!E24-'(2)기초자산,부채'!K22 -> 0 | T24: ='(8)연말잔액'!F24-'(2)기초자산,부채'!L22 -> 0 | U24: ='(8)연말잔액'!G24-'(2)기초자산,부채'!M22 -> 0 | V24: 0 | Z24: 연말비유동부채
B25: =IF('(2)기초자산,부채'!C23="","",'(2)기초자산,부채'!C23) ->  | L25: 비유동부채구분 | M25: 금액 | P25: =IF('(2)기초자산,부채'!C23="","",'(2)기초자산,부채'!C23) ->  | Q25: ='(8)연말잔액'!C25-'(2)기초자산,부채'!I23 -> 0 | R25: ='(8)연말잔액'!D25-'(2)기초자산,부채'!J23 -> 0 | S25: ='(8)연말잔액'!E25-'(2)기초자산,부채'!K23 -> 0 | T25: ='(8)연말잔액'!F25-'(2)기초자산,부채'!L23 -> 0 | U25: ='(8)연말잔액'!G25-'(2)기초자산,부채'!M23 -> 0 | V25: 0 | Z25: 비유동부채구분 | AA25: 금액
B26: =IF('(2)기초자산,부채'!C24="","",'(2)기초자산,부채'!C24) ->  | L26: =IF('(2)기초자산,부채'!F19="","",'(2)기초자산,부채'!F19) -> 장기차입금 | M26: 2000000 | P26: =IF('(2)기초자산,부채'!C24="","",'(2)기초자산,부채'!C24) ->  | Q26: ='(8)연말잔액'!C26-'(2)기초자산,부채'!I24 -> 0 | R26: ='(8)연말잔액'!D26-'(2)기초자산,부채'!J24 -> 0 | S26: ='(8)연말잔액'!E26-'(2)기초자산,부채'!K24 -> 0 | T26: ='(8)연말잔액'!F26-'(2)기초자산,부채'!L24 -> 0 | U26: ='(8)연말잔액'!G26-'(2)기초자산,부채'!M24 -> 0 | V26: 0 | Z26: =IF('(2)기초자산,부채'!F19="","",'(2)기초자산,부채'!F19) -> 장기차입금 | AA26: ='(8)연말잔액'!M26-'(2)기초자산,부채'!R24 -> 0
B27: =IF('(2)기초자산,부채'!C25="","",'(2)기초자산,부채'!C25) ->  | L27: =IF('(2)기초자산,부채'!F20="","",'(2)기초자산,부채'!F20) -> 장기외상매입금 | P27: =IF('(2)기초자산,부채'!C25="","",'(2)기초자산,부채'!C25) ->  | Q27: ='(8)연말잔액'!C27-'(2)기초자산,부채'!I25 -> 0 | R27: ='(8)연말잔액'!D27-'(2)기초자산,부채'!J25 -> 0 | S27: ='(8)연말잔액'!E27-'(2)기초자산,부채'!K25 -> 0 | T27: ='(8)연말잔액'!F27-'(2)기초자산,부채'!L25 -> 0 | U27: ='(8)연말잔액'!G27-'(2)기초자산,부채'!M25 -> 0 | V27: 0 | Z27: =IF('(2)기초자산,부채'!F20="","",'(2)기초자산,부채'!F20) -> 장기외상매입금 | AA27: ='(8)연말잔액'!M27-'(2)기초자산,부채'!R25 -> 0
B28: 합계 | C28: =IF(SUM(C9:C27)=0,"",SUM(C9:C27)) -> 700000 | D28: 700000 | H28: 700000 | L28: =IF('(2)기초자산,부채'!F21="","",'(2)기초자산,부채'!F21) -> 사채 | P28: 합계 | Q28: =IF(SUM(Q9:Q27)=0,"",SUM(Q9:Q27)) -> -510000 | R28: -510000 | V28: -510000 | Z28: =IF('(2)기초자산,부채'!F21="","",'(2)기초자산,부채'!F21) -> 사채 | AA28: ='(8)연말잔액'!M28-'(2)기초자산,부채'!R26 -> 0
G29: ※ 품목별 합계는 금액과 일치해야함 | L29: =IF('(2)기초자산,부채'!F22="","",'(2)기초자산,부채'!F22) ->  | Z29: =IF('(2)기초자산,부채'!F22="","",'(2)기초자산,부채'!F22) ->  | AA29: ='(8)연말잔액'!M29-'(2)기초자산,부채'!R27 -> 0
L30: =IF('(2)기초자산,부채'!F23="","",'(2)기초자산,부채'!F23) ->  | Z30: =IF('(2)기초자산,부채'!F23="","",'(2)기초자산,부채'!F23) ->  | AA30: ='(8)연말잔액'!M30-'(2)기초자산,부채'!R28 -> 0
L31: =IF('(2)기초자산,부채'!F24="","",'(2)기초자산,부채'!F24) ->  | Z31: =IF('(2)기초자산,부채'!F24="","",'(2)기초자산,부채'!F24) ->  | AA31: ='(8)연말잔액'!M31-'(2)기초자산,부채'!R29 -> 0
B32: 연말당좌자산 | E32: 특징 1. 인출금(자가노동비) 입력 가능 | L32: =IF('(2)기초자산,부채'!F25="","",'(2)기초자산,부채'!F25) ->  | P32: 연말당좌자산 | Z32: =IF('(2)기초자산,부채'!F25="","",'(2)기초자산,부채'!F25) ->  | AA32: ='(8)연말잔액'!M32-'(2)기초자산,부채'!R30 -> 0
B33: 당좌자산구분 | C33: 금액 | L33: =IF('(2)기초자산,부채'!F26="","",'(2)기초자산,부채'!F26) ->  | P33: 당좌자산구분 | Q33: 금액 | Z33: =IF('(2)기초자산,부채'!F26="","",'(2)기초자산,부채'!F26) ->  | AA33: ='(8)연말잔액'!M33-'(2)기초자산,부채'!R31 -> 0
B34: =IF('(2)기초자산,부채'!C26="","",'(2)기초자산,부채'!C26) -> 현금 | C34: 9500000 | L34: 합계 | M34: =SUM(M26:M33) -> 2000000 | P34: =IF('(2)기초자산,부채'!C26="","",'(2)기초자산,부채'!C26) -> 현금 | Q34: ='(8)연말잔액'!C34-'(2)기초자산,부채'!I32 -> -500000 | Z34: 합계 | AA34: =SUM(AA26:AA33) -> 0
B35: =IF('(2)기초자산,부채'!C27="","",'(2)기초자산,부채'!C27) -> 단기예금 | C35: 17100000 | P35: =IF('(2)기초자산,부채'!C27="","",'(2)기초자산,부채'!C27) -> 단기예금 | Q35: ='(8)연말잔액'!C35-'(2)기초자산,부채'!I33 -> 12100000
B36: =IF('(2)기초자산,부채'!C28="","",'(2)기초자산,부채'!C28) -> 단기대여금 | P36: =IF('(2)기초자산,부채'!C28="","",'(2)기초자산,부채'!C28) -> 단기대여금 | Q36: ='(8)연말잔액'!C36-'(2)기초자산,부채'!I34 -> 0
B37: =IF('(2)기초자산,부채'!C29="","",'(2)기초자산,부채'!C29) -> 외상매출금 | P37: =IF('(2)기초자산,부채'!C29="","",'(2)기초자산,부채'!C29) -> 외상매출금 | Q37: ='(8)연말잔액'!C37-'(2)기초자산,부채'!I35 -> 0
B38: =IF('(2)기초자산,부채'!C30="","",'(2)기초자산,부채'!C30) -> 미수금 | L38: 자본 | P38: =IF('(2)기초자산,부채'!C30="","",'(2)기초자산,부채'!C30) -> 미수금 | Q38: ='(8)연말잔액'!C38-'(2)기초자산,부채'!I36 -> 0
B39: =IF('(2)기초자산,부채'!C31="","",'(2)기초자산,부채'!C31) -> 미수수익 | P39: =IF('(2)기초자산,부채'!C31="","",'(2)기초자산,부채'!C31) -> 미수수익 | Q39: ='(8)연말잔액'!C39-'(2)기초자산,부채'!I37 -> 0
B40: =IF('(2)기초자산,부채'!C32="","",'(2)기초자산,부채'!C32) -> 선급금 | L40: 인출금 (자가노동비 인출) | P40: =IF('(2)기초자산,부채'!C32="","",'(2)기초자산,부채'!C32) -> 선급금 | Q40: ='(8)연말잔액'!C40-'(2)기초자산,부채'!I38 -> 0
B41: =IF('(2)기초자산,부채'!C33="","",'(2)기초자산,부채'!C33) -> 선급비용 | L41: 인출금 | M41: 금액 | P41: =IF('(2)기초자산,부채'!C33="","",'(2)기초자산,부채'!C33) -> 선급비용 | Q41: ='(8)연말잔액'!C41-'(2)기초자산,부채'!I39 -> 0
B42: =IF('(2)기초자산,부채'!C34="","",'(2)기초자산,부채'!C34) ->  | L42: 인출금(현금인출) | P42: =IF('(2)기초자산,부채'!C34="","",'(2)기초자산,부채'!C34) ->  | Q42: ='(8)연말잔액'!C42-'(2)기초자산,부채'!I40 -> 0
B43: =IF('(2)기초자산,부채'!C35="","",'(2)기초자산,부채'!C35) ->  | L43: 인출금(단기예금인출) | M43: 2000000 | P43: =IF('(2)기초자산,부채'!C35="","",'(2)기초자산,부채'!C35) ->  | Q43: ='(8)연말잔액'!C43-'(2)기초자산,부채'!I41 -> 0
B44: =IF('(2)기초자산,부채'!C36="","",'(2)기초자산,부채'!C36) ->  | P44: =IF('(2)기초자산,부채'!C36="","",'(2)기초자산,부채'!C36) ->  | Q44: ='(8)연말잔액'!C44-'(2)기초자산,부채'!I42 -> 0
B45: =IF('(2)기초자산,부채'!C37="","",'(2)기초자산,부채'!C37) ->  | P45: =IF('(2)기초자산,부채'!C37="","",'(2)기초자산,부채'!C37) ->  | Q45: ='(8)연말잔액'!C45-'(2)기초자산,부채'!I43 -> 0
B46: =IF('(2)기초자산,부채'!C38="","",'(2)기초자산,부채'!C38) ->  | P46: =IF('(2)기초자산,부채'!C38="","",'(2)기초자산,부채'!C38) ->  | Q46: ='(8)연말잔액'!C46-'(2)기초자산,부채'!I44 -> 0
B47: 합계 | C47: =SUM(C34:C46) -> 26600000 | P47: 합계 | Q47: =SUM(Q34:Q46) -> 11600000
B51: 투자자산 등 | P51: 투자자산 등
B52: 투자자산 등 구분 | C52: 금액 | P52: 투자자산 등 구분 | Q52: 금액
B53: =IF('(2)기초자산,부채'!C39="","",'(2)기초자산,부채'!C39) -> 주식 | P53: =IF('(2)기초자산,부채'!C39="","",'(2)기초자산,부채'!C39) -> 주식 | Q53: ='(8)연말잔액'!C53-'(2)기초자산,부채'!I51 -> 0
B54: =IF('(2)기초자산,부채'!C40="","",'(2)기초자산,부채'!C40) -> 채권 | P54: =IF('(2)기초자산,부채'!C40="","",'(2)기초자산,부채'!C40) -> 채권 | Q54: ='(8)연말잔액'!C54-'(2)기초자산,부채'!I52 -> 0
B55: =IF('(2)기초자산,부채'!C41="","",'(2)기초자산,부채'!C41) -> 특허권 | P55: =IF('(2)기초자산,부채'!C41="","",'(2)기초자산,부채'!C41) -> 특허권 | Q55: ='(8)연말잔액'!C55-'(2)기초자산,부채'!I53 -> 0
B56: =IF('(2)기초자산,부채'!C42="","",'(2)기초자산,부채'!C42) ->  | P56: =IF('(2)기초자산,부채'!C42="","",'(2)기초자산,부채'!C42) ->  | Q56: ='(8)연말잔액'!C56-'(2)기초자산,부채'!I54 -> 0
B57: =IF('(2)기초자산,부채'!C43="","",'(2)기초자산,부채'!C43) ->  | P57: =IF('(2)기초자산,부채'!C43="","",'(2)기초자산,부채'!C43) ->  | Q57: ='(8)연말잔액'!C57-'(2)기초자산,부채'!I55 -> 0
B58: =IF('(2)기초자산,부채'!C44="","",'(2)기초자산,부채'!C44) ->  | P58: =IF('(2)기초자산,부채'!C44="","",'(2)기초자산,부채'!C44) ->  | Q58: ='(8)연말잔액'!C58-'(2)기초자산,부채'!I56 -> 0
B59: =IF('(2)기초자산,부채'!C45="","",'(2)기초자산,부채'!C45) ->  | P59: =IF('(2)기초자산,부채'!C45="","",'(2)기초자산,부채'!C45) ->  | Q59: ='(8)연말잔액'!C59-'(2)기초자산,부채'!I57 -> 0
B60: =IF('(2)기초자산,부채'!C46="","",'(2)기초자산,부채'!C46) ->  | P60: =IF('(2)기초자산,부채'!C46="","",'(2)기초자산,부채'!C46) ->  | Q60: ='(8)연말잔액'!C60-'(2)기초자산,부채'!I58 -> 0
B61: 합계 | C61: =SUM(C53:C60) -> 0 | P61: 합계 | Q61: =SUM(Q53:Q60) -> 0

Sheet (9)생산원가명세서
B2: 생산원가명세서 | G2: ='(1)고정자산'!C6&" 생산원가명세서" -> 딸기 생산원가명세서 | L2: ='(1)고정자산'!C7&" 생산원가명세서" -> 수박 생산원가명세서 | Q2: ='(1)고정자산'!C8&" 생산원가명세서" -> 참외 생산원가명세서 | V2: ='(1)고정자산'!C9&" 생산원가명세서" -> 토마토 생산원가명세서
B4: ="회사명 : " & '(1)고정자산'!$C$3 -> 회사명 : 맛있는 딸기만팜 | G4: ="회사명 : " & '(1)고정자산'!$C$3 -> 회사명 : 맛있는 딸기만팜 | L4: ="회사명 : " & '(1)고정자산'!$C$3 -> 회사명 : 맛있는 딸기만팜 | Q4: ="회사명 : " & '(1)고정자산'!$C$3 -> 회사명 : 맛있는 딸기만팜 | V4: ="회사명 : " & '(1)고정자산'!$C$3 -> 회사명 : 맛있는 딸기만팜
B5: 계정과목 | C5: 금액 | G5: 계정과목 | H5: 금액 | L5: 계정과목 | M5: 금액 | Q5: 계정과목 | R5: 금액 | V5: 계정과목 | W5: 금액
B6: 재료비 | D6: =C7+C8-C9 -> 6110000 | G6: 재료비 | I6: =H7+H8-H9 -> 1110000 | L6: 재료비 | N6: =M7+M8-M9 -> 4500000 | Q6: 재료비 | S6: =R7+R8-R9 -> 0 | V6: 재료비 | X6: =W7+W8-W9 -> 500000
B7: 기초재료재고액 | C7: =SUM('(2)기초자산,부채'!I7:I15) -> 210000 | G7: 기초재료재고액 | H7: =SUM('(2)기초자산,부채'!J7:J15) -> 210000 | L7: 기초재료재고액 | M7: =SUM('(2)기초자산,부채'!K7:K15) -> 0 | Q7: 기초재료재고액 | R7: =SUM('(2)기초자산,부채'!L7:L15) -> 0 | V7: 기초재료재고액 | W7: =SUM('(2)기초자산,부채'!M7:M15) -> 0
B8: 당기재료비 | C8: =SUM('(7)수익,비용요약'!F5:F14) -> 6100000 | G8: 당기재료비 | H8: =SUM('(7)수익,비용요약'!O5:O14) -> 1100000 | L8: 당기재료비 | M8: =SUM('(7)수익,비용요약'!X5:X14) -> 4500000 | Q8: 당기재료비 | R8: =SUM('(7)수익,비용요약'!AG5:AG14) -> 0 | V8: 당기재료비 | W8: =SUM('(7)수익,비용요약'!AP5:AP14) -> 500000
B9: 기말재료재고액 | C9: =SUM('(8)연말잔액'!C9:C17) -> 200000 | G9: 기말재료재고액 | H9: =SUM('(8)연말잔액'!D9:D17) -> 200000 | L9: 기말재료재고액 | M9: =SUM('(8)연말잔액'!E9:E17) -> 0 | Q9: 기말재료재고액 | R9: =SUM('(8)연말잔액'!F9:F17) -> 0 | V9: 기말재료재고액 | W9: =SUM('(8)연말잔액'!G9:G17) -> 0
B10: 노무비 | D10: =SUM(C11:C16) -> 1000000 | G10: 노무비 | I10: =SUM(H11:H16) -> 0 | L10: 노무비 | N10: =SUM(M11:M16) -> 0 | Q10: 노무비 | S10: =SUM(R11:R16) -> 1000000 | V10: 노무비 | X10: =SUM(W11:W16) -> 0
B11: =" "&'(5)생산비용'!C15 -> 급여(상시고용) | C11: =IF('(7)수익,비용요약'!F15="","",'(7)수익,비용요약'!F15) ->  | G11: =" "&'(5)생산비용'!C15 -> 급여(상시고용) | H11: =IF('(7)수익,비용요약'!O15="","",'(7)수익,비용요약'!O15) ->  | L11: =" "&'(5)생산비용'!C15 -> 급여(상시고용) | M11: =IF('(7)수익,비용요약'!X15="","",'(7)수익,비용요약'!X15) ->  | Q11: =" "&'(5)생산비용'!C15 -> 급여(상시고용) | R11: =IF('(7)수익,비용요약'!AG15="","",'(7)수익,비용요약'!AG15) ->  | V11: =" "&'(5)생산비용'!C15 -> 급여(상시고용) | W11: =IF('(7)수익,비용요약'!AP15="","",'(7)수익,비용요약'!AP15) -> 
B12: =" "&'(5)생산비용'!C16 -> 인건비(일용직) | C12: =IF('(7)수익,비용요약'!F16="","",'(7)수익,비용요약'!F16) -> 1000000 | G12: =" "&'(5)생산비용'!C16 -> 인건비(일용직) | H12: =IF('(7)수익,비용요약'!O16="","",'(7)수익,비용요약'!O16) ->  | L12: =" "&'(5)생산비용'!C16 -> 인건비(일용직) | M12: =IF('(7)수익,비용요약'!X16="","",'(7)수익,비용요약'!X16) ->  | Q12: =" "&'(5)생산비용'!C16 -> 인건비(일용직) | R12: =IF('(7)수익,비용요약'!AG16="","",'(7)수익,비용요약'!AG16) -> 1000000 | V12: =" "&'(5)생산비용'!C16 -> 인건비(일용직) | W12: =IF('(7)수익,비용요약'!AP16="","",'(7)수익,비용요약'!AP16) -> 
B13: =" "&'(5)생산비용'!C17 ->  | C13: =IF('(7)수익,비용요약'!F17="","",'(7)수익,비용요약'!F17) ->  | G13: =" "&'(5)생산비용'!C17 ->  | H13: =IF('(7)수익,비용요약'!O17="","",'(7)수익,비용요약'!O17) ->  | L13: =" "&'(5)생산비용'!C17 ->  | M13: =IF('(7)수익,비용요약'!X17="","",'(7)수익,비용요약'!X17) ->  | Q13: =" "&'(5)생산비용'!C17 ->  | R13: =IF('(7)수익,비용요약'!AG17="","",'(7)수익,비용요약'!AG17) ->  | V13: =" "&'(5)생산비용'!C17 ->  | W13: =IF('(7)수익,비용요약'!AP17="","",'(7)수익,비용요약'!AP17) -> 
B14: =" "&'(5)생산비용'!C18 ->  | C14: =IF('(7)수익,비용요약'!F18="","",'(7)수익,비용요약'!F18) ->  | G14: =" "&'(5)생산비용'!C18 ->  | H14: =IF('(7)수익,비용요약'!O18="","",'(7)수익,비용요약'!O18) ->  | L14: =" "&'(5)생산비용'!C18 ->  | M14: =IF('(7)수익,비용요약'!X18="","",'(7)수익,비용요약'!X18) ->  | Q14: =" "&'(5)생산비용'!C18 ->  | R14: =IF('(7)수익,비용요약'!AG18="","",'(7)수익,비용요약'!AG18) ->  | V14: =" "&'(5)생산비용'!C18 ->  | W14: =IF('(7)수익,비용요약'!AP18="","",'(7)수익,비용요약'!AP18) -> 
B15: =" "&'(5)생산비용'!C19 ->  | C15: =IF('(7)수익,비용요약'!F19="","",'(7)수익,비용요약'!F19) ->  | G15: =" "&'(5)생산비용'!C19 ->  | H15: =IF('(7)수익,비용요약'!O19="","",'(7)수익,비용요약'!O19) ->  | L15: =" "&'(5)생산비용'!C19 ->  | M15: =IF('(7)수익,비용요약'!X19="","",'(7)수익,비용요약'!X19) ->  | Q15: =" "&'(5)생산비용'!C19 ->  | R15: =IF('(7)수익,비용요약'!AG19="","",'(7)수익,비용요약'!AG19) ->  | V15: =" "&'(5)생산비용'!C19 ->  | W15: =IF('(7)수익,비용요약'!AP19="","",'(7)수익,비용요약'!AP19) -> 
B16: =" "&'(5)생산비용'!C20 ->  | C16: =IF('(7)수익,비용요약'!F20="","",'(7)수익,비용요약'!F20) ->  | G16: =" "&'(5)생산비용'!C20 ->  | H16: =IF('(7)수익,비용요약'!O20="","",'(7)수익,비용요약'!O20) ->  | L16: =" "&'(5)생산비용'!C20 ->  | M16: =IF('(7)수익,비용요약'!X20="","",'(7)수익,비용요약'!X20) ->  | Q16: =" "&'(5)생산비용'!C20 ->  | R16: =IF('(7)수익,비용요약'!AG20="","",'(7)수익,비용요약'!AG20) ->  | V16: =" "&'(5)생산비용'!C20 ->  | W16: =IF('(7)수익,비용요약'!AP20="","",'(7)수익,비용요약'!AP20) -> 
B17: 경비 | D17: =SUM(C18:C36) -> 1875000 | G17: 경비 | I17: =SUM(H18:H36) -> 543750 | L17: 경비 | N17: =SUM(M18:M36) -> 443750 | Q17: 경비 | S17: =SUM(R18:R36) -> 443750 | V17: 경비 | X17: =SUM(W18:W36) -> 443750
B18: 감가상각비 | C18: =IF('(1)고정자산'!U12="","",'(1)고정자산'!U12) -> 1775000 | G18: 감가상각비 | H18: =IF('(1)고정자산'!$S$26="","",'(1)고정자산'!$S$26) -> 443750 | L18: 감가상각비 | M18: =IF('(1)고정자산'!$S$40="","",'(1)고정자산'!$S$40) -> 443750 | Q18: 감가상각비 | R18: =IF('(1)고정자산'!$S$54="","",'(1)고정자산'!$S$54) -> 443750 | V18: 감가상각비 | W18: =IF('(1)고정자산'!$S$68="","",'(1)고정자산'!$S$68) -> 443750
B19: =" "&'(5)생산비용'!C21 -> 임차료 | C19: =IF('(7)수익,비용요약'!F21="","",'(7)수익,비용요약'!F21) ->  | G19: =" "&'(5)생산비용'!C21 -> 임차료 | H19: =IF('(7)수익,비용요약'!O21="","",'(7)수익,비용요약'!O21) ->  | L19: =" "&'(5)생산비용'!C21 -> 임차료 | M19: =IF('(7)수익,비용요약'!X21="","",'(7)수익,비용요약'!X21) ->  | Q19: =" "&'(5)생산비용'!C21 -> 임차료 | R19: =IF('(7)수익,비용요약'!AG21="","",'(7)수익,비용요약'!AG21) ->  | V19: =" "&'(5)생산비용'!C21 -> 임차료 | W19: =IF('(7)수익,비용요약'!AP21="","",'(7)수익,비용요약'!AP21) -> 
B20: =" "&'(5)생산비용'!C22 -> 농작업위탁비 | C20: =IF('(7)수익,비용요약'!F22="","",'(7)수익,비용요약'!F22) ->  | G20: =" "&'(5)생산비용'!C22 -> 농작업위탁비 | H20: =IF('(7)수익,비용요약'!O22="","",'(7)수익,비용요약'!O22) ->  | L20: =" "&'(5)생산비용'!C22 -> 농작업위탁비 | M20: =IF('(7)수익,비용요약'!X22="","",'(7)수익,비용요약'!X22) ->  | Q20: =" "&'(5)생산비용'!C22 -> 농작업위탁비 | R20: =IF('(7)수익,비용요약'!AG22="","",'(7)수익,비용요약'!AG22) ->  | V20: =" "&'(5)생산비용'!C22 -> 농작업위탁비 | W20: =IF('(7)수익,비용요약'!AP22="","",'(7)수익,비용요약'!AP22) -> 
B21: =" "&'(5)생산비용'!C23 -> 위탁비용 | C21: =IF('(7)수익,비용요약'!F23="","",'(7)수익,비용요약'!F23) ->  | G21: =" "&'(5)생산비용'!C23 -> 위탁비용 | H21: =IF('(7)수익,비용요약'!O23="","",'(7)수익,비용요약'!O23) ->  | L21: =" "&'(5)생산비용'!C23 -> 위탁비용 | M21: =IF('(7)수익,비용요약'!X23="","",'(7)수익,비용요약'!X23) ->  | Q21: =" "&'(5)생산비용'!C23 -> 위탁비용 | R21: =IF('(7)수익,비용요약'!AG23="","",'(7)수익,비용요약'!AG23) ->  | V21: =" "&'(5)생산비용'!C23 -> 위탁비용 | W21: =IF('(7)수익,비용요약'!AP23="","",'(7)수익,비용요약'!AP23) -> 
B22: =" "&'(5)생산비용'!C24 -> 광열동력비 | C22: =IF('(7)수익,비용요약'!F24="","",'(7)수익,비용요약'!F24) -> 100000 | G22: =" "&'(5)생산비용'!C24 -> 광열동력비 | H22: =IF('(7)수익,비용요약'!O24="","",'(7)수익,비용요약'!O24) -> 100000 | L22: =" "&'(5)생산비용'!C24 -> 광열동력비 | M22: =IF('(7)수익,비용요약'!X24="","",'(7)수익,비용요약'!X24) ->  | Q22: =" "&'(5)생산비용'!C24 -> 광열동력비 | R22: =IF('(7)수익,비용요약'!AG24="","",'(7)수익,비용요약'!AG24) ->  | V22: =" "&'(5)생산비용'!C24 -> 광열동력비 | W22: =IF('(7)수익,비용요약'!AP24="","",'(7)수익,비용요약'!AP24) -> 
B23: =" "&'(5)생산비용'!C25 -> 소농구비 | C23: =IF('(7)수익,비용요약'!F25="","",'(7)수익,비용요약'!F25) ->  | G23: =" "&'(5)생산비용'!C25 -> 소농구비 | H23: =IF('(7)수익,비용요약'!O25="","",'(7)수익,비용요약'!O25) ->  | L23: =" "&'(5)생산비용'!C25 -> 소농구비 | M23: =IF('(7)수익,비용요약'!X25="","",'(7)수익,비용요약'!X25) ->  | Q23: =" "&'(5)생산비용'!C25 -> 소농구비 | R23: =IF('(7)수익,비용요약'!AG25="","",'(7)수익,비용요약'!AG25) ->  | V23: =" "&'(5)생산비용'!C25 -> 소농구비 | W23: =IF('(7)수익,비용요약'!AP25="","",'(7)수익,비용요약'!AP25) -> 
B24: =" "&'(5)생산비용'!C26 -> 보험료(농업보험) | C24: =IF('(7)수익,비용요약'!F26="","",'(7)수익,비용요약'!F26) ->  | G24: =" "&'(5)생산비용'!C26 -> 보험료(농업보험) | H24: =IF('(7)수익,비용요약'!O26="","",'(7)수익,비용요약'!O26) ->  | L24: =" "&'(5)생산비용'!C26 -> 보험료(농업보험) | M24: =IF('(7)수익,비용요약'!X26="","",'(7)수익,비용요약'!X26) ->  | Q24: =" "&'(5)생산비용'!C26 -> 보험료(농업보험) | R24: =IF('(7)수익,비용요약'!AG26="","",'(7)수익,비용요약'!AG26) ->  | V24: =" "&'(5)생산비용'!C26 -> 보험료(농업보험) | W24: =IF('(7)수익,비용요약'!AP26="","",'(7)수익,비용요약'!AP26) -> 
B25: =" "&'(5)생산비용'!C27 -> 종부료 | C25: =IF('(7)수익,비용요약'!F27="","",'(7)수익,비용요약'!F27) ->  | G25: =" "&'(5)생산비용'!C27 -> 종부료 | H25: =IF('(7)수익,비용요약'!O27="","",'(7)수익,비용요약'!O27) ->  | L25: =" "&'(5)생산비용'!C27 -> 종부료 | M25: =IF('(7)수익,비용요약'!X27="","",'(7)수익,비용요약'!X27) ->  | Q25: =" "&'(5)생산비용'!C27 -> 종부료 | R25: =IF('(7)수익,비용요약'!AG27="","",'(7)수익,비용요약'!AG27) ->  | V25: =" "&'(5)생산비용'!C27 -> 종부료 | W25: =IF('(7)수익,비용요약'!AP27="","",'(7)수익,비용요약'!AP27) -> 
B26: =" "&'(5)생산비용'!C28 -> 분뇨처리비 | C26: =IF('(7)수익,비용요약'!F28="","",'(7)수익,비용요약'!F28) ->  | G26: =" "&'(5)생산비용'!C28 -> 분뇨처리비 | H26: =IF('(7)수익,비용요약'!O28="","",'(7)수익,비용요약'!O28) ->  | L26: =" "&'(5)생산비용'!C28 -> 분뇨처리비 | M26: =IF('(7)수익,비용요약'!X28="","",'(7)수익,비용요약'!X28) ->  | Q26: =" "&'(5)생산비용'!C28 -> 분뇨처리비 | R26: =IF('(7)수익,비용요약'!AG28="","",'(7)수익,비용요약'!AG28) ->  | V26: =" "&'(5)생산비용'!C28 -> 분뇨처리비 | W26: =IF('(7)수익,비용요약'!AP28="","",'(7)수익,비용요약'!AP28) -> 
B27: =" "&'(5)생산비용'!C29 -> 기타경비 | C27: =IF('(7)수익,비용요약'!F29="","",'(7)수익,비용요약'!F29) ->  | G27: =" "&'(5)생산비용'!C29 -> 기타경비 | H27: =IF('(7)수익,비용요약'!O29="","",'(7)수익,비용요약'!O29) ->  | L27: =" "&'(5)생산비용'!C29 -> 기타경비 | M27: =IF('(7)수익,비용요약'!X29="","",'(7)수익,비용요약'!X29) ->  | Q27: =" "&'(5)생산비용'!C29 -> 기타경비 | R27: =IF('(7)수익,비용요약'!AG29="","",'(7)수익,비용요약'!AG29) ->  | V27: =" "&'(5)생산비용'!C29 -> 기타경비 | W27: =IF('(7)수익,비용요약'!AP29="","",'(7)수익,비용요약'!AP29) -> 
B28: =" "&'(5)생산비용'!C30 ->  | C28: =IF('(7)수익,비용요약'!F30="","",'(7)수익,비용요약'!F30) ->  | G28: =" "&'(5)생산비용'!C30 ->  | H28: =IF('(7)수익,비용요약'!O30="","",'(7)수익,비용요약'!O30) ->  | L28: =" "&'(5)생산비용'!C30 ->  | M28: =IF('(7)수익,비용요약'!X30="","",'(7)수익,비용요약'!X30) ->  | Q28: =" "&'(5)생산비용'!C30 ->  | R28: =IF('(7)수익,비용요약'!AG30="","",'(7)수익,비용요약'!AG30) ->  | V28: =" "&'(5)생산비용'!C30 ->  | W28: =IF('(7)수익,비용요약'!AP30="","",'(7)수익,비용요약'!AP30) -> 
B29: =" "&'(5)생산비용'!C31 ->  | C29: =IF('(7)수익,비용요약'!F31="","",'(7)수익,비용요약'!F31) ->  | G29: =" "&'(5)생산비용'!C31 ->  | H29: =IF('(7)수익,비용요약'!O31="","",'(7)수익,비용요약'!O31) ->  | L29: =" "&'(5)생산비용'!C31 ->  | M29: =IF('(7)수익,비용요약'!X31="","",'(7)수익,비용요약'!X31) ->  | Q29: =" "&'(5)생산비용'!C31 ->  | R29: =IF('(7)수익,비용요약'!AG31="","",'(7)수익,비용요약'!AG31) ->  | V29: =" "&'(5)생산비용'!C31 ->  | W29: =IF('(7)수익,비용요약'!AP31="","",'(7)수익,비용요약'!AP31) -> 
B30: =" "&'(5)생산비용'!C32 ->  | C30: =IF('(7)수익,비용요약'!F32="","",'(7)수익,비용요약'!F32) ->  | G30: =" "&'(5)생산비용'!C32 ->  | H30: =IF('(7)수익,비용요약'!O32="","",'(7)수익,비용요약'!O32) ->  | L30: =" "&'(5)생산비용'!C32 ->  | M30: =IF('(7)수익,비용요약'!X32="","",'(7)수익,비용요약'!X32) ->  | Q30: =" "&'(5)생산비용'!C32 ->  | R30: =IF('(7)수익,비용요약'!AG32="","",'(7)수익,비용요약'!AG32) ->  | V30: =" "&'(5)생산비용'!C32 ->  | W30: =IF('(7)수익,비용요약'!AP32="","",'(7)수익,비용요약'!AP32) -> 
B31: =" "&'(5)생산비용'!C33 ->  | C31: =IF('(7)수익,비용요약'!F33="","",'(7)수익,비용요약'!F33) ->  | G31: =" "&'(5)생산비용'!C33 ->  | H31: =IF('(7)수익,비용요약'!O33="","",'(7)수익,비용요약'!O33) ->  | L31: =" "&'(5)생산비용'!C33 ->  | M31: =IF('(7)수익,비용요약'!X33="","",'(7)수익,비용요약'!X33) ->  | Q31: =" "&'(5)생산비용'!C33 ->  | R31: =IF('(7)수익,비용요약'!AG33="","",'(7)수익,비용요약'!AG33) ->  | V31: =" "&'(5)생산비용'!C33 ->  | W31: =IF('(7)수익,비용요약'!AP33="","",'(7)수익,비용요약'!AP33) -> 
B32: =" "&'(5)생산비용'!C34 ->  | C32: =IF('(7)수익,비용요약'!F34="","",'(7)수익,비용요약'!F34) ->  | G32: =" "&'(5)생산비용'!C34 ->  | H32: =IF('(7)수익,비용요약'!O34="","",'(7)수익,비용요약'!O34) ->  | L32: =" "&'(5)생산비용'!C34 ->  | M32: =IF('(7)수익,비용요약'!X34="","",'(7)수익,비용요약'!X34) ->  | Q32: =" "&'(5)생산비용'!C34 ->  | R32: =IF('(7)수익,비용요약'!AG34="","",'(7)수익,비용요약'!AG34) ->  | V32: =" "&'(5)생산비용'!C34 ->  | W32: =IF('(7)수익,비용요약'!AP34="","",'(7)수익,비용요약'!AP34) -> 
B33: =" "&'(5)생산비용'!C35 ->  | C33: =IF('(7)수익,비용요약'!F35="","",'(7)수익,비용요약'!F35) ->  | G33: =" "&'(5)생산비용'!C35 ->  | H33: =IF('(7)수익,비용요약'!O35="","",'(7)수익,비용요약'!O35) ->  | L33: =" "&'(5)생산비용'!C35 ->  | M33: =IF('(7)수익,비용요약'!X35="","",'(7)수익,비용요약'!X35) ->  | Q33: =" "&'(5)생산비용'!C35 ->  | R33: =IF('(7)수익,비용요약'!AG35="","",'(7)수익,비용요약'!AG35) ->  | V33: =" "&'(5)생산비용'!C35 ->  | W33: =IF('(7)수익,비용요약'!AP35="","",'(7)수익,비용요약'!AP35) -> 
B34: =" "&'(5)생산비용'!C36 ->  | C34: =IF('(7)수익,비용요약'!F36="","",'(7)수익,비용요약'!F36) ->  | G34: =" "&'(5)생산비용'!C36 ->  | H34: =IF('(7)수익,비용요약'!O36="","",'(7)수익,비용요약'!O36) ->  | L34: =" "&'(5)생산비용'!C36 ->  | M34: =IF('(7)수익,비용요약'!X36="","",'(7)수익,비용요약'!X36) ->  | Q34: =" "&'(5)생산비용'!C36 ->  | R34: =IF('(7)수익,비용요약'!AG36="","",'(7)수익,비용요약'!AG36) ->  | V34: =" "&'(5)생산비용'!C36 ->  | W34: =IF('(7)수익,비용요약'!AP36="","",'(7)수익,비용요약'!AP36) -> 
B35: =" "&'(5)생산비용'!C37 ->  | C35: =IF('(7)수익,비용요약'!F37="","",'(7)수익,비용요약'!F37) ->  | G35: =" "&'(5)생산비용'!C37 ->  | H35: =IF('(7)수익,비용요약'!O37="","",'(7)수익,비용요약'!O37) ->  | L35: =" "&'(5)생산비용'!C37 ->  | M35: =IF('(7)수익,비용요약'!X37="","",'(7)수익,비용요약'!X37) ->  | Q35: =" "&'(5)생산비용'!C37 ->  | R35: =IF('(7)수익,비용요약'!AG37="","",'(7)수익,비용요약'!AG37) ->  | V35: =" "&'(5)생산비용'!C37 ->  | W35: =IF('(7)수익,비용요약'!AP37="","",'(7)수익,비용요약'!AP37) -> 
B36: =" "&'(5)생산비용'!C38 ->  | C36: =IF('(7)수익,비용요약'!F38="","",'(7)수익,비용요약'!F38) ->  | G36: =" "&'(5)생산비용'!C38 ->  | H36: =IF('(7)수익,비용요약'!O38="","",'(7)수익,비용요약'!O38) ->  | L36: =" "&'(5)생산비용'!C38 ->  | M36: =IF('(7)수익,비용요약'!X38="","",'(7)수익,비용요약'!X38) ->  | Q36: =" "&'(5)생산비용'!C38 ->  | R36: =IF('(7)수익,비용요약'!AG38="","",'(7)수익,비용요약'!AG38) ->  | V36: =" "&'(5)생산비용'!C38 ->  | W36: =IF('(7)수익,비용요약'!AP38="","",'(7)수익,비용요약'!AP38) -> 
B37: 당기총생산비용 | D37: =SUM(D6,D10,D17) -> 8985000 | G37: 당기총생산비용 | I37: =SUM(I6,I10,I17) -> 1653750 | L37: 당기총생산비용 | N37: =SUM(N6,N10,N17) -> 4943750 | Q37: 당기총생산비용 | S37: =SUM(S6,S10,S17) -> 1443750 | V37: 당기총생산비용 | X37: =SUM(X6,X10,X17) -> 943750
B38: 기초생장물재고액 | D38: =IF('(2)기초자산,부채'!I16="",0,'(2)기초자산,부채'!I16) -> 500000 | G38: 기초생장물재고액 | I38: =IF('(2)기초자산,부채'!J16="",0,'(2)기초자산,부채'!J16) -> 500000 | L38: 기초생장물재고액 | N38: =IF('(2)기초자산,부채'!K16="",0,'(2)기초자산,부채'!K16) -> 0 | Q38: 기초생장물재고액 | S38: =IF('(2)기초자산,부채'!L16="",0,'(2)기초자산,부채'!L16) -> 0 | V38: 기초생장물재고액 | X38: =IF('(2)기초자산,부채'!M16="",0,'(2)기초자산,부채'!M16) -> 0
B39: 합계 | D39: =SUM(D37:D38) -> 9485000 | G39: 합계 | I39: =SUM(I37:I38) -> 2153750 | L39: 합계 | N39: =SUM(N37:N38) -> 4943750 | Q39: 합계 | S39: =SUM(S37:S38) -> 1443750 | V39: 합계 | X39: =SUM(X37:X38) -> 943750
B40: 기말생장물재고액 | D40: =IF('(8)연말잔액'!C18="",0,'(8)연말잔액'!C18) -> 300000 | G40: 기말생장물재고액 | I40: =IF('(8)연말잔액'!D18="",0,'(8)연말잔액'!D18) -> 300000 | L40: 기말생장물재고액 | N40: =IF('(8)연말잔액'!E18="",0,'(8)연말잔액'!E18) -> 0 | Q40: 기말생장물재고액 | S40: =IF('(8)연말잔액'!F18="",0,'(8)연말잔액'!F18) -> 0 | V40: 기말생장물재고액 | X40: =IF('(8)연말잔액'!G18="",0,'(8)연말잔액'!G18) -> 0
B41: 성장중인 생물자산 증가액 | D41: =IF(OR((SUMIFS('(1)고정자산'!F107:F116,'(1)고정자산'!C107:C116,'(1)고정자산'!C5)>0),(SUMIFS('(1)고정자산'!F123:F132,'(1)고정자산'!C123:C132,'(1)고정자산'!C5)>0)),SUMIFS('(1)고정자산'!F107:F116,'(1)고정자산'!C107:C116,'(1)고정자산'!C5)+SUMIFS('(1)고정자산'!F123:F132,'(1)고정자산'!C123:C132,'(1)고정자산'!C5)+SUM('(8)연말잔액'!C19:C21)-SUM('(2)기초자산,부채'!I17:I19),SUM('(8)연말잔액'!C19:C21)-SUM('(2)기초자산,부채'!I17:I19)) -> 0 | G41: 성장중인 생물자산 증가액 | I41: =IF(OR((SUMIFS('(1)고정자산'!F107:F116,'(1)고정자산'!C107:C116,'(1)고정자산'!C5,'(1)고정자산'!K107:K116,">0")>0),(SUMIFS('(1)고정자산'!F123:F132,'(1)고정자산'!C123:C132,'(1)고정자산'!C5,'(1)고정자산'!K123:K132,">0")>0)),SUMIFS('(1)고정자산'!F107:F116,'(1)고정자산'!C107:C116,'(1)고정자산'!C5,'(1)고정자산'!K107:K116,">0")+SUMIFS('(1)고정자산'!F123:F132,'(1)고정자산'!C123:C132,'(1)고정자산'!C5,'(1)고정자산'!K123:K132,">0")+SUM('(8)연말잔액'!D19:D21)-SUM('(2)기초자산,부채'!J17:J19),SUM('(8)연말잔액'!D19:D21)-SUM('(2)기초자산,부채'!J17:J19)) -> 0 | L41: 성장중인 생물자산 증가액 | N41: =IF(OR((SUMIFS('(1)고정자산'!F107:F116,'(1)고정자산'!C107:C116,'(1)고정자산'!C5,'(1)고정자산'!L107:L116,">0")>0),(SUMIFS('(1)고정자산'!F123:F132,'(1)고정자산'!C123:C132,'(1)고정자산'!C5,'(1)고정자산'!L123:L132,">0")>0)),SUMIFS('(1)고정자산'!F107:F116,'(1)고정자산'!C107:C116,'(1)고정자산'!C5,'(1)고정자산'!L107:L116,">0")+SUMIFS('(1)고정자산'!F123:F132,'(1)고정자산'!C123:C132,'(1)고정자산'!C5,'(1)고정자산'!L123:L132,">0")+SUM('(8)연말잔액'!E19:E21)-SUM('(2)기초자산,부채'!K17:K19),SUM('(8)연말잔액'!E19:E21)-SUM('(2)기초자산,부채'!K17:K19)) -> 0 | Q41: 성장중인 생물자산 증가액 | S41: =IF(OR((SUMIFS('(1)고정자산'!F107:F116,'(1)고정자산'!C107:C116,'(1)고정자산'!C5,'(1)고정자산'!M107:M116,">0")>0),(SUMIFS('(1)고정자산'!F123:F132,'(1)고정자산'!C123:C132,'(1)고정자산'!C5,'(1)고정자산'!M123:M132,">0")>0)),SUMIFS('(1)고정자산'!F107:F116,'(1)고정자산'!C107:C116,'(1)고정자산'!C5,'(1)고정자산'!M107:M116,">0")+SUMIFS('(1)고정자산'!F123:F132,'(1)고정자산'!C123:C132,'(1)고정자산'!C5,'(1)고정자산'!M123:M132,">0")+SUM('(8)연말잔액'!F19:F21)-SUM('(2)기초자산,부채'!L17:L19),SUM('(8)연말잔액'!F19:F21)-SUM('(2)기초자산,부채'!L17:L19)) -> 0 | V41: 성장중인 생물자산 증가액 | X41: =IF(OR((SUMIFS('(1)고정자산'!F107:F116,'(1)고정자산'!C107:C116,'(1)고정자산'!C5,'(1)고정자산'!N107:N116,">0")>0),(SUMIFS('(1)고정자산'!F123:F132,'(1)고정자산'!C123:C132,'(1)고정자산'!C5,'(1)고정자산'!N123:N132,">0")>0)),SUMIFS('(1)고정자산'!F107:F116,'(1)고정자산'!C107:C116,'(1)고정자산'!C5,'(1)고정자산'!N107:N116,">0")+SUMIFS('(1)고정자산'!F123:F132,'(1)고정자산'!C123:C132,'(1)고정자산'!C5,'(1)고정자산'!N123:N132,">0")+SUM('(8)연말잔액'!G19:G21)-SUM('(2)기초자산,부채'!M17:M19),SUM('(8)연말잔액'!G19:G21)-SUM('(2)기초자산,부채'!M17:M19)) -> 0
B42: 당기생산물생산원가 | D42: =D39-D40-D41 -> 9185000 | G42: 당기생산물생산원가 | I42: =I39-I40-I41 -> 1853750 | L42: 당기생산물생산원가 | N42: =N39-N40-N41 -> 4943750 | Q42: 당기생산물생산원가 | S42: =S39-S40-S41 -> 1443750 | V42: 당기생산물생산원가 | X42: =X39-X40-X41 -> 943750

Sheet (10)손익계산서
B2: 손익계산서 | G2: ='(1)고정자산'!C6&" 손익계산서" -> 딸기 손익계산서 | L2: ='(1)고정자산'!C7&" 손익계산서" -> 수박 손익계산서 | Q2: ='(1)고정자산'!C8&" 손익계산서" -> 참외 손익계산서 | V2: ='(1)고정자산'!C9&" 손익계산서" -> 토마토 손익계산서
B4: ="회사명 : " & '(1)고정자산'!$C$3 -> 회사명 : 맛있는 딸기만팜 | G4: ="회사명 : " & '(1)고정자산'!$C$3 -> 회사명 : 맛있는 딸기만팜 | L4: ="회사명 : " & '(1)고정자산'!$C$3 -> 회사명 : 맛있는 딸기만팜 | Q4: ="회사명 : " & '(1)고정자산'!$C$3 -> 회사명 : 맛있는 딸기만팜 | V4: ="회사명 : " & '(1)고정자산'!$C$3 -> 회사명 : 맛있는 딸기만팜
B5: 계정과목 | C5: 금액 | G5: 계정과목 | H5: 금액 | L5: 계정과목 | M5: 금액 | Q5: 계정과목 | R5: 금액 | V5: 계정과목 | W5: 금액
B6: 매출액 | D6: =SUM(C7:C12) -> 13000000 | G6: 매출액 | I6: =SUM(H7:H12) -> 3000000 | L6: 매출액 | N6: =SUM(M7:M12) -> 5000000 | Q6: 매출액 | S6: =SUM(R7:R12) -> 2500000 | V6: 매출액 | X6: =SUM(W7:W12) -> 2500000
B7: =" "&'(4)수익'!C5 -> 주산물 판매수익 | C7: =IF('(7)수익,비용요약'!C5="","",'(7)수익,비용요약'!C5) -> 13000000 | G7: =" "&'(4)수익'!C5 -> 주산물 판매수익 | H7: =IF('(7)수익,비용요약'!L5="","",'(7)수익,비용요약'!L5) -> 3000000 | L7: =" "&'(4)수익'!C5 -> 주산물 판매수익 | M7: =IF('(7)수익,비용요약'!U5="","",'(7)수익,비용요약'!U5) -> 5000000 | Q7: =" "&'(4)수익'!C5 -> 주산물 판매수익 | R7: =IF('(7)수익,비용요약'!AD5="","",'(7)수익,비용요약'!AD5) -> 2500000 | V7: =" "&'(4)수익'!C5 -> 주산물 판매수익 | W7: =IF('(7)수익,비용요약'!AM5="","",'(7)수익,비용요약'!AM5) -> 2500000
B8: =" "&'(4)수익'!C6 -> 부산물 판매수익 | C8: =IF('(7)수익,비용요약'!C6="","",'(7)수익,비용요약'!C6) ->  | G8: =" "&'(4)수익'!C6 -> 부산물 판매수익 | H8: =IF('(7)수익,비용요약'!L6="","",'(7)수익,비용요약'!L6) ->  | L8: =" "&'(4)수익'!C6 -> 부산물 판매수익 | M8: =IF('(7)수익,비용요약'!U6="","",'(7)수익,비용요약'!U6) ->  | Q8: =" "&'(4)수익'!C6 -> 부산물 판매수익 | R8: =IF('(7)수익,비용요약'!AD6="","",'(7)수익,비용요약'!AD6) ->  | V8: =" "&'(4)수익'!C6 -> 부산물 판매수익 | W8: =IF('(7)수익,비용요약'!AM6="","",'(7)수익,비용요약'!AM6) -> 
B9: =" "&'(4)수익'!C7 -> 가공품 판매수익 | C9: =IF('(7)수익,비용요약'!C7="","",'(7)수익,비용요약'!C7) ->  | G9: =" "&'(4)수익'!C7 -> 가공품 판매수익 | H9: =IF('(7)수익,비용요약'!L7="","",'(7)수익,비용요약'!L7) ->  | L9: =" "&'(4)수익'!C7 -> 가공품 판매수익 | M9: =IF('(7)수익,비용요약'!U7="","",'(7)수익,비용요약'!U7) ->  | Q9: =" "&'(4)수익'!C7 -> 가공품 판매수익 | R9: =IF('(7)수익,비용요약'!AD7="","",'(7)수익,비용요약'!AD7) ->  | V9: =" "&'(4)수익'!C7 -> 가공품 판매수익 | W9: =IF('(7)수익,비용요약'!AM7="","",'(7)수익,비용요약'!AM7) -> 
B10: =" "&'(4)수익'!C8 ->  | C10: =IF('(7)수익,비용요약'!C8="","",'(7)수익,비용요약'!C8) ->  | G10: =" "&'(4)수익'!C8 ->  | H10: =IF('(7)수익,비용요약'!L8="","",'(7)수익,비용요약'!L8) ->  | L10: =" "&'(4)수익'!C8 ->  | M10: =IF('(7)수익,비용요약'!U8="","",'(7)수익,비용요약'!U8) ->  | Q10: =" "&'(4)수익'!C8 ->  | R10: =IF('(7)수익,비용요약'!AD8="","",'(7)수익,비용요약'!AD8) ->  | V10: =" "&'(4)수익'!C8 ->  | W10: =IF('(7)수익,비용요약'!AM8="","",'(7)수익,비용요약'!AM8) -> 
B11: =" "&'(4)수익'!C9 ->  | C11: =IF('(7)수익,비용요약'!C9="","",'(7)수익,비용요약'!C9) ->  | G11: =" "&'(4)수익'!C9 ->  | H11: =IF('(7)수익,비용요약'!L9="","",'(7)수익,비용요약'!L9) ->  | L11: =" "&'(4)수익'!C9 ->  | M11: =IF('(7)수익,비용요약'!U9="","",'(7)수익,비용요약'!U9) ->  | Q11: =" "&'(4)수익'!C9 ->  | R11: =IF('(7)수익,비용요약'!AD9="","",'(7)수익,비용요약'!AD9) ->  | V11: =" "&'(4)수익'!C9 ->  | W11: =IF('(7)수익,비용요약'!AM9="","",'(7)수익,비용요약'!AM9) -> 
B12: =" "&'(4)수익'!C10 ->  | C12: =IF('(7)수익,비용요약'!C10="","",'(7)수익,비용요약'!C10) ->  | G12: =" "&'(4)수익'!C10 ->  | H12: =IF('(7)수익,비용요약'!L10="","",'(7)수익,비용요약'!L10) ->  | L12: =" "&'(4)수익'!C10 ->  | M12: =IF('(7)수익,비용요약'!U10="","",'(7)수익,비용요약'!U10) ->  | Q12: =" "&'(4)수익'!C10 ->  | R12: =IF('(7)수익,비용요약'!AD10="","",'(7)수익,비용요약'!AD10) ->  | V12: =" "&'(4)수익'!C10 ->  | W12: =IF('(7)수익,비용요약'!AM10="","",'(7)수익,비용요약'!AM10) -> 
B13: 매출원가 | D13: =C14+C15-C16 -> 9485000 | G13: 매출원가 | I13: =H14+H15-H16 -> 2153750 | L13: 매출원가 | N13: =M14+M15-M16 -> 4943750 | Q13: 매출원가 | S13: =R14+R15-R16 -> 1443750 | V13: 매출원가 | X13: =W14+W15-W16 -> 943750
B14: 기초생산물재고액 | C14: =SUM('(2)기초자산,부채'!I20:I25) -> 500000 | G14: 기초생산물재고액 | H14: =SUM('(2)기초자산,부채'!J20:J25) -> 500000 | L14: 기초생산물재고액 | M14: =SUM('(2)기초자산,부채'!K20:K25) -> 0 | Q14: 기초생산물재고액 | R14: =SUM('(2)기초자산,부채'!L20:L25) -> 0 | V14: 기초생산물재고액 | W14: =SUM('(2)기초자산,부채'!M20:M25) -> 0
B15: 당기생산물생산원가 | C15: ='(9)생산원가명세서'!D42 -> 9185000 | G15: 당기생산물생산원가 | H15: ='(9)생산원가명세서'!I42 -> 1853750 | L15: 당기생산물생산원가 | M15: ='(9)생산원가명세서'!N42 -> 4943750 | Q15: 당기생산물생산원가 | R15: ='(9)생산원가명세서'!S42 -> 1443750 | V15: 당기생산물생산원가 | W15: ='(9)생산원가명세서'!X42 -> 943750
B16: 기말생산물재고액 | C16: =SUM('(8)연말잔액'!C22:C27) -> 200000 | G16: 기말생산물재고액 | H16: =SUM('(8)연말잔액'!D22:D27) -> 200000 | L16: 기말생산물재고액 | M16: =SUM('(8)연말잔액'!E22:E27) -> 0 | Q16: 기말생산물재고액 | R16: =SUM('(8)연말잔액'!F22:F27) -> 0 | V16: 기말생산물재고액 | W16: =SUM('(8)연말잔액'!G22:G27) -> 0
B17: 매출총이익 | D17: =D6-D13 -> 3515000 | G17: 매출총이익 | I17: =I6-I13 -> 846250 | L17: 매출총이익 | N17: =N6-N13 -> 56250 | Q17: 매출총이익 | S17: =S6-S13 -> 1056250 | V17: 매출총이익 | X17: =X6-X13 -> 1556250
B18: 판매비와관리비 | D18: =SUM(C19:C37) -> 500000 | G18: 판매비와관리비 | I18: =SUM(H19:H37) -> 0 | L18: 판매비와관리비 | N18: =SUM(M19:M37) -> 200000 | Q18: 판매비와관리비 | S18: =SUM(R19:R37) -> 200000 | V18: 판매비와관리비 | X18: =SUM(W19:W37) -> 100000
B19: =" "&'(6)판매비와관리비 등'!C5 -> 급여(판매, 관리) | C19: =IF('(7)수익,비용요약'!I5="","",'(7)수익,비용요약'!I5) ->  | G19: =" "&'(6)판매비와관리비 등'!C5 -> 급여(판매, 관리) | H19: =IF('(7)수익,비용요약'!R5="","",'(7)수익,비용요약'!R5) ->  | L19: =" "&'(6)판매비와관리비 등'!C5 -> 급여(판매, 관리) | M19: =IF('(7)수익,비용요약'!AA5="","",'(7)수익,비용요약'!AA5) ->  | Q19: =" "&'(6)판매비와관리비 등'!C5 -> 급여(판매, 관리) | R19: =IF('(7)수익,비용요약'!AJ5="","",'(7)수익,비용요약'!AJ5) ->  | V19: =" "&'(6)판매비와관리비 등'!C5 -> 급여(판매, 관리) | W19: =IF('(7)수익,비용요약'!AS5="","",'(7)수익,비용요약'!AS5) -> 
B20: =" "&'(6)판매비와관리비 등'!C6 -> 임차료(판매, 관리) | C20: =IF('(7)수익,비용요약'!I6="","",'(7)수익,비용요약'!I6) ->  | G20: =" "&'(6)판매비와관리비 등'!C6 -> 임차료(판매, 관리) | H20: =IF('(7)수익,비용요약'!R6="","",'(7)수익,비용요약'!R6) ->  | L20: =" "&'(6)판매비와관리비 등'!C6 -> 임차료(판매, 관리) | M20: =IF('(7)수익,비용요약'!AA6="","",'(7)수익,비용요약'!AA6) ->  | Q20: =" "&'(6)판매비와관리비 등'!C6 -> 임차료(판매, 관리) | R20: =IF('(7)수익,비용요약'!AJ6="","",'(7)수익,비용요약'!AJ6) ->  | V20: =" "&'(6)판매비와관리비 등'!C6 -> 임차료(판매, 관리) | W20: =IF('(7)수익,비용요약'!AS6="","",'(7)수익,비용요약'!AS6) -> 
B21: =" "&'(6)판매비와관리비 등'!C7 -> 판매추진비(운반,상하차) | C21: =IF('(7)수익,비용요약'!I7="","",'(7)수익,비용요약'!I7) ->  | G21: =" "&'(6)판매비와관리비 등'!C7 -> 판매추진비(운반,상하차) | H21: =IF('(7)수익,비용요약'!R7="","",'(7)수익,비용요약'!R7) ->  | L21: =" "&'(6)판매비와관리비 등'!C7 -> 판매추진비(운반,상하차) | M21: =IF('(7)수익,비용요약'!AA7="","",'(7)수익,비용요약'!AA7) ->  | Q21: =" "&'(6)판매비와관리비 등'!C7 -> 판매추진비(운반,상하차) | R21: =IF('(7)수익,비용요약'!AJ7="","",'(7)수익,비용요약'!AJ7) ->  | V21: =" "&'(6)판매비와관리비 등'!C7 -> 판매추진비(운반,상하차) | W21: =IF('(7)수익,비용요약'!AS7="","",'(7)수익,비용요약'!AS7) -> 
B22: =" "&'(6)판매비와관리비 등'!C8 -> 판매수수료 | C22: =IF('(7)수익,비용요약'!I8="","",'(7)수익,비용요약'!I8) ->  | G22: =" "&'(6)판매비와관리비 등'!C8 -> 판매수수료 | H22: =IF('(7)수익,비용요약'!R8="","",'(7)수익,비용요약'!R8) ->  | L22: =" "&'(6)판매비와관리비 등'!C8 -> 판매수수료 | M22: =IF('(7)수익,비용요약'!AA8="","",'(7)수익,비용요약'!AA8) ->  | Q22: =" "&'(6)판매비와관리비 등'!C8 -> 판매수수료 | R22: =IF('(7)수익,비용요약'!AJ8="","",'(7)수익,비용요약'!AJ8) ->  | V22: =" "&'(6)판매비와관리비 등'!C8 -> 판매수수료 | W22: =IF('(7)수익,비용요약'!AS8="","",'(7)수익,비용요약'!AS8) -> 
B23: =" "&'(6)판매비와관리비 등'!C9 -> 복리후생비 | C23: =IF('(7)수익,비용요약'!I9="","",'(7)수익,비용요약'!I9) -> 200000 | G23: =" "&'(6)판매비와관리비 등'!C9 -> 복리후생비 | H23: =IF('(7)수익,비용요약'!R9="","",'(7)수익,비용요약'!R9) ->  | L23: =" "&'(6)판매비와관리비 등'!C9 -> 복리후생비 | M23: =IF('(7)수익,비용요약'!AA9="","",'(7)수익,비용요약'!AA9) ->  | Q23: =" "&'(6)판매비와관리비 등'!C9 -> 복리후생비 | R23: =IF('(7)수익,비용요약'!AJ9="","",'(7)수익,비용요약'!AJ9) -> 200000 | V23: =" "&'(6)판매비와관리비 등'!C9 -> 복리후생비 | W23: =IF('(7)수익,비용요약'!AS9="","",'(7)수익,비용요약'!AS9) -> 
B24: =" "&'(6)판매비와관리비 등'!C10 -> 접대비 | C24: =IF('(7)수익,비용요약'!I10="","",'(7)수익,비용요약'!I10) -> 200000 | G24: =" "&'(6)판매비와관리비 등'!C10 -> 접대비 | H24: =IF('(7)수익,비용요약'!R10="","",'(7)수익,비용요약'!R10) ->  | L24: =" "&'(6)판매비와관리비 등'!C10 -> 접대비 | M24: =IF('(7)수익,비용요약'!AA10="","",'(7)수익,비용요약'!AA10) -> 200000 | Q24: =" "&'(6)판매비와관리비 등'!C10 -> 접대비 | R24: =IF('(7)수익,비용요약'!AJ10="","",'(7)수익,비용요약'!AJ10) ->  | V24: =" "&'(6)판매비와관리비 등'!C10 -> 접대비 | W24: =IF('(7)수익,비용요약'!AS10="","",'(7)수익,비용요약'!AS10) -> 
B25: =" "&'(6)판매비와관리비 등'!C11 -> 차량유지비 | C25: =IF('(7)수익,비용요약'!I11="","",'(7)수익,비용요약'!I11) -> 100000 | G25: =" "&'(6)판매비와관리비 등'!C11 -> 차량유지비 | H25: =IF('(7)수익,비용요약'!R11="","",'(7)수익,비용요약'!R11) ->  | L25: =" "&'(6)판매비와관리비 등'!C11 -> 차량유지비 | M25: =IF('(7)수익,비용요약'!AA11="","",'(7)수익,비용요약'!AA11) ->  | Q25: =" "&'(6)판매비와관리비 등'!C11 -> 차량유지비 | R25: =IF('(7)수익,비용요약'!AJ11="","",'(7)수익,비용요약'!AJ11) ->  | V25: =" "&'(6)판매비와관리비 등'!C11 -> 차량유지비 | W25: =IF('(7)수익,비용요약'!AS11="","",'(7)수익,비용요약'!AS11) -> 100000
B26: =" "&'(6)판매비와관리비 등'!C12 -> 교통비 | C26: =IF('(7)수익,비용요약'!I12="","",'(7)수익,비용요약'!I12) ->  | G26: =" "&'(6)판매비와관리비 등'!C12 -> 교통비 | H26: =IF('(7)수익,비용요약'!R12="","",'(7)수익,비용요약'!R12) ->  | L26: =" "&'(6)판매비와관리비 등'!C12 -> 교통비 | M26: =IF('(7)수익,비용요약'!AA12="","",'(7)수익,비용요약'!AA12) ->  | Q26: =" "&'(6)판매비와관리비 등'!C12 -> 교통비 | R26: =IF('(7)수익,비용요약'!AJ12="","",'(7)수익,비용요약'!AJ12) ->  | V26: =" "&'(6)판매비와관리비 등'!C12 -> 교통비 | W26: =IF('(7)수익,비용요약'!AS12="","",'(7)수익,비용요약'!AS12) -> 
B27: =" "&'(6)판매비와관리비 등'!C13 -> 광고선전비 | C27: =IF('(7)수익,비용요약'!I13="","",'(7)수익,비용요약'!I13) ->  | G27: =" "&'(6)판매비와관리비 등'!C13 -> 광고선전비 | H27: =IF('(7)수익,비용요약'!R13="","",'(7)수익,비용요약'!R13) ->  | L27: =" "&'(6)판매비와관리비 등'!C13 -> 광고선전비 | M27: =IF('(7)수익,비용요약'!AA13="","",'(7)수익,비용요약'!AA13) ->  | Q27: =" "&'(6)판매비와관리비 등'!C13 -> 광고선전비 | R27: =IF('(7)수익,비용요약'!AJ13="","",'(7)수익,비용요약'!AJ13) ->  | V27: =" "&'(6)판매비와관리비 등'!C13 -> 광고선전비 | W27: =IF('(7)수익,비용요약'!AS13="","",'(7)수익,비용요약'!AS13) -> 
B28: =" "&'(6)판매비와관리비 등'!C14 -> 통신비 | C28: =IF('(7)수익,비용요약'!I14="","",'(7)수익,비용요약'!I14) ->  | G28: =" "&'(6)판매비와관리비 등'!C14 -> 통신비 | H28: =IF('(7)수익,비용요약'!R14="","",'(7)수익,비용요약'!R14) ->  | L28: =" "&'(6)판매비와관리비 등'!C14 -> 통신비 | M28: =IF('(7)수익,비용요약'!AA14="","",'(7)수익,비용요약'!AA14) ->  | Q28: =" "&'(6)판매비와관리비 등'!C14 -> 통신비 | R28: =IF('(7)수익,비용요약'!AJ14="","",'(7)수익,비용요약'!AJ14) ->  | V28: =" "&'(6)판매비와관리비 등'!C14 -> 통신비 | W28: =IF('(7)수익,비용요약'!AS14="","",'(7)수익,비용요약'!AS14) -> 
B29: =" "&'(6)판매비와관리비 등'!C15 -> 도서인쇄비 | C29: =IF('(7)수익,비용요약'!I15="","",'(7)수익,비용요약'!I15) ->  | G29: =" "&'(6)판매비와관리비 등'!C15 -> 도서인쇄비 | H29: =IF('(7)수익,비용요약'!R15="","",'(7)수익,비용요약'!R15) ->  | L29: =" "&'(6)판매비와관리비 등'!C15 -> 도서인쇄비 | M29: =IF('(7)수익,비용요약'!AA15="","",'(7)수익,비용요약'!AA15) ->  | Q29: =" "&'(6)판매비와관리비 등'!C15 -> 도서인쇄비 | R29: =IF('(7)수익,비용요약'!AJ15="","",'(7)수익,비용요약'!AJ15) ->  | V29: =" "&'(6)판매비와관리비 등'!C15 -> 도서인쇄비 | W29: =IF('(7)수익,비용요약'!AS15="","",'(7)수익,비용요약'!AS15) -> 
B30: =" "&'(6)판매비와관리비 등'!C16 -> 소모품비 | C30: =IF('(7)수익,비용요약'!I16="","",'(7)수익,비용요약'!I16) ->  | G30: =" "&'(6)판매비와관리비 등'!C16 -> 소모품비 | H30: =IF('(7)수익,비용요약'!R16="","",'(7)수익,비용요약'!R16) ->  | L30: =" "&'(6)판매비와관리비 등'!C16 -> 소모품비 | M30: =IF('(7)수익,비용요약'!AA16="","",'(7)수익,비용요약'!AA16) ->  | Q30: =" "&'(6)판매비와관리비 등'!C16 -> 소모품비 | R30: =IF('(7)수익,비용요약'!AJ16="","",'(7)수익,비용요약'!AJ16) ->  | V30: =" "&'(6)판매비와관리비 등'!C16 -> 소모품비 | W30: =IF('(7)수익,비용요약'!AS16="","",'(7)수익,비용요약'!AS16) -> 
B31: =" "&'(6)판매비와관리비 등'!C17 -> 보험료(판매, 관리) | C31: =IF('(7)수익,비용요약'!I17="","",'(7)수익,비용요약'!I17) ->  | G31: =" "&'(6)판매비와관리비 등'!C17 -> 보험료(판매, 관리) | H31: =IF('(7)수익,비용요약'!R17="","",'(7)수익,비용요약'!R17) ->  | L31: =" "&'(6)판매비와관리비 등'!C17 -> 보험료(판매, 관리) | M31: =IF('(7)수익,비용요약'!AA17="","",'(7)수익,비용요약'!AA17) ->  | Q31: =" "&'(6)판매비와관리비 등'!C17 -> 보험료(판매, 관리) | R31: =IF('(7)수익,비용요약'!AJ17="","",'(7)수익,비용요약'!AJ17) ->  | V31: =" "&'(6)판매비와관리비 등'!C17 -> 보험료(판매, 관리) | W31: =IF('(7)수익,비용요약'!AS17="","",'(7)수익,비용요약'!AS17) -> 
B32: =" "&'(6)판매비와관리비 등'!C18 -> 잡비 | C32: =IF('(7)수익,비용요약'!I18="","",'(7)수익,비용요약'!I18) ->  | G32: =" "&'(6)판매비와관리비 등'!C18 -> 잡비 | H32: =IF('(7)수익,비용요약'!R18="","",'(7)수익,비용요약'!R18) ->  | L32: =" "&'(6)판매비와관리비 등'!C18 -> 잡비 | M32: =IF('(7)수익,비용요약'!AA18="","",'(7)수익,비용요약'!AA18) ->  | Q32: =" "&'(6)판매비와관리비 등'!C18 -> 잡비 | R32: =IF('(7)수익,비용요약'!AJ18="","",'(7)수익,비용요약'!AJ18) ->  | V32: =" "&'(6)판매비와관리비 등'!C18 -> 잡비 | W32: =IF('(7)수익,비용요약'!AS18="","",'(7)수익,비용요약'!AS18) -> 
B33: =" "&'(6)판매비와관리비 등'!C19 ->  | C33: =IF('(7)수익,비용요약'!I19="","",'(7)수익,비용요약'!I19) ->  | G33: =" "&'(6)판매비와관리비 등'!C19 ->  | H33: =IF('(7)수익,비용요약'!R19="","",'(7)수익,비용요약'!R19) ->  | L33: =" "&'(6)판매비와관리비 등'!C19 ->  | M33: =IF('(7)수익,비용요약'!AA19="","",'(7)수익,비용요약'!AA19) ->  | Q33: =" "&'(6)판매비와관리비 등'!C19 ->  | R33: =IF('(7)수익,비용요약'!AJ19="","",'(7)수익,비용요약'!AJ19) ->  | V33: =" "&'(6)판매비와관리비 등'!C19 ->  | W33: =IF('(7)수익,비용요약'!AS19="","",'(7)수익,비용요약'!AS19) -> 
B34: =" "&'(6)판매비와관리비 등'!C20 ->  | C34: =IF('(7)수익,비용요약'!I20="","",'(7)수익,비용요약'!I20) ->  | G34: =" "&'(6)판매비와관리비 등'!C20 ->  | H34: =IF('(7)수익,비용요약'!R20="","",'(7)수익,비용요약'!R20) ->  | L34: =" "&'(6)판매비와관리비 등'!C20 ->  | M34: =IF('(7)수익,비용요약'!AA20="","",'(7)수익,비용요약'!AA20) ->  | Q34: =" "&'(6)판매비와관리비 등'!C20 ->  | R34: =IF('(7)수익,비용요약'!AJ20="","",'(7)수익,비용요약'!AJ20) ->  | V34: =" "&'(6)판매비와관리비 등'!C20 ->  | W34: =IF('(7)수익,비용요약'!AS20="","",'(7)수익,비용요약'!AS20) -> 
B35: =" "&'(6)판매비와관리비 등'!C21 ->  | C35: =IF('(7)수익,비용요약'!I21="","",'(7)수익,비용요약'!I21) ->  | G35: =" "&'(6)판매비와관리비 등'!C21 ->  | H35: =IF('(7)수익,비용요약'!R21="","",'(7)수익,비용요약'!R21) ->  | L35: =" "&'(6)판매비와관리비 등'!C21 ->  | M35: =IF('(7)수익,비용요약'!AA21="","",'(7)수익,비용요약'!AA21) ->  | Q35: =" "&'(6)판매비와관리비 등'!C21 ->  | R35: =IF('(7)수익,비용요약'!AJ21="","",'(7)수익,비용요약'!AJ21) ->  | V35: =" "&'(6)판매비와관리비 등'!C21 ->  | W35: =IF('(7)수익,비용요약'!AS21="","",'(7)수익,비용요약'!AS21) -> 
B36: =" "&'(6)판매비와관리비 등'!C22 ->  | C36: =IF('(7)수익,비용요약'!I22="","",'(7)수익,비용요약'!I22) ->  | G36: =" "&'(6)판매비와관리비 등'!C22 ->  | H36: =IF('(7)수익,비용요약'!R22="","",'(7)수익,비용요약'!R22) ->  | L36: =" "&'(6)판매비와관리비 등'!C22 ->  | M36: =IF('(7)수익,비용요약'!AA22="","",'(7)수익,비용요약'!AA22) ->  | Q36: =" "&'(6)판매비와관리비 등'!C22 ->  | R36: =IF('(7)수익,비용요약'!AJ22="","",'(7)수익,비용요약'!AJ22) ->  | V36: =" "&'(6)판매비와관리비 등'!C22 ->  | W36: =IF('(7)수익,비용요약'!AS22="","",'(7)수익,비용요약'!AS22) -> 
B37: =" "&'(6)판매비와관리비 등'!C23 ->  | C37: =IF('(7)수익,비용요약'!I23="","",'(7)수익,비용요약'!I23) ->  | G37: =" "&'(6)판매비와관리비 등'!C23 ->  | H37: =IF('(7)수익,비용요약'!R23="","",'(7)수익,비용요약'!R23) ->  | L37: =" "&'(6)판매비와관리비 등'!C23 ->  | M37: =IF('(7)수익,비용요약'!AA23="","",'(7)수익,비용요약'!AA23) ->  | Q37: =" "&'(6)판매비와관리비 등'!C23 ->  | R37: =IF('(7)수익,비용요약'!AJ23="","",'(7)수익,비용요약'!AJ23) ->  | V37: =" "&'(6)판매비와관리비 등'!C23 ->  | W37: =IF('(7)수익,비용요약'!AS23="","",'(7)수익,비용요약'!AS23) -> 
B38: 영업이익 | D38: =D17-D18 -> 3015000 | G38: 영업이익 | I38: =I17-I18 -> 846250 | L38: 영업이익 | N38: =N17-N18 -> -143750 | Q38: 영업이익 | S38: =S17-S18 -> 856250 | V38: 영업이익 | X38: =X17-X18 -> 1456250
B39: 영업외수익 | D39: =SUM(C40:C49) -> 0 | G39: 영업외수익 | I39: =SUM(H40:H49) -> 0 | L39: 영업외수익 | N39: =SUM(M40:M49) -> 0 | Q39: 영업외수익 | S39: =SUM(R40:R49) -> 0 | V39: 영업외수익 | X39: =SUM(W40:W49) -> 0
B40: =" "&'(4)수익'!C11 -> 정부보조금 | C40: =IF('(7)수익,비용요약'!C14="","",'(7)수익,비용요약'!C14) ->  | G40: =" "&'(4)수익'!C11 -> 정부보조금 | H40: =IF('(7)수익,비용요약'!L14="","",'(7)수익,비용요약'!L14) ->  | L40: =" "&'(4)수익'!C11 -> 정부보조금 | M40: =IF('(7)수익,비용요약'!U14="","",'(7)수익,비용요약'!U14) ->  | Q40: =" "&'(4)수익'!C11 -> 정부보조금 | R40: =IF('(7)수익,비용요약'!AD14="","",'(7)수익,비용요약'!AD14) ->  | V40: =" "&'(4)수익'!C11 -> 정부보조금 | W40: =IF('(7)수익,비용요약'!AM14="","",'(7)수익,비용요약'!AM14) -> 
B41: =" "&'(4)수익'!C12 -> 이자 수익 | C41: =IF('(7)수익,비용요약'!C15="","",'(7)수익,비용요약'!C15) ->  | G41: =" "&'(4)수익'!C12 -> 이자 수익 | H41: =IF('(7)수익,비용요약'!L15="","",'(7)수익,비용요약'!L15) ->  | L41: =" "&'(4)수익'!C12 -> 이자 수익 | M41: =IF('(7)수익,비용요약'!U15="","",'(7)수익,비용요약'!U15) ->  | Q41: =" "&'(4)수익'!C12 -> 이자 수익 | R41: =IF('(7)수익,비용요약'!AD15="","",'(7)수익,비용요약'!AD15) ->  | V41: =" "&'(4)수익'!C12 -> 이자 수익 | W41: =IF('(7)수익,비용요약'!AM15="","",'(7)수익,비용요약'!AM15) -> 
B42: =" "&'(4)수익'!C13 -> 임대료 수익 | C42: =IF('(7)수익,비용요약'!C16="","",'(7)수익,비용요약'!C16) ->  | G42: =" "&'(4)수익'!C13 -> 임대료 수익 | H42: =IF('(7)수익,비용요약'!L16="","",'(7)수익,비용요약'!L16) ->  | L42: =" "&'(4)수익'!C13 -> 임대료 수익 | M42: =IF('(7)수익,비용요약'!U16="","",'(7)수익,비용요약'!U16) ->  | Q42: =" "&'(4)수익'!C13 -> 임대료 수익 | R42: =IF('(7)수익,비용요약'!AD16="","",'(7)수익,비용요약'!AD16) ->  | V42: =" "&'(4)수익'!C13 -> 임대료 수익 | W42: =IF('(7)수익,비용요약'!AM16="","",'(7)수익,비용요약'!AM16) -> 
B43: =" "&'(4)수익'!C14 -> 유형자산 처분 이익 | C43: =IF('(7)수익,비용요약'!C17="","",'(7)수익,비용요약'!C17) ->  | G43: =" "&'(4)수익'!C14 -> 유형자산 처분 이익 | H43: =IF('(7)수익,비용요약'!L17="","",'(7)수익,비용요약'!L17) ->  | L43: =" "&'(4)수익'!C14 -> 유형자산 처분 이익 | M43: =IF('(7)수익,비용요약'!U17="","",'(7)수익,비용요약'!U17) ->  | Q43: =" "&'(4)수익'!C14 -> 유형자산 처분 이익 | R43: =IF('(7)수익,비용요약'!AD17="","",'(7)수익,비용요약'!AD17) ->  | V43: =" "&'(4)수익'!C14 -> 유형자산 처분 이익 | W43: =IF('(7)수익,비용요약'!AM17="","",'(7)수익,비용요약'!AM17) -> 
B44: =" "&'(4)수익'!C15 -> 수수료 수익 | C44: =IF('(7)수익,비용요약'!C18="","",'(7)수익,비용요약'!C18) ->  | G44: =" "&'(4)수익'!C15 -> 수수료 수익 | H44: =IF('(7)수익,비용요약'!L18="","",'(7)수익,비용요약'!L18) ->  | L44: =" "&'(4)수익'!C15 -> 수수료 수익 | M44: =IF('(7)수익,비용요약'!U18="","",'(7)수익,비용요약'!U18) ->  | Q44: =" "&'(4)수익'!C15 -> 수수료 수익 | R44: =IF('(7)수익,비용요약'!AD18="","",'(7)수익,비용요약'!AD18) ->  | V44: =" "&'(4)수익'!C15 -> 수수료 수익 | W44: =IF('(7)수익,비용요약'!AM18="","",'(7)수익,비용요약'!AM18) -> 
B45: =" "&'(4)수익'!C16 -> 잡이익 | C45: =IF('(7)수익,비용요약'!C19="","",'(7)수익,비용요약'!C19) ->  | G45: =" "&'(4)수익'!C16 -> 잡이익 | H45: =IF('(7)수익,비용요약'!L19="","",'(7)수익,비용요약'!L19) ->  | L45: =" "&'(4)수익'!C16 -> 잡이익 | M45: =IF('(7)수익,비용요약'!U19="","",'(7)수익,비용요약'!U19) ->  | Q45: =" "&'(4)수익'!C16 -> 잡이익 | R45: =IF('(7)수익,비용요약'!AD19="","",'(7)수익,비용요약'!AD19) ->  | V45: =" "&'(4)수익'!C16 -> 잡이익 | W45: =IF('(7)수익,비용요약'!AM19="","",'(7)수익,비용요약'!AM19) -> 
B46: =" "&'(4)수익'!C17 ->  | C46: =IF('(7)수익,비용요약'!C20="","",'(7)수익,비용요약'!C20) ->  | G46: =" "&'(4)수익'!C17 ->  | H46: =IF('(7)수익,비용요약'!L20="","",'(7)수익,비용요약'!L20) ->  | L46: =" "&'(4)수익'!C17 ->  | M46: =IF('(7)수익,비용요약'!U20="","",'(7)수익,비용요약'!U20) ->  | Q46: =" "&'(4)수익'!C17 ->  | R46: =IF('(7)수익,비용요약'!AD20="","",'(7)수익,비용요약'!AD20) ->  | V46: =" "&'(4)수익'!C17 ->  | W46: =IF('(7)수익,비용요약'!AM20="","",'(7)수익,비용요약'!AM20) -> 
B47: =" "&'(4)수익'!C18 ->  | C47: =IF('(7)수익,비용요약'!C21="","",'(7)수익,비용요약'!C21) ->  | G47: =" "&'(4)수익'!C18 ->  | H47: =IF('(7)수익,비용요약'!L21="","",'(7)수익,비용요약'!L21) ->  | L47: =" "&'(4)수익'!C18 ->  | M47: =IF('(7)수익,비용요약'!U21="","",'(7)수익,비용요약'!U21) ->  | Q47: =" "&'(4)수익'!C18 ->  | R47: =IF('(7)수익,비용요약'!AD21="","",'(7)수익,비용요약'!AD21) ->  | V47: =" "&'(4)수익'!C18 ->  | W47: =IF('(7)수익,비용요약'!AM21="","",'(7)수익,비용요약'!AM21) -> 
B48: =" "&'(4)수익'!C19 ->  | C48: =IF('(7)수익,비용요약'!C22="","",'(7)수익,비용요약'!C22) ->  | G48: =" "&'(4)수익'!C19 ->  | H48: =IF('(7)수익,비용요약'!L22="","",'(7)수익,비용요약'!L22) ->  | L48: =" "&'(4)수익'!C19 ->  | M48: =IF('(7)수익,비용요약'!U22="","",'(7)수익,비용요약'!U22) ->  | Q48: =" "&'(4)수익'!C19 ->  | R48: =IF('(7)수익,비용요약'!AD22="","",'(7)수익,비용요약'!AD22) ->  | V48: =" "&'(4)수익'!C19 ->  | W48: =IF('(7)수익,비용요약'!AM22="","",'(7)수익,비용요약'!AM22) -> 
B49: =" "&'(4)수익'!C20 ->  | C49: =IF('(7)수익,비용요약'!C23="","",'(7)수익,비용요약'!C23) ->  | G49: =" "&'(4)수익'!C20 ->  | H49: =IF('(7)수익,비용요약'!L23="","",'(7)수익,비용요약'!L23) ->  | L49: =" "&'(4)수익'!C20 ->  | M49: =IF('(7)수익,비용요약'!U23="","",'(7)수익,비용요약'!U23) ->  | Q49: =" "&'(4)수익'!C20 ->  | R49: =IF('(7)수익,비용요약'!AD23="","",'(7)수익,비용요약'!AD23) ->  | V49: =" "&'(4)수익'!C20 ->  | W49: =IF('(7)수익,비용요약'!AM23="","",'(7)수익,비용요약'!AM23) -> 
B50: 영업외비용 | D50: =SUM(C51:C55) -> 300000 | G50: 영업외비용 | I50: =SUM(H51:H55) -> 300000 | L50: 영업외비용 | N50: =SUM(M51:M55) -> 0 | Q50: 영업외비용 | S50: =SUM(R51:R55) -> 0 | V50: 영업외비용 | X50: =SUM(W51:W55) -> 0
B51: =" "&'(6)판매비와관리비 등'!C24 -> 이자비용 | C51: =IF('(7)수익,비용요약'!I24="","",'(7)수익,비용요약'!I24) -> 300000 | G51: =" "&'(6)판매비와관리비 등'!C24 -> 이자비용 | H51: =IF('(7)수익,비용요약'!R24="","",'(7)수익,비용요약'!R24) -> 300000 | L51: =" "&'(6)판매비와관리비 등'!C24 -> 이자비용 | M51: =IF('(7)수익,비용요약'!AA24="","",'(7)수익,비용요약'!AA24) ->  | Q51: =" "&'(6)판매비와관리비 등'!C24 -> 이자비용 | R51: =IF('(7)수익,비용요약'!AJ24="","",'(7)수익,비용요약'!AJ24) ->  | V51: =" "&'(6)판매비와관리비 등'!C24 -> 이자비용 | W51: =IF('(7)수익,비용요약'!AS24="","",'(7)수익,비용요약'!AS24) -> 
B52: =" "&'(6)판매비와관리비 등'!C25 -> 세금과공과 | C52: =IF('(7)수익,비용요약'!I25="","",'(7)수익,비용요약'!I25) ->  | G52: =" "&'(6)판매비와관리비 등'!C25 -> 세금과공과 | H52: =IF('(7)수익,비용요약'!R25="","",'(7)수익,비용요약'!R25) ->  | L52: =" "&'(6)판매비와관리비 등'!C25 -> 세금과공과 | M52: =IF('(7)수익,비용요약'!AA25="","",'(7)수익,비용요약'!AA25) ->  | Q52: =" "&'(6)판매비와관리비 등'!C25 -> 세금과공과 | R52: =IF('(7)수익,비용요약'!AJ25="","",'(7)수익,비용요약'!AJ25) ->  | V52: =" "&'(6)판매비와관리비 등'!C25 -> 세금과공과 | W52: =IF('(7)수익,비용요약'!AS25="","",'(7)수익,비용요약'!AS25) -> 
B53: =" "&'(6)판매비와관리비 등'!C26 -> 유형자산처분손실 | C53: =IF('(7)수익,비용요약'!I26="","",'(7)수익,비용요약'!I26) ->  | G53: =" "&'(6)판매비와관리비 등'!C26 -> 유형자산처분손실 | H53: =IF('(7)수익,비용요약'!R26="","",'(7)수익,비용요약'!R26) ->  | L53: =" "&'(6)판매비와관리비 등'!C26 -> 유형자산처분손실 | M53: =IF('(7)수익,비용요약'!AA26="","",'(7)수익,비용요약'!AA26) ->  | Q53: =" "&'(6)판매비와관리비 등'!C26 -> 유형자산처분손실 | R53: =IF('(7)수익,비용요약'!AJ26="","",'(7)수익,비용요약'!AJ26) ->  | V53: =" "&'(6)판매비와관리비 등'!C26 -> 유형자산처분손실 | W53: =IF('(7)수익,비용요약'!AS26="","",'(7)수익,비용요약'!AS26) -> 
B54: =" "&'(6)판매비와관리비 등'!C27 ->  | C54: =IF('(7)수익,비용요약'!I27="","",'(7)수익,비용요약'!I27) ->  | G54: =" "&'(6)판매비와관리비 등'!C27 ->  | H54: =IF('(7)수익,비용요약'!R27="","",'(7)수익,비용요약'!R27) ->  | L54: =" "&'(6)판매비와관리비 등'!C27 ->  | M54: =IF('(7)수익,비용요약'!AA27="","",'(7)수익,비용요약'!AA27) ->  | Q54: =" "&'(6)판매비와관리비 등'!C27 ->  | R54: =IF('(7)수익,비용요약'!AJ27="","",'(7)수익,비용요약'!AJ27) ->  | V54: =" "&'(6)판매비와관리비 등'!C27 ->  | W54: =IF('(7)수익,비용요약'!AS27="","",'(7)수익,비용요약'!AS27) -> 
B55: =" "&'(6)판매비와관리비 등'!C28 ->  | C55: =IF('(7)수익,비용요약'!I28="","",'(7)수익,비용요약'!I28) ->  | G55: =" "&'(6)판매비와관리비 등'!C28 ->  | H55: =IF('(7)수익,비용요약'!R28="","",'(7)수익,비용요약'!R28) ->  | L55: =" "&'(6)판매비와관리비 등'!C28 ->  | M55: =IF('(7)수익,비용요약'!AA28="","",'(7)수익,비용요약'!AA28) ->  | Q55: =" "&'(6)판매비와관리비 등'!C28 ->  | R55: =IF('(7)수익,비용요약'!AJ28="","",'(7)수익,비용요약'!AJ28) ->  | V55: =" "&'(6)판매비와관리비 등'!C28 ->  | W55: =IF('(7)수익,비용요약'!AS28="","",'(7)수익,비용요약'!AS28) -> 
B56: 법인세차감전이익 | D56: =D38+D39-D50 -> 2715000 | G56: 법인세차감전이익 | I56: =I38+I39-I50 -> 546250 | L56: 법인세차감전이익 | N56: =N38+N39-N50 -> -143750 | Q56: 법인세차감전이익 | S56: =S38+S39-S50 -> 856250 | V56: 법인세차감전이익 | X56: =X38+X39-X50 -> 1456250
B57: 법인세등 | D57: =SUM(C58:C61) -> 0 | G57: 법인세등 | I57: =SUM(H58:H61) -> 0 | L57: 법인세등 | N57: =SUM(M58:M61) -> 0 | Q57: 법인세등 | S57: =SUM(R58:R61) -> 0 | V57: 법인세등 | X57: =SUM(W58:W61) -> 0
B58: =" "&'(6)판매비와관리비 등'!C29 -> 법인세 | C58: =IF('(7)수익,비용요약'!I29="","",'(7)수익,비용요약'!I29) ->  | G58: =" "&'(6)판매비와관리비 등'!C29 -> 법인세 | H58: =IF('(7)수익,비용요약'!R29="","",'(7)수익,비용요약'!R29) ->  | L58: =" "&'(6)판매비와관리비 등'!C29 -> 법인세 | M58: =IF('(7)수익,비용요약'!AA29="","",'(7)수익,비용요약'!AA29) ->  | Q58: =" "&'(6)판매비와관리비 등'!C29 -> 법인세 | R58: =IF('(7)수익,비용요약'!AJ29="","",'(7)수익,비용요약'!AJ29) ->  | V58: =" "&'(6)판매비와관리비 등'!C29 -> 법인세 | W58: =IF('(7)수익,비용요약'!AS29="","",'(7)수익,비용요약'!AS29) -> 
B59: =" "&'(6)판매비와관리비 등'!C30 ->  | C59: =IF('(7)수익,비용요약'!I30="","",'(7)수익,비용요약'!I30) ->  | G59: =" "&'(6)판매비와관리비 등'!C30 ->  | H59: =IF('(7)수익,비용요약'!R30="","",'(7)수익,비용요약'!R30) ->  | L59: =" "&'(6)판매비와관리비 등'!C30 ->  | M59: =IF('(7)수익,비용요약'!AA30="","",'(7)수익,비용요약'!AA30) ->  | Q59: =" "&'(6)판매비와관리비 등'!C30 ->  | R59: =IF('(7)수익,비용요약'!AJ30="","",'(7)수익,비용요약'!AJ30) ->  | V59: =" "&'(6)판매비와관리비 등'!C30 ->  | W59: =IF('(7)수익,비용요약'!AS30="","",'(7)수익,비용요약'!AS30) -> 
B60: =" "&'(6)판매비와관리비 등'!C31 ->  | C60: =IF('(7)수익,비용요약'!I31="","",'(7)수익,비용요약'!I31) ->  | G60: =" "&'(6)판매비와관리비 등'!C31 ->  | H60: =IF('(7)수익,비용요약'!R31="","",'(7)수익,비용요약'!R31) ->  | L60: =" "&'(6)판매비와관리비 등'!C31 ->  | M60: =IF('(7)수익,비용요약'!AA31="","",'(7)수익,비용요약'!AA31) ->  | Q60: =" "&'(6)판매비와관리비 등'!C31 ->  | R60: =IF('(7)수익,비용요약'!AJ31="","",'(7)수익,비용요약'!AJ31) ->  | V60: =" "&'(6)판매비와관리비 등'!C31 ->  | W60: =IF('(7)수익,비용요약'!AS31="","",'(7)수익,비용요약'!AS31) -> 
B61: =" "&'(6)판매비와관리비 등'!C32 ->  | C61: =IF('(7)수익,비용요약'!I32="","",'(7)수익,비용요약'!I32) ->  | G61: =" "&'(6)판매비와관리비 등'!C32 ->  | H61: =IF('(7)수익,비용요약'!R32="","",'(7)수익,비용요약'!R32) ->  | L61: =" "&'(6)판매비와관리비 등'!C32 ->  | M61: =IF('(7)수익,비용요약'!AA32="","",'(7)수익,비용요약'!AA32) ->  | Q61: =" "&'(6)판매비와관리비 등'!C32 ->  | R61: =IF('(7)수익,비용요약'!AJ32="","",'(7)수익,비용요약'!AJ32) ->  | V61: =" "&'(6)판매비와관리비 등'!C32 ->  | W61: =IF('(7)수익,비용요약'!AS32="","",'(7)수익,비용요약'!AS32) -> 
B62: 당기순이익 | D62: =D56-D57 -> 2715000 | G62: 당기순이익 | I62: =I56-I57 -> 546250 | L62: 당기순이익 | N62: =N56-N57 -> -143750 | Q62: 당기순이익 | S62: =S56-S57 -> 856250 | V62: 당기순이익 | X62: =X56-X57 -> 1456250

Sheet (11)대차대조표
B2: 기초대차대조표 | J2: 기초대차대조표 요약 | Q2: 기초대차대조표 차변 대변 요약
B4: ="회사명 : " & '(1)고정자산'!C3 -> 회사명 : 맛있는 딸기만팜 | J4: ="회사명 : " & '(1)고정자산'!C3 -> 회사명 : 맛있는 딸기만팜 | Q4: ="회사명 : " & '(1)고정자산'!C3 -> 회사명 : 맛있는 딸기만팜
B5: 계정과목 | C5: ="당기("&'(1)고정자산'!C5&")" -> 당기(2024) | E5: ="전기("&'(1)고정자산'!D5&")" -> 전기(2023) | J5: 계정과목 | K5: ="당기("&'(1)고정자산'!C5&")" -> 당기(2024) | M5: ="전기("&'(1)고정자산'!D5&")" -> 전기(2023) | Q5: ="당기("&'(1)고정자산'!C5&")" -> 당기(2024) | U5: ="전기("&'(1)고정자산'!D5&")" -> 전기(2023)
C6: 금액 | E6: 금액 | K6: 금액 | M6: 금액 | Q6: 계정과목 | R6: 금액 | S6: 계정과목 | T6: 금액 | U6: 계정과목 | V6: 금액 | W6: 계정과목 | X6: 금액
B7: 자 산 | J7: 자 산 | Q7: 자 산 | R7: =L13 -> 37400000 | S7: 부 채 | T7: =L17 -> 18600000 | U7: 자 산 | V7: =N13 -> 30085000 | W7: 부 채 | X7: =N17 -> 12000000
B8: 유동자산 | D8: =SUM(C9,C23) -> 25300000 | E8: =IF('(3)기초대차대조표'!C7="","",'(3)기초대차대조표'!C7) ->  | F8: =IF('(3)기초대차대조표'!D7="","",'(3)기초대차대조표'!D7) -> 16210000 | J8: 유동자산 | L8: =D8 -> 25300000 | N8: =F8 -> 16210000 | S8: 자 본 | T8: =L21 -> 18800000 | W8: 자 본 | X8: =N21 -> 18085000
B9: 당좌자산 | C9: =SUM(C10:C22) -> 24600000 | E9: =IF('(3)기초대차대조표'!C8="","",'(3)기초대차대조표'!C8) -> 15000000 | F9: =IF('(3)기초대차대조표'!D8="","",'(3)기초대차대조표'!D8) ->  | J9: 당좌자산 | K9: =C9 -> 24600000 | M9: =E9 -> 15000000
B10: =" "&'(2)기초자산,부채'!C26 -> 현금 | C10: =IF('(8)연말잔액'!C34="","",'(8)연말잔액'!C34-'(8)연말잔액'!M42) -> 9500000 | E10: =IF('(3)기초대차대조표'!C9="","",'(3)기초대차대조표'!C9) -> 10000000 | F10: =IF('(3)기초대차대조표'!D9="","",'(3)기초대차대조표'!D9) ->  | J10: 재고자산 | K10: =C23 -> 700000 | M10: =E23 -> 1210000
B11: =" "&'(2)기초자산,부채'!C27 -> 단기예금 | C11: =IF('(8)연말잔액'!C35="","",'(8)연말잔액'!C35-'(8)연말잔액'!M43) -> 15100000 | E11: =IF('(3)기초대차대조표'!C10="","",'(3)기초대차대조표'!C10) -> 5000000 | F11: =IF('(3)기초대차대조표'!D10="","",'(3)기초대차대조표'!D10) ->  | J11: 투자자산 | K11: =C43 -> 0 | M11: =E43 -> 0
B12: =" "&'(2)기초자산,부채'!C28 -> 단기대여금 | C12: =IF('(8)연말잔액'!C36="","",'(8)연말잔액'!C36) ->  | E12: =IF('(3)기초대차대조표'!C11="","",'(3)기초대차대조표'!C11) ->  | F12: =IF('(3)기초대차대조표'!D11="","",'(3)기초대차대조표'!D11) ->  | J12: 비유동자산 | L12: =D52 -> 12100000 | N12: =F52 -> 13875000
B13: =" "&'(2)기초자산,부채'!C29 -> 외상매출금 | C13: =IF('(8)연말잔액'!C37="","",'(8)연말잔액'!C37) ->  | E13: =IF('(3)기초대차대조표'!C12="","",'(3)기초대차대조표'!C12) ->  | F13: =IF('(3)기초대차대조표'!D12="","",'(3)기초대차대조표'!D12) ->  | J13: 자 산 총 계 | L13: =D68 -> 37400000 | N13: =F68 -> 30085000
B14: =" "&'(2)기초자산,부채'!C30 -> 미수금 | C14: =IF('(8)연말잔액'!C38="","",'(8)연말잔액'!C38) ->  | E14: =IF('(3)기초대차대조표'!C13="","",'(3)기초대차대조표'!C13) ->  | F14: =IF('(3)기초대차대조표'!D13="","",'(3)기초대차대조표'!D13) ->  | J14: 부 채
B15: =" "&'(2)기초자산,부채'!C31 -> 미수수익 | C15: =IF('(8)연말잔액'!C39="","",'(8)연말잔액'!C39) ->  | E15: =IF('(3)기초대차대조표'!C14="","",'(3)기초대차대조표'!C14) ->  | F15: =IF('(3)기초대차대조표'!D14="","",'(3)기초대차대조표'!D14) ->  | J15: 유동부채 | K15: =C70 -> 16600000 | M15: =E70 -> 10000000
B16: =" "&'(2)기초자산,부채'!C32 -> 선급금 | C16: =IF('(8)연말잔액'!C40="","",'(8)연말잔액'!C40) ->  | E16: =IF('(3)기초대차대조표'!C15="","",'(3)기초대차대조표'!C15) ->  | F16: =IF('(3)기초대차대조표'!D20="","",'(3)기초대차대조표'!D20) ->  | J16: 비유동부채 | K16: =C83 -> 2000000 | M16: =E83 -> 2000000
B17: =" "&'(2)기초자산,부채'!C33 -> 선급비용 | C17: =IF('(8)연말잔액'!C41="","",'(8)연말잔액'!C41) ->  | E17: =IF('(3)기초대차대조표'!C16="","",'(3)기초대차대조표'!C16) ->  | J17: 부 채 총 계 | L17: =D92 -> 18600000 | N17: =F92 -> 12000000
B18: =" "&'(2)기초자산,부채'!C34 ->  | C18: =IF('(8)연말잔액'!C42="","",'(8)연말잔액'!C42) ->  | E18: =IF('(3)기초대차대조표'!C17="","",'(3)기초대차대조표'!C17) ->  | J18: 자 본
B19: =" "&'(2)기초자산,부채'!C35 ->  | C19: =IF('(8)연말잔액'!C43="","",'(8)연말잔액'!C43) ->  | E19: =IF('(3)기초대차대조표'!C18="","",'(3)기초대차대조표'!C18) ->  | J19: 자본금 | K19: =C94 -> 16085000 | M19: =E94 -> 18085000
B20: =" "&'(2)기초자산,부채'!C36 ->  | C20: =IF('(8)연말잔액'!C44="","",'(8)연말잔액'!C44) ->  | E20: =IF('(3)기초대차대조표'!C19="","",'(3)기초대차대조표'!C19) ->  | J20: (당기순이익) | K20: =C97 -> 2715000 | M20: =E97 -> 
B21: =" "&'(2)기초자산,부채'!C37 ->  | C21: =IF('(8)연말잔액'!C45="","",'(8)연말잔액'!C45) ->  | E21: =IF('(3)기초대차대조표'!C20="","",'(3)기초대차대조표'!C20) ->  | J21: 자 본 총 계 | L21: =D99 -> 18800000 | N21: =F99 -> 18085000
B22: =" "&'(2)기초자산,부채'!C38 ->  | C22: =IF('(8)연말잔액'!C46="","",'(8)연말잔액'!C46) ->  | E22: =IF('(3)기초대차대조표'!C21="","",'(3)기초대차대조표'!C21) ->  | F22: =IF('(3)기초대차대조표'!D21="","",'(3)기초대차대조표'!D21) ->  | J22: 부채와 자본 총계 | L22: =D100 -> 37400000 | N22: =F100 -> 30085000
B23: 재고자산 | C23: =SUM(C24:C42) -> 700000 | E23: =IF('(3)기초대차대조표'!C22="","",'(3)기초대차대조표'!C22) -> 1210000 | F23: =IF('(3)기초대차대조표'!D22="","",'(3)기초대차대조표'!D22) -> 
B24: =" "&'(2)기초자산,부채'!C7 -> 종묘,종자,종균 | C24: =IF('(8)연말잔액'!C9="","",'(8)연말잔액'!C9) ->  | E24: =IF('(3)기초대차대조표'!C23="","",'(3)기초대차대조표'!C23) -> 30000 | F24: =IF('(3)기초대차대조표'!D23="","",'(3)기초대차대조표'!D23) -> 
B25: =" "&'(2)기초자산,부채'!C8 -> 비료 | C25: =IF('(8)연말잔액'!C10="","",'(8)연말잔액'!C10) -> 200000 | E25: =IF('(3)기초대차대조표'!C24="","",'(3)기초대차대조표'!C24) -> 100000 | F25: =IF('(3)기초대차대조표'!D24="","",'(3)기초대차대조표'!D24) -> 
B26: =" "&'(2)기초자산,부채'!C9 -> 농약 | C26: =IF('(8)연말잔액'!C11="","",'(8)연말잔액'!C11) ->  | E26: =IF('(3)기초대차대조표'!C25="","",'(3)기초대차대조표'!C25) -> 80000 | F26: =IF('(3)기초대차대조표'!D25="","",'(3)기초대차대조표'!D25) -> 
B27: =" "&'(2)기초자산,부채'!C10 -> 사료 | C27: =IF('(8)연말잔액'!C12="","",'(8)연말잔액'!C12) ->  | E27: =IF('(3)기초대차대조표'!C26="","",'(3)기초대차대조표'!C26) ->  | F27: =IF('(3)기초대차대조표'!D26="","",'(3)기초대차대조표'!D26) -> 
B28: =" "&'(2)기초자산,부채'!C11 -> 약품 | C28: =IF('(8)연말잔액'!C13="","",'(8)연말잔액'!C13) ->  | E28: =IF('(3)기초대차대조표'!C27="","",'(3)기초대차대조표'!C27) ->  | F28: =IF('(3)기초대차대조표'!D27="","",'(3)기초대차대조표'!D27) -> 
B29: =" "&'(2)기초자산,부채'!C12 -> 기타재료 | C29: =IF('(8)연말잔액'!C14="","",'(8)연말잔액'!C14) ->  | E29: =IF('(3)기초대차대조표'!C28="","",'(3)기초대차대조표'!C28) ->  | F29: =IF('(3)기초대차대조표'!D28="","",'(3)기초대차대조표'!D28) -> 
B30: =" "&'(2)기초자산,부채'!C13 ->  | C30: =IF('(8)연말잔액'!C15="","",'(8)연말잔액'!C15) ->  | E30: =IF('(3)기초대차대조표'!C29="","",'(3)기초대차대조표'!C29) ->  | F30: =IF('(3)기초대차대조표'!D29="","",'(3)기초대차대조표'!D29) -> 
B31: =" "&'(2)기초자산,부채'!C14 ->  | C31: =IF('(8)연말잔액'!C16="","",'(8)연말잔액'!C16) ->  | E31: =IF('(3)기초대차대조표'!C30="","",'(3)기초대차대조표'!C30) ->  | F31: =IF('(3)기초대차대조표'!D30="","",'(3)기초대차대조표'!D30) -> 
B32: =" "&'(2)기초자산,부채'!C15 ->  | C32: =IF('(8)연말잔액'!C17="","",'(8)연말잔액'!C17) ->  | E32: =IF('(3)기초대차대조표'!C31="","",'(3)기초대차대조표'!C31) ->  | F32: =IF('(3)기초대차대조표'!D31="","",'(3)기초대차대조표'!D31) -> 
B33: =" "&'(2)기초자산,부채'!C16 -> 생장물 | C33: =IF('(8)연말잔액'!C18="","",'(8)연말잔액'!C18) -> 300000 | E33: =IF('(3)기초대차대조표'!C32="","",'(3)기초대차대조표'!C32) -> 500000 | F33: =IF('(3)기초대차대조표'!D32="","",'(3)기초대차대조표'!D32) -> 
B34: =" "&'(2)기초자산,부채'!C17 -> 성장중인 생물자산(식물) | C34: =IF('(8)연말잔액'!C19="","",'(8)연말잔액'!C19) ->  | E34: =IF('(3)기초대차대조표'!C33="","",'(3)기초대차대조표'!C33) ->  | F34: =IF('(3)기초대차대조표'!D33="","",'(3)기초대차대조표'!D33) -> 
B35: =" "&'(2)기초자산,부채'!C18 -> 성장중인 생물자산(가축) | C35: =IF('(8)연말잔액'!C20="","",'(8)연말잔액'!C20) ->  | E35: =IF('(3)기초대차대조표'!C34="","",'(3)기초대차대조표'!C34) ->  | F35: =IF('(3)기초대차대조표'!D34="","",'(3)기초대차대조표'!D34) -> 
B36: =" "&'(2)기초자산,부채'!C19 ->  | C36: =IF('(8)연말잔액'!C21="","",'(8)연말잔액'!C21) ->  | E36: =IF('(3)기초대차대조표'!C35="","",'(3)기초대차대조표'!C35) ->  | F36: =IF('(3)기초대차대조표'!D35="","",'(3)기초대차대조표'!D35) -> 
B37: =" "&'(2)기초자산,부채'!C20 -> 주산물 | C37: =IF('(8)연말잔액'!C22="","",'(8)연말잔액'!C22) -> 200000 | E37: =IF('(3)기초대차대조표'!C36="","",'(3)기초대차대조표'!C36) -> 500000 | F37: =IF('(3)기초대차대조표'!D36="","",'(3)기초대차대조표'!D36) -> 
B38: =" "&'(2)기초자산,부채'!C21 -> 부산물 | C38: =IF('(8)연말잔액'!C23="","",'(8)연말잔액'!C23) ->  | E38: =IF('(3)기초대차대조표'!C37="","",'(3)기초대차대조표'!C37) ->  | F38: =IF('(3)기초대차대조표'!D37="","",'(3)기초대차대조표'!D37) -> 
B39: =" "&'(2)기초자산,부채'!C22 -> 가공품 | C39: =IF('(8)연말잔액'!C24="","",'(8)연말잔액'!C24) ->  | E39: =IF('(3)기초대차대조표'!C38="","",'(3)기초대차대조표'!C38) ->  | F39: =IF('(3)기초대차대조표'!D38="","",'(3)기초대차대조표'!D38) -> 
B40: =" "&'(2)기초자산,부채'!C23 ->  | C40: =IF('(8)연말잔액'!C25="","",'(8)연말잔액'!C25) ->  | E40: =IF('(3)기초대차대조표'!C39="","",'(3)기초대차대조표'!C39) ->  | F40: =IF('(3)기초대차대조표'!D39="","",'(3)기초대차대조표'!D39) -> 
B41: =" "&'(2)기초자산,부채'!C24 ->  | C41: =IF('(8)연말잔액'!C26="","",'(8)연말잔액'!C26) ->  | E41: =IF('(3)기초대차대조표'!C40="","",'(3)기초대차대조표'!C40) ->  | F41: =IF('(3)기초대차대조표'!D40="","",'(3)기초대차대조표'!D40) -> 
B42: =" "&'(2)기초자산,부채'!C25 ->  | C42: =IF('(8)연말잔액'!C27="","",'(8)연말잔액'!C27) ->  | E42: =IF('(3)기초대차대조표'!C41="","",'(3)기초대차대조표'!C41) ->  | F42: =IF('(3)기초대차대조표'!D41="","",'(3)기초대차대조표'!D41) -> 
B43: 투자자산 | C43: =SUM(C44:C51) -> 0 | E43: =IF('(3)기초대차대조표'!C42="","",'(3)기초대차대조표'!C42) -> 0
B44: =" "&'(2)기초자산,부채'!C39 -> 주식 | C44: =IF('(8)연말잔액'!C53="","",'(8)연말잔액'!C53) ->  | E44: =IF('(3)기초대차대조표'!C43="","",'(3)기초대차대조표'!C43) -> 
B45: =" "&'(2)기초자산,부채'!C40 -> 채권 | C45: =IF('(8)연말잔액'!C54="","",'(8)연말잔액'!C54) ->  | E45: =IF('(3)기초대차대조표'!C44="","",'(3)기초대차대조표'!C44) -> 
B46: =" "&'(2)기초자산,부채'!C41 -> 특허권 | C46: =IF('(8)연말잔액'!C55="","",'(8)연말잔액'!C55) ->  | E46: =IF('(3)기초대차대조표'!C45="","",'(3)기초대차대조표'!C45) -> 
B47: =" "&'(2)기초자산,부채'!C42 ->  | C47: =IF('(8)연말잔액'!C56="","",'(8)연말잔액'!C56) ->  | E47: =IF('(3)기초대차대조표'!C46="","",'(3)기초대차대조표'!C46) -> 
B48: =" "&'(2)기초자산,부채'!C43 ->  | C48: =IF('(8)연말잔액'!C57="","",'(8)연말잔액'!C57) ->  | E48: =IF('(3)기초대차대조표'!C47="","",'(3)기초대차대조표'!C47) -> 
B49: =" "&'(2)기초자산,부채'!C44 ->  | C49: =IF('(8)연말잔액'!C58="","",'(8)연말잔액'!C58) ->  | E49: =IF('(3)기초대차대조표'!C48="","",'(3)기초대차대조표'!C48) -> 
B50: =" "&'(2)기초자산,부채'!C45 ->  | C50: =IF('(8)연말잔액'!C59="","",'(8)연말잔액'!C59) ->  | E50: =IF('(3)기초대차대조표'!C49="","",'(3)기초대차대조표'!C49) -> 
B51: =" "&'(2)기초자산,부채'!C46 ->  | C51: =IF('(8)연말잔액'!C60="","",'(8)연말잔액'!C60) ->  | E51: =IF('(3)기초대차대조표'!C50="","",'(3)기초대차대조표'!C50) -> 
B52: 비유동자산 | D52: =SUM(C53:C67)-SUM(D53:D67) -> 12100000 | E52: =IF('(3)기초대차대조표'!C51="","",'(3)기초대차대조표'!C51) ->  | F52: =IF('(3)기초대차대조표'!D51="","",'(3)기초대차대조표'!D51) -> 13875000
B53: =" "&'(1)고정자산'!Q4 -> 토지 | C53: ='(1)고정자산'!T4 -> 4000000 | E53: =IF('(3)기초대차대조표'!C52="","",'(3)기초대차대조표'!C52) -> 4000000 | F53: =IF('(3)기초대차대조표'!D52="","",'(3)기초대차대조표'!D52) -> 
B54: =" "&'(1)고정자산'!Q5 -> 건물 | C54: ='(1)고정자산'!T5 -> 3000000 | E54: =IF('(3)기초대차대조표'!C53="","",'(3)기초대차대조표'!C53) -> 3000000 | F54: =IF('(3)기초대차대조표'!D53="","",'(3)기초대차대조표'!D53) -> 
B55: =" "&"(-)"&'(1)고정자산'!Q5&"감가상각누계액" -> (-)건물감가상각누계액 | D55: ='(1)고정자산'!V5+'(1)고정자산'!U5 -> 600000 | E55: =IF('(3)기초대차대조표'!C54="","",'(3)기초대차대조표'!C54) ->  | F55: =IF('(3)기초대차대조표'!D54="","",'(3)기초대차대조표'!D54) -> 450000
B56: =" "&'(1)고정자산'!Q6 -> 영농시설물 | C56: ='(1)고정자산'!T6 -> 2000000 | E56: =IF('(3)기초대차대조표'!C55="","",'(3)기초대차대조표'!C55) -> 2000000 | F56: =IF('(3)기초대차대조표'!D55="","",'(3)기초대차대조표'!D55) -> 
B57: =" "&"(-)"&'(1)고정자산'!Q6&"감가상각누계액" -> (-)영농시설물감가상각누계액 | D57: ='(1)고정자산'!V6+'(1)고정자산'!U6 -> 600000 | E57: =IF('(3)기초대차대조표'!C56="","",'(3)기초대차대조표'!C56) ->  | F57: =IF('(3)기초대차대조표'!D56="","",'(3)기초대차대조표'!D56) -> 400000
B58: =" "&'(1)고정자산'!Q7 -> 대농기구 | C58: ='(1)고정자산'!T7 -> 3000000 | E58: =IF('(3)기초대차대조표'!C57="","",'(3)기초대차대조표'!C57) -> 3000000 | F58: =IF('(3)기초대차대조표'!D57="","",'(3)기초대차대조표'!D57) -> 
B59: =" "&"(-)"&'(1)고정자산'!Q7&"감가상각누계액" -> (-)대농기구감가상각누계액 | D59: ='(1)고정자산'!V7+'(1)고정자산'!U7 -> 1800000 | E59: =IF('(3)기초대차대조표'!C58="","",'(3)기초대차대조표'!C58) ->  | F59: =IF('(3)기초대차대조표'!D58="","",'(3)기초대차대조표'!D58) -> 1200000
B60: =" "&'(1)고정자산'!Q8 -> 차량운반구 | C60: ='(1)고정자산'!T8 -> 5000000 | E60: =IF('(3)기초대차대조표'!C59="","",'(3)기초대차대조표'!C59) -> 5000000 | F60: =IF('(3)기초대차대조표'!D59="","",'(3)기초대차대조표'!D59) -> 
B61: =" "&"(-)"&'(1)고정자산'!Q8&"감가상각누계액" -> (-)차량운반구감가상각누계액 | D61: ='(1)고정자산'!V8+'(1)고정자산'!U8 -> 2500000 | E61: =IF('(3)기초대차대조표'!C60="","",'(3)기초대차대조표'!C60) ->  | F61: =IF('(3)기초대차대조표'!D60="","",'(3)기초대차대조표'!D60) -> 1875000
B62: =" "&'(1)고정자산'!Q9 -> 비품 | C62: ='(1)고정자산'!T9 -> 1000000 | E62: =IF('(3)기초대차대조표'!C61="","",'(3)기초대차대조표'!C61) -> 1000000 | F62: =IF('(3)기초대차대조표'!D61="","",'(3)기초대차대조표'!D61) -> 
B63: =" "&"(-)"&'(1)고정자산'!Q9&"감가상각누계액" -> (-)비품감가상각누계액 | D63: ='(1)고정자산'!V9+'(1)고정자산'!U9 -> 400000 | E63: =IF('(3)기초대차대조표'!C62="","",'(3)기초대차대조표'!C62) ->  | F63: =IF('(3)기초대차대조표'!D62="","",'(3)기초대차대조표'!D62) -> 200000
B64: =" "&'(1)고정자산'!Q10 -> 성숙한 생물자산(식물) | C64: ='(1)고정자산'!T10 -> 0 | E64: =IF('(3)기초대차대조표'!C63="","",'(3)기초대차대조표'!C63) -> 0 | F64: =IF('(3)기초대차대조표'!D63="","",'(3)기초대차대조표'!D63) -> 
B65: =" "&"(-)"&'(1)고정자산'!Q10&"감가상각누계액" -> (-)성숙한 생물자산(식물)감가상각누계액 | D65: ='(1)고정자산'!V10+'(1)고정자산'!U10 -> 0 | E65: =IF('(3)기초대차대조표'!C64="","",'(3)기초대차대조표'!C64) ->  | F65: =IF('(3)기초대차대조표'!D64="","",'(3)기초대차대조표'!D64) -> 0
B66: =" "&'(1)고정자산'!Q11 -> 성숙한 생물자산(가축) | C66: ='(1)고정자산'!T11 -> 0 | E66: =IF('(3)기초대차대조표'!C65="","",'(3)기초대차대조표'!C65) -> 0 | F66: =IF('(3)기초대차대조표'!D65="","",'(3)기초대차대조표'!D65) -> 
B67: =" "&"(-)"&'(1)고정자산'!Q11&"감가상각누계액" -> (-)성숙한 생물자산(가축)감가상각누계액 | D67: ='(1)고정자산'!V11+'(1)고정자산'!U11 -> 0 | E67: =IF('(3)기초대차대조표'!C66="","",'(3)기초대차대조표'!C66) ->  | F67: =IF('(3)기초대차대조표'!D66="","",'(3)기초대차대조표'!D66) -> 0
B68: 자 산 총 계 | D68: =SUM(D8,D52) -> 37400000 | E68: =IF('(3)기초대차대조표'!C67="","",'(3)기초대차대조표'!C67) ->  | F68: =IF('(3)기초대차대조표'!D67="","",'(3)기초대차대조표'!D67) -> 30085000
B69: 부 채
B70: 유동부채 | C70: =SUM(C71:C82) -> 16600000 | E70: =IF('(3)기초대차대조표'!C69="","",'(3)기초대차대조표'!C69) -> 10000000 | F70: =IF('(3)기초대차대조표'!D69="","",'(3)기초대차대조표'!D69) -> 
B71: =" "&'(2)기초자산,부채'!F7 -> 단기차입금 | C71: =IF('(8)연말잔액'!M8="","",'(8)연말잔액'!M8) -> 12000000 | E71: =IF('(3)기초대차대조표'!C70="","",'(3)기초대차대조표'!C70) -> 10000000 | F71: =IF('(3)기초대차대조표'!D70="","",'(3)기초대차대조표'!D70) -> 
B72: =" "&'(2)기초자산,부채'!F8 -> 외상매입금 | C72: =IF('(8)연말잔액'!M9="","",'(8)연말잔액'!M9) -> 4500000 | E72: =IF('(3)기초대차대조표'!C71="","",'(3)기초대차대조표'!C71) ->  | F72: =IF('(3)기초대차대조표'!D71="","",'(3)기초대차대조표'!D71) -> 
B73: =" "&'(2)기초자산,부채'!F9 -> 미지급금 | C73: =IF('(8)연말잔액'!M10="","",'(8)연말잔액'!M10) -> 100000 | E73: =IF('(3)기초대차대조표'!C72="","",'(3)기초대차대조표'!C72) ->  | F73: =IF('(3)기초대차대조표'!D72="","",'(3)기초대차대조표'!D72) -> 
B74: =" "&'(2)기초자산,부채'!F10 -> 미지급비용 | C74: =IF('(8)연말잔액'!M11="","",'(8)연말잔액'!M11) ->  | E74: =IF('(3)기초대차대조표'!C73="","",'(3)기초대차대조표'!C73) ->  | F74: =IF('(3)기초대차대조표'!D73="","",'(3)기초대차대조표'!D73) -> 
B75: =" "&'(2)기초자산,부채'!F11 -> 예수금 | C75: =IF('(8)연말잔액'!M12="","",'(8)연말잔액'!M12) ->  | E75: =IF('(3)기초대차대조표'!C74="","",'(3)기초대차대조표'!C74) ->  | F75: =IF('(3)기초대차대조표'!D74="","",'(3)기초대차대조표'!D74) -> 
B76: =" "&'(2)기초자산,부채'!F12 -> 선수금 | C76: =IF('(8)연말잔액'!M13="","",'(8)연말잔액'!M13) ->  | E76: =IF('(3)기초대차대조표'!C75="","",'(3)기초대차대조표'!C75) ->  | F76: =IF('(3)기초대차대조표'!D75="","",'(3)기초대차대조표'!D75) -> 
B77: =" "&'(2)기초자산,부채'!F13 -> 선수수익 | C77: =IF('(8)연말잔액'!M14="","",'(8)연말잔액'!M14) ->  | E77: =IF('(3)기초대차대조표'!C76="","",'(3)기초대차대조표'!C76) ->  | F77: =IF('(3)기초대차대조표'!D76="","",'(3)기초대차대조표'!D76) -> 
B78: =" "&'(2)기초자산,부채'!F14 ->  | C78: =IF('(8)연말잔액'!M15="","",'(8)연말잔액'!M15) ->  | E78: =IF('(3)기초대차대조표'!C77="","",'(3)기초대차대조표'!C77) ->  | F78: =IF('(3)기초대차대조표'!D80="","",'(3)기초대차대조표'!D80) -> 
B79: =" "&'(2)기초자산,부채'!F15 ->  | C79: =IF('(8)연말잔액'!M16="","",'(8)연말잔액'!M16) ->  | E79: =IF('(3)기초대차대조표'!C78="","",'(3)기초대차대조표'!C78) -> 
B80: =" "&'(2)기초자산,부채'!F16 ->  | C80: =IF('(8)연말잔액'!M17="","",'(8)연말잔액'!M17) ->  | E80: =IF('(3)기초대차대조표'!C79="","",'(3)기초대차대조표'!C79) -> 
B81: =" "&'(2)기초자산,부채'!F17 ->  | C81: =IF('(8)연말잔액'!M18="","",'(8)연말잔액'!M18) ->  | E81: =IF('(3)기초대차대조표'!C80="","",'(3)기초대차대조표'!C80) -> 
B82: =" "&'(2)기초자산,부채'!F18 ->  | C82: =IF('(8)연말잔액'!M19="","",'(8)연말잔액'!M19) ->  | E82: =IF('(3)기초대차대조표'!C81="","",'(3)기초대차대조표'!C81) ->  | F82: =IF('(3)기초대차대조표'!D81="","",'(3)기초대차대조표'!D81) -> 
B83: 비유동부채 | C83: =SUM(C84:C91) -> 2000000 | E83: =IF('(3)기초대차대조표'!C82="","",'(3)기초대차대조표'!C82) -> 2000000 | F83: =IF('(3)기초대차대조표'!D82="","",'(3)기초대차대조표'!D82) -> 
B84: =" "&'(2)기초자산,부채'!F19 -> 장기차입금 | C84: =IF('(8)연말잔액'!M26="","",'(8)연말잔액'!M26) -> 2000000 | E84: =IF('(3)기초대차대조표'!C83="","",'(3)기초대차대조표'!C83) -> 2000000 | F84: =IF('(3)기초대차대조표'!D83="","",'(3)기초대차대조표'!D83) -> 
B85: =" "&'(2)기초자산,부채'!F20 -> 장기외상매입금 | C85: =IF('(8)연말잔액'!M27="","",'(8)연말잔액'!M27) ->  | E85: =IF('(3)기초대차대조표'!C84="","",'(3)기초대차대조표'!C84) ->  | F85: =IF('(3)기초대차대조표'!D84="","",'(3)기초대차대조표'!D84) -> 
B86: =" "&'(2)기초자산,부채'!F21 -> 사채 | C86: =IF('(8)연말잔액'!M28="","",'(8)연말잔액'!M28) ->  | E86: =IF('(3)기초대차대조표'!C85="","",'(3)기초대차대조표'!C85) ->  | F86: =IF('(3)기초대차대조표'!D85="","",'(3)기초대차대조표'!D85) -> 
B87: =" "&'(2)기초자산,부채'!F22 ->  | C87: =IF('(8)연말잔액'!M29="","",'(8)연말잔액'!M29) ->  | E87: =IF('(3)기초대차대조표'!C86="","",'(3)기초대차대조표'!C86) ->  | F87: =IF('(3)기초대차대조표'!D86="","",'(3)기초대차대조표'!D86) -> 
B88: =" "&'(2)기초자산,부채'!F23 ->  | C88: =IF('(8)연말잔액'!M30="","",'(8)연말잔액'!M30) ->  | E88: =IF('(3)기초대차대조표'!C87="","",'(3)기초대차대조표'!C87) ->  | F88: =IF('(3)기초대차대조표'!D87="","",'(3)기초대차대조표'!D87) -> 
B89: =" "&'(2)기초자산,부채'!F24 ->  | C89: =IF('(8)연말잔액'!M31="","",'(8)연말잔액'!M31) ->  | E89: =IF('(3)기초대차대조표'!C88="","",'(3)기초대차대조표'!C88) ->  | F89: =IF('(3)기초대차대조표'!D88="","",'(3)기초대차대조표'!D88) -> 
B90: =" "&'(2)기초자산,부채'!F25 ->  | C90: =IF('(8)연말잔액'!M32="","",'(8)연말잔액'!M32) ->  | E90: =IF('(3)기초대차대조표'!C89="","",'(3)기초대차대조표'!C89) ->  | F90: =IF('(3)기초대차대조표'!D89="","",'(3)기초대차대조표'!D89) -> 
B91: =" "&'(2)기초자산,부채'!F26 ->  | C91: =IF('(8)연말잔액'!M33="","",'(8)연말잔액'!M33) ->  | E91: =IF('(3)기초대차대조표'!C90="","",'(3)기초대차대조표'!C90) ->  | F91: =IF('(3)기초대차대조표'!D90="","",'(3)기초대차대조표'!D90) -> 
B92: 부 채 총 계 | D92: =SUM(C70,C83) -> 18600000 | E92: =IF('(3)기초대차대조표'!C91="","",'(3)기초대차대조표'!C91) ->  | F92: =IF('(3)기초대차대조표'!D91="","",'(3)기초대차대조표'!D91) -> 12000000
B93: 자 본
B94: 자본금 | C94: =IF('(3)기초대차대조표'!C93="","",'(3)기초대차대조표'!C93)-D96 -> 16085000 | E94: =IF('(3)기초대차대조표'!C93="","",'(3)기초대차대조표'!C93) -> 18085000 | F94: =IF('(3)기초대차대조표'!D93="","",'(3)기초대차대조표'!D93) -> 
B95: =" "&"출자금" -> 출자금 | C95: ='(3)기초대차대조표'!C94 -> 18085000 | E95: =IF('(3)기초대차대조표'!C94="","",'(3)기초대차대조표'!C94) -> 18085000 | F95: =IF('(3)기초대차대조표'!D94="","",'(3)기초대차대조표'!D94) -> 
B96: =" "&"인출금" -> 인출금 | D96: =IF(SUM('(8)연말잔액'!M42:M43)="",0,SUM('(8)연말잔액'!M42:M43)) -> 2000000
B97: (당기순이익) | C97: =C98 -> 2715000 | E97: =IF('(3)기초대차대조표'!C95="","",'(3)기초대차대조표'!C95) ->  | F97: =IF('(3)기초대차대조표'!D95="","",'(3)기초대차대조표'!D95) -> 18085000
B98: =" "&"당기순이익" -> 당기순이익 | C98: ='(10)손익계산서'!D62 -> 2715000
B99: 자 본 총 계 | D99: =C94+C97 -> 18800000 | F99: =E94 -> 18085000
B100: 부채와 자본 총계 | D100: =D92+D99 -> 37400000 | F100: =F92+F99 -> 30085000

Sheet (12)연도이월
B6: ※ 반드시 파일을 다른 이름으로 저장한 후 연도이월 버튼을 눌러주세요.
B7: ※ 반드시 연도이월 버튼을 한번만 눌러주세요. 두번 이상 누르시면 안됩니다.
B8: ▷ 다음 회계년도 기록을 시작하기전 한번만 사용합니다.
B9: ▷ (1)고정자산을 제외한 모든 항목이 지워집니다.
B10: ▷ (8)연말잔액이 다음 회계년도 (2)기초자산, 부채 항목으로 변경됩니다.
B11: ▷ (11)대차대조표가 다음 회계년도 (3)기초대차대조표로 변경됩니다.
